Workbook

Sheet ERROR
A1: =COMP!B1 -> ; [select]; [select] [select]; | V1: =COMP!N1 -> COM FBP V19.2
A7: TOTAL ERROR COUNT | E7: =E9+K9+Q9+W9+W12+Q13 -> 22
A9: COMP TAB | E9: =COMP!N7 -> 17 | G9: ASSIGN TAB | K9: =SUM(K10:K15) -> 5 | M9: OTH EXP TAB | Q9: =SUM(Q10:Q11) -> 0 | S9: OTH REV TAB | W9: =SUM(W10) -> 0
B10: General Info | E10: =COMP!N7 -> 17 | H10: Administration | K10: =ASSIGN!C10 -> 0 | N10: Common Costs | Q10: ='OTH EXP'!K7 -> 0 | T10: Other Revenue | W10: ='OTH REV'!B37 -> 0
B11: Compensation | E11: =COMP!N25 -> 3 | H11: Research | K11: =ASSIGN!C17 -> 0 | N11: Other Costs | Q11: ='OTH EXP'!K17 -> 0
B12: Benchmarks | E12: =COMP!N62 -> 5 | H12: Education | K12: =ASSIGN!C24 -> 0 | S12: CLIN REV TAB | W12: ='CLIN REV'!O9 -> 0
H13: Clinical | K13: =ASSIGN!C31 -> 0 | M13: DIVISION TAB | Q13: =DIV!J8 -> 0
H14: Assigned FTE | K14: =SUM(ASSIGN!M44:Q44) -> 5
H15: wRVU Total | K15: =IF(ASSIGN!F42=0,0,1) -> 0

Sheet DEPT MEMO (hidden)
A1: COLLEGE OF MEDICINE
A2: FACULTY RECRUITMENT BUSINESS PLAN
A3: DEPARTMENT CHAIR MEMO
A4: Memo must address the 1) justification and rationale for the position, 2) the equity analysis of the compensation structure, 3) the subspecialty group's productivity analysis, 4) if necessary the department's budget capacity analysis
A5: Paste Memo Here

Sheet SL MEMO (hidden)
A1: COLLEGE OF MEDICINE
A2: FACULTY RECRUITMENT BUSINESS PLAN
A3: SERVICE LINE DIRECTOR MEMO
A4: Memo must address the 1) justification and rationale for the position, 2) the subspecialty group's productivity analysis, 3) budget capacity analysis, 4) financial return on investment analysis, 5) deployment strategy, and 6) clinical space analysis
A5: Paste Memo Here

Sheet COMP
A1: HIDE | B1: =D9&"; "&J9&"; "&D10 -> ; [select]; [select] [select]; | N1: COM FBP V19.2 | O1: HIDE | P1: HIDE | Q1: HIDE | R1: HIDE | S1: HIDE | T1: HIDE | U1: HIDE | V1: HIDE | W1: HIDE
B7: GENERAL INFORMATION | N7: =SUM(T9:W24) -> 17
B9: JFR #: | G9: =IF(OR(D9="[enter]",D9="[select]",D9=0)=TRUE,"error","") -> error | H9: Department: | J9: [select] | M9: =IF(OR(J9="[enter]",J9="[select]",J9=0)=TRUE,"error","") -> error | T9: =IF(G9="error",1,0) -> 1 | U9: =IF(M9="error",1,0) -> 1
B10: Working Posn Title: | D10: =J17&" "&D65&"; "&J11 -> [select] [select]; | H10: Section/Division: | M10: =IF(OR(J10="[enter]",J10="[select]",J10=0)=TRUE,"error","") -> error | U10: =IF(M10="error",1,0) -> 1
B11: Transaction Type: | D11: Request to Hire | G11: =IF(OR(D11="[enter]",D11="[select]",D11=0)=TRUE,"error","") ->  | H11: Subspecialty: | M11: =IF(OR(J11="[enter]",J11="[select]",J11=0)=TRUE,"error","") -> error | T11: =IF(G11="error",1,0) -> 0 | U11: =IF(M11="error",1,0) -> 1
B12: Prepared by: | G12: =IF(OR(D12="[enter]",D12="[select]",D12=0)=TRUE,"error","") -> error | H12: Service Line: | J12: [select] | M12: =IF(OR(J12="[enter]",J12="[select]",J12=0)=TRUE,"error","") -> error | T12: =IF(G12="error",1,0) -> 1 | U12: =IF(M12="error",1,0) -> 1
B14: Start Date: | G14: =IF(OR(D14="[enter]",D14="[select]",D14=0)=TRUE,"error","") -> error | H14: Faculty/Extender: | J14: [select] | M14: =IF(OR(J14="[enter]",J14="[select]",J14=0)=TRUE,"error","") -> error | T14: =IF(G14="error",1,0) -> 1 | U14: =IF(M14="error",1,0) -> 1
B15: Candidate Name: | G15: =IF(OR(D15="[enter]",D15="[select]",D15=0)=TRUE,"error","") -> error | H15: Position Type: | J15: [select] | M15: =IF(OR(J15="[enter]",J15="[select]",J15=0)=TRUE,"error","") -> error | T15: =IF(G15="error",1,0) -> 1 | U15: =IF(M15="error",1,0) -> 1
B16: New/Replacement: | D16: [select] | G16: =IF(OR(D16="[enter]",D16="[select]",D16=0)=TRUE,"error","") -> error | H16: Tenure Track: | J16: [select] | M16: =IF(OR(J16="[enter]",J16="[select]",J16=0)=TRUE,"error","") -> error | T16: =IF(G16="error",1,0) -> 1 | U16: =IF(M16="error",1,0) -> 1
B17: Replacement Name: | G17: =IF(OR(D17="[enter]",D17="[select]",D17=0)=TRUE,"error","") -> error | H17: Rank: | J17: [select] | M17: =IF(OR(J17="[enter]",J17="[select]",J17=0)=TRUE,"error","") -> error | T17: =IF(G17="error",1,0) -> 1 | U17: =IF(M17="error",1,0) -> 1
B18: Date of Separation: | G18: =IF(OR(D18="[enter]",D18="[select]",D18=0)=TRUE,"error","") -> error | H18: Base Attachment Titles: | M18: =IF(D28>0,IF(J18>0,"","error"),"") ->  | T18: =IF(G18="error",1,0) -> 1 | U18: =IF(M18="error",1,0) -> 0
B19: Rational/Justification:
B23: The above rational/justification inlcudes the department's review of equity, subspecialty productivity, facility capacity, and budget/funding? | N23: No | T23: =IF(N23="Yes",0,1) -> 1
B24: If necessary, uploaded a separate Service Line Director's Memo outlining the rational for this new hire, including: the subspecialty productivity, deployment, clinical space, and budget capacity? | N24: No | T24: =IF(N24="Yes",0,IF(N24="NA",0,1)) -> 1
B25: COMPENSATION | N25: =SUM(T27:W61) -> 3
B27: Base Salary: | E27: =IF(D27=0,"error","") -> error | F27: INCENTIVES | T27: =IF(E27="error",1,0) -> 1
B28: Base Attachment: | F28: P&L | G28: Rev Type | H28: Description/Calculation | J28: Year 1 | K28: Year 2 | L28: Year 3 | M28: Year 4 | N28: Year 5 | T28: =IF(E28="error",1,0) -> 0
A29: =F29&G29 ->  | B29: UAMS Salary: | D29: =SUM(D27:D28) -> 0 | O29: =J29*$D$40 -> 0 | P29: 0 | Q29: 0 | R29: 0 | S29: 0 | U29: =IF(SUM($J29:$N29)<>0,IF(F29=0,1,0),0) -> 0 | V29: 0 | W29: 0
A30: =F30&G30 ->  | B30: VA Salary: | E30: =IF(D34>0,IF(D30>0,"","error"),"") ->  | O30: 0 | P30: 0 | Q30: 0 | R30: 0 | S30: 0 | T30: =IF(E30="error",1,0) -> 0 | U30: 0 | V30: 0 | W30: 0
A31: =F31&G31 ->  | B31: Total Salary: | D31: =IF(D27="[enter]",0,D29+D30) -> 0 | O31: 0 | P31: 0 | Q31: 0 | R31: 0 | S31: 0 | U31: 0 | V31: 0 | W31: 0
A32: =F32&G32 ->  | B32: UAMS 1.0 Salary: | D32: =IF(D36=0,0,D29/D36) -> 0 | O32: 0 | P32: 0 | Q32: 0 | R32: 0 | S32: 0 | U32: 0 | V32: 0 | W32: 0
F33: =IF(SUM($J29:$N29)>0,IF(F29=0,"error",""),"")&IF(SUM($J30:$N30)>0,IF(F30=0,"error",""),"")&IF(SUM($J31:$N31)>0,IF(F31=0,"error",""),"")&IF(SUM($J32:$N32)>0,IF(F32=0,"error",""),"") ->  | G33: =IF(SUM($J29:$N29)>0,IF(G29=0,"error",""),"")&IF(SUM($J30:$N30)>0,IF(G30=0,"error",""),"")&IF(SUM($J31:$N31)>0,IF(G31=0,"error",""),"")&IF(SUM($J32:$N32)>0,IF(G32=0,"error",""),"") ->  | H33: =IF(SUM($J29:$N29)>0,IF(H29=0,"error",""),"")&IF(SUM($J30:$N30)>0,IF(H30=0,"error",""),"")&IF(SUM($J31:$N31)>0,IF(H31=0,"error",""),"")&IF(SUM($J32:$N32)>0,IF(H32=0,"error",""),"") ->  | J33: =SUM(J29:J32) -> 0 | K33: 0 | L33: 0 | M33: 0 | N33: 0 | O33: 0 | P33: =SUM(P29:P32) -> 0 | Q33: 0 | R33: 0 | S33: 0
B34: VA 8ths | E34: =IF(D30>0,IF(D34>0,"","error"),"") ->  | T34: =IF(E34="error",1,0) -> 0
F35: COMPENSATION SUMMARY | I35: Year 1 | J35: Year 2 | K35: Year 3 | L35: Year 4 | M35: Year 5
B36: UAMS FTE: | D36: =VLOOKUP(D34,LOOKUPS!$A$103:$F$111,6,FALSE) -> 1 | F36: UAMS Compensation
B37: VA FTE: | D37: =D38-D36 -> 0 | F37: UAMS FTE by Year: | I37: =D36 -> 1 | J37: =I37 -> 1 | K37: =J37 -> 1 | L37: =K37 -> 1 | M37: =L37 -> 1
B38: Total FTE: | D38: 1 | E38: =IF(D38=0,"error","") ->  | F38: UAMS Salary: | I38: =D29 -> 0 | J38: =IF(I37=J37,I38*(1+$D$41),(I38*(1+$D$41))+((I38*(1+$D$41)/I37)*(J37-I37))) -> 0 | K38: =IF(J37=K37,J38*(1+$D$41),(J38*(1+$D$41))+((J38*(1+$D$41)/J37)*(K37-J37))) -> 0 | L38: =IF(K37=L37,K38*(1+$D$41),(K38*(1+$D$41))+((K38*(1+$D$41)/K37)*(L37-K37))) -> 0 | M38: =IF(L37=M37,L38*(1+$D$41),(L38*(1+$D$41))+((L38*(1+$D$41)/L37)*(M37-L37))) -> 0 | T38: =IF(E38="error",1,0) -> 0
F39: UAMS Incentives: | I39: =J33 -> 0 | J39: =K33 -> 0 | K39: =L33 -> 0 | L39: =M33 -> 0 | M39: =N33 -> 0
B40: Fringe Rate: | D40: 0.2 | E40: =IF(D40<0.15,"review","") ->  | F40: UAMS Subtotal: | I40: =SUM(I38:I39) -> 0 | J40: =SUM(J38:J39) -> 0 | K40: =SUM(K38:K39) -> 0 | L40: =SUM(L38:L39) -> 0 | M40: =SUM(M38:M39) -> 0
B41: COLA: | E41: =IF(D41>0,"review","") -> 
F42: VA Compensation
B43: Existing Dean's Cmmt? | E43: =IF(OR(D43="[enter]",D43="[select]",D43=0)=TRUE,"error","") -> error | F43: VA FTE by Year: | I43: =D37 -> 0 | J43: =I43 -> 0 | K43: =J43 -> 0 | L43: =K43 -> 0 | M43: =L43 -> 0 | T43: =IF(E43="error",1,0) -> 1
B44: If yes, specify: | E44: =IF(D43="Yes",IF(D44=0,"error",""),"") ->  | F44: VA Salary: | I44: =D30 -> 0 | J44: =IF(I43=J43,I44*(1+$D$41),(I44*(1+$D$41))+((I44*(1+$D$41)/I43)*(J43-I43))) -> 0 | K44: =IF(J43=K43,J44*(1+$D$41),(J44*(1+$D$41))+((J44*(1+$D$41)/J43)*(K43-J43))) -> 0 | L44: =IF(K43=L43,K44*(1+$D$41),(K44*(1+$D$41))+((K44*(1+$D$41)/K43)*(L43-K43))) -> 0 | M44: =IF(L43=M43,L44*(1+$D$41),(L44*(1+$D$41))+((L44*(1+$D$41)/L43)*(M43-L43))) -> 0 | T44: =IF(E44="error",1,0) -> 0
B46: Budgeted: | E46: =IF(OR(D46="[enter]",D46="[select]",D46=0)=TRUE,"error","") -> error | F46: Total Compensation | T46: =IF(E46="error",1,0) -> 1
B47: Year? | E47: =IF(D46="Yes",IF(D47=0,"error",""),"") ->  | F47: Total FTE: | I47: =I37+I43 -> 1 | J47: =J37+J43 -> 1 | K47: =K37+K43 -> 1 | L47: =L37+L43 -> 1 | M47: =M37+M43 -> 1 | T47: =IF(E47="error",1,0) -> 0
F48: Total Comp: | I48: =I40+I44 -> 0 | J48: =J40+J44 -> 0 | K48: =K40+K44 -> 0 | L48: =L40+L44 -> 0 | M48: =M40+M44 -> 0
B49: Salary Justification:
F50: Summary w/o Fringe
F51: UAMS 1.0 Normalized Total Salary: | I51: =IF(I$37=0,0,(I38/I$37)) -> 0 | J51: =IF(J$37=0,0,(J38/J$37)) -> 0 | K51: =IF(K$37=0,0,(K38/K$37)) -> 0 | L51: =IF(L$37=0,0,(L38/L$37)) -> 0 | M51: =IF(M$37=0,0,(M38/M$37)) -> 0
F52: UAMS 1.0 Normalized Total Comp: | I52: =IF(I$37=0,0,(I38/I$37)+I39) -> 0 | J52: =IF(J$37=0,0,(J38/J$37)+J39) -> 0 | K52: =IF(K$37=0,0,(K38/K$37)+K39) -> 0 | L52: =IF(L$37=0,0,(L38/L$37)+L39) -> 0 | M52: =IF(M$37=0,0,(M38/M$37)+M39) -> 0
F53: UAMS & VA 1.0 Norm Total Comp: | I53: =IF(I$47=0,0,((I38+I44)/I$47)+I39) -> 0 | J53: =IF(J$47=0,0,((J38+J44)/J$47)+J39) -> 0 | K53: =IF(K$47=0,0,((K38+K44)/K$47)+K39) -> 0 | L53: =IF(L$47=0,0,((L38+L44)/L$47)+L39) -> 0 | M53: =IF(M$47=0,0,((M38+M44)/M$47)+M39) -> 0
F55: Fringe Summary
F56: UAMS Salary Fringe | I56: =I$38*$D$40 -> 0 | J56: =J$38*$D$40 -> 0 | K56: =K$38*$D$40 -> 0 | L56: =L$38*$D$40 -> 0 | M56: =M$38*$D$40 -> 0
F57: UAMS 1.0 Normalized Salary Fringe | I57: =IF(I$37=0,0,(I$38*$D$40)/I$37) -> 0 | J57: =IF(J$37=0,0,(J$38*$D$40)/J$37) -> 0 | K57: 0 | L57: 0 | M57: 0
F58: UAMS Incentive Fringe | I58: =O33 -> 0 | J58: =P33 -> 0 | K58: =Q33 -> 0 | L58: =R33 -> 0 | M58: =S33 -> 0
F59: Total Fringe | I59: =SUM(I57:I58) -> 0 | J59: =SUM(J57:J58) -> 0 | K59: 0 | L59: 0 | M59: 0
B62: BENCHMARKS | N62: =SUM(T64:W77) -> 5
B64: AAMC Specialty: | D64: [select] | G64: =IF(OR(D64="[enter]",D64="[select]",D64=0)=TRUE,"error","") -> error | H64: Salary Benchmarks | J64: Data Year | K64: 25%ile | L64: Median | M64: 75%ile | N64: 90%ile
B65: AAMC Degree: | D65: [select] | G65: =IF(OR(D65="[enter]",D65="[select]",D65=0)=TRUE,"error","") -> error | H65: AAMC Public Schools: | J65: 2017 | K65: =IFERROR(VLOOKUP("AAMCAcademicPublic"&$J$17&$D$65&$D$64&"L",AAMC!$A$4:$W$2000,10,FALSE),"no data") -> no data | L65: =IFERROR(VLOOKUP("AAMCAcademicPublic"&$J$17&$D$65&$D$64&"L",AAMC!$A$4:$W$2000,15,FALSE),"no data") -> no data | M65: =IFERROR(VLOOKUP("AAMCAcademicPublic"&$J$17&$D$65&$D$64&"L",AAMC!$A$4:$W$2000,20,FALSE),"no data") -> no data | N65: =IFERROR(VLOOKUP("AAMCAcademicPublic"&$J$17&$D$65&$D$64&"L",AAMC!$A$4:$W$2000,23,FALSE),"no data") -> no data
B66: FPSC Specialty: | D66: [select] | G66: =IF(OR(D66="[enter]",D66="[select]",D66=0)=TRUE,"error","") -> error | H66: AAMC All Schools: | J66: 2017 | K66: =IFERROR(VLOOKUP("AAMCAcademicAll"&$J$17&$D$65&$D$64&"L",AAMC!$A$4:$W$2000,10,FALSE),"no data") -> no data | L66: =IFERROR(VLOOKUP("AAMCAcademicAll"&$J$17&$D$65&$D$64&"L",AAMC!$A$4:$W$2000,15,FALSE),"no data") -> no data | M66: =IFERROR(VLOOKUP("AAMCAcademicAll"&$J$17&$D$65&$D$64&"L",AAMC!$A$4:$W$2000,20,FALSE),"no data") -> no data | N66: =IFERROR(VLOOKUP("AAMCAcademicAll"&$J$17&$D$65&$D$64&"L",AAMC!$A$4:$W$2000,23,FALSE),"no data") -> no data
B67: MGMA Specialty: | D67: [select] | G67: =IF(OR(D67="[enter]",D67="[select]",D67=0)=TRUE,"error","") -> error | H67: MGMA Academic: | J67: 2016 | K67: =IFERROR(VLOOKUP("MGMAAcademicAll"&$J$17&"MD"&$D$67&"L",MGMAC!$A$4:$W$500,10,FALSE),"no data") -> no data | L67: =IFERROR(VLOOKUP("MGMAAcademicAll"&$J$17&"MD"&$D$67&"L",MGMAC!$A$4:$W$500,15,FALSE),"no data") -> no data | M67: =IFERROR(VLOOKUP("MGMAAcademicAll"&$J$17&"MD"&$D$67&"L",MGMAC!$A$4:$W$500,20,FALSE),"no data") -> no data | N67: =IFERROR(VLOOKUP("MGMAAcademicAll"&$J$17&"MD"&$D$67&"L",MGMAC!$A$4:$W$500,23,FALSE),"no data") -> no data
B68: Malpractice Specialty: | D68: [select] | G68: =IF(OR(D68="[enter]",D68="[select]",D68=0)=TRUE,"error","") -> error | H68: MGMA Private Practice: | J68: 2016 | K68: =IFERROR(VLOOKUP("MGMAPrivate PracticeAll"&"Private Practice"&"MD"&$D$67&"L",MGMACP!$A$4:$W$500,10,FALSE),"no data") -> no data | L68: =IFERROR(VLOOKUP("MGMAPrivate PracticeAll"&"Private Practice"&"MD"&$D$67&"L",MGMACP!$A$4:$W$500,15,FALSE),"no data") -> no data | M68: =IFERROR(VLOOKUP("MGMAPrivate PracticeAll"&"Private Practice"&"MD"&$D$67&"L",MGMACP!$A$4:$W$500,20,FALSE),"no data") -> no data | N68: =IFERROR(VLOOKUP("MGMAPrivate PracticeAll"&"Private Practice"&"MD"&$D$67&"L",MGMACP!$A$4:$W$500,23,FALSE),"no data") -> no data
H69: Specialty Assoc Salary Bchmks: | T69: =IF(G64="error",1,0) -> 1
H70: Specialty Association/Year: | T70: =IF(G65="error",1,0) -> 1
T71: =IF(G66="error",1,0) -> 1
H72: RVU Benchmarks | J72: Data Year | K72: 25%ile | L72: Median | M72: 75%ile | N72: 90%ile | T72: =IF(G67="error",1,0) -> 1
H73: FPSC Academic: | J73: 2017 | K73: =IFERROR(VLOOKUP("FPSCAcademicAll"&$D$66&"L",FPSC!$A$4:$U$200,8,FALSE),"no data") -> no data | L73: =IFERROR(VLOOKUP("FPSCAcademicAll"&$D$66&"L",FPSC!$A$4:$U$200,13,FALSE),"no data") -> no data | M73: =IFERROR(VLOOKUP("FPSCAcademicAll"&$D$66&"L",FPSC!$A$4:$U$200,18,FALSE),"no data") -> no data | N73: =IFERROR(VLOOKUP("FPSCAcademicAll"&$D$66&"L",FPSC!$A$4:$U$2003,21,FALSE),"no data") -> no data | T73: =IF(G68="error",1,0) -> 1
H74: MGMA Academic: | J74: 2016 | K74: =IFERROR(VLOOKUP("MGMAAcademicAll"&$D$67&"L",MGMAR!$A$4:$U$200,8,FALSE),"no data") -> no data | L74: =IFERROR(VLOOKUP("MGMAAcademicAll"&$D$67&"L",MGMAR!$A$4:$U$200,13,FALSE),"no data") -> no data | M74: =IFERROR(VLOOKUP("MGMAAcademicAll"&$D$67&"L",MGMAR!$A$4:$U$200,18,FALSE),"no data") -> no data | N74: =IFERROR(VLOOKUP("MGMAAcademicAll"&$D$67&"L",MGMAR!$A$4:$U$200,21,FALSE),"no data") -> no data
H75: MGMA Private Practice: | J75: 2016 | K75: =IFERROR(VLOOKUP("MGMAPrivate PracticeAll"&$D$67&"L",MGMARP!$A$4:$U$200,8,FALSE),"no data") -> no data | L75: =IFERROR(VLOOKUP("MGMAPrivate PracticeAll"&$D$67&"L",MGMARP!$A$4:$U$200,13,FALSE),"no data") -> no data | M75: =IFERROR(VLOOKUP("MGMAPrivate PracticeAll"&$D$67&"L",MGMARP!$A$4:$U$200,18,FALSE),"no data") -> no data | N75: =IFERROR(VLOOKUP("MGMAPrivate PracticeAll"&$D$67&"L",MGMARP!$A$4:$U$200,21,FALSE),"no data") -> no data
H76: Specialty Assoc Salary Bchmks:
H77: Specialty Association/Year:

Sheet ASSIGN
A1: HIDE | B1: =COMP!B1 -> ; [select]; [select] [select]; | Q1: =COMP!N1 -> COM FBP V19.2 | R1: HIDE | S1: HIDE | T1: HIDE | U1: HIDE | V1: HIDE | W1: HIDE
B7: EFFORT
I8: Funding Details | M8: Yr1 | N8: Yr2 | O8: Yr3 | P8: Yr4 | Q8: Yr5
A9: Unique | B9: Assignment | C9: Description | D9: Mission | E9: Metric | I9: P&L | J9: Rev Type | K9: Description | M9: FTE | N9: FTE | O9: FTE | P9: FTE | Q9: FTE
B10: ADMINISTRATION | C10: =SUM(R11:U15) -> 0 | K10: If contract/institute funded, indicate if this is on-going or time-limited
A11: =I11&J11 ->  | D11: =IFERROR(VLOOKUP($B11,LOOKUPS!$A$141:$D$162,4,FALSE),"") ->  | E11: =IFERROR(VLOOKUP($B11,LOOKUPS!$A$141:$D$162,3,FALSE),"") ->  | N11: =M11 -> 0 | O11: =N11 -> 0 | P11: =O11 -> 0 | Q11: =P11 -> 0 | R11: =IF(SUM($M11:$Q11)<>0,IF(B11=0,1,0),0) -> 0 | S11: =IF(SUM($M11:$Q11)<>0,IF(I11=0,1,0),0) -> 0 | T11: 0 | U11: 0
A12: =I12&J12 ->  | D12: =IFERROR(VLOOKUP($B12,LOOKUPS!$A$141:$D$162,4,FALSE),"") ->  | E12: =IFERROR(VLOOKUP($B12,LOOKUPS!$A$141:$D$162,3,FALSE),"") ->  | N12: =M12 -> 0 | O12: 0 | P12: 0 | Q12: 0 | R12: =IF(SUM($M12:$Q12)<>0,IF(B12=0,1,0),0) -> 0 | S12: 0 | T12: 0 | U12: 0
A13: =I13&J13 ->  | D13: =IFERROR(VLOOKUP($B13,LOOKUPS!$A$141:$D$162,4,FALSE),"") ->  | E13: =IFERROR(VLOOKUP($B13,LOOKUPS!$A$141:$D$162,3,FALSE),"") ->  | N13: =M13 -> 0 | O13: 0 | P13: 0 | Q13: 0 | R13: =IF(SUM($M13:$Q13)<>0,IF(B13=0,1,0),0) -> 0 | S13: 0 | T13: 0 | U13: 0
A14: =I14&J14 ->  | D14: =IFERROR(VLOOKUP($B14,LOOKUPS!$A$141:$D$162,4,FALSE),"") ->  | E14: =IFERROR(VLOOKUP($B14,LOOKUPS!$A$141:$D$162,3,FALSE),"") ->  | N14: =M14 -> 0 | O14: 0 | P14: 0 | Q14: 0 | R14: =IF(SUM($M14:$Q14)<>0,IF(B14=0,1,0),0) -> 0 | S14: 0 | T14: 0 | U14: 0
A15: =I15&J15 ->  | D15: =IFERROR(VLOOKUP($B15,LOOKUPS!$A$141:$D$162,4,FALSE),"") ->  | E15: =IFERROR(VLOOKUP($B15,LOOKUPS!$A$141:$D$162,3,FALSE),"") ->  | N15: =M15 -> 0 | O15: 0 | P15: 0 | Q15: 0 | R15: =IF(SUM($M15:$Q15)<>0,IF(B15=0,1,0),0) -> 0 | S15: 0 | T15: 0 | U15: 0
M16: =SUM(M11:M15) -> 0 | N16: 0 | O16: 0 | P16: 0 | Q16: 0
B17: RESEARCH | C17: =SUM(R18:U22) -> 0
A18: =I18&J18 ->  | D18: =IFERROR(VLOOKUP($B18,LOOKUPS!$A$165:$D$174,4,FALSE),"") ->  | E18: =IFERROR(VLOOKUP($B18,LOOKUPS!$A$165:$D$174,3,FALSE),"") ->  | N18: =M18 -> 0 | O18: 0 | P18: 0 | Q18: 0 | R18: =IF(SUM($M18:$Q18)<>0,IF(B18=0,1,0),0) -> 0 | S18: =IF(SUM($M18:$Q18)<>0,IF(I18=0,1,0),0) -> 0 | T18: 0 | U18: 0
A19: =I19&J19 ->  | D19: =IFERROR(VLOOKUP($B19,LOOKUPS!$A$165:$D$174,4,FALSE),"") ->  | E19: =IFERROR(VLOOKUP($B19,LOOKUPS!$A$165:$D$174,3,FALSE),"") ->  | N19: 0 | O19: 0 | P19: 0 | Q19: 0 | R19: =IF(SUM($M19:$Q19)<>0,IF(B19=0,1,0),0) -> 0 | S19: 0 | T19: 0 | U19: 0
A20: =I20&J20 ->  | D20: =IFERROR(VLOOKUP($B20,LOOKUPS!$A$165:$D$174,4,FALSE),"") ->  | E20: =IFERROR(VLOOKUP($B20,LOOKUPS!$A$165:$D$174,3,FALSE),"") ->  | N20: 0 | O20: 0 | P20: 0 | Q20: 0 | R20: =IF(SUM($M20:$Q20)<>0,IF(B20=0,1,0),0) -> 0 | S20: 0 | T20: 0 | U20: 0
A21: =I21&J21 ->  | D21: =IFERROR(VLOOKUP($B21,LOOKUPS!$A$165:$D$174,4,FALSE),"") ->  | E21: =IFERROR(VLOOKUP($B21,LOOKUPS!$A$165:$D$174,3,FALSE),"") ->  | N21: 0 | O21: 0 | P21: 0 | Q21: 0 | R21: =IF(SUM($M21:$Q21)<>0,IF(B21=0,1,0),0) -> 0 | S21: 0 | T21: 0 | U21: 0
A22: =I22&J22 ->  | D22: =IFERROR(VLOOKUP($B22,LOOKUPS!$A$165:$D$174,4,FALSE),"") ->  | E22: =IFERROR(VLOOKUP($B22,LOOKUPS!$A$165:$D$174,3,FALSE),"") ->  | N22: 0 | O22: 0 | P22: 0 | Q22: 0 | R22: =IF(SUM($M22:$Q22)<>0,IF(B22=0,1,0),0) -> 0 | S22: 0 | T22: 0 | U22: 0
M23: =SUM(M18:M22) -> 0 | N23: 0 | O23: 0 | P23: 0 | Q23: 0
B24: EDUCATION | C24: =SUM(R25:U29) -> 0
A25: =I25&J25 ->  | D25: =IFERROR(VLOOKUP($B25,LOOKUPS!$A$177:$D$185,4,FALSE),"") ->  | E25: =IFERROR(VLOOKUP($B25,LOOKUPS!$A$177:$D$185,3,FALSE),"") ->  | N25: =M25 -> 0 | O25: 0 | P25: 0 | Q25: 0 | R25: =IF(SUM($M25:$Q25)<>0,IF(B25=0,1,0),0) -> 0 | S25: =IF(SUM($M25:$Q25)<>0,IF(I25=0,1,0),0) -> 0 | T25: 0 | U25: 0
A26: =I26&J26 ->  | D26: =IFERROR(VLOOKUP($B26,LOOKUPS!$A$177:$D$185,4,FALSE),"") ->  | E26: =IFERROR(VLOOKUP($B26,LOOKUPS!$A$177:$D$185,3,FALSE),"") ->  | N26: 0 | O26: 0 | P26: 0 | Q26: 0 | R26: =IF(SUM($M26:$Q26)<>0,IF(B26=0,1,0),0) -> 0 | S26: 0 | T26: 0 | U26: 0
A27: =I27&J27 ->  | D27: =IFERROR(VLOOKUP($B27,LOOKUPS!$A$177:$D$185,4,FALSE),"") ->  | E27: =IFERROR(VLOOKUP($B27,LOOKUPS!$A$177:$D$185,3,FALSE),"") ->  | N27: 0 | O27: 0 | P27: 0 | Q27: 0 | R27: =IF(SUM($M27:$Q27)<>0,IF(B27=0,1,0),0) -> 0 | S27: 0 | T27: 0 | U27: 0
A28: =I28&J28 ->  | D28: =IFERROR(VLOOKUP($B28,LOOKUPS!$A$177:$D$185,4,FALSE),"") ->  | E28: =IFERROR(VLOOKUP($B28,LOOKUPS!$A$177:$D$185,3,FALSE),"") ->  | N28: 0 | O28: 0 | P28: 0 | Q28: 0 | R28: =IF(SUM($M28:$Q28)<>0,IF(B28=0,1,0),0) -> 0 | S28: 0 | T28: 0 | U28: 0
A29: =I29&J29 ->  | D29: =IFERROR(VLOOKUP($B29,LOOKUPS!$A$177:$D$185,4,FALSE),"") ->  | E29: =IFERROR(VLOOKUP($B29,LOOKUPS!$A$177:$D$185,3,FALSE),"") ->  | N29: 0 | O29: 0 | P29: 0 | Q29: 0 | R29: =IF(SUM($M29:$Q29)<>0,IF(B29=0,1,0),0) -> 0 | S29: 0 | T29: 0 | U29: 0
F30: Production After Ramp-up | M30: =SUM(M24:M29) -> 0 | N30: =SUM(N24:N29) -> 0 | O30: =SUM(O24:O29) -> 0 | P30: =SUM(P24:P29) -> 0 | Q30: =SUM(Q24:Q29) -> 0
B31: CLINICAL | C31: =SUM(R32:W40) -> 0 | F31: wRVUs | G31: Cases/Visits | H31: Comments
A32: =I32&J32 ->  | D32: =IFERROR(VLOOKUP($B32,LOOKUPS!$A$188:$D$204,4,FALSE),"") ->  | E32: =IFERROR(VLOOKUP($B32,LOOKUPS!$A$188:$D$204,3,FALSE),"") ->  | N32: =M32 -> 0 | O32: 0 | P32: 0 | Q32: 0 | R32: =IF(SUM($M32:$Q32)<>0,IF(B32=0,1,0),0) -> 0 | S32: =IF(SUM($M32:$Q32)<>0,IF(I32=0,1,0),0) -> 0 | T32: =IF(SUM($M32:$Q32)<>0,IF(J32=0,1,0),0) -> 0 | U32: =IF(SUM($M32:$Q32)<>0,IF(K32=0,1,0),0) -> 0 | V32: =IF(E32="wRVUs",IF(F32=0,1,0),0) -> 0 | W32: =IF(E32="wRVUs",IF(G32=0,1,0),0) -> 0
D33: =IFERROR(VLOOKUP($B33,LOOKUPS!$A$188:$D$204,4,FALSE),"") ->  | E33: =IFERROR(VLOOKUP($B33,LOOKUPS!$A$188:$D$204,3,FALSE),"") ->  | N33: 0 | O33: 0 | P33: 0 | Q33: 0 | R33: 0 | S33: 0 | T33: 0 | U33: 0 | V33: =IF(E33="wRVUs",IF(F33=0,1,0),0) -> 0 | W33: =IF(E33="wRVUs",IF(G33=0,1,0),0) -> 0
D34: =IFERROR(VLOOKUP($B34,LOOKUPS!$A$188:$D$204,4,FALSE),"") ->  | E34: =IFERROR(VLOOKUP($B34,LOOKUPS!$A$188:$D$204,3,FALSE),"") ->  | N34: =M34 -> 0 | O34: =N34 -> 0 | P34: =O34 -> 0 | Q34: =P34 -> 0 | R34: 0 | S34: 0 | T34: 0 | U34: 0 | V34: 0 | W34: 0
D35: =IFERROR(VLOOKUP($B35,LOOKUPS!$A$188:$D$204,4,FALSE),"") ->  | E35: =IFERROR(VLOOKUP($B35,LOOKUPS!$A$188:$D$204,3,FALSE),"") ->  | N35: 0 | O35: 0 | P35: 0 | Q35: 0 | R35: 0 | S35: 0 | T35: 0 | U35: 0 | V35: 0 | W35: 0
D36: =IFERROR(VLOOKUP($B36,LOOKUPS!$A$188:$D$204,4,FALSE),"") ->  | E36: =IFERROR(VLOOKUP($B36,LOOKUPS!$A$188:$D$204,3,FALSE),"") ->  | N36: =M36 -> 0 | O36: =N36 -> 0 | P36: =O36 -> 0 | Q36: =P36 -> 0 | R36: 0 | S36: 0 | T36: 0 | U36: 0 | V36: 0 | W36: 0
D37: =IFERROR(VLOOKUP($B37,LOOKUPS!$A$188:$D$204,4,FALSE),"") ->  | E37: =IFERROR(VLOOKUP($B37,LOOKUPS!$A$188:$D$204,3,FALSE),"") ->  | N37: 0 | O37: 0 | P37: 0 | Q37: 0 | R37: 0 | S37: 0 | T37: 0 | U37: 0 | V37: 0 | W37: 0
D38: =IFERROR(VLOOKUP($B38,LOOKUPS!$A$188:$D$204,4,FALSE),"") ->  | E38: =IFERROR(VLOOKUP($B38,LOOKUPS!$A$188:$D$204,3,FALSE),"") ->  | N38: 0 | O38: 0 | P38: 0 | Q38: 0 | R38: 0 | S38: 0 | T38: 0 | U38: 0 | V38: 0 | W38: 0
D39: =IFERROR(VLOOKUP($B39,LOOKUPS!$A$188:$D$204,4,FALSE),"") ->  | E39: =IFERROR(VLOOKUP($B39,LOOKUPS!$A$188:$D$204,3,FALSE),"") ->  | N39: 0 | O39: 0 | P39: 0 | Q39: 0 | R39: 0 | S39: 0 | T39: 0 | U39: 0 | V39: 0 | W39: 0
D40: =IFERROR(VLOOKUP($B40,LOOKUPS!$A$188:$D$204,4,FALSE),"") ->  | E40: =IFERROR(VLOOKUP($B40,LOOKUPS!$A$188:$D$204,3,FALSE),"") ->  | N40: 0 | O40: 0 | P40: 0 | Q40: 0 | R40: 0 | S40: 0 | T40: 0 | U40: 0 | V40: 0 | W40: 0
F41: =SUM(F32:F40) -> 0 | G41: =SUM(G32:G40) -> 0 | M41: =SUM(M32:M40) -> 0 | N41: =SUM(N32:N40) -> 0 | O41: =SUM(O32:O40) -> 0 | P41: =SUM(P32:P40) -> 0 | Q41: =SUM(Q32:Q40) -> 0
B42: FTE Assignment Summary | F42: =IF('CLIN REV'!$H$44+'CLIN REV'!$H$158+'CLIN REV'!$H$196=F41,0,"wRVU's don't match revenue projection") -> 0
B43: Year 1 Effort | C43: COM | D43: ICE | E43: ACH | F43: Inst | G43: Other | H43: Total | M43: =M16+M23+M30+M41 -> 0 | N43: =N16+N23+N30+N41 -> 0 | O43: 0 | P43: 0 | Q43: 0
B44: Administration | C44: =SUMIF($I$11:$I$15,C$43,$M$11:$M$15) -> 0 | D44: =SUMIF($I$11:$I$15,D$43,$M$11:$M$15) -> 0 | E44: =SUMIF($I$11:$I$15,E$43,$M$11:$M$15) -> 0 | F44: =SUMIF($I$11:$I$15,F$43,$M$11:$M$15) -> 0 | G44: =SUMIF($I$11:$I$15,G$43,$M$11:$M$15) -> 0 | H44: =SUM(C44:G44) -> 0 | M44: =IF(ROUND(COMP!I37-M16-M23-M30-M41,2)=0,"",1) -> 1 | N44: =IF(ROUND(COMP!J37-N16-N23-N30-N41,2)=0,"",1) -> 1 | O44: =IF(ROUND(COMP!K37-O16-O23-O30-O41,2)=0,"",1) -> 1 | P44: =IF(ROUND(COMP!L37-P16-P23-P30-P41,2)=0,"",1) -> 1 | Q44: =IF(ROUND(COMP!M37-Q16-Q23-Q30-Q41,2)=0,"",1) -> 1
B45: Research | C45: =SUMIF($I$18:$I$22,C$43,$M$18:$M$22) -> 0 | D45: =SUMIF($I$18:$I$22,D$43,$M$18:$M$22) -> 0 | E45: =SUMIF($I$18:$I$22,E$43,$M$18:$M$22) -> 0 | F45: =SUMIF($I$18:$I$22,F$43,$M$18:$M$22) -> 0 | G45: =SUMIF($I$18:$I$22,G$43,$M$18:$M$22) -> 0 | H45: =SUM(C45:G45) -> 0
B46: Education | C46: =SUMIF($I$25:$I$29,C$43,$M$25:$M$29) -> 0 | D46: =SUMIF($I$25:$I$29,D$43,$M$25:$M$29) -> 0 | E46: =SUMIF($I$25:$I$29,E$43,$M$25:$M$29) -> 0 | F46: =SUMIF($I$25:$I$29,F$43,$M$25:$M$29) -> 0 | G46: =SUMIF($I$25:$I$29,G$43,$M$25:$M$29) -> 0 | H46: =SUM(C46:G46) -> 0
B47: Clinical | C47: =SUMIF($I$32:$I$40,C$43,$M$32:$M$40) -> 0 | D47: =SUMIF($I$32:$I$40,D$43,$M$32:$M$40) -> 0 | E47: =SUMIF($I$32:$I$40,E$43,$M$32:$M$40) -> 0 | F47: =SUMIF($I$32:$I$40,F$43,$M$32:$M$40) -> 0 | G47: =SUMIF($I$32:$I$40,G$43,$M$32:$M$40) -> 0 | H47: =SUM(C47:G47) -> 0
B48: VA | C48: 0 | D48: 0 | E48: 0 | F48: 0 | G48: =COMP!D37 -> 0 | H48: =SUM(C48:G48) -> 0
B49: Total | C49: =SUM(C44:C48) -> 0 | D49: 0 | E49: 0 | F49: 0 | G49: 0 | H49: 0

Sheet OTH EXP
A1: HIDE | B1: HIDE | C1: =COMP!B1 -> ; [select]; [select] [select]; | K1: =COMP!N1 -> COM FBP V19.2 | L1: HIDE | M1: HIDE | N1: HIDE | O1: HIDE | P1: HIDE | Q1: HIDE
C7: INCREMENTAL COMMON COSTS | K7: =SUM(L10:M14) -> 0
C9: Type | D9: Description | E9: P&L | F9: Rev Type | G9: Year 1 | H9: Year 2 | I9: Year 3 | J9: Year 4 | K9: Year 5
A10: =E10&F10 ->  | B10: =E10&C10 -> Computer | C10: Computer | D10: (new positions) | G10: =IF(COMP!D16="New",2000,0) -> 0 | L10: =IF(SUM($G10:$K10)<>0,IF(E10=0,1,0),0) -> 0 | M10: =IF(SUM($G10:$K10)<>0,IF(F10=0,1,0),0) -> 0
A11: =E11&F11 ->  | B11: =E11&C11 -> Educational Funds | C11: Educational Funds | D11: (faculty only) | G11: =IF(COMP!J14="Faculty",COMP!D36*3000,0) -> 0 | H11: =G11 -> 0 | I11: =H11 -> 0 | J11: =I11 -> 0 | K11: =J11 -> 0 | L11: =IF(SUM($G11:$K11)<>0,IF(E11=0,1,0),0) -> 0 | M11: =IF(SUM($G11:$K11)<>0,IF(F11=0,1,0),0) -> 0
B12: =E12&C12 -> Furniture | C12: Furniture | D12: (new faculty only) | G12: =IF(COMP!D16="New",IF(COMP!J14="Faculty",4500,0),0) -> 0 | L12: 0 | M12: 0
B13: =E13&C13 -> Moving/Relocation | C13: Moving/Relocation | D13: (faculty only: Up to 7% of salary - Max of $15,000) | G13: =IF(COMP!J14="Faculty",IF(0.07*COMP!D27>15000,15000,0.07*COMP!D27),0) -> 0 | L13: 0 | M13: 0
B14: =E14&C14 -> Malpractice | C14: Malpractice | D14: (clinical faculty only) | G14: =VLOOKUP(COMP!$D$68,MAL!$A$4:$F$75,6,FALSE)*COMP!$D$36 -> 0 | H14: =G14 -> 0 | I14: =H14 -> 0 | J14: =I14 -> 0 | K14: =J14 -> 0 | L14: 0 | M14: 0
E15: Total: | G15: =SUM(G10:G14) -> 0 | H15: =SUM(H10:H14) -> 0 | I15: =SUM(I10:I14) -> 0 | J15: =SUM(J10:J14) -> 0 | K15: =SUM(K10:K14) -> 0
C17: INCREMENTAL OTHER COSTS | K17: =SUM(L20:O32) -> 0
C19: Type | D19: Description | E19: P&L | F19: Rev Type | G19: Year 1 | H19: Year 2 | I19: Year 3 | J19: Year 4 | K19: Year 5
A20: =E20&F20 ->  | B20: =E20&C20 ->  | L20: =IF(SUM($G20:$K20)<>0,IF(C20=0,1,0),0) -> 0 | M20: 0 | N20: =IF(SUM($G20:$K20)<>0,IF(E20=0,1,0),0) -> 0 | O20: =IF(SUM($G20:$K20)<>0,IF(F20=0,1,0),0) -> 0
A21: =E21&F21 ->  | L21: 0 | M21: 0 | N21: 0 | O21: 0
L22: 0 | M22: 0 | N22: 0 | O22: 0
L23: 0 | M23: 0 | N23: 0 | O23: 0
L24: 0 | M24: 0 | N24: 0 | O24: 0
A25: =E25&F25 ->  | L25: 0 | M25: 0 | N25: 0 | O25: 0
L26: 0 | M26: 0 | N26: 0 | O26: 0
L27: 0 | M27: 0 | N27: 0 | O27: 0
A28: =E28&F28 ->  | L28: 0 | M28: 0 | N28: 0 | O28: 0
L29: 0 | M29: 0 | N29: 0 | O29: 0
L30: 0 | M30: 0 | N30: 0 | O30: 0
L31: 0 | M31: 0 | N31: 0 | O31: 0
L32: 0 | M32: 0 | N32: 0 | O32: 0
E33: Total: | G33: =SUM(G20:G32) -> 0 | H33: =SUM(H20:H32) -> 0 | I33: =SUM(I20:I32) -> 0 | J33: =SUM(J20:J32) -> 0 | K33: =SUM(K20:K32) -> 0

Sheet OTH REV
A1: HIDE | O1: HIDE | P1: HIDE | Q1: HIDE
B8: INCREMENTAL OTHER REVENUES
B9: Type | D9: Description | H9: P&L | I9: Year 1 | J9: Year 2 | K9: Year 3 | L9: Year 4 | M9: Year 5
A10: =H10&B10 -> COMGrant | B10: Grant | D10: Direct Expense Support | H10: COM | I10: =(SUMIF(ASSIGN!$A$9:$A$40,$A10,ASSIGN!M$9:M$40)*(COMP!I$51+COMP!I$57)+SUMIF(COMP!$A$29:$A$32,$A10,COMP!J$29:J$32)+SUMIF(COMP!$A$29:$A$32,$A10,COMP!O$29:O$32)+SUMIF('OTH EXP'!$A$10:$A$32,$A10,'OTH EXP'!G$10:G$32)) -> 0 | J10: =(SUMIF(ASSIGN!$A$9:$A$40,$A10,ASSIGN!N$9:N$40)*(COMP!J$51+COMP!J$57)+SUMIF(COMP!$A$29:$A$32,$A10,COMP!K$29:K$32)+SUMIF(COMP!$A$29:$A$32,$A10,COMP!P$29:P$32)+SUMIF('OTH EXP'!$A$10:$A$32,$A10,'OTH EXP'!H$10:H$32)) -> 0 | K10: =(SUMIF(ASSIGN!$A$9:$A$40,$A10,ASSIGN!O$9:O$40)*(COMP!K$51+COMP!K$57)+SUMIF(COMP!$A$29:$A$32,$A10,COMP!L$29:L$32)+SUMIF(COMP!$A$29:$A$32,$A10,COMP!Q$29:Q$32)+SUMIF('OTH EXP'!$A$10:$A$32,$A10,'OTH EXP'!I$10:I$32)) -> 0 | L10: =(SUMIF(ASSIGN!$A$9:$A$40,$A10,ASSIGN!P$9:P$40)*(COMP!L$51+COMP!L$57)+SUMIF(COMP!$A$29:$A$32,$A10,COMP!M$29:M$32)+SUMIF(COMP!$A$29:$A$32,$A10,COMP!R$29:R$32)+SUMIF('OTH EXP'!$A$10:$A$32,$A10,'OTH EXP'!J$10:J$32)) -> 0 | M10: =(SUMIF(ASSIGN!$A$9:$A$40,$A10,ASSIGN!Q$9:Q$40)*(COMP!M$51+COMP!M$57)+SUMIF(COMP!$A$29:$A$32,$A10,COMP!N$29:N$32)+SUMIF(COMP!$A$29:$A$32,$A10,COMP!S$29:S$32)+SUMIF('OTH EXP'!$A$10:$A$32,$A10,'OTH EXP'!K$10:K$32)) -> 0
A11: =H11&B11 -> COMContract | B11: Contract | D11: Direct Expense Support | H11: COM | I11: =(SUMIF(ASSIGN!$A$9:$A$40,$A11,ASSIGN!M$9:M$40)*(COMP!I$51+COMP!I$57)+SUMIF(COMP!$A$29:$A$32,$A11,COMP!J$29:J$32)+SUMIF(COMP!$A$29:$A$32,$A11,COMP!O$29:O$32)+SUMIF('OTH EXP'!$A$10:$A$32,$A11,'OTH EXP'!G$10:G$32)) -> 0 | J11: =(SUMIF(ASSIGN!$A$9:$A$40,$A11,ASSIGN!N$9:N$40)*(COMP!J$51+COMP!J$57)+SUMIF(COMP!$A$29:$A$32,$A11,COMP!K$29:K$32)+SUMIF(COMP!$A$29:$A$32,$A11,COMP!P$29:P$32)+SUMIF('OTH EXP'!$A$10:$A$32,$A11,'OTH EXP'!H$10:H$32)) -> 0 | K11: =(SUMIF(ASSIGN!$A$9:$A$40,$A11,ASSIGN!O$9:O$40)*(COMP!K$51+COMP!K$57)+SUMIF(COMP!$A$29:$A$32,$A11,COMP!L$29:L$32)+SUMIF(COMP!$A$29:$A$32,$A11,COMP!Q$29:Q$32)+SUMIF('OTH EXP'!$A$10:$A$32,$A11,'OTH EXP'!I$10:I$32)) -> 0 | L11: =(SUMIF(ASSIGN!$A$9:$A$40,$A11,ASSIGN!P$9:P$40)*(COMP!L$51+COMP!L$57)+SUMIF(COMP!$A$29:$A$32,$A11,COMP!M$29:M$32)+SUMIF(COMP!$A$29:$A$32,$A11,COMP!R$29:R$32)+SUMIF('OTH EXP'!$A$10:$A$32,$A11,'OTH EXP'!J$10:J$32)) -> 0 | M11: =(SUMIF(ASSIGN!$A$9:$A$40,$A11,ASSIGN!Q$9:Q$40)*(COMP!M$51+COMP!M$57)+SUMIF(COMP!$A$29:$A$32,$A11,COMP!N$29:N$32)+SUMIF(COMP!$A$29:$A$32,$A11,COMP!S$29:S$32)+SUMIF('OTH EXP'!$A$10:$A$32,$A11,'OTH EXP'!K$10:K$32)) -> 0
A12: COMFoundation | B12: Foundation | D12: Direct Expense Support | H12: COM | I12: =(SUMIF(ASSIGN!$A$9:$A$40,$A12,ASSIGN!M$9:M$40)*(COMP!I$51+COMP!I$57)+SUMIF(COMP!$A$29:$A$32,$A12,COMP!J$29:J$32)+SUMIF(COMP!$A$29:$A$32,$A12,COMP!O$29:O$32)+SUMIF('OTH EXP'!$A$10:$A$32,$A12,'OTH EXP'!G$10:G$32)) -> 0 | J12: =(SUMIF(ASSIGN!$A$9:$A$40,$A12,ASSIGN!N$9:N$40)*(COMP!J$51+COMP!J$57)+SUMIF(COMP!$A$29:$A$32,$A12,COMP!K$29:K$32)+SUMIF(COMP!$A$29:$A$32,$A12,COMP!P$29:P$32)+SUMIF('OTH EXP'!$A$10:$A$32,$A12,'OTH EXP'!H$10:H$32)) -> 0 | K12: =(SUMIF(ASSIGN!$A$9:$A$40,$A12,ASSIGN!O$9:O$40)*(COMP!K$51+COMP!K$57)+SUMIF(COMP!$A$29:$A$32,$A12,COMP!L$29:L$32)+SUMIF(COMP!$A$29:$A$32,$A12,COMP!Q$29:Q$32)+SUMIF('OTH EXP'!$A$10:$A$32,$A12,'OTH EXP'!I$10:I$32)) -> 0 | L12: =(SUMIF(ASSIGN!$A$9:$A$40,$A12,ASSIGN!P$9:P$40)*(COMP!L$51+COMP!L$57)+SUMIF(COMP!$A$29:$A$32,$A12,COMP!M$29:M$32)+SUMIF(COMP!$A$29:$A$32,$A12,COMP!R$29:R$32)+SUMIF('OTH EXP'!$A$10:$A$32,$A12,'OTH EXP'!J$10:J$32)) -> 0 | M12: =(SUMIF(ASSIGN!$A$9:$A$40,$A12,ASSIGN!Q$9:Q$40)*(COMP!M$51+COMP!M$57)+SUMIF(COMP!$A$29:$A$32,$A12,COMP!N$29:N$32)+SUMIF(COMP!$A$29:$A$32,$A12,COMP!S$29:S$32)+SUMIF('OTH EXP'!$A$10:$A$32,$A12,'OTH EXP'!K$10:K$32)) -> 0
A13: COMGift | B13: Gift | D13: Direct Expense Support | H13: COM | I13: =(SUMIF(ASSIGN!$A$9:$A$40,$A13,ASSIGN!M$9:M$40)*(COMP!I$51+COMP!I$57)+SUMIF(COMP!$A$29:$A$32,$A13,COMP!J$29:J$32)+SUMIF(COMP!$A$29:$A$32,$A13,COMP!O$29:O$32)+SUMIF('OTH EXP'!$A$10:$A$32,$A13,'OTH EXP'!G$10:G$32)) -> 0 | J13: =(SUMIF(ASSIGN!$A$9:$A$40,$A13,ASSIGN!N$9:N$40)*(COMP!J$51+COMP!J$57)+SUMIF(COMP!$A$29:$A$32,$A13,COMP!K$29:K$32)+SUMIF(COMP!$A$29:$A$32,$A13,COMP!P$29:P$32)+SUMIF('OTH EXP'!$A$10:$A$32,$A13,'OTH EXP'!H$10:H$32)) -> 0 | K13: =(SUMIF(ASSIGN!$A$9:$A$40,$A13,ASSIGN!O$9:O$40)*(COMP!K$51+COMP!K$57)+SUMIF(COMP!$A$29:$A$32,$A13,COMP!L$29:L$32)+SUMIF(COMP!$A$29:$A$32,$A13,COMP!Q$29:Q$32)+SUMIF('OTH EXP'!$A$10:$A$32,$A13,'OTH EXP'!I$10:I$32)) -> 0 | L13: =(SUMIF(ASSIGN!$A$9:$A$40,$A13,ASSIGN!P$9:P$40)*(COMP!L$51+COMP!L$57)+SUMIF(COMP!$A$29:$A$32,$A13,COMP!M$29:M$32)+SUMIF(COMP!$A$29:$A$32,$A13,COMP!R$29:R$32)+SUMIF('OTH EXP'!$A$10:$A$32,$A13,'OTH EXP'!J$10:J$32)) -> 0 | M13: =(SUMIF(ASSIGN!$A$9:$A$40,$A13,ASSIGN!Q$9:Q$40)*(COMP!M$51+COMP!M$57)+SUMIF(COMP!$A$29:$A$32,$A13,COMP!N$29:N$32)+SUMIF(COMP!$A$29:$A$32,$A13,COMP!S$29:S$32)+SUMIF('OTH EXP'!$A$10:$A$32,$A13,'OTH EXP'!K$10:K$32)) -> 0
A14: COMDean's Commitment | B14: Dean's Commitment | D14: Direct Expense Support | H14: COM | I14: =(SUMIF(ASSIGN!$A$9:$A$40,$A14,ASSIGN!M$9:M$40)*(COMP!I$51+COMP!I$57)+SUMIF(COMP!$A$29:$A$32,$A14,COMP!J$29:J$32)+SUMIF(COMP!$A$29:$A$32,$A14,COMP!O$29:O$32)+SUMIF('OTH EXP'!$A$10:$A$32,$A14,'OTH EXP'!G$10:G$32)) -> 0 | J14: =(SUMIF(ASSIGN!$A$9:$A$40,$A14,ASSIGN!N$9:N$40)*(COMP!J$51+COMP!J$57)+SUMIF(COMP!$A$29:$A$32,$A14,COMP!K$29:K$32)+SUMIF(COMP!$A$29:$A$32,$A14,COMP!P$29:P$32)+SUMIF('OTH EXP'!$A$10:$A$32,$A14,'OTH EXP'!H$10:H$32)) -> 0 | K14: =(SUMIF(ASSIGN!$A$9:$A$40,$A14,ASSIGN!O$9:O$40)*(COMP!K$51+COMP!K$57)+SUMIF(COMP!$A$29:$A$32,$A14,COMP!L$29:L$32)+SUMIF(COMP!$A$29:$A$32,$A14,COMP!Q$29:Q$32)+SUMIF('OTH EXP'!$A$10:$A$32,$A14,'OTH EXP'!I$10:I$32)) -> 0 | L14: =(SUMIF(ASSIGN!$A$9:$A$40,$A14,ASSIGN!P$9:P$40)*(COMP!L$51+COMP!L$57)+SUMIF(COMP!$A$29:$A$32,$A14,COMP!M$29:M$32)+SUMIF(COMP!$A$29:$A$32,$A14,COMP!R$29:R$32)+SUMIF('OTH EXP'!$A$10:$A$32,$A14,'OTH EXP'!J$10:J$32)) -> 0 | M14: =(SUMIF(ASSIGN!$A$9:$A$40,$A14,ASSIGN!Q$9:Q$40)*(COMP!M$51+COMP!M$57)+SUMIF(COMP!$A$29:$A$32,$A14,COMP!N$29:N$32)+SUMIF(COMP!$A$29:$A$32,$A14,COMP!S$29:S$32)+SUMIF('OTH EXP'!$A$10:$A$32,$A14,'OTH EXP'!K$10:K$32)) -> 0
A15: COMBudget | B15: Budget | D15: Direct Expense Support | H15: COM | I15: =(SUMIF(ASSIGN!$A$9:$A$40,$A15,ASSIGN!M$9:M$40)*(COMP!I$51+COMP!I$57)+SUMIF(COMP!$A$29:$A$32,$A15,COMP!J$29:J$32)+SUMIF(COMP!$A$29:$A$32,$A15,COMP!O$29:O$32)+SUMIF('OTH EXP'!$A$10:$A$32,$A15,'OTH EXP'!G$10:G$32)) -> 0 | J15: =(SUMIF(ASSIGN!$A$9:$A$40,$A15,ASSIGN!N$9:N$40)*(COMP!J$51+COMP!J$57)+SUMIF(COMP!$A$29:$A$32,$A15,COMP!K$29:K$32)+SUMIF(COMP!$A$29:$A$32,$A15,COMP!P$29:P$32)+SUMIF('OTH EXP'!$A$10:$A$32,$A15,'OTH EXP'!H$10:H$32)) -> 0 | K15: =(SUMIF(ASSIGN!$A$9:$A$40,$A15,ASSIGN!O$9:O$40)*(COMP!K$51+COMP!K$57)+SUMIF(COMP!$A$29:$A$32,$A15,COMP!L$29:L$32)+SUMIF(COMP!$A$29:$A$32,$A15,COMP!Q$29:Q$32)+SUMIF('OTH EXP'!$A$10:$A$32,$A15,'OTH EXP'!I$10:I$32)) -> 0 | L15: =(SUMIF(ASSIGN!$A$9:$A$40,$A15,ASSIGN!P$9:P$40)*(COMP!L$51+COMP!L$57)+SUMIF(COMP!$A$29:$A$32,$A15,COMP!M$29:M$32)+SUMIF(COMP!$A$29:$A$32,$A15,COMP!R$29:R$32)+SUMIF('OTH EXP'!$A$10:$A$32,$A15,'OTH EXP'!J$10:J$32)) -> 0 | M15: =(SUMIF(ASSIGN!$A$9:$A$40,$A15,ASSIGN!Q$9:Q$40)*(COMP!M$51+COMP!M$57)+SUMIF(COMP!$A$29:$A$32,$A15,COMP!N$29:N$32)+SUMIF(COMP!$A$29:$A$32,$A15,COMP!S$29:S$32)+SUMIF('OTH EXP'!$A$10:$A$32,$A15,'OTH EXP'!K$10:K$32)) -> 0
A16: COMOther | B16: Other | D16: Direct Expense Support | H16: COM | I16: =(SUMIF(ASSIGN!$A$9:$A$40,$A16,ASSIGN!M$9:M$40)*(COMP!I$51+COMP!I$57)+SUMIF(COMP!$A$29:$A$32,$A16,COMP!J$29:J$32)+SUMIF(COMP!$A$29:$A$32,$A16,COMP!O$29:O$32)+SUMIF('OTH EXP'!$A$10:$A$32,$A16,'OTH EXP'!G$10:G$32)) -> 0 | J16: =(SUMIF(ASSIGN!$A$9:$A$40,$A16,ASSIGN!N$9:N$40)*(COMP!J$51+COMP!J$57)+SUMIF(COMP!$A$29:$A$32,$A16,COMP!K$29:K$32)+SUMIF(COMP!$A$29:$A$32,$A16,COMP!P$29:P$32)+SUMIF('OTH EXP'!$A$10:$A$32,$A16,'OTH EXP'!H$10:H$32)) -> 0 | K16: =(SUMIF(ASSIGN!$A$9:$A$40,$A16,ASSIGN!O$9:O$40)*(COMP!K$51+COMP!K$57)+SUMIF(COMP!$A$29:$A$32,$A16,COMP!L$29:L$32)+SUMIF(COMP!$A$29:$A$32,$A16,COMP!Q$29:Q$32)+SUMIF('OTH EXP'!$A$10:$A$32,$A16,'OTH EXP'!I$10:I$32)) -> 0 | L16: =(SUMIF(ASSIGN!$A$9:$A$40,$A16,ASSIGN!P$9:P$40)*(COMP!L$51+COMP!L$57)+SUMIF(COMP!$A$29:$A$32,$A16,COMP!M$29:M$32)+SUMIF(COMP!$A$29:$A$32,$A16,COMP!R$29:R$32)+SUMIF('OTH EXP'!$A$10:$A$32,$A16,'OTH EXP'!J$10:J$32)) -> 0 | M16: =(SUMIF(ASSIGN!$A$9:$A$40,$A16,ASSIGN!Q$9:Q$40)*(COMP!M$51+COMP!M$57)+SUMIF(COMP!$A$29:$A$32,$A16,COMP!N$29:N$32)+SUMIF(COMP!$A$29:$A$32,$A16,COMP!S$29:S$32)+SUMIF('OTH EXP'!$A$10:$A$32,$A16,'OTH EXP'!K$10:K$32)) -> 0
A17: ICEGrant | B17: Grant | D17: Direct Expense Support | H17: ICE | I17: =(SUMIF(ASSIGN!$A$9:$A$40,$A17,ASSIGN!M$9:M$40)*(COMP!I$51+COMP!I$57)+SUMIF(COMP!$A$29:$A$32,$A17,COMP!J$29:J$32)+SUMIF(COMP!$A$29:$A$32,$A17,COMP!O$29:O$32)+SUMIF('OTH EXP'!$A$10:$A$32,$A17,'OTH EXP'!G$10:G$32)) -> 0 | J17: =(SUMIF(ASSIGN!$A$9:$A$40,$A17,ASSIGN!N$9:N$40)*(COMP!J$51+COMP!J$57)+SUMIF(COMP!$A$29:$A$32,$A17,COMP!K$29:K$32)+SUMIF(COMP!$A$29:$A$32,$A17,COMP!P$29:P$32)+SUMIF('OTH EXP'!$A$10:$A$32,$A17,'OTH EXP'!H$10:H$32)) -> 0 | K17: =(SUMIF(ASSIGN!$A$9:$A$40,$A17,ASSIGN!O$9:O$40)*(COMP!K$51+COMP!K$57)+SUMIF(COMP!$A$29:$A$32,$A17,COMP!L$29:L$32)+SUMIF(COMP!$A$29:$A$32,$A17,COMP!Q$29:Q$32)+SUMIF('OTH EXP'!$A$10:$A$32,$A17,'OTH EXP'!I$10:I$32)) -> 0 | L17: =(SUMIF(ASSIGN!$A$9:$A$40,$A17,ASSIGN!P$9:P$40)*(COMP!L$51+COMP!L$57)+SUMIF(COMP!$A$29:$A$32,$A17,COMP!M$29:M$32)+SUMIF(COMP!$A$29:$A$32,$A17,COMP!R$29:R$32)+SUMIF('OTH EXP'!$A$10:$A$32,$A17,'OTH EXP'!J$10:J$32)) -> 0 | M17: =(SUMIF(ASSIGN!$A$9:$A$40,$A17,ASSIGN!Q$9:Q$40)*(COMP!M$51+COMP!M$57)+SUMIF(COMP!$A$29:$A$32,$A17,COMP!N$29:N$32)+SUMIF(COMP!$A$29:$A$32,$A17,COMP!S$29:S$32)+SUMIF('OTH EXP'!$A$10:$A$32,$A17,'OTH EXP'!K$10:K$32)) -> 0
A18: ICEContract | B18: Contract | D18: Direct Expense Support | H18: ICE | I18: =(SUMIF(ASSIGN!$A$9:$A$40,$A18,ASSIGN!M$9:M$40)*(COMP!I$51+COMP!I$57)+SUMIF(COMP!$A$29:$A$32,$A18,COMP!J$29:J$32)+SUMIF(COMP!$A$29:$A$32,$A18,COMP!O$29:O$32)+SUMIF('OTH EXP'!$A$10:$A$32,$A18,'OTH EXP'!G$10:G$32)) -> 0 | J18: =(SUMIF(ASSIGN!$A$9:$A$40,$A18,ASSIGN!N$9:N$40)*(COMP!J$51+COMP!J$57)+SUMIF(COMP!$A$29:$A$32,$A18,COMP!K$29:K$32)+SUMIF(COMP!$A$29:$A$32,$A18,COMP!P$29:P$32)+SUMIF('OTH EXP'!$A$10:$A$32,$A18,'OTH EXP'!H$10:H$32)) -> 0 | K18: =(SUMIF(ASSIGN!$A$9:$A$40,$A18,ASSIGN!O$9:O$40)*(COMP!K$51+COMP!K$57)+SUMIF(COMP!$A$29:$A$32,$A18,COMP!L$29:L$32)+SUMIF(COMP!$A$29:$A$32,$A18,COMP!Q$29:Q$32)+SUMIF('OTH EXP'!$A$10:$A$32,$A18,'OTH EXP'!I$10:I$32)) -> 0 | L18: =(SUMIF(ASSIGN!$A$9:$A$40,$A18,ASSIGN!P$9:P$40)*(COMP!L$51+COMP!L$57)+SUMIF(COMP!$A$29:$A$32,$A18,COMP!M$29:M$32)+SUMIF(COMP!$A$29:$A$32,$A18,COMP!R$29:R$32)+SUMIF('OTH EXP'!$A$10:$A$32,$A18,'OTH EXP'!J$10:J$32)) -> 0 | M18: =(SUMIF(ASSIGN!$A$9:$A$40,$A18,ASSIGN!Q$9:Q$40)*(COMP!M$51+COMP!M$57)+SUMIF(COMP!$A$29:$A$32,$A18,COMP!N$29:N$32)+SUMIF(COMP!$A$29:$A$32,$A18,COMP!S$29:S$32)+SUMIF('OTH EXP'!$A$10:$A$32,$A18,'OTH EXP'!K$10:K$32)) -> 0
A19: ICEOther | B19: Other | D19: Direct Expense Support | H19: ICE | I19: =(SUMIF(ASSIGN!$A$9:$A$40,$A19,ASSIGN!M$9:M$40)*(COMP!I$51+COMP!I$57)+SUMIF(COMP!$A$29:$A$32,$A19,COMP!J$29:J$32)+SUMIF(COMP!$A$29:$A$32,$A19,COMP!O$29:O$32)+SUMIF('OTH EXP'!$A$10:$A$32,$A19,'OTH EXP'!G$10:G$32)) -> 0 | J19: =(SUMIF(ASSIGN!$A$9:$A$40,$A19,ASSIGN!N$9:N$40)*(COMP!J$51+COMP!J$57)+SUMIF(COMP!$A$29:$A$32,$A19,COMP!K$29:K$32)+SUMIF(COMP!$A$29:$A$32,$A19,COMP!P$29:P$32)+SUMIF('OTH EXP'!$A$10:$A$32,$A19,'OTH EXP'!H$10:H$32)) -> 0 | K19: =(SUMIF(ASSIGN!$A$9:$A$40,$A19,ASSIGN!O$9:O$40)*(COMP!K$51+COMP!K$57)+SUMIF(COMP!$A$29:$A$32,$A19,COMP!L$29:L$32)+SUMIF(COMP!$A$29:$A$32,$A19,COMP!Q$29:Q$32)+SUMIF('OTH EXP'!$A$10:$A$32,$A19,'OTH EXP'!I$10:I$32)) -> 0 | L19: =(SUMIF(ASSIGN!$A$9:$A$40,$A19,ASSIGN!P$9:P$40)*(COMP!L$51+COMP!L$57)+SUMIF(COMP!$A$29:$A$32,$A19,COMP!M$29:M$32)+SUMIF(COMP!$A$29:$A$32,$A19,COMP!R$29:R$32)+SUMIF('OTH EXP'!$A$10:$A$32,$A19,'OTH EXP'!J$10:J$32)) -> 0 | M19: =(SUMIF(ASSIGN!$A$9:$A$40,$A19,ASSIGN!Q$9:Q$40)*(COMP!M$51+COMP!M$57)+SUMIF(COMP!$A$29:$A$32,$A19,COMP!N$29:N$32)+SUMIF(COMP!$A$29:$A$32,$A19,COMP!S$29:S$32)+SUMIF('OTH EXP'!$A$10:$A$32,$A19,'OTH EXP'!K$10:K$32)) -> 0
A20: ACHGrant | B20: Grant | D20: Direct Expense Support | H20: ACH | I20: =(SUMIF(ASSIGN!$A$9:$A$40,$A20,ASSIGN!M$9:M$40)*(COMP!I$51+COMP!I$57)+SUMIF(COMP!$A$29:$A$32,$A20,COMP!J$29:J$32)+SUMIF(COMP!$A$29:$A$32,$A20,COMP!O$29:O$32)+SUMIF('OTH EXP'!$A$10:$A$32,$A20,'OTH EXP'!G$10:G$32)) -> 0 | J20: =(SUMIF(ASSIGN!$A$9:$A$40,$A20,ASSIGN!N$9:N$40)*(COMP!J$51+COMP!J$57)+SUMIF(COMP!$A$29:$A$32,$A20,COMP!K$29:K$32)+SUMIF(COMP!$A$29:$A$32,$A20,COMP!P$29:P$32)+SUMIF('OTH EXP'!$A$10:$A$32,$A20,'OTH EXP'!H$10:H$32)) -> 0 | K20: =(SUMIF(ASSIGN!$A$9:$A$40,$A20,ASSIGN!O$9:O$40)*(COMP!K$51+COMP!K$57)+SUMIF(COMP!$A$29:$A$32,$A20,COMP!L$29:L$32)+SUMIF(COMP!$A$29:$A$32,$A20,COMP!Q$29:Q$32)+SUMIF('OTH EXP'!$A$10:$A$32,$A20,'OTH EXP'!I$10:I$32)) -> 0 | L20: =(SUMIF(ASSIGN!$A$9:$A$40,$A20,ASSIGN!P$9:P$40)*(COMP!L$51+COMP!L$57)+SUMIF(COMP!$A$29:$A$32,$A20,COMP!M$29:M$32)+SUMIF(COMP!$A$29:$A$32,$A20,COMP!R$29:R$32)+SUMIF('OTH EXP'!$A$10:$A$32,$A20,'OTH EXP'!J$10:J$32)) -> 0 | M20: =(SUMIF(ASSIGN!$A$9:$A$40,$A20,ASSIGN!Q$9:Q$40)*(COMP!M$51+COMP!M$57)+SUMIF(COMP!$A$29:$A$32,$A20,COMP!N$29:N$32)+SUMIF(COMP!$A$29:$A$32,$A20,COMP!S$29:S$32)+SUMIF('OTH EXP'!$A$10:$A$32,$A20,'OTH EXP'!K$10:K$32)) -> 0
A21: =H21&B21 -> ACHContract | B21: Contract | D21: Direct Expense Support | H21: ACH | I21: =(SUMIF(ASSIGN!$A$9:$A$40,$A21,ASSIGN!M$9:M$40)*(COMP!I$51+COMP!I$57)+SUMIF(COMP!$A$29:$A$32,$A21,COMP!J$29:J$32)+SUMIF(COMP!$A$29:$A$32,$A21,COMP!O$29:O$32)+SUMIF('OTH EXP'!$A$10:$A$32,$A21,'OTH EXP'!G$10:G$32)) -> 0 | J21: =(SUMIF(ASSIGN!$A$9:$A$40,$A21,ASSIGN!N$9:N$40)*(COMP!J$51+COMP!J$57)+SUMIF(COMP!$A$29:$A$32,$A21,COMP!K$29:K$32)+SUMIF(COMP!$A$29:$A$32,$A21,COMP!P$29:P$32)+SUMIF('OTH EXP'!$A$10:$A$32,$A21,'OTH EXP'!H$10:H$32)) -> 0 | K21: =(SUMIF(ASSIGN!$A$9:$A$40,$A21,ASSIGN!O$9:O$40)*(COMP!K$51+COMP!K$57)+SUMIF(COMP!$A$29:$A$32,$A21,COMP!L$29:L$32)+SUMIF(COMP!$A$29:$A$32,$A21,COMP!Q$29:Q$32)+SUMIF('OTH EXP'!$A$10:$A$32,$A21,'OTH EXP'!I$10:I$32)) -> 0 | L21: =(SUMIF(ASSIGN!$A$9:$A$40,$A21,ASSIGN!P$9:P$40)*(COMP!L$51+COMP!L$57)+SUMIF(COMP!$A$29:$A$32,$A21,COMP!M$29:M$32)+SUMIF(COMP!$A$29:$A$32,$A21,COMP!R$29:R$32)+SUMIF('OTH EXP'!$A$10:$A$32,$A21,'OTH EXP'!J$10:J$32)) -> 0 | M21: =(SUMIF(ASSIGN!$A$9:$A$40,$A21,ASSIGN!Q$9:Q$40)*(COMP!M$51+COMP!M$57)+SUMIF(COMP!$A$29:$A$32,$A21,COMP!N$29:N$32)+SUMIF(COMP!$A$29:$A$32,$A21,COMP!S$29:S$32)+SUMIF('OTH EXP'!$A$10:$A$32,$A21,'OTH EXP'!K$10:K$32)) -> 0
A22: ACHFoundation | B22: Foundation | D22: Direct Expense Support | H22: ACH | I22: =(SUMIF(ASSIGN!$A$9:$A$40,$A22,ASSIGN!M$9:M$40)*(COMP!I$51+COMP!I$57)+SUMIF(COMP!$A$29:$A$32,$A22,COMP!J$29:J$32)+SUMIF(COMP!$A$29:$A$32,$A22,COMP!O$29:O$32)+SUMIF('OTH EXP'!$A$10:$A$32,$A22,'OTH EXP'!G$10:G$32)) -> 0 | J22: =(SUMIF(ASSIGN!$A$9:$A$40,$A22,ASSIGN!N$9:N$40)*(COMP!J$51+COMP!J$57)+SUMIF(COMP!$A$29:$A$32,$A22,COMP!K$29:K$32)+SUMIF(COMP!$A$29:$A$32,$A22,COMP!P$29:P$32)+SUMIF('OTH EXP'!$A$10:$A$32,$A22,'OTH EXP'!H$10:H$32)) -> 0 | K22: =(SUMIF(ASSIGN!$A$9:$A$40,$A22,ASSIGN!O$9:O$40)*(COMP!K$51+COMP!K$57)+SUMIF(COMP!$A$29:$A$32,$A22,COMP!L$29:L$32)+SUMIF(COMP!$A$29:$A$32,$A22,COMP!Q$29:Q$32)+SUMIF('OTH EXP'!$A$10:$A$32,$A22,'OTH EXP'!I$10:I$32)) -> 0 | L22: =(SUMIF(ASSIGN!$A$9:$A$40,$A22,ASSIGN!P$9:P$40)*(COMP!L$51+COMP!L$57)+SUMIF(COMP!$A$29:$A$32,$A22,COMP!M$29:M$32)+SUMIF(COMP!$A$29:$A$32,$A22,COMP!R$29:R$32)+SUMIF('OTH EXP'!$A$10:$A$32,$A22,'OTH EXP'!J$10:J$32)) -> 0 | M22: =(SUMIF(ASSIGN!$A$9:$A$40,$A22,ASSIGN!Q$9:Q$40)*(COMP!M$51+COMP!M$57)+SUMIF(COMP!$A$29:$A$32,$A22,COMP!N$29:N$32)+SUMIF(COMP!$A$29:$A$32,$A22,COMP!S$29:S$32)+SUMIF('OTH EXP'!$A$10:$A$32,$A22,'OTH EXP'!K$10:K$32)) -> 0
A23: ACHGift | B23: Gift | D23: Direct Expense Support | H23: ACH | I23: =(SUMIF(ASSIGN!$A$9:$A$40,$A23,ASSIGN!M$9:M$40)*(COMP!I$51+COMP!I$57)+SUMIF(COMP!$A$29:$A$32,$A23,COMP!J$29:J$32)+SUMIF(COMP!$A$29:$A$32,$A23,COMP!O$29:O$32)+SUMIF('OTH EXP'!$A$10:$A$32,$A23,'OTH EXP'!G$10:G$32)) -> 0 | J23: =(SUMIF(ASSIGN!$A$9:$A$40,$A23,ASSIGN!N$9:N$40)*(COMP!J$51+COMP!J$57)+SUMIF(COMP!$A$29:$A$32,$A23,COMP!K$29:K$32)+SUMIF(COMP!$A$29:$A$32,$A23,COMP!P$29:P$32)+SUMIF('OTH EXP'!$A$10:$A$32,$A23,'OTH EXP'!H$10:H$32)) -> 0 | K23: =(SUMIF(ASSIGN!$A$9:$A$40,$A23,ASSIGN!O$9:O$40)*(COMP!K$51+COMP!K$57)+SUMIF(COMP!$A$29:$A$32,$A23,COMP!L$29:L$32)+SUMIF(COMP!$A$29:$A$32,$A23,COMP!Q$29:Q$32)+SUMIF('OTH EXP'!$A$10:$A$32,$A23,'OTH EXP'!I$10:I$32)) -> 0 | L23: =(SUMIF(ASSIGN!$A$9:$A$40,$A23,ASSIGN!P$9:P$40)*(COMP!L$51+COMP!L$57)+SUMIF(COMP!$A$29:$A$32,$A23,COMP!M$29:M$32)+SUMIF(COMP!$A$29:$A$32,$A23,COMP!R$29:R$32)+SUMIF('OTH EXP'!$A$10:$A$32,$A23,'OTH EXP'!J$10:J$32)) -> 0 | M23: =(SUMIF(ASSIGN!$A$9:$A$40,$A23,ASSIGN!Q$9:Q$40)*(COMP!M$51+COMP!M$57)+SUMIF(COMP!$A$29:$A$32,$A23,COMP!N$29:N$32)+SUMIF(COMP!$A$29:$A$32,$A23,COMP!S$29:S$32)+SUMIF('OTH EXP'!$A$10:$A$32,$A23,'OTH EXP'!K$10:K$32)) -> 0
A24: ACHOther | B24: Other | D24: Direct Expense Support | H24: ACH | I24: =(SUMIF(ASSIGN!$A$9:$A$40,$A24,ASSIGN!M$9:M$40)*(COMP!I$51+COMP!I$57)+SUMIF(COMP!$A$29:$A$32,$A24,COMP!J$29:J$32)+SUMIF(COMP!$A$29:$A$32,$A24,COMP!O$29:O$32)+SUMIF('OTH EXP'!$A$10:$A$32,$A24,'OTH EXP'!G$10:G$32)) -> 0 | J24: =(SUMIF(ASSIGN!$A$9:$A$40,$A24,ASSIGN!N$9:N$40)*(COMP!J$51+COMP!J$57)+SUMIF(COMP!$A$29:$A$32,$A24,COMP!K$29:K$32)+SUMIF(COMP!$A$29:$A$32,$A24,COMP!P$29:P$32)+SUMIF('OTH EXP'!$A$10:$A$32,$A24,'OTH EXP'!H$10:H$32)) -> 0 | K24: =(SUMIF(ASSIGN!$A$9:$A$40,$A24,ASSIGN!O$9:O$40)*(COMP!K$51+COMP!K$57)+SUMIF(COMP!$A$29:$A$32,$A24,COMP!L$29:L$32)+SUMIF(COMP!$A$29:$A$32,$A24,COMP!Q$29:Q$32)+SUMIF('OTH EXP'!$A$10:$A$32,$A24,'OTH EXP'!I$10:I$32)) -> 0 | L24: =(SUMIF(ASSIGN!$A$9:$A$40,$A24,ASSIGN!P$9:P$40)*(COMP!L$51+COMP!L$57)+SUMIF(COMP!$A$29:$A$32,$A24,COMP!M$29:M$32)+SUMIF(COMP!$A$29:$A$32,$A24,COMP!R$29:R$32)+SUMIF('OTH EXP'!$A$10:$A$32,$A24,'OTH EXP'!J$10:J$32)) -> 0 | M24: =(SUMIF(ASSIGN!$A$9:$A$40,$A24,ASSIGN!Q$9:Q$40)*(COMP!M$51+COMP!M$57)+SUMIF(COMP!$A$29:$A$32,$A24,COMP!N$29:N$32)+SUMIF(COMP!$A$29:$A$32,$A24,COMP!S$29:S$32)+SUMIF('OTH EXP'!$A$10:$A$32,$A24,'OTH EXP'!K$10:K$32)) -> 0
A25: INSTGrant | B25: Grant | D25: Direct Expense Support | H25: INST | I25: =(SUMIF(ASSIGN!$A$9:$A$40,$A25,ASSIGN!M$9:M$40)*(COMP!I$51+COMP!I$57)+SUMIF(COMP!$A$29:$A$32,$A25,COMP!J$29:J$32)+SUMIF(COMP!$A$29:$A$32,$A25,COMP!O$29:O$32)+SUMIF('OTH EXP'!$A$10:$A$32,$A25,'OTH EXP'!G$10:G$32)) -> 0 | J25: =(SUMIF(ASSIGN!$A$9:$A$40,$A25,ASSIGN!N$9:N$40)*(COMP!J$51+COMP!J$57)+SUMIF(COMP!$A$29:$A$32,$A25,COMP!K$29:K$32)+SUMIF(COMP!$A$29:$A$32,$A25,COMP!P$29:P$32)+SUMIF('OTH EXP'!$A$10:$A$32,$A25,'OTH EXP'!H$10:H$32)) -> 0 | K25: =(SUMIF(ASSIGN!$A$9:$A$40,$A25,ASSIGN!O$9:O$40)*(COMP!K$51+COMP!K$57)+SUMIF(COMP!$A$29:$A$32,$A25,COMP!L$29:L$32)+SUMIF(COMP!$A$29:$A$32,$A25,COMP!Q$29:Q$32)+SUMIF('OTH EXP'!$A$10:$A$32,$A25,'OTH EXP'!I$10:I$32)) -> 0 | L25: =(SUMIF(ASSIGN!$A$9:$A$40,$A25,ASSIGN!P$9:P$40)*(COMP!L$51+COMP!L$57)+SUMIF(COMP!$A$29:$A$32,$A25,COMP!M$29:M$32)+SUMIF(COMP!$A$29:$A$32,$A25,COMP!R$29:R$32)+SUMIF('OTH EXP'!$A$10:$A$32,$A25,'OTH EXP'!J$10:J$32)) -> 0 | M25: =(SUMIF(ASSIGN!$A$9:$A$40,$A25,ASSIGN!Q$9:Q$40)*(COMP!M$51+COMP!M$57)+SUMIF(COMP!$A$29:$A$32,$A25,COMP!N$29:N$32)+SUMIF(COMP!$A$29:$A$32,$A25,COMP!S$29:S$32)+SUMIF('OTH EXP'!$A$10:$A$32,$A25,'OTH EXP'!K$10:K$32)) -> 0
A26: INSTContract | B26: Contract | D26: Direct Expense Support | H26: INST | I26: =(SUMIF(ASSIGN!$A$9:$A$40,$A26,ASSIGN!M$9:M$40)*(COMP!I$51+COMP!I$57)+SUMIF(COMP!$A$29:$A$32,$A26,COMP!J$29:J$32)+SUMIF(COMP!$A$29:$A$32,$A26,COMP!O$29:O$32)+SUMIF('OTH EXP'!$A$10:$A$32,$A26,'OTH EXP'!G$10:G$32)) -> 0 | J26: =(SUMIF(ASSIGN!$A$9:$A$40,$A26,ASSIGN!N$9:N$40)*(COMP!J$51+COMP!J$57)+SUMIF(COMP!$A$29:$A$32,$A26,COMP!K$29:K$32)+SUMIF(COMP!$A$29:$A$32,$A26,COMP!P$29:P$32)+SUMIF('OTH EXP'!$A$10:$A$32,$A26,'OTH EXP'!H$10:H$32)) -> 0 | K26: =(SUMIF(ASSIGN!$A$9:$A$40,$A26,ASSIGN!O$9:O$40)*(COMP!K$51+COMP!K$57)+SUMIF(COMP!$A$29:$A$32,$A26,COMP!L$29:L$32)+SUMIF(COMP!$A$29:$A$32,$A26,COMP!Q$29:Q$32)+SUMIF('OTH EXP'!$A$10:$A$32,$A26,'OTH EXP'!I$10:I$32)) -> 0 | L26: =(SUMIF(ASSIGN!$A$9:$A$40,$A26,ASSIGN!P$9:P$40)*(COMP!L$51+COMP!L$57)+SUMIF(COMP!$A$29:$A$32,$A26,COMP!M$29:M$32)+SUMIF(COMP!$A$29:$A$32,$A26,COMP!R$29:R$32)+SUMIF('OTH EXP'!$A$10:$A$32,$A26,'OTH EXP'!J$10:J$32)) -> 0 | M26: =(SUMIF(ASSIGN!$A$9:$A$40,$A26,ASSIGN!Q$9:Q$40)*(COMP!M$51+COMP!M$57)+SUMIF(COMP!$A$29:$A$32,$A26,COMP!N$29:N$32)+SUMIF(COMP!$A$29:$A$32,$A26,COMP!S$29:S$32)+SUMIF('OTH EXP'!$A$10:$A$32,$A26,'OTH EXP'!K$10:K$32)) -> 0
A27: INSTFoundation | B27: Foundation | D27: Direct Expense Support | H27: INST | I27: =(SUMIF(ASSIGN!$A$9:$A$40,$A27,ASSIGN!M$9:M$40)*(COMP!I$51+COMP!I$57)+SUMIF(COMP!$A$29:$A$32,$A27,COMP!J$29:J$32)+SUMIF(COMP!$A$29:$A$32,$A27,COMP!O$29:O$32)+SUMIF('OTH EXP'!$A$10:$A$32,$A27,'OTH EXP'!G$10:G$32)) -> 0 | J27: =(SUMIF(ASSIGN!$A$9:$A$40,$A27,ASSIGN!N$9:N$40)*(COMP!J$51+COMP!J$57)+SUMIF(COMP!$A$29:$A$32,$A27,COMP!K$29:K$32)+SUMIF(COMP!$A$29:$A$32,$A27,COMP!P$29:P$32)+SUMIF('OTH EXP'!$A$10:$A$32,$A27,'OTH EXP'!H$10:H$32)) -> 0 | K27: =(SUMIF(ASSIGN!$A$9:$A$40,$A27,ASSIGN!O$9:O$40)*(COMP!K$51+COMP!K$57)+SUMIF(COMP!$A$29:$A$32,$A27,COMP!L$29:L$32)+SUMIF(COMP!$A$29:$A$32,$A27,COMP!Q$29:Q$32)+SUMIF('OTH EXP'!$A$10:$A$32,$A27,'OTH EXP'!I$10:I$32)) -> 0 | L27: =(SUMIF(ASSIGN!$A$9:$A$40,$A27,ASSIGN!P$9:P$40)*(COMP!L$51+COMP!L$57)+SUMIF(COMP!$A$29:$A$32,$A27,COMP!M$29:M$32)+SUMIF(COMP!$A$29:$A$32,$A27,COMP!R$29:R$32)+SUMIF('OTH EXP'!$A$10:$A$32,$A27,'OTH EXP'!J$10:J$32)) -> 0 | M27: =(SUMIF(ASSIGN!$A$9:$A$40,$A27,ASSIGN!Q$9:Q$40)*(COMP!M$51+COMP!M$57)+SUMIF(COMP!$A$29:$A$32,$A27,COMP!N$29:N$32)+SUMIF(COMP!$A$29:$A$32,$A27,COMP!S$29:S$32)+SUMIF('OTH EXP'!$A$10:$A$32,$A27,'OTH EXP'!K$10:K$32)) -> 0
A28: INSTGift | B28: Gift | D28: Direct Expense Support | H28: INST | I28: =(SUMIF(ASSIGN!$A$9:$A$40,$A28,ASSIGN!M$9:M$40)*(COMP!I$51+COMP!I$57)+SUMIF(COMP!$A$29:$A$32,$A28,COMP!J$29:J$32)+SUMIF(COMP!$A$29:$A$32,$A28,COMP!O$29:O$32)+SUMIF('OTH EXP'!$A$10:$A$32,$A28,'OTH EXP'!G$10:G$32)) -> 0 | J28: =(SUMIF(ASSIGN!$A$9:$A$40,$A28,ASSIGN!N$9:N$40)*(COMP!J$51+COMP!J$57)+SUMIF(COMP!$A$29:$A$32,$A28,COMP!K$29:K$32)+SUMIF(COMP!$A$29:$A$32,$A28,COMP!P$29:P$32)+SUMIF('OTH EXP'!$A$10:$A$32,$A28,'OTH EXP'!H$10:H$32)) -> 0 | K28: =(SUMIF(ASSIGN!$A$9:$A$40,$A28,ASSIGN!O$9:O$40)*(COMP!K$51+COMP!K$57)+SUMIF(COMP!$A$29:$A$32,$A28,COMP!L$29:L$32)+SUMIF(COMP!$A$29:$A$32,$A28,COMP!Q$29:Q$32)+SUMIF('OTH EXP'!$A$10:$A$32,$A28,'OTH EXP'!I$10:I$32)) -> 0 | L28: =(SUMIF(ASSIGN!$A$9:$A$40,$A28,ASSIGN!P$9:P$40)*(COMP!L$51+COMP!L$57)+SUMIF(COMP!$A$29:$A$32,$A28,COMP!M$29:M$32)+SUMIF(COMP!$A$29:$A$32,$A28,COMP!R$29:R$32)+SUMIF('OTH EXP'!$A$10:$A$32,$A28,'OTH EXP'!J$10:J$32)) -> 0 | M28: =(SUMIF(ASSIGN!$A$9:$A$40,$A28,ASSIGN!Q$9:Q$40)*(COMP!M$51+COMP!M$57)+SUMIF(COMP!$A$29:$A$32,$A28,COMP!N$29:N$32)+SUMIF(COMP!$A$29:$A$32,$A28,COMP!S$29:S$32)+SUMIF('OTH EXP'!$A$10:$A$32,$A28,'OTH EXP'!K$10:K$32)) -> 0
A29: INSTBudget | B29: Budget | D29: Direct Expense Support | H29: INST | I29: =(SUMIF(ASSIGN!$A$9:$A$40,$A29,ASSIGN!M$9:M$40)*(COMP!I$51+COMP!I$57)+SUMIF(COMP!$A$29:$A$32,$A29,COMP!J$29:J$32)+SUMIF(COMP!$A$29:$A$32,$A29,COMP!O$29:O$32)+SUMIF('OTH EXP'!$A$10:$A$32,$A29,'OTH EXP'!G$10:G$32)) -> 0 | J29: =(SUMIF(ASSIGN!$A$9:$A$40,$A29,ASSIGN!N$9:N$40)*(COMP!J$51+COMP!J$57)+SUMIF(COMP!$A$29:$A$32,$A29,COMP!K$29:K$32)+SUMIF(COMP!$A$29:$A$32,$A29,COMP!P$29:P$32)+SUMIF('OTH EXP'!$A$10:$A$32,$A29,'OTH EXP'!H$10:H$32)) -> 0 | K29: =(SUMIF(ASSIGN!$A$9:$A$40,$A29,ASSIGN!O$9:O$40)*(COMP!K$51+COMP!K$57)+SUMIF(COMP!$A$29:$A$32,$A29,COMP!L$29:L$32)+SUMIF(COMP!$A$29:$A$32,$A29,COMP!Q$29:Q$32)+SUMIF('OTH EXP'!$A$10:$A$32,$A29,'OTH EXP'!I$10:I$32)) -> 0 | L29: =(SUMIF(ASSIGN!$A$9:$A$40,$A29,ASSIGN!P$9:P$40)*(COMP!L$51+COMP!L$57)+SUMIF(COMP!$A$29:$A$32,$A29,COMP!M$29:M$32)+SUMIF(COMP!$A$29:$A$32,$A29,COMP!R$29:R$32)+SUMIF('OTH EXP'!$A$10:$A$32,$A29,'OTH EXP'!J$10:J$32)) -> 0 | M29: =(SUMIF(ASSIGN!$A$9:$A$40,$A29,ASSIGN!Q$9:Q$40)*(COMP!M$51+COMP!M$57)+SUMIF(COMP!$A$29:$A$32,$A29,COMP!N$29:N$32)+SUMIF(COMP!$A$29:$A$32,$A29,COMP!S$29:S$32)+SUMIF('OTH EXP'!$A$10:$A$32,$A29,'OTH EXP'!K$10:K$32)) -> 0
A30: INSTOther | B30: Other | D30: Direct Expense Support | H30: INST | I30: =(SUMIF(ASSIGN!$A$9:$A$40,$A30,ASSIGN!M$9:M$40)*(COMP!I$51+COMP!I$57)+SUMIF(COMP!$A$29:$A$32,$A30,COMP!J$29:J$32)+SUMIF(COMP!$A$29:$A$32,$A30,COMP!O$29:O$32)+SUMIF('OTH EXP'!$A$10:$A$32,$A30,'OTH EXP'!G$10:G$32)) -> 0 | J30: =(SUMIF(ASSIGN!$A$9:$A$40,$A30,ASSIGN!N$9:N$40)*(COMP!J$51+COMP!J$57)+SUMIF(COMP!$A$29:$A$32,$A30,COMP!K$29:K$32)+SUMIF(COMP!$A$29:$A$32,$A30,COMP!P$29:P$32)+SUMIF('OTH EXP'!$A$10:$A$32,$A30,'OTH EXP'!H$10:H$32)) -> 0 | K30: =(SUMIF(ASSIGN!$A$9:$A$40,$A30,ASSIGN!O$9:O$40)*(COMP!K$51+COMP!K$57)+SUMIF(COMP!$A$29:$A$32,$A30,COMP!L$29:L$32)+SUMIF(COMP!$A$29:$A$32,$A30,COMP!Q$29:Q$32)+SUMIF('OTH EXP'!$A$10:$A$32,$A30,'OTH EXP'!I$10:I$32)) -> 0 | L30: =(SUMIF(ASSIGN!$A$9:$A$40,$A30,ASSIGN!P$9:P$40)*(COMP!L$51+COMP!L$57)+SUMIF(COMP!$A$29:$A$32,$A30,COMP!M$29:M$32)+SUMIF(COMP!$A$29:$A$32,$A30,COMP!R$29:R$32)+SUMIF('OTH EXP'!$A$10:$A$32,$A30,'OTH EXP'!J$10:J$32)) -> 0 | M30: =(SUMIF(ASSIGN!$A$9:$A$40,$A30,ASSIGN!Q$9:Q$40)*(COMP!M$51+COMP!M$57)+SUMIF(COMP!$A$29:$A$32,$A30,COMP!N$29:N$32)+SUMIF(COMP!$A$29:$A$32,$A30,COMP!S$29:S$32)+SUMIF('OTH EXP'!$A$10:$A$32,$A30,'OTH EXP'!K$10:K$32)) -> 0
A31: OTHERGrant | B31: Grant | D31: Direct Expense Support | H31: OTHER | I31: =(SUMIF(ASSIGN!$A$9:$A$40,$A31,ASSIGN!M$9:M$40)*(COMP!I$51+COMP!I$57)+SUMIF(COMP!$A$29:$A$32,$A31,COMP!J$29:J$32)+SUMIF(COMP!$A$29:$A$32,$A31,COMP!O$29:O$32)+SUMIF('OTH EXP'!$A$10:$A$32,$A31,'OTH EXP'!G$10:G$32)) -> 0 | J31: =(SUMIF(ASSIGN!$A$9:$A$40,$A31,ASSIGN!N$9:N$40)*(COMP!J$51+COMP!J$57)+SUMIF(COMP!$A$29:$A$32,$A31,COMP!K$29:K$32)+SUMIF(COMP!$A$29:$A$32,$A31,COMP!P$29:P$32)+SUMIF('OTH EXP'!$A$10:$A$32,$A31,'OTH EXP'!H$10:H$32)) -> 0 | K31: =(SUMIF(ASSIGN!$A$9:$A$40,$A31,ASSIGN!O$9:O$40)*(COMP!K$51+COMP!K$57)+SUMIF(COMP!$A$29:$A$32,$A31,COMP!L$29:L$32)+SUMIF(COMP!$A$29:$A$32,$A31,COMP!Q$29:Q$32)+SUMIF('OTH EXP'!$A$10:$A$32,$A31,'OTH EXP'!I$10:I$32)) -> 0 | L31: =(SUMIF(ASSIGN!$A$9:$A$40,$A31,ASSIGN!P$9:P$40)*(COMP!L$51+COMP!L$57)+SUMIF(COMP!$A$29:$A$32,$A31,COMP!M$29:M$32)+SUMIF(COMP!$A$29:$A$32,$A31,COMP!R$29:R$32)+SUMIF('OTH EXP'!$A$10:$A$32,$A31,'OTH EXP'!J$10:J$32)) -> 0 | M31: =(SUMIF(ASSIGN!$A$9:$A$40,$A31,ASSIGN!Q$9:Q$40)*(COMP!M$51+COMP!M$57)+SUMIF(COMP!$A$29:$A$32,$A31,COMP!N$29:N$32)+SUMIF(COMP!$A$29:$A$32,$A31,COMP!S$29:S$32)+SUMIF('OTH EXP'!$A$10:$A$32,$A31,'OTH EXP'!K$10:K$32)) -> 0
A32: OTHERContract | B32: Contract | D32: Direct Expense Support | H32: OTHER | I32: =(SUMIF(ASSIGN!$A$9:$A$40,$A32,ASSIGN!M$9:M$40)*(COMP!I$51+COMP!I$57)+SUMIF(COMP!$A$29:$A$32,$A32,COMP!J$29:J$32)+SUMIF(COMP!$A$29:$A$32,$A32,COMP!O$29:O$32)+SUMIF('OTH EXP'!$A$10:$A$32,$A32,'OTH EXP'!G$10:G$32)) -> 0 | J32: =(SUMIF(ASSIGN!$A$9:$A$40,$A32,ASSIGN!N$9:N$40)*(COMP!J$51+COMP!J$57)+SUMIF(COMP!$A$29:$A$32,$A32,COMP!K$29:K$32)+SUMIF(COMP!$A$29:$A$32,$A32,COMP!P$29:P$32)+SUMIF('OTH EXP'!$A$10:$A$32,$A32,'OTH EXP'!H$10:H$32)) -> 0 | K32: =(SUMIF(ASSIGN!$A$9:$A$40,$A32,ASSIGN!O$9:O$40)*(COMP!K$51+COMP!K$57)+SUMIF(COMP!$A$29:$A$32,$A32,COMP!L$29:L$32)+SUMIF(COMP!$A$29:$A$32,$A32,COMP!Q$29:Q$32)+SUMIF('OTH EXP'!$A$10:$A$32,$A32,'OTH EXP'!I$10:I$32)) -> 0 | L32: =(SUMIF(ASSIGN!$A$9:$A$40,$A32,ASSIGN!P$9:P$40)*(COMP!L$51+COMP!L$57)+SUMIF(COMP!$A$29:$A$32,$A32,COMP!M$29:M$32)+SUMIF(COMP!$A$29:$A$32,$A32,COMP!R$29:R$32)+SUMIF('OTH EXP'!$A$10:$A$32,$A32,'OTH EXP'!J$10:J$32)) -> 0 | M32: =(SUMIF(ASSIGN!$A$9:$A$40,$A32,ASSIGN!Q$9:Q$40)*(COMP!M$51+COMP!M$57)+SUMIF(COMP!$A$29:$A$32,$A32,COMP!N$29:N$32)+SUMIF(COMP!$A$29:$A$32,$A32,COMP!S$29:S$32)+SUMIF('OTH EXP'!$A$10:$A$32,$A32,'OTH EXP'!K$10:K$32)) -> 0
A33: OTHERFoundation | B33: Foundation | D33: Direct Expense Support | H33: OTHER | I33: =(SUMIF(ASSIGN!$A$9:$A$40,$A33,ASSIGN!M$9:M$40)*(COMP!I$51+COMP!I$57)+SUMIF(COMP!$A$29:$A$32,$A33,COMP!J$29:J$32)+SUMIF(COMP!$A$29:$A$32,$A33,COMP!O$29:O$32)+SUMIF('OTH EXP'!$A$10:$A$32,$A33,'OTH EXP'!G$10:G$32)) -> 0 | J33: =(SUMIF(ASSIGN!$A$9:$A$40,$A33,ASSIGN!N$9:N$40)*(COMP!J$51+COMP!J$57)+SUMIF(COMP!$A$29:$A$32,$A33,COMP!K$29:K$32)+SUMIF(COMP!$A$29:$A$32,$A33,COMP!P$29:P$32)+SUMIF('OTH EXP'!$A$10:$A$32,$A33,'OTH EXP'!H$10:H$32)) -> 0 | K33: =(SUMIF(ASSIGN!$A$9:$A$40,$A33,ASSIGN!O$9:O$40)*(COMP!K$51+COMP!K$57)+SUMIF(COMP!$A$29:$A$32,$A33,COMP!L$29:L$32)+SUMIF(COMP!$A$29:$A$32,$A33,COMP!Q$29:Q$32)+SUMIF('OTH EXP'!$A$10:$A$32,$A33,'OTH EXP'!I$10:I$32)) -> 0 | L33: =(SUMIF(ASSIGN!$A$9:$A$40,$A33,ASSIGN!P$9:P$40)*(COMP!L$51+COMP!L$57)+SUMIF(COMP!$A$29:$A$32,$A33,COMP!M$29:M$32)+SUMIF(COMP!$A$29:$A$32,$A33,COMP!R$29:R$32)+SUMIF('OTH EXP'!$A$10:$A$32,$A33,'OTH EXP'!J$10:J$32)) -> 0 | M33: =(SUMIF(ASSIGN!$A$9:$A$40,$A33,ASSIGN!Q$9:Q$40)*(COMP!M$51+COMP!M$57)+SUMIF(COMP!$A$29:$A$32,$A33,COMP!N$29:N$32)+SUMIF(COMP!$A$29:$A$32,$A33,COMP!S$29:S$32)+SUMIF('OTH EXP'!$A$10:$A$32,$A33,'OTH EXP'!K$10:K$32)) -> 0
A34: OTHERGift | B34: Gift | D34: Direct Expense Support | H34: OTHER | I34: =(SUMIF(ASSIGN!$A$9:$A$40,$A34,ASSIGN!M$9:M$40)*(COMP!I$51+COMP!I$57)+SUMIF(COMP!$A$29:$A$32,$A34,COMP!J$29:J$32)+SUMIF(COMP!$A$29:$A$32,$A34,COMP!O$29:O$32)+SUMIF('OTH EXP'!$A$10:$A$32,$A34,'OTH EXP'!G$10:G$32)) -> 0 | J34: =(SUMIF(ASSIGN!$A$9:$A$40,$A34,ASSIGN!N$9:N$40)*(COMP!J$51+COMP!J$57)+SUMIF(COMP!$A$29:$A$32,$A34,COMP!K$29:K$32)+SUMIF(COMP!$A$29:$A$32,$A34,COMP!P$29:P$32)+SUMIF('OTH EXP'!$A$10:$A$32,$A34,'OTH EXP'!H$10:H$32)) -> 0 | K34: =(SUMIF(ASSIGN!$A$9:$A$40,$A34,ASSIGN!O$9:O$40)*(COMP!K$51+COMP!K$57)+SUMIF(COMP!$A$29:$A$32,$A34,COMP!L$29:L$32)+SUMIF(COMP!$A$29:$A$32,$A34,COMP!Q$29:Q$32)+SUMIF('OTH EXP'!$A$10:$A$32,$A34,'OTH EXP'!I$10:I$32)) -> 0 | L34: =(SUMIF(ASSIGN!$A$9:$A$40,$A34,ASSIGN!P$9:P$40)*(COMP!L$51+COMP!L$57)+SUMIF(COMP!$A$29:$A$32,$A34,COMP!M$29:M$32)+SUMIF(COMP!$A$29:$A$32,$A34,COMP!R$29:R$32)+SUMIF('OTH EXP'!$A$10:$A$32,$A34,'OTH EXP'!J$10:J$32)) -> 0 | M34: =(SUMIF(ASSIGN!$A$9:$A$40,$A34,ASSIGN!Q$9:Q$40)*(COMP!M$51+COMP!M$57)+SUMIF(COMP!$A$29:$A$32,$A34,COMP!N$29:N$32)+SUMIF(COMP!$A$29:$A$32,$A34,COMP!S$29:S$32)+SUMIF('OTH EXP'!$A$10:$A$32,$A34,'OTH EXP'!K$10:K$32)) -> 0
A35: OTHERBudget | B35: Budget | D35: Direct Expense Support | H35: OTHER | I35: =(SUMIF(ASSIGN!$A$9:$A$40,$A35,ASSIGN!M$9:M$40)*(COMP!I$51+COMP!I$57)+SUMIF(COMP!$A$29:$A$32,$A35,COMP!J$29:J$32)+SUMIF(COMP!$A$29:$A$32,$A35,COMP!O$29:O$32)+SUMIF('OTH EXP'!$A$10:$A$32,$A35,'OTH EXP'!G$10:G$32)) -> 0 | J35: =(SUMIF(ASSIGN!$A$9:$A$40,$A35,ASSIGN!N$9:N$40)*(COMP!J$51+COMP!J$57)+SUMIF(COMP!$A$29:$A$32,$A35,COMP!K$29:K$32)+SUMIF(COMP!$A$29:$A$32,$A35,COMP!P$29:P$32)+SUMIF('OTH EXP'!$A$10:$A$32,$A35,'OTH EXP'!H$10:H$32)) -> 0 | K35: =(SUMIF(ASSIGN!$A$9:$A$40,$A35,ASSIGN!O$9:O$40)*(COMP!K$51+COMP!K$57)+SUMIF(COMP!$A$29:$A$32,$A35,COMP!L$29:L$32)+SUMIF(COMP!$A$29:$A$32,$A35,COMP!Q$29:Q$32)+SUMIF('OTH EXP'!$A$10:$A$32,$A35,'OTH EXP'!I$10:I$32)) -> 0 | L35: =(SUMIF(ASSIGN!$A$9:$A$40,$A35,ASSIGN!P$9:P$40)*(COMP!L$51+COMP!L$57)+SUMIF(COMP!$A$29:$A$32,$A35,COMP!M$29:M$32)+SUMIF(COMP!$A$29:$A$32,$A35,COMP!R$29:R$32)+SUMIF('OTH EXP'!$A$10:$A$32,$A35,'OTH EXP'!J$10:J$32)) -> 0 | M35: =(SUMIF(ASSIGN!$A$9:$A$40,$A35,ASSIGN!Q$9:Q$40)*(COMP!M$51+COMP!M$57)+SUMIF(COMP!$A$29:$A$32,$A35,COMP!N$29:N$32)+SUMIF(COMP!$A$29:$A$32,$A35,COMP!S$29:S$32)+SUMIF('OTH EXP'!$A$10:$A$32,$A35,'OTH EXP'!K$10:K$32)) -> 0
A36: OTHEROther | B36: Other | D36: Direct Expense Support | H36: OTHER | I36: =(SUMIF(ASSIGN!$A$9:$A$40,$A36,ASSIGN!M$9:M$40)*(COMP!I$51+COMP!I$57)+SUMIF(COMP!$A$29:$A$32,$A36,COMP!J$29:J$32)+SUMIF(COMP!$A$29:$A$32,$A36,COMP!O$29:O$32)+SUMIF('OTH EXP'!$A$10:$A$32,$A36,'OTH EXP'!G$10:G$32)) -> 0 | J36: =(SUMIF(ASSIGN!$A$9:$A$40,$A36,ASSIGN!N$9:N$40)*(COMP!J$51+COMP!J$57)+SUMIF(COMP!$A$29:$A$32,$A36,COMP!K$29:K$32)+SUMIF(COMP!$A$29:$A$32,$A36,COMP!P$29:P$32)+SUMIF('OTH EXP'!$A$10:$A$32,$A36,'OTH EXP'!H$10:H$32)) -> 0 | K36: =(SUMIF(ASSIGN!$A$9:$A$40,$A36,ASSIGN!O$9:O$40)*(COMP!K$51+COMP!K$57)+SUMIF(COMP!$A$29:$A$32,$A36,COMP!L$29:L$32)+SUMIF(COMP!$A$29:$A$32,$A36,COMP!Q$29:Q$32)+SUMIF('OTH EXP'!$A$10:$A$32,$A36,'OTH EXP'!I$10:I$32)) -> 0 | L36: =(SUMIF(ASSIGN!$A$9:$A$40,$A36,ASSIGN!P$9:P$40)*(COMP!L$51+COMP!L$57)+SUMIF(COMP!$A$29:$A$32,$A36,COMP!M$29:M$32)+SUMIF(COMP!$A$29:$A$32,$A36,COMP!R$29:R$32)+SUMIF('OTH EXP'!$A$10:$A$32,$A36,'OTH EXP'!J$10:J$32)) -> 0 | M36: =(SUMIF(ASSIGN!$A$9:$A$40,$A36,ASSIGN!Q$9:Q$40)*(COMP!M$51+COMP!M$57)+SUMIF(COMP!$A$29:$A$32,$A36,COMP!N$29:N$32)+SUMIF(COMP!$A$29:$A$32,$A36,COMP!S$29:S$32)+SUMIF('OTH EXP'!$A$10:$A$32,$A36,'OTH EXP'!K$10:K$32)) -> 0
B37: =SUM(O38:Q43) -> 0
O38: =IF(SUM($I38:$M38)<>0,IF(B38=0,1,0),0) -> 0 | P38: =IF(SUM($I38:$M38)<>0,IF(D38=0,1,0),0) -> 0 | Q38: =IF(SUM($I38:$M38)<>0,IF(H38=0,1,0),0) -> 0
O39: 0 | P39: =IF(SUM($I39:$M39)<>0,IF(D39=0,1,0),0) -> 0 | Q39: 0
O40: 0 | P40: 0 | Q40: 0
O41: 0 | P41: 0 | Q41: 0
O42: 0 | P42: 0 | Q42: 0
O43: 0 | P43: 0 | Q43: 0
H44: Total: | I44: =SUM(I10:I43) -> 0 | J44: =SUM(J10:J43) -> 0 | K44: =SUM(K10:K43) -> 0 | L44: =SUM(L10:L43) -> 0 | M44: =SUM(M10:M43) -> 0

Sheet CLIN REV
A1: HIDE | B1: =COMP!B1 -> ; [select]; [select] [select]; | O1: HIDE | P1: HIDE
O9: =SUM(O10:O199) -> 0
B10: ICE PROFESSIONAL FEE REVENUE
B11: Profile Data | L11: JFR Proforma
B12: CPT | C12: Description | D12: Volume | E12: Charge | F12: Collections | G12: wRVUs | H12: Coll/wRVU | I12: Coll Rate | J12: wRVU/Count | L12: Dist | M12: wRVUs | N12: Collections
B13: To add rows, copy one or more rows in the middle of the section, and "insert copied cells"
H14: =IF(G14=0,0,F14/G14) -> 0 | I14: =IF(E14=0,0,F14/E14) -> 0 | J14: =IF(D14=0,0,G14/D14) -> 0 | L14: =G14/$G$39 ->  | M14: =$M$39*L14 ->  | N14: =M14*H14 -> 
H15: 0 | I15: =IF(E15=0,0,F15/E15) -> 0 | J15: =IF(D15=0,0,G15/D15) -> 0 | L15: =G15/$G$39 ->  | M15: =$M$39*L15 ->  | N15: =M15*H15 -> 
H16: 0 | I16: 0 | J16: 0
H17: 0 | I17: 0 | J17: 0
H18: 0 | I18: 0 | J18: 0
H19: 0 | I19: 0 | J19: 0
H20: 0 | I20: 0 | J20: 0
H21: 0 | I21: 0 | J21: 0
H22: 0 | I22: 0 | J22: 0
H23: 0 | I23: 0 | J23: 0
H24: =IF(G24=0,0,F24/G24) -> 0 | I24: =IF(E24=0,0,F24/E24) -> 0 | J24: =IF(D24=0,0,G24/D24) -> 0 | N24: =M24*H24 -> 
H25: 0 | I25: 0 | J25: 0
H26: 0 | I26: 0 | J26: 0
H27: 0 | I27: 0 | J27: 0
H28: 0 | I28: 0 | J28: 0
H29: 0 | I29: 0 | J29: 0
H30: 0 | I30: 0 | J30: 0
H31: 0 | I31: 0 | J31: 0
H32: 0 | I32: 0 | J32: 0
H33: 0 | I33: 0 | J33: 0 | N33: =M33*H33 -> 
H34: 0 | I34: =IF(E34=0,0,F34/E34) -> 0 | J34: =IF(D34=0,0,G34/D34) -> 0 | N34: =M34*H34 -> 
H35: 0 | I35: 0 | J35: 0
H36: 0 | I36: 0 | J36: 0
H37: 0 | I37: 0 | J37: 0
H38: 0 | I38: 0 | J38: 0
B39: Total | D39: =SUM(D14:D38) -> 0 | E39: =SUM(E14:E38) -> 0 | F39: =SUM(F14:F38) -> 0 | G39: =SUM(G14:G38) -> 0 | H39: 0 | I39: 0 | J39: 0 | L39: =SUM(L14:L38) ->  | N39: 0
D41: Year 1 | E41: Year 2 | F41: Year 3 | G41: Year 4 | H41: Year 5 | I41: P&L | J41: Incremental Revenue Explanation
C42: Faculty Productivity | D42: 0.7 | E42: 0.95 | F42: 1 | G42: 1 | H42: 1
C43: Incremental Revenue | D43: 1 | E43: 1 | F43: 1 | G43: 1 | H43: 1
C44: Production wRVUs | D44: =D42*$M$39 -> 0 | E44: =E42*$M$39 -> 0 | F44: 0 | G44: 0 | H44: 0
A45: =I46 -> ICE | C45: Incremental wRVUs | D45: =D43*D44 -> 0 | E45: =E43*E44 -> 0 | F45: 0 | G45: 0 | H45: 0
A46: =I46&"Clinical Pro Fees" -> ICEClinical Pro Fees | C46: Incremental Collections | D46: =D42*D43*$N$39 -> 0 | E46: =E42*E43*$N$39 -> 0 | F46: =F42*F43*$N$39 -> 0 | G46: =G42*G43*$N$39 -> 0 | H46: =H42*H43*$N$39 -> 0 | I46: ICE | O46: =IF(SUM(D46:H46)>0,IF(I46=0,1,0),0) -> 0
B47: Click on "+" to open ICE Professional Revenue section
B48: ICE TECHNICAL FEE REVENUE
C49: Profile Data | L49: JFR Proforma
C50: Description | D50: Volume | E50: Charge | F50: Collections | H50: Coll/Unit | I50: Coll Rate | L50: Volume | N50: Collections
C51: To add rows, copy one or more rows in the middle of the section, and "insert copied cells"
H52: =IF(D52=0,0,F52/D52) -> 0 | I52: =IF(E52=0,0,F52/E52) -> 0 | N52: =L52*H52 -> 0
H53: =IF(D53=0,0,F53/D53) -> 0 | I53: =IF(E53=0,0,F53/E53) -> 0 | N53: =L53*H53 -> 0
H54: 0 | I54: 0 | N54: 0
H55: 0 | I55: 0 | N55: 0
H56: 0 | I56: 0 | N56: 0
H57: 0 | I57: 0 | N57: 0
H58: 0 | I58: 0 | N58: 0
H59: 0 | I59: 0 | N59: 0
H60: 0 | I60: 0 | N60: 0
H61: 0 | I61: 0 | N61: 0
H62: 0 | I62: 0 | N62: 0
H63: 0 | I63: 0 | N63: 0
H64: 0 | I64: 0 | N64: 0
H65: 0 | I65: 0 | N65: 0
H66: 0 | I66: 0 | N66: 0
H67: 0 | I67: 0 | N67: 0
H68: 0 | I68: 0 | N68: 0
H69: 0 | I69: 0 | N69: 0
H70: 0 | I70: 0 | N70: 0
H71: 0 | I71: 0 | N71: 0
H72: 0 | I72: 0 | N72: 0
H73: 0 | I73: 0 | N73: 0
H74: 0 | I74: 0 | N74: 0
H75: 0 | I75: 0 | N75: 0
H76: 0 | I76: 0 | N76: 0
B77: Total | D77: =SUM(D52:D76) -> 0 | E77: =SUM(E52:E76) -> 0 | F77: =SUM(F52:F76) -> 0 | H77: =IF(G77=0,0,F77/G77) -> 0 | I77: 0 | L77: =SUM(L52:L76) -> 0 | N77: =SUM(N52:N76) -> 0
D79: Year 1 | E79: Year 2 | F79: Year 3 | G79: Year 4 | H79: Year 5 | I79: P&L | J79: Incremental Revenue Explanation
C80: Faculty Productivity | D80: 0.7 | E80: 0.95 | F80: 1 | G80: 1 | H80: 1
C81: Incremental Revenue | D81: 1 | E81: 1 | F81: 1 | G81: 1 | H81: 1
C82: Production Units | D82: =D80*$L$77 -> 0 | E82: =E80*$L$77 -> 0 | F82: 0 | G82: 0 | H82: 0
C83: Incremental Units | D83: =D81*D82 -> 0 | E83: =E81*E82 -> 0 | F83: =F81*F82 -> 0 | G83: =G81*G82 -> 0 | H83: =H81*H82 -> 0
A84: =I84&"Clinical Tech Fees" -> ICEClinical Tech Fees | C84: Incremental Collections | D84: =D80*D81*$N$77 -> 0 | E84: =E80*E81*$N$77 -> 0 | F84: 0 | G84: 0 | H84: 0 | I84: ICE | O84: =IF(SUM(D84:H84)>0,IF(I84=0,1,0),0) -> 0
B85: Click on "+" to open ICE Technical Revenue section
B86: ICE DOWN STREAM CLINICAL REVENUE
C87: Profile Data | L87: JFR Proforma
C88: Description | D88: Volume | E88: Charge | F88: Collections | H88: Coll/Unit | I88: Coll Rate | L88: Volume | N88: Collections
C89: To add rows, copy one or more rows in the middle of the section, and "insert copied cells"
H90: =IF(D90=0,0,F90/D90) -> 0 | I90: =IF(E90=0,0,F90/E90) -> 0 | N90: =L90*H90 -> 0
H91: =IF(D91=0,0,F91/D91) -> 0 | I91: =IF(E91=0,0,F91/E91) -> 0 | N91: =L91*H91 -> 0
H92: 0 | I92: 0 | N92: 0
H93: 0 | I93: 0 | N93: 0
H94: 0 | I94: 0 | N94: 0
H95: 0 | I95: 0 | N95: 0
H96: 0 | I96: 0 | N96: 0
H97: 0 | I97: 0 | N97: 0
H98: 0 | I98: 0 | N98: 0
H99: 0 | I99: 0 | N99: 0
H100: 0 | I100: 0 | N100: 0
H101: 0 | I101: 0 | N101: 0
H102: 0 | I102: 0 | N102: 0
H103: 0 | I103: 0 | N103: 0
H104: 0 | I104: 0 | N104: 0
H105: 0 | I105: 0 | N105: 0
H106: 0 | I106: 0 | N106: 0
H107: 0 | I107: 0 | N107: 0
H108: 0 | I108: 0 | N108: 0
H109: 0 | I109: 0 | N109: 0
H110: 0 | I110: 0 | N110: 0
H111: 0 | I111: 0 | N111: 0
H112: 0 | I112: 0 | N112: 0
H113: 0 | I113: 0 | N113: 0
H114: 0 | I114: 0 | N114: 0
B115: Total | D115: =SUM(D90:D114) -> 0 | E115: =SUM(E90:E114) -> 0 | F115: =SUM(F90:F114) -> 0 | H115: =IF(G115=0,0,F115/G115) -> 0 | I115: 0 | L115: =SUM(L90:L114) -> 0 | N115: =SUM(N90:N114) -> 0
D117: Year 1 | E117: Year 2 | F117: Year 3 | G117: Year 4 | H117: Year 5 | I117: P&L | J117: Incremental Revenue Explanation
C118: Faculty Productivity | D118: 1 | E118: 1 | F118: 1 | G118: 1 | H118: 1
C119: Incremental Revenue | D119: 1 | E119: 1 | F119: 1 | G119: 1 | H119: 1
C120: Production Units | D120: =D118*$L$115 -> 0 | E120: =E118*$L$115 -> 0 | F120: 0 | G120: 0 | H120: 0
C121: Incremental Units | D121: =D119*D120 -> 0 | E121: =E119*E120 -> 0 | F121: 0 | G121: 0 | H121: 0
A122: =I122&"Down Stream Clinical Revenue" -> ICEDown Stream Clinical Revenue | C122: Incremental Collections | D122: =D118*D119*$N$77 -> 0 | E122: =E118*E119*$N$77 -> 0 | F122: 0 | G122: 0 | H122: 0 | I122: ICE | O122: =IF(SUM(D122:H122)>0,IF(I122=0,1,0),0) -> 0
B123: Click on "+" to open ICE Clinical Down Stream Revenue section
B124: ACH PROFESSIONAL FEE REVENUE
B125: Profile Data | L125: JFR Proforma
B126: CPT | C126: Description | D126: Volume | E126: Charge | F126: Collections | G126: wRVUs | H126: Coll/wRVU | I126: Coll Rate | J126: wRVU/Count | L126: Dist | M126: wRVUs | N126: Collections
B127: To add rows, copy one or more rows in the middle of the section, and "insert copied cells"
H128: =IF(G128=0,0,F128/G128) -> 0 | I128: =IF(E128=0,0,F128/E128) -> 0 | J128: =IF(D128=0,0,G128/D128) -> 0 | L128: =G128/$G$153 ->  | M128: =$M$153*L128 ->  | N128: =M128*H128 -> 
H129: 0 | I129: =IF(E129=0,0,F129/E129) -> 0 | J129: =IF(D129=0,0,G129/D129) -> 0 | L129: =G129/$G$153 ->  | M129: =$M$153*L129 ->  | N129: =M129*H129 -> 
H130: 0 | I130: 0 | J130: 0
H131: 0 | I131: 0 | J131: 0
H132: 0 | I132: 0 | J132: 0
H133: 0 | I133: 0 | J133: 0
H134: 0 | I134: 0 | J134: 0
H135: 0 | I135: 0 | J135: 0
H136: 0 | I136: 0 | J136: 0
H137: 0 | I137: 0 | J137: 0
H138: 0 | I138: 0 | J138: 0
H139: 0 | I139: 0 | J139: 0
H140: 0 | I140: 0 | J140: 0
H141: 0 | I141: 0 | J141: 0
H142: 0 | I142: 0 | J142: 0
H143: 0 | I143: 0 | J143: 0
H144: 0 | I144: 0 | J144: 0
H145: 0 | I145: 0 | J145: 0
H146: 0 | I146: 0 | J146: 0
H147: 0 | I147: 0 | J147: 0
H148: 0 | I148: 0 | J148: 0
H149: 0 | I149: 0 | J149: 0
H150: 0 | I150: 0 | J150: 0
H151: 0 | I151: 0 | J151: 0
H152: 0 | I152: 0 | J152: 0
B153: Total | D153: =SUM(D128:D152) -> 0 | E153: =SUM(E128:E152) -> 0 | F153: =SUM(F128:F152) -> 0 | G153: =SUM(G128:G152) -> 0 | H153: 0 | I153: 0 | J153: 0 | L153: =SUM(L128:L152) ->  | N153: 0
D155: Year 1 | E155: Year 2 | F155: Year 3 | G155: Year 4 | H155: Year 5 | I155: P&L | J155: Incremental Revenue Explanation
C156: Faculty Productivity | D156: 0.7 | E156: 1 | F156: 1 | G156: 1 | H156: 1
C157: Incremental Revenue | D157: 1 | E157: 1 | F157: 1 | G157: 1 | H157: 1
C158: Production wRVUs | D158: =D156*$M$153 -> 0 | E158: =E156*$M$153 -> 0 | F158: 0 | G158: 0 | H158: 0
A159: =I160 -> ACH | C159: Incremental wRVUs | D159: =D157*D158 -> 0 | E159: =E157*E158 -> 0 | F159: 0 | G159: 0 | H159: 0
A160: =I160&"Clinical Pro Fees" -> ACHClinical Pro Fees | C160: Incremental Collections | D160: =D156*D157*$N$153 -> 0 | E160: =E156*E157*$N$153 -> 0 | F160: 0 | G160: 0 | H160: 0 | I160: ACH | O160: =IF(SUM(D160:H160)>0,IF(I160=0,1,0),0) -> 0
B161: Click on "+" to open ACH Professional Fee Revenue section
B162: COM PROFESSIONAL FEE REVENUE
B163: Profile Data | L163: JFR Proforma
B164: CPT | C164: Description | D164: Volume | E164: Charge | F164: Collections | G164: wRVUs | H164: Coll/wRVU | I164: Coll Rate | J164: wRVU/Count | L164: Dist | M164: wRVUs | N164: Collections
B165: To add rows, copy one or more rows in the middle of the section, and "insert copied cells"
H166: =IF(G166=0,0,F166/G166) -> 0 | I166: =IF(E166=0,0,F166/E166) -> 0 | J166: =IF(D166=0,0,G166/D166) -> 0 | L166: =G166/$G$39 ->  | M166: =$M$191*L166 ->  | N166: =M166*H166 -> 
H167: 0 | I167: =IF(E167=0,0,F167/E167) -> 0 | J167: =IF(D167=0,0,G167/D167) -> 0 | L167: =G167/$G$39 ->  | M167: =$M$191*L167 ->  | N167: =M167*H167 -> 
H168: 0 | I168: 0 | J168: 0
H169: 0 | I169: 0 | J169: 0
H170: 0 | I170: 0 | J170: 0
H171: 0 | I171: 0 | J171: 0
H172: 0 | I172: 0 | J172: 0
H173: 0 | I173: 0 | J173: 0
H174: 0 | I174: 0 | J174: 0
H175: 0 | I175: 0 | J175: 0
H176: 0 | I176: 0 | J176: 0
H177: 0 | I177: 0 | J177: 0
H178: 0 | I178: 0 | J178: 0
H179: 0 | I179: 0 | J179: 0
H180: 0 | I180: 0 | J180: 0
H181: 0 | I181: 0 | J181: 0
H182: 0 | I182: 0 | J182: 0
H183: 0 | I183: 0 | J183: 0
H184: 0 | I184: 0 | J184: 0
H185: 0 | I185: 0 | J185: 0
H186: 0 | I186: 0 | J186: 0
H187: 0 | I187: 0 | J187: 0
H188: 0 | I188: 0 | J188: 0
H189: 0 | I189: 0 | J189: 0
H190: 0 | I190: 0 | J190: 0
B191: Total | D191: =SUM(D166:D190) -> 0 | E191: =SUM(E166:E190) -> 0 | F191: =SUM(F166:F190) -> 0 | G191: =SUM(G166:G190) -> 0 | H191: 0 | I191: 0 | J191: 0 | L191: =SUM(L166:L190) ->  | N191: 0
D193: Year 1 | E193: Year 2 | F193: Year 3 | G193: Year 4 | H193: Year 5 | I193: P&L | J193: Incremental Revenue Explanation
C194: Faculty Productivity | D194: 0.7 | E194: 1 | F194: 1 | G194: 1 | H194: 1
C195: Incremental Revenue | D195: 1 | E195: 1 | F195: 1 | G195: 1 | H195: 1
C196: Production wRVUs | D196: =D194*$M$191 -> 0 | E196: =E194*$M$191 -> 0 | F196: 0 | G196: 0 | H196: 0
A197: =I198 -> COM | C197: Incremental wRVUs | D197: =D195*D196 -> 0 | E197: =E195*E196 -> 0 | F197: 0 | G197: 0 | H197: 0
A198: =I198&"Clinical Pro Fees" -> COMClinical Pro Fees | C198: Incremental Collections | D198: =D194*D195*$N$191 -> 0 | E198: =E194*E195*$N$191 -> 0 | F198: 0 | G198: 0 | H198: 0 | I198: COM | O198: =IF(SUM(D198:H198)>0,IF(I198=0,1,0),0) -> 0
B199: Click on "+" to open COM Professional Fee Revenue section

Sheet DIV
A1: HIDE | B1: HIDE | C1: HIDE | D1: HIDE | E1: HIDE | F1: HIDE | G1: HIDE | H1: HIDE | I1: HIDE | J1: FACULTY RECRUITMENT BUSINESS PLAN | Q1: SPECIALTY ANALYSIS | AJ1: HIDE | AK1: HIDE | AL1: HIDE | AQ1: =COMP!N1 -> COM FBP V19.2 | AR1: HIDE | AS1: HIDE | AT1: HIDE | AU1: HIDE | AV1: HIDE | AW1: HIDE | AX1: HIDE
AQ2: =COMP!B1 -> ; [select]; [select] [select];
V5: =SUM(AU9:AU99) -> 0 | AA5: HOME DEPT SALARY | AE5: =SUM(AV9:AV99) -> 0 | AK5: 2017-06-30 | AM5: YTD Months | AP5: Curr
P6: FTE ANALYSIS | X6: SALARY ANALYSIS (in thousands) | AI6: wRVU HISTORY | AM6: 3 | AN6: CLINICAL PRODUCTIVITY ANALYSIS
A7: Include | B7: wRVU Bchmk | C7: Type | D7: Category | E7: wRVU Speciatly | F7: Comp Bchmk | G7: Type | H7: Category | I7: Comp Specialty | J7: Faculty | K7: SAP ID | L7: Specialty | M7: Rank | N7: Notes: if new hire indicate start date | P7: Admin FTE | Q7: Teach FTE | R7: Resch FTE | S7: Clin Non-wRVU FTE | T7: Clinical FTE | U7: VA FTE | V7: Total UAMS FTE | X7: Curr Year Salary | Y7: Cur Yr Proj Incentive | Z7: VA Comp | AA7: Curr Total | AB7: Norm. Comp | AC7: 25%ile Comp Bmark | AD7: 50%ile Comp Bmark | AE7: 75%ile Comp Bmark | AG7: FY2016 wRVUs | AH7: FY2017 wRVUs | AI7: FY2018 wRVUs | AJ7: YTD FY2019 wRVUs | AK7: Start Date | AL7: # of Months Here | AM7: Ann'lized FY2018 wRVUs | AN7: Median wRVU Bmark | AO7: CFTE Adjusted Expectation | AP7: =IF($AP$5="Prior",AI7,AM7) -> Ann'lized FY2018 wRVUs | AQ7: Difference
A8: 1 | J8: =SUM(AR9:AT97) -> 0 | X8: Requested Faculty Salary
A9: 1 | B9: FPSC | C9: Academic | D9: All | E9: =IF($B9="MGMA",COMP!$D$67,IF($B9="FPSC",COMP!$D$66,IF($B9="SPEC",COMP!$K$77,"no data"))) -> [select] | F9: AAMC | G9: Academic | H9: All | I9: =IF($F9="AAMC",COMP!$D$64,IF($F9="MGMA",COMP!$D$67,IF($F9="SPEC",COMP!$K$70,"no data"))) -> [select] | J9: =SUMMARY!F8 -> TBD | K9: NA | L9: =COMP!J11 -> 0 | M9: =COMP!J17 -> [select] | P9: =ASSIGN!M16 -> 0 | Q9: =ASSIGN!M30 -> 0 | R9: =ASSIGN!M23 -> 0 | S9: =ASSIGN!L41 -> 0 | T9: =ASSIGN!M41 -> 0 | U9: =ASSIGN!H48 -> 0 | V9: =SUM(P9:U9) -> 0 | X9: =COMP!D29/1000 -> 0 | Y9: =COMP!J33/1000 -> 0 | Z9: =COMP!D30/1000 -> 0 | AA9: =SUM(X9:Z9) -> 0 | AB9: =IF(V9=0,0,AA9/V9) -> 0 | AC9: =IF($F9="SPEC",COMP!K$69/1000,IFERROR(VLOOKUP($F9&$G9&$H9&$M9&COMP!$D$65&$I9&"L",AAMC!$A$4:$W$15377,10,FALSE)/1000,IFERROR(VLOOKUP($F9&$G9&$H9&$M9&COMP!$D$65&$I9&"L",MGMAC!$A$4:$W$15377,10,FALSE)/1000,IFERROR(VLOOKUP($F9&$G9&$H9&$M9&COMP!$D$65&$I9&"L",MGMACP!$A$4:$W$15377,10,FALSE)/1000,"no data")))) -> no data | AD9: =IF($F9="SPEC",COMP!L$69/1000,IFERROR(VLOOKUP($F9&$G9&$H9&$M9&COMP!$D$65&$I9&"L",AAMC!$A$4:$W$15377,15,FALSE)/1000,IFERROR(VLOOKUP($F9&$G9&$H9&$M9&COMP!$D$65&$I9&"L",MGMAC!$A$4:$W$15377,15,FALSE)/1000,IFERROR(VLOOKUP($F9&$G9&$H9&$M9&COMP!$D$65&$I9&"L",MGMACP!$A$4:$W$15377,15,FALSE)/1000,"no data")))) -> no data | AE9: =IF($F9="SPEC",COMP!M$69/1000,IFERROR(VLOOKUP($F9&$G9&$H9&$M9&COMP!$D$65&$I9&"L",AAMC!$A$4:$W$15377,20,FALSE)/1000,IFERROR(VLOOKUP($F9&$G9&$H9&$M9&COMP!$D$65&$I9&"L",MGMAC!$A$4:$W$15377,20,FALSE)/1000,IFERROR(VLOOKUP($F9&$G9&$H9&$M9&COMP!$D$65&$I9&"L",MGMACP!$A$4:$W$15377,20,FALSE)/1000,"no data")))) -> no data | AN9: =IF($J9=0,0,IF($B9="SPEC",COMP!$L$76,IF($B9="FPSC",IFERROR(VLOOKUP($B9&$C9&$D9&$E9&"L",FPSC!$A$4:$U$332,13,FALSE),"no data"),IF(B9&C9="MGMAAcademic",IFERROR(VLOOKUP($B9&$C9&$D9&$E9&"L",MGMAR!$A$4:$U$332,13,FALSE),"no data"),IFERROR(VLOOKUP($B9&$C9&$D9&$E9&"L",MGMARP!$A$4:$U$332,13,FALSE),"no data"))))) -> no data | AO9: =IF(AN9="no data",0,AN9*T9) -> 0 | AP9: =ASSIGN!F41 -> 0 | AQ9: =IFERROR(AP9-AO9,0) -> 0
A10: 1
A11: 1 | J11: Enter ALL faculty (assitant thru professor) of the same SPECIALTY, sorted by Rank
A12: 1 | B12: =$B$9 -> FPSC | C12: =$C$9 -> Academic | D12: =$D$9 -> All | E12: =IF($B12="MGMA",COMP!$D$67,IF($B12="FPSC",COMP!$D$66,IF($B12="SPEC",COMP!$K$77,"no data"))) -> [select] | F12: =$F$9 -> AAMC | G12: =$G$9 -> Academic | H12: =$H$9 -> All | I12: =IF($F12="AAMC",COMP!$D$64,IF($F12="MGMA",COMP!$D$67,IF($F12="SPEC",COMP!$K$70,"no data"))) -> [select] | V12: =SUM(P12:U12) -> 0 | AA12: =SUM(X12:Z12) -> 0 | AB12: =IF(V12=0,0,AA12/V12) -> 0 | AC12: =IF($F12="SPEC",COMP!K$69/1000,IFERROR(VLOOKUP($F12&$G12&$H12&$M12&COMP!$D$65&$I12&"L",AAMC!$A$4:$W$15377,10,FALSE)/1000,IFERROR(VLOOKUP($F12&$G12&$H12&$M12&COMP!$D$65&$I12&"L",MGMAC!$A$4:$W$15377,10,FALSE)/1000,IFERROR(VLOOKUP($F12&$G12&$H12&$M12&COMP!$D$65&$I12&"L",MGMACP!$A$4:$W$15377,10,FALSE)/1000,"no data")))) -> no data | AD12: =IF($F12="SPEC",COMP!L$69/1000,IFERROR(VLOOKUP($F12&$G12&$H12&$M12&COMP!$D$65&$I12&"L",AAMC!$A$4:$W$15377,15,FALSE)/1000,IFERROR(VLOOKUP($F12&$G12&$H12&$M12&COMP!$D$65&$I12&"L",MGMAC!$A$4:$W$15377,15,FALSE)/1000,IFERROR(VLOOKUP($F12&$G12&$H12&$M12&COMP!$D$65&$I12&"L",MGMACP!$A$4:$W$15377,15,FALSE)/1000,"no data")))) -> no data | AE12: =IF($F12="SPEC",COMP!M$69/1000,IFERROR(VLOOKUP($F12&$G12&$H12&$M12&COMP!$D$65&$I12&"L",AAMC!$A$4:$W$15377,20,FALSE)/1000,IFERROR(VLOOKUP($F12&$G12&$H12&$M12&COMP!$D$65&$I12&"L",MGMAC!$A$4:$W$15377,20,FALSE)/1000,IFERROR(VLOOKUP($F12&$G12&$H12&$M12&COMP!$D$65&$I12&"L",MGMACP!$A$4:$W$15377,20,FALSE)/1000,"no data")))) -> no data | AL12: =$AM$6 -> 3 | AM12: =((AJ12/AL12)*$AM$6)/$AM$6*12 -> 0 | AN12: =IF($J12=0,0,IF($B12="SPEC",COMP!$L$76,IF($B12="FPSC",IFERROR(VLOOKUP($B12&$C12&$D12&$E12&"L",FPSC!$A$4:$U$332,13,FALSE),"no data"),IF(B12&C12="MGMAAcademic",IFERROR(VLOOKUP($B12&$C12&$D12&$E12&"L",MGMAR!$A$4:$U$332,13,FALSE),"no data"),IFERROR(VLOOKUP($B12&$C12&$D12&$E12&"L",MGMARP!$A$4:$U$332,13,FALSE),"no data"))))) -> 0 | AO12: =AN12*T12 -> 0 | AP12: =IF($AP$5="Prior",AI12,AM12) -> 0 | AQ12: =IFERROR(AP12-AO12,0) -> 0 | AR12: =IF(J12>0,IF(K12=0,1,0),0) -> 0 | AS12: =IF(J12>0,IF(L12=0,1,0),0) -> 0 | AT12: =IF(J12>0,IF(M12=0,1,0),0) -> 0 | AU12: =IF(J12>0,IF(V12=0,1,0),0) -> 0 | AV12: =IF(J12>0,IF(AA12=0,1,0),0) -> 0 | AW12: =IF($M$9=M12,1,0) -> 0 | AX12: =IF(AL12<>$AM$6,1,0) -> 0
A13: =IF(J13>0,1,0) -> 0 | B13: =$B$9 -> FPSC | C13: =$C$9 -> Academic | D13: =$D$9 -> All | E13: =IF($B13="MGMA",COMP!$D$67,IF($B13="FPSC",COMP!$D$66,IF($B13="SPEC",COMP!$K$77,"no data"))) -> [select] | F13: =$F$9 -> AAMC | G13: =$G$9 -> Academic | H13: =$H$9 -> All | I13: =IF($F13="AAMC",COMP!$D$64,IF($F13="MGMA",COMP!$D$67,IF($F13="SPEC",COMP!$K$70,"no data"))) -> [select] | V13: 0 | AA13: =SUM(X13:Z13) -> 0 | AB13: =IF(V13=0,0,AA13/V13) -> 0 | AC13: =IF($F13="SPEC",COMP!K$69/1000,IFERROR(VLOOKUP($F13&$G13&$H13&$M13&COMP!$D$65&$I13&"L",AAMC!$A$4:$W$15377,10,FALSE)/1000,IFERROR(VLOOKUP($F13&$G13&$H13&$M13&COMP!$D$65&$I13&"L",MGMAC!$A$4:$W$15377,10,FALSE)/1000,IFERROR(VLOOKUP($F13&$G13&$H13&$M13&COMP!$D$65&$I13&"L",MGMACP!$A$4:$W$15377,10,FALSE)/1000,"no data")))) -> no data | AD13: =IF($F13="SPEC",COMP!L$69/1000,IFERROR(VLOOKUP($F13&$G13&$H13&$M13&COMP!$D$65&$I13&"L",AAMC!$A$4:$W$15377,15,FALSE)/1000,IFERROR(VLOOKUP($F13&$G13&$H13&$M13&COMP!$D$65&$I13&"L",MGMAC!$A$4:$W$15377,15,FALSE)/1000,IFERROR(VLOOKUP($F13&$G13&$H13&$M13&COMP!$D$65&$I13&"L",MGMACP!$A$4:$W$15377,15,FALSE)/1000,"no data")))) -> no data | AE13: =IF($F13="SPEC",COMP!M$69/1000,IFERROR(VLOOKUP($F13&$G13&$H13&$M13&COMP!$D$65&$I13&"L",AAMC!$A$4:$W$15377,20,FALSE)/1000,IFERROR(VLOOKUP($F13&$G13&$H13&$M13&COMP!$D$65&$I13&"L",MGMAC!$A$4:$W$15377,20,FALSE)/1000,IFERROR(VLOOKUP($F13&$G13&$H13&$M13&COMP!$D$65&$I13&"L",MGMACP!$A$4:$W$15377,20,FALSE)/1000,"no data")))) -> no data | AL13: 3 | AM13: =((AJ13/AL13)*$AM$6)/$AM$6*12 -> 0 | AN13: =IF($J13=0,0,IF($B13="SPEC",COMP!$L$76,IF($B13="FPSC",IFERROR(VLOOKUP($B13&$C13&$D13&$E13&"L",FPSC!$A$4:$U$332,13,FALSE),"no data"),IF(B13&C13="MGMAAcademic",IFERROR(VLOOKUP($B13&$C13&$D13&$E13&"L",MGMAR!$A$4:$U$332,13,FALSE),"no data"),IFERROR(VLOOKUP($B13&$C13&$D13&$E13&"L",MGMARP!$A$4:$U$332,13,FALSE),"no data"))))) -> 0 | AO13: 0 | AP13: =IF($AP$5="Prior",AI13,AM13) -> 0 | AQ13: =IFERROR(AP13-AO13,0) -> 0 | AR13: =IF(J13>0,IF(K13=0,1,0),0) -> 0 | AS13: =IF(J13>0,IF(L13=0,1,0),0) -> 0 | AT13: =IF(J13>0,IF(M13=0,1,0),0) -> 0 | AU13: =IF(J13>0,IF(V13=0,1,0),0) -> 0 | AV13: =IF(J13>0,IF(AA13=0,1,0),0) -> 0 | AW13: =IF($M$9=M13,1,0) -> 0 | AX13: =IF(AL13<>$AM$6,1,0) -> 0
A14: =IF(J14>0,1,0) -> 0 | B14: FPSC | C14: Academic | D14: All | E14: =IF($B14="MGMA",COMP!$D$67,IF($B14="FPSC",COMP!$D$66,IF($B14="SPEC",COMP!$K$77,"no data"))) -> [select] | F14: AAMC | G14: Academic | H14: All | I14: =IF($F14="AAMC",COMP!$D$64,IF($F14="MGMA",COMP!$D$67,IF($F14="SPEC",COMP!$K$70,"no data"))) -> [select] | V14: 0 | AA14: 0 | AB14: 0 | AC14: =IF($F14="SPEC",COMP!K$69/1000,IFERROR(VLOOKUP($F14&$G14&$H14&$M14&COMP!$D$65&$I14&"L",AAMC!$A$4:$W$15377,10,FALSE)/1000,IFERROR(VLOOKUP($F14&$G14&$H14&$M14&COMP!$D$65&$I14&"L",MGMAC!$A$4:$W$15377,10,FALSE)/1000,IFERROR(VLOOKUP($F14&$G14&$H14&$M14&COMP!$D$65&$I14&"L",MGMACP!$A$4:$W$15377,10,FALSE)/1000,"no data")))) -> no data | AD14: =IF($F14="SPEC",COMP!L$69/1000,IFERROR(VLOOKUP($F14&$G14&$H14&$M14&COMP!$D$65&$I14&"L",AAMC!$A$4:$W$15377,15,FALSE)/1000,IFERROR(VLOOKUP($F14&$G14&$H14&$M14&COMP!$D$65&$I14&"L",MGMAC!$A$4:$W$15377,15,FALSE)/1000,IFERROR(VLOOKUP($F14&$G14&$H14&$M14&COMP!$D$65&$I14&"L",MGMACP!$A$4:$W$15377,15,FALSE)/1000,"no data")))) -> no data | AE14: =IF($F14="SPEC",COMP!M$69/1000,IFERROR(VLOOKUP($F14&$G14&$H14&$M14&COMP!$D$65&$I14&"L",AAMC!$A$4:$W$15377,20,FALSE)/1000,IFERROR(VLOOKUP($F14&$G14&$H14&$M14&COMP!$D$65&$I14&"L",MGMAC!$A$4:$W$15377,20,FALSE)/1000,IFERROR(VLOOKUP($F14&$G14&$H14&$M14&COMP!$D$65&$I14&"L",MGMACP!$A$4:$W$15377,20,FALSE)/1000,"no data")))) -> no data | AL14: 3 | AM14: 0 | AN14: =IF($J14=0,0,IF($B14="SPEC",COMP!$L$76,IF($B14="FPSC",IFERROR(VLOOKUP($B14&$C14&$D14&$E14&"L",FPSC!$A$4:$U$332,13,FALSE),"no data"),IF(B14&C14="MGMAAcademic",IFERROR(VLOOKUP($B14&$C14&$D14&$E14&"L",MGMAR!$A$4:$U$332,13,FALSE),"no data"),IFERROR(VLOOKUP($B14&$C14&$D14&$E14&"L",MGMARP!$A$4:$U$332,13,FALSE),"no data"))))) -> 0 | AO14: 0 | AP14: 0 | AQ14: 0 | AR14: 0 | AS14: 0 | AT14: 0 | AU14: 0 | AV14: 0 | AW14: 0 | AX14: 0
A15: 0 | B15: FPSC | C15: Academic | D15: All | E15: =IF($B15="MGMA",COMP!$D$67,IF($B15="FPSC",COMP!$D$66,IF($B15="SPEC",COMP!$K$77,"no data"))) -> [select] | F15: AAMC | G15: Academic | H15: All | I15: =IF($F15="AAMC",COMP!$D$64,IF($F15="MGMA",COMP!$D$67,IF($F15="SPEC",COMP!$K$70,"no data"))) -> [select] | V15: 0 | AA15: 0 | AB15: 0 | AC15: =IF($F15="SPEC",COMP!K$69/1000,IFERROR(VLOOKUP($F15&$G15&$H15&$M15&COMP!$D$65&$I15&"L",AAMC!$A$4:$W$15377,10,FALSE)/1000,IFERROR(VLOOKUP($F15&$G15&$H15&$M15&COMP!$D$65&$I15&"L",MGMAC!$A$4:$W$15377,10,FALSE)/1000,IFERROR(VLOOKUP($F15&$G15&$H15&$M15&COMP!$D$65&$I15&"L",MGMACP!$A$4:$W$15377,10,FALSE)/1000,"no data")))) -> no data | AD15: =IF($F15="SPEC",COMP!L$69/1000,IFERROR(VLOOKUP($F15&$G15&$H15&$M15&COMP!$D$65&$I15&"L",AAMC!$A$4:$W$15377,15,FALSE)/1000,IFERROR(VLOOKUP($F15&$G15&$H15&$M15&COMP!$D$65&$I15&"L",MGMAC!$A$4:$W$15377,15,FALSE)/1000,IFERROR(VLOOKUP($F15&$G15&$H15&$M15&COMP!$D$65&$I15&"L",MGMACP!$A$4:$W$15377,15,FALSE)/1000,"no data")))) -> no data | AE15: =IF($F15="SPEC",COMP!M$69/1000,IFERROR(VLOOKUP($F15&$G15&$H15&$M15&COMP!$D$65&$I15&"L",AAMC!$A$4:$W$15377,20,FALSE)/1000,IFERROR(VLOOKUP($F15&$G15&$H15&$M15&COMP!$D$65&$I15&"L",MGMAC!$A$4:$W$15377,20,FALSE)/1000,IFERROR(VLOOKUP($F15&$G15&$H15&$M15&COMP!$D$65&$I15&"L",MGMACP!$A$4:$W$15377,20,FALSE)/1000,"no data")))) -> no data | AL15: 3 | AM15: 0 | AN15: =IF($J15=0,0,IF($B15="SPEC",COMP!$L$76,IF($B15="FPSC",IFERROR(VLOOKUP($B15&$C15&$D15&$E15&"L",FPSC!$A$4:$U$332,13,FALSE),"no data"),IF(B15&C15="MGMAAcademic",IFERROR(VLOOKUP($B15&$C15&$D15&$E15&"L",MGMAR!$A$4:$U$332,13,FALSE),"no data"),IFERROR(VLOOKUP($B15&$C15&$D15&$E15&"L",MGMARP!$A$4:$U$332,13,FALSE),"no data"))))) -> 0 | AO15: 0 | AP15: 0 | AQ15: 0 | AR15: 0 | AS15: 0 | AT15: 0 | AU15: 0 | AV15: 0 | AW15: 0 | AX15: 0
A16: 0 | B16: FPSC | C16: Academic | D16: All | E16: =IF($B16="MGMA",COMP!$D$67,IF($B16="FPSC",COMP!$D$66,IF($B16="SPEC",COMP!$K$77,"no data"))) -> [select] | F16: AAMC | G16: Academic | H16: All | I16: =IF($F16="AAMC",COMP!$D$64,IF($F16="MGMA",COMP!$D$67,IF($F16="SPEC",COMP!$K$70,"no data"))) -> [select] | V16: 0 | AA16: 0 | AB16: 0 | AC16: =IF($F16="SPEC",COMP!K$69/1000,IFERROR(VLOOKUP($F16&$G16&$H16&$M16&COMP!$D$65&$I16&"L",AAMC!$A$4:$W$15377,10,FALSE)/1000,IFERROR(VLOOKUP($F16&$G16&$H16&$M16&COMP!$D$65&$I16&"L",MGMAC!$A$4:$W$15377,10,FALSE)/1000,IFERROR(VLOOKUP($F16&$G16&$H16&$M16&COMP!$D$65&$I16&"L",MGMACP!$A$4:$W$15377,10,FALSE)/1000,"no data")))) -> no data | AD16: =IF($F16="SPEC",COMP!L$69/1000,IFERROR(VLOOKUP($F16&$G16&$H16&$M16&COMP!$D$65&$I16&"L",AAMC!$A$4:$W$15377,15,FALSE)/1000,IFERROR(VLOOKUP($F16&$G16&$H16&$M16&COMP!$D$65&$I16&"L",MGMAC!$A$4:$W$15377,15,FALSE)/1000,IFERROR(VLOOKUP($F16&$G16&$H16&$M16&COMP!$D$65&$I16&"L",MGMACP!$A$4:$W$15377,15,FALSE)/1000,"no data")))) -> no data | AE16: =IF($F16="SPEC",COMP!M$69/1000,IFERROR(VLOOKUP($F16&$G16&$H16&$M16&COMP!$D$65&$I16&"L",AAMC!$A$4:$W$15377,20,FALSE)/1000,IFERROR(VLOOKUP($F16&$G16&$H16&$M16&COMP!$D$65&$I16&"L",MGMAC!$A$4:$W$15377,20,FALSE)/1000,IFERROR(VLOOKUP($F16&$G16&$H16&$M16&COMP!$D$65&$I16&"L",MGMACP!$A$4:$W$15377,20,FALSE)/1000,"no data")))) -> no data | AL16: 3 | AM16: 0 | AN16: =IF($J16=0,0,IF($B16="SPEC",COMP!$L$76,IF($B16="FPSC",IFERROR(VLOOKUP($B16&$C16&$D16&$E16&"L",FPSC!$A$4:$U$332,13,FALSE),"no data"),IF(B16&C16="MGMAAcademic",IFERROR(VLOOKUP($B16&$C16&$D16&$E16&"L",MGMAR!$A$4:$U$332,13,FALSE),"no data"),IFERROR(VLOOKUP($B16&$C16&$D16&$E16&"L",MGMARP!$A$4:$U$332,13,FALSE),"no data"))))) -> 0 | AO16: 0 | AP16: 0 | AQ16: 0 | AR16: 0 | AS16: 0 | AT16: 0 | AU16: 0 | AV16: 0 | AW16: 0 | AX16: 0
A17: 0 | B17: FPSC | C17: Academic | D17: All | E17: =IF($B17="MGMA",COMP!$D$67,IF($B17="FPSC",COMP!$D$66,IF($B17="SPEC",COMP!$K$77,"no data"))) -> [select] | F17: AAMC | G17: Academic | H17: All | I17: =IF($F17="AAMC",COMP!$D$64,IF($F17="MGMA",COMP!$D$67,IF($F17="SPEC",COMP!$K$70,"no data"))) -> [select] | V17: 0 | AA17: 0 | AB17: 0 | AC17: =IF($F17="SPEC",COMP!K$69/1000,IFERROR(VLOOKUP($F17&$G17&$H17&$M17&COMP!$D$65&$I17&"L",AAMC!$A$4:$W$15377,10,FALSE)/1000,IFERROR(VLOOKUP($F17&$G17&$H17&$M17&COMP!$D$65&$I17&"L",MGMAC!$A$4:$W$15377,10,FALSE)/1000,IFERROR(VLOOKUP($F17&$G17&$H17&$M17&COMP!$D$65&$I17&"L",MGMACP!$A$4:$W$15377,10,FALSE)/1000,"no data")))) -> no data | AD17: =IF($F17="SPEC",COMP!L$69/1000,IFERROR(VLOOKUP($F17&$G17&$H17&$M17&COMP!$D$65&$I17&"L",AAMC!$A$4:$W$15377,15,FALSE)/1000,IFERROR(VLOOKUP($F17&$G17&$H17&$M17&COMP!$D$65&$I17&"L",MGMAC!$A$4:$W$15377,15,FALSE)/1000,IFERROR(VLOOKUP($F17&$G17&$H17&$M17&COMP!$D$65&$I17&"L",MGMACP!$A$4:$W$15377,15,FALSE)/1000,"no data")))) -> no data | AE17: =IF($F17="SPEC",COMP!M$69/1000,IFERROR(VLOOKUP($F17&$G17&$H17&$M17&COMP!$D$65&$I17&"L",AAMC!$A$4:$W$15377,20,FALSE)/1000,IFERROR(VLOOKUP($F17&$G17&$H17&$M17&COMP!$D$65&$I17&"L",MGMAC!$A$4:$W$15377,20,FALSE)/1000,IFERROR(VLOOKUP($F17&$G17&$H17&$M17&COMP!$D$65&$I17&"L",MGMACP!$A$4:$W$15377,20,FALSE)/1000,"no data")))) -> no data | AL17: 3 | AM17: 0 | AN17: =IF($J17=0,0,IF($B17="SPEC",COMP!$L$76,IF($B17="FPSC",IFERROR(VLOOKUP($B17&$C17&$D17&$E17&"L",FPSC!$A$4:$U$332,13,FALSE),"no data"),IF(B17&C17="MGMAAcademic",IFERROR(VLOOKUP($B17&$C17&$D17&$E17&"L",MGMAR!$A$4:$U$332,13,FALSE),"no data"),IFERROR(VLOOKUP($B17&$C17&$D17&$E17&"L",MGMARP!$A$4:$U$332,13,FALSE),"no data"))))) -> 0 | AO17: 0 | AP17: 0 | AQ17: 0 | AR17: 0 | AS17: 0 | AT17: 0 | AU17: 0 | AV17: 0 | AW17: 0 | AX17: 0
A18: 0 | B18: FPSC | C18: Academic | D18: All | E18: =IF($B18="MGMA",COMP!$D$67,IF($B18="FPSC",COMP!$D$66,IF($B18="SPEC",COMP!$K$77,"no data"))) -> [select] | F18: AAMC | G18: Academic | H18: All | I18: =IF($F18="AAMC",COMP!$D$64,IF($F18="MGMA",COMP!$D$67,IF($F18="SPEC",COMP!$K$70,"no data"))) -> [select] | V18: 0 | AA18: 0 | AB18: 0 | AC18: =IF($F18="SPEC",COMP!K$69/1000,IFERROR(VLOOKUP($F18&$G18&$H18&$M18&COMP!$D$65&$I18&"L",AAMC!$A$4:$W$15377,10,FALSE)/1000,IFERROR(VLOOKUP($F18&$G18&$H18&$M18&COMP!$D$65&$I18&"L",MGMAC!$A$4:$W$15377,10,FALSE)/1000,IFERROR(VLOOKUP($F18&$G18&$H18&$M18&COMP!$D$65&$I18&"L",MGMACP!$A$4:$W$15377,10,FALSE)/1000,"no data")))) -> no data | AD18: =IF($F18="SPEC",COMP!L$69/1000,IFERROR(VLOOKUP($F18&$G18&$H18&$M18&COMP!$D$65&$I18&"L",AAMC!$A$4:$W$15377,15,FALSE)/1000,IFERROR(VLOOKUP($F18&$G18&$H18&$M18&COMP!$D$65&$I18&"L",MGMAC!$A$4:$W$15377,15,FALSE)/1000,IFERROR(VLOOKUP($F18&$G18&$H18&$M18&COMP!$D$65&$I18&"L",MGMACP!$A$4:$W$15377,15,FALSE)/1000,"no data")))) -> no data | AE18: =IF($F18="SPEC",COMP!M$69/1000,IFERROR(VLOOKUP($F18&$G18&$H18&$M18&COMP!$D$65&$I18&"L",AAMC!$A$4:$W$15377,20,FALSE)/1000,IFERROR(VLOOKUP($F18&$G18&$H18&$M18&COMP!$D$65&$I18&"L",MGMAC!$A$4:$W$15377,20,FALSE)/1000,IFERROR(VLOOKUP($F18&$G18&$H18&$M18&COMP!$D$65&$I18&"L",MGMACP!$A$4:$W$15377,20,FALSE)/1000,"no data")))) -> no data | AL18: 3 | AM18: 0 | AN18: =IF($J18=0,0,IF($B18="SPEC",COMP!$L$76,IF($B18="FPSC",IFERROR(VLOOKUP($B18&$C18&$D18&$E18&"L",FPSC!$A$4:$U$332,13,FALSE),"no data"),IF(B18&C18="MGMAAcademic",IFERROR(VLOOKUP($B18&$C18&$D18&$E18&"L",MGMAR!$A$4:$U$332,13,FALSE),"no data"),IFERROR(VLOOKUP($B18&$C18&$D18&$E18&"L",MGMARP!$A$4:$U$332,13,FALSE),"no data"))))) -> 0 | AO18: 0 | AP18: 0 | AQ18: 0 | AR18: 0 | AS18: 0 | AT18: 0 | AU18: 0 | AV18: 0 | AW18: 0 | AX18: 0
A19: 0 | B19: FPSC | C19: Academic | D19: All | E19: =IF($B19="MGMA",COMP!$D$67,IF($B19="FPSC",COMP!$D$66,IF($B19="SPEC",COMP!$K$77,"no data"))) -> [select] | F19: AAMC | G19: Academic | H19: All | I19: =IF($F19="AAMC",COMP!$D$64,IF($F19="MGMA",COMP!$D$67,IF($F19="SPEC",COMP!$K$70,"no data"))) -> [select] | V19: 0 | AA19: 0 | AB19: 0 | AC19: =IF($F19="SPEC",COMP!K$69/1000,IFERROR(VLOOKUP($F19&$G19&$H19&$M19&COMP!$D$65&$I19&"L",AAMC!$A$4:$W$15377,10,FALSE)/1000,IFERROR(VLOOKUP($F19&$G19&$H19&$M19&COMP!$D$65&$I19&"L",MGMAC!$A$4:$W$15377,10,FALSE)/1000,IFERROR(VLOOKUP($F19&$G19&$H19&$M19&COMP!$D$65&$I19&"L",MGMACP!$A$4:$W$15377,10,FALSE)/1000,"no data")))) -> no data | AD19: =IF($F19="SPEC",COMP!L$69/1000,IFERROR(VLOOKUP($F19&$G19&$H19&$M19&COMP!$D$65&$I19&"L",AAMC!$A$4:$W$15377,15,FALSE)/1000,IFERROR(VLOOKUP($F19&$G19&$H19&$M19&COMP!$D$65&$I19&"L",MGMAC!$A$4:$W$15377,15,FALSE)/1000,IFERROR(VLOOKUP($F19&$G19&$H19&$M19&COMP!$D$65&$I19&"L",MGMACP!$A$4:$W$15377,15,FALSE)/1000,"no data")))) -> no data | AE19: =IF($F19="SPEC",COMP!M$69/1000,IFERROR(VLOOKUP($F19&$G19&$H19&$M19&COMP!$D$65&$I19&"L",AAMC!$A$4:$W$15377,20,FALSE)/1000,IFERROR(VLOOKUP($F19&$G19&$H19&$M19&COMP!$D$65&$I19&"L",MGMAC!$A$4:$W$15377,20,FALSE)/1000,IFERROR(VLOOKUP($F19&$G19&$H19&$M19&COMP!$D$65&$I19&"L",MGMACP!$A$4:$W$15377,20,FALSE)/1000,"no data")))) -> no data | AL19: 3 | AM19: 0 | AN19: =IF($J19=0,0,IF($B19="SPEC",COMP!$L$76,IF($B19="FPSC",IFERROR(VLOOKUP($B19&$C19&$D19&$E19&"L",FPSC!$A$4:$U$332,13,FALSE),"no data"),IF(B19&C19="MGMAAcademic",IFERROR(VLOOKUP($B19&$C19&$D19&$E19&"L",MGMAR!$A$4:$U$332,13,FALSE),"no data"),IFERROR(VLOOKUP($B19&$C19&$D19&$E19&"L",MGMARP!$A$4:$U$332,13,FALSE),"no data"))))) -> 0 | AO19: 0 | AP19: 0 | AQ19: 0 | AR19: 0 | AS19: 0 | AT19: 0 | AU19: 0 | AV19: 0 | AW19: 0 | AX19: 0
A20: 0 | B20: FPSC | C20: Academic | D20: All | E20: =IF($B20="MGMA",COMP!$D$67,IF($B20="FPSC",COMP!$D$66,IF($B20="SPEC",COMP!$K$77,"no data"))) -> [select] | F20: AAMC | G20: Academic | H20: All | I20: =IF($F20="AAMC",COMP!$D$64,IF($F20="MGMA",COMP!$D$67,IF($F20="SPEC",COMP!$K$70,"no data"))) -> [select] | V20: 0 | AA20: 0 | AB20: 0 | AC20: =IF($F20="SPEC",COMP!K$69/1000,IFERROR(VLOOKUP($F20&$G20&$H20&$M20&COMP!$D$65&$I20&"L",AAMC!$A$4:$W$15377,10,FALSE)/1000,IFERROR(VLOOKUP($F20&$G20&$H20&$M20&COMP!$D$65&$I20&"L",MGMAC!$A$4:$W$15377,10,FALSE)/1000,IFERROR(VLOOKUP($F20&$G20&$H20&$M20&COMP!$D$65&$I20&"L",MGMACP!$A$4:$W$15377,10,FALSE)/1000,"no data")))) -> no data | AD20: =IF($F20="SPEC",COMP!L$69/1000,IFERROR(VLOOKUP($F20&$G20&$H20&$M20&COMP!$D$65&$I20&"L",AAMC!$A$4:$W$15377,15,FALSE)/1000,IFERROR(VLOOKUP($F20&$G20&$H20&$M20&COMP!$D$65&$I20&"L",MGMAC!$A$4:$W$15377,15,FALSE)/1000,IFERROR(VLOOKUP($F20&$G20&$H20&$M20&COMP!$D$65&$I20&"L",MGMACP!$A$4:$W$15377,15,FALSE)/1000,"no data")))) -> no data | AE20: =IF($F20="SPEC",COMP!M$69/1000,IFERROR(VLOOKUP($F20&$G20&$H20&$M20&COMP!$D$65&$I20&"L",AAMC!$A$4:$W$15377,20,FALSE)/1000,IFERROR(VLOOKUP($F20&$G20&$H20&$M20&COMP!$D$65&$I20&"L",MGMAC!$A$4:$W$15377,20,FALSE)/1000,IFERROR(VLOOKUP($F20&$G20&$H20&$M20&COMP!$D$65&$I20&"L",MGMACP!$A$4:$W$15377,20,FALSE)/1000,"no data")))) -> no data | AL20: 3 | AM20: 0 | AN20: =IF($J20=0,0,IF($B20="SPEC",COMP!$L$76,IF($B20="FPSC",IFERROR(VLOOKUP($B20&$C20&$D20&$E20&"L",FPSC!$A$4:$U$332,13,FALSE),"no data"),IF(B20&C20="MGMAAcademic",IFERROR(VLOOKUP($B20&$C20&$D20&$E20&"L",MGMAR!$A$4:$U$332,13,FALSE),"no data"),IFERROR(VLOOKUP($B20&$C20&$D20&$E20&"L",MGMARP!$A$4:$U$332,13,FALSE),"no data"))))) -> 0 | AO20: 0 | AP20: 0 | AQ20: 0 | AR20: 0 | AS20: 0 | AT20: 0 | AU20: 0 | AV20: 0 | AW20: 0 | AX20: 0
A21: 0 | B21: FPSC | C21: Academic | D21: All | E21: =IF($B21="MGMA",COMP!$D$67,IF($B21="FPSC",COMP!$D$66,IF($B21="SPEC",COMP!$K$77,"no data"))) -> [select] | F21: AAMC | G21: Academic | H21: All | I21: =IF($F21="AAMC",COMP!$D$64,IF($F21="MGMA",COMP!$D$67,IF($F21="SPEC",COMP!$K$70,"no data"))) -> [select] | V21: 0 | AA21: 0 | AB21: 0 | AC21: =IF($F21="SPEC",COMP!K$69/1000,IFERROR(VLOOKUP($F21&$G21&$H21&$M21&COMP!$D$65&$I21&"L",AAMC!$A$4:$W$15377,10,FALSE)/1000,IFERROR(VLOOKUP($F21&$G21&$H21&$M21&COMP!$D$65&$I21&"L",MGMAC!$A$4:$W$15377,10,FALSE)/1000,IFERROR(VLOOKUP($F21&$G21&$H21&$M21&COMP!$D$65&$I21&"L",MGMACP!$A$4:$W$15377,10,FALSE)/1000,"no data")))) -> no data | AD21: =IF($F21="SPEC",COMP!L$69/1000,IFERROR(VLOOKUP($F21&$G21&$H21&$M21&COMP!$D$65&$I21&"L",AAMC!$A$4:$W$15377,15,FALSE)/1000,IFERROR(VLOOKUP($F21&$G21&$H21&$M21&COMP!$D$65&$I21&"L",MGMAC!$A$4:$W$15377,15,FALSE)/1000,IFERROR(VLOOKUP($F21&$G21&$H21&$M21&COMP!$D$65&$I21&"L",MGMACP!$A$4:$W$15377,15,FALSE)/1000,"no data")))) -> no data | AE21: =IF($F21="SPEC",COMP!M$69/1000,IFERROR(VLOOKUP($F21&$G21&$H21&$M21&COMP!$D$65&$I21&"L",AAMC!$A$4:$W$15377,20,FALSE)/1000,IFERROR(VLOOKUP($F21&$G21&$H21&$M21&COMP!$D$65&$I21&"L",MGMAC!$A$4:$W$15377,20,FALSE)/1000,IFERROR(VLOOKUP($F21&$G21&$H21&$M21&COMP!$D$65&$I21&"L",MGMACP!$A$4:$W$15377,20,FALSE)/1000,"no data")))) -> no data | AL21: 3 | AM21: 0 | AN21: =IF($J21=0,0,IF($B21="SPEC",COMP!$L$76,IF($B21="FPSC",IFERROR(VLOOKUP($B21&$C21&$D21&$E21&"L",FPSC!$A$4:$U$332,13,FALSE),"no data"),IF(B21&C21="MGMAAcademic",IFERROR(VLOOKUP($B21&$C21&$D21&$E21&"L",MGMAR!$A$4:$U$332,13,FALSE),"no data"),IFERROR(VLOOKUP($B21&$C21&$D21&$E21&"L",MGMARP!$A$4:$U$332,13,FALSE),"no data"))))) -> 0 | AO21: 0 | AP21: 0 | AQ21: 0 | AR21: 0 | AS21: 0 | AT21: 0 | AU21: 0 | AV21: 0 | AW21: 0 | AX21: 0
A22: 0 | B22: FPSC | C22: Academic | D22: All | E22: =IF($B22="MGMA",COMP!$D$67,IF($B22="FPSC",COMP!$D$66,IF($B22="SPEC",COMP!$K$77,"no data"))) -> [select] | F22: AAMC | G22: Academic | H22: All | I22: =IF($F22="AAMC",COMP!$D$64,IF($F22="MGMA",COMP!$D$67,IF($F22="SPEC",COMP!$K$70,"no data"))) -> [select] | V22: 0 | AA22: 0 | AB22: 0 | AC22: =IF($F22="SPEC",COMP!K$69/1000,IFERROR(VLOOKUP($F22&$G22&$H22&$M22&COMP!$D$65&$I22&"L",AAMC!$A$4:$W$15377,10,FALSE)/1000,IFERROR(VLOOKUP($F22&$G22&$H22&$M22&COMP!$D$65&$I22&"L",MGMAC!$A$4:$W$15377,10,FALSE)/1000,IFERROR(VLOOKUP($F22&$G22&$H22&$M22&COMP!$D$65&$I22&"L",MGMACP!$A$4:$W$15377,10,FALSE)/1000,"no data")))) -> no data | AD22: =IF($F22="SPEC",COMP!L$69/1000,IFERROR(VLOOKUP($F22&$G22&$H22&$M22&COMP!$D$65&$I22&"L",AAMC!$A$4:$W$15377,15,FALSE)/1000,IFERROR(VLOOKUP($F22&$G22&$H22&$M22&COMP!$D$65&$I22&"L",MGMAC!$A$4:$W$15377,15,FALSE)/1000,IFERROR(VLOOKUP($F22&$G22&$H22&$M22&COMP!$D$65&$I22&"L",MGMACP!$A$4:$W$15377,15,FALSE)/1000,"no data")))) -> no data | AE22: =IF($F22="SPEC",COMP!M$69/1000,IFERROR(VLOOKUP($F22&$G22&$H22&$M22&COMP!$D$65&$I22&"L",AAMC!$A$4:$W$15377,20,FALSE)/1000,IFERROR(VLOOKUP($F22&$G22&$H22&$M22&COMP!$D$65&$I22&"L",MGMAC!$A$4:$W$15377,20,FALSE)/1000,IFERROR(VLOOKUP($F22&$G22&$H22&$M22&COMP!$D$65&$I22&"L",MGMACP!$A$4:$W$15377,20,FALSE)/1000,"no data")))) -> no data | AL22: 3 | AM22: 0 | AN22: =IF($J22=0,0,IF($B22="SPEC",COMP!$L$76,IF($B22="FPSC",IFERROR(VLOOKUP($B22&$C22&$D22&$E22&"L",FPSC!$A$4:$U$332,13,FALSE),"no data"),IF(B22&C22="MGMAAcademic",IFERROR(VLOOKUP($B22&$C22&$D22&$E22&"L",MGMAR!$A$4:$U$332,13,FALSE),"no data"),IFERROR(VLOOKUP($B22&$C22&$D22&$E22&"L",MGMARP!$A$4:$U$332,13,FALSE),"no data"))))) -> 0 | AO22: 0 | AP22: 0 | AQ22: 0 | AR22: 0 | AS22: 0 | AT22: 0 | AU22: 0 | AV22: 0 | AW22: 0 | AX22: 0
A23: 0 | B23: FPSC | C23: Academic | D23: All | E23: =IF($B23="MGMA",COMP!$D$67,IF($B23="FPSC",COMP!$D$66,IF($B23="SPEC",COMP!$K$77,"no data"))) -> [select] | F23: AAMC | G23: Academic | H23: All | I23: =IF($F23="AAMC",COMP!$D$64,IF($F23="MGMA",COMP!$D$67,IF($F23="SPEC",COMP!$K$70,"no data"))) -> [select] | V23: 0 | AA23: 0 | AB23: 0 | AC23: =IF($F23="SPEC",COMP!K$69/1000,IFERROR(VLOOKUP($F23&$G23&$H23&$M23&COMP!$D$65&$I23&"L",AAMC!$A$4:$W$15377,10,FALSE)/1000,IFERROR(VLOOKUP($F23&$G23&$H23&$M23&COMP!$D$65&$I23&"L",MGMAC!$A$4:$W$15377,10,FALSE)/1000,IFERROR(VLOOKUP($F23&$G23&$H23&$M23&COMP!$D$65&$I23&"L",MGMACP!$A$4:$W$15377,10,FALSE)/1000,"no data")))) -> no data | AD23: =IF($F23="SPEC",COMP!L$69/1000,IFERROR(VLOOKUP($F23&$G23&$H23&$M23&COMP!$D$65&$I23&"L",AAMC!$A$4:$W$15377,15,FALSE)/1000,IFERROR(VLOOKUP($F23&$G23&$H23&$M23&COMP!$D$65&$I23&"L",MGMAC!$A$4:$W$15377,15,FALSE)/1000,IFERROR(VLOOKUP($F23&$G23&$H23&$M23&COMP!$D$65&$I23&"L",MGMACP!$A$4:$W$15377,15,FALSE)/1000,"no data")))) -> no data | AE23: =IF($F23="SPEC",COMP!M$69/1000,IFERROR(VLOOKUP($F23&$G23&$H23&$M23&COMP!$D$65&$I23&"L",AAMC!$A$4:$W$15377,20,FALSE)/1000,IFERROR(VLOOKUP($F23&$G23&$H23&$M23&COMP!$D$65&$I23&"L",MGMAC!$A$4:$W$15377,20,FALSE)/1000,IFERROR(VLOOKUP($F23&$G23&$H23&$M23&COMP!$D$65&$I23&"L",MGMACP!$A$4:$W$15377,20,FALSE)/1000,"no data")))) -> no data | AL23: 3 | AM23: 0 | AN23: =IF($J23=0,0,IF($B23="SPEC",COMP!$L$76,IF($B23="FPSC",IFERROR(VLOOKUP($B23&$C23&$D23&$E23&"L",FPSC!$A$4:$U$332,13,FALSE),"no data"),IF(B23&C23="MGMAAcademic",IFERROR(VLOOKUP($B23&$C23&$D23&$E23&"L",MGMAR!$A$4:$U$332,13,FALSE),"no data"),IFERROR(VLOOKUP($B23&$C23&$D23&$E23&"L",MGMARP!$A$4:$U$332,13,FALSE),"no data"))))) -> 0 | AO23: 0 | AP23: 0 | AQ23: 0 | AR23: 0 | AS23: 0 | AT23: 0 | AU23: 0 | AV23: 0 | AW23: 0 | AX23: 0
A24: 0 | B24: FPSC | C24: Academic | D24: All | E24: =IF($B24="MGMA",COMP!$D$67,IF($B24="FPSC",COMP!$D$66,IF($B24="SPEC",COMP!$K$77,"no data"))) -> [select] | F24: AAMC | G24: Academic | H24: All | I24: =IF($F24="AAMC",COMP!$D$64,IF($F24="MGMA",COMP!$D$67,IF($F24="SPEC",COMP!$K$70,"no data"))) -> [select] | V24: 0 | AA24: 0 | AB24: 0 | AC24: =IF($F24="SPEC",COMP!K$69/1000,IFERROR(VLOOKUP($F24&$G24&$H24&$M24&COMP!$D$65&$I24&"L",AAMC!$A$4:$W$15377,10,FALSE)/1000,IFERROR(VLOOKUP($F24&$G24&$H24&$M24&COMP!$D$65&$I24&"L",MGMAC!$A$4:$W$15377,10,FALSE)/1000,IFERROR(VLOOKUP($F24&$G24&$H24&$M24&COMP!$D$65&$I24&"L",MGMACP!$A$4:$W$15377,10,FALSE)/1000,"no data")))) -> no data | AD24: =IF($F24="SPEC",COMP!L$69/1000,IFERROR(VLOOKUP($F24&$G24&$H24&$M24&COMP!$D$65&$I24&"L",AAMC!$A$4:$W$15377,15,FALSE)/1000,IFERROR(VLOOKUP($F24&$G24&$H24&$M24&COMP!$D$65&$I24&"L",MGMAC!$A$4:$W$15377,15,FALSE)/1000,IFERROR(VLOOKUP($F24&$G24&$H24&$M24&COMP!$D$65&$I24&"L",MGMACP!$A$4:$W$15377,15,FALSE)/1000,"no data")))) -> no data | AE24: =IF($F24="SPEC",COMP!M$69/1000,IFERROR(VLOOKUP($F24&$G24&$H24&$M24&COMP!$D$65&$I24&"L",AAMC!$A$4:$W$15377,20,FALSE)/1000,IFERROR(VLOOKUP($F24&$G24&$H24&$M24&COMP!$D$65&$I24&"L",MGMAC!$A$4:$W$15377,20,FALSE)/1000,IFERROR(VLOOKUP($F24&$G24&$H24&$M24&COMP!$D$65&$I24&"L",MGMACP!$A$4:$W$15377,20,FALSE)/1000,"no data")))) -> no data | AL24: 3 | AM24: 0 | AN24: =IF($J24=0,0,IF($B24="SPEC",COMP!$L$76,IF($B24="FPSC",IFERROR(VLOOKUP($B24&$C24&$D24&$E24&"L",FPSC!$A$4:$U$332,13,FALSE),"no data"),IF(B24&C24="MGMAAcademic",IFERROR(VLOOKUP($B24&$C24&$D24&$E24&"L",MGMAR!$A$4:$U$332,13,FALSE),"no data"),IFERROR(VLOOKUP($B24&$C24&$D24&$E24&"L",MGMARP!$A$4:$U$332,13,FALSE),"no data"))))) -> 0 | AO24: 0 | AP24: 0 | AQ24: 0 | AR24: 0 | AS24: 0 | AT24: 0 | AU24: 0 | AV24: 0 | AW24: 0 | AX24: 0
A25: 0 | B25: FPSC | C25: Academic | D25: All | E25: =IF($B25="MGMA",COMP!$D$67,IF($B25="FPSC",COMP!$D$66,IF($B25="SPEC",COMP!$K$77,"no data"))) -> [select] | F25: AAMC | G25: Academic | H25: All | I25: =IF($F25="AAMC",COMP!$D$64,IF($F25="MGMA",COMP!$D$67,IF($F25="SPEC",COMP!$K$70,"no data"))) -> [select] | V25: 0 | AA25: 0 | AB25: 0 | AC25: =IF($F25="SPEC",COMP!K$69/1000,IFERROR(VLOOKUP($F25&$G25&$H25&$M25&COMP!$D$65&$I25&"L",AAMC!$A$4:$W$15377,10,FALSE)/1000,IFERROR(VLOOKUP($F25&$G25&$H25&$M25&COMP!$D$65&$I25&"L",MGMAC!$A$4:$W$15377,10,FALSE)/1000,IFERROR(VLOOKUP($F25&$G25&$H25&$M25&COMP!$D$65&$I25&"L",MGMACP!$A$4:$W$15377,10,FALSE)/1000,"no data")))) -> no data | AD25: =IF($F25="SPEC",COMP!L$69/1000,IFERROR(VLOOKUP($F25&$G25&$H25&$M25&COMP!$D$65&$I25&"L",AAMC!$A$4:$W$15377,15,FALSE)/1000,IFERROR(VLOOKUP($F25&$G25&$H25&$M25&COMP!$D$65&$I25&"L",MGMAC!$A$4:$W$15377,15,FALSE)/1000,IFERROR(VLOOKUP($F25&$G25&$H25&$M25&COMP!$D$65&$I25&"L",MGMACP!$A$4:$W$15377,15,FALSE)/1000,"no data")))) -> no data | AE25: =IF($F25="SPEC",COMP!M$69/1000,IFERROR(VLOOKUP($F25&$G25&$H25&$M25&COMP!$D$65&$I25&"L",AAMC!$A$4:$W$15377,20,FALSE)/1000,IFERROR(VLOOKUP($F25&$G25&$H25&$M25&COMP!$D$65&$I25&"L",MGMAC!$A$4:$W$15377,20,FALSE)/1000,IFERROR(VLOOKUP($F25&$G25&$H25&$M25&COMP!$D$65&$I25&"L",MGMACP!$A$4:$W$15377,20,FALSE)/1000,"no data")))) -> no data | AL25: 3 | AM25: 0 | AN25: =IF($J25=0,0,IF($B25="SPEC",COMP!$L$76,IF($B25="FPSC",IFERROR(VLOOKUP($B25&$C25&$D25&$E25&"L",FPSC!$A$4:$U$332,13,FALSE),"no data"),IF(B25&C25="MGMAAcademic",IFERROR(VLOOKUP($B25&$C25&$D25&$E25&"L",MGMAR!$A$4:$U$332,13,FALSE),"no data"),IFERROR(VLOOKUP($B25&$C25&$D25&$E25&"L",MGMARP!$A$4:$U$332,13,FALSE),"no data"))))) -> 0 | AO25: 0 | AP25: 0 | AQ25: 0 | AR25: 0 | AS25: 0 | AT25: 0 | AU25: 0 | AV25: 0 | AW25: 0 | AX25: 0
A26: 0 | B26: FPSC | C26: Academic | D26: All | E26: =IF($B26="MGMA",COMP!$D$67,IF($B26="FPSC",COMP!$D$66,IF($B26="SPEC",COMP!$K$77,"no data"))) -> [select] | F26: AAMC | G26: Academic | H26: All | I26: =IF($F26="AAMC",COMP!$D$64,IF($F26="MGMA",COMP!$D$67,IF($F26="SPEC",COMP!$K$70,"no data"))) -> [select] | V26: 0 | AA26: 0 | AB26: 0 | AC26: =IF($F26="SPEC",COMP!K$69/1000,IFERROR(VLOOKUP($F26&$G26&$H26&$M26&COMP!$D$65&$I26&"L",AAMC!$A$4:$W$15377,10,FALSE)/1000,IFERROR(VLOOKUP($F26&$G26&$H26&$M26&COMP!$D$65&$I26&"L",MGMAC!$A$4:$W$15377,10,FALSE)/1000,IFERROR(VLOOKUP($F26&$G26&$H26&$M26&COMP!$D$65&$I26&"L",MGMACP!$A$4:$W$15377,10,FALSE)/1000,"no data")))) -> no data | AD26: =IF($F26="SPEC",COMP!L$69/1000,IFERROR(VLOOKUP($F26&$G26&$H26&$M26&COMP!$D$65&$I26&"L",AAMC!$A$4:$W$15377,15,FALSE)/1000,IFERROR(VLOOKUP($F26&$G26&$H26&$M26&COMP!$D$65&$I26&"L",MGMAC!$A$4:$W$15377,15,FALSE)/1000,IFERROR(VLOOKUP($F26&$G26&$H26&$M26&COMP!$D$65&$I26&"L",MGMACP!$A$4:$W$15377,15,FALSE)/1000,"no data")))) -> no data | AE26: =IF($F26="SPEC",COMP!M$69/1000,IFERROR(VLOOKUP($F26&$G26&$H26&$M26&COMP!$D$65&$I26&"L",AAMC!$A$4:$W$15377,20,FALSE)/1000,IFERROR(VLOOKUP($F26&$G26&$H26&$M26&COMP!$D$65&$I26&"L",MGMAC!$A$4:$W$15377,20,FALSE)/1000,IFERROR(VLOOKUP($F26&$G26&$H26&$M26&COMP!$D$65&$I26&"L",MGMACP!$A$4:$W$15377,20,FALSE)/1000,"no data")))) -> no data | AL26: 3 | AM26: 0 | AN26: =IF($J26=0,0,IF($B26="SPEC",COMP!$L$76,IF($B26="FPSC",IFERROR(VLOOKUP($B26&$C26&$D26&$E26&"L",FPSC!$A$4:$U$332,13,FALSE),"no data"),IF(B26&C26="MGMAAcademic",IFERROR(VLOOKUP($B26&$C26&$D26&$E26&"L",MGMAR!$A$4:$U$332,13,FALSE),"no data"),IFERROR(VLOOKUP($B26&$C26&$D26&$E26&"L",MGMARP!$A$4:$U$332,13,FALSE),"no data"))))) -> 0 | AO26: 0 | AP26: 0 | AQ26: 0 | AR26: 0 | AS26: 0 | AT26: 0 | AU26: 0 | AV26: 0 | AW26: 0 | AX26: 0
A27: 0 | B27: FPSC | C27: Academic | D27: All | E27: =IF($B27="MGMA",COMP!$D$67,IF($B27="FPSC",COMP!$D$66,IF($B27="SPEC",COMP!$K$77,"no data"))) -> [select] | F27: AAMC | G27: Academic | H27: All | I27: =IF($F27="AAMC",COMP!$D$64,IF($F27="MGMA",COMP!$D$67,IF($F27="SPEC",COMP!$K$70,"no data"))) -> [select] | V27: 0 | AA27: 0 | AB27: 0 | AC27: =IF($F27="SPEC",COMP!K$69/1000,IFERROR(VLOOKUP($F27&$G27&$H27&$M27&COMP!$D$65&$I27&"L",AAMC!$A$4:$W$15377,10,FALSE)/1000,IFERROR(VLOOKUP($F27&$G27&$H27&$M27&COMP!$D$65&$I27&"L",MGMAC!$A$4:$W$15377,10,FALSE)/1000,IFERROR(VLOOKUP($F27&$G27&$H27&$M27&COMP!$D$65&$I27&"L",MGMACP!$A$4:$W$15377,10,FALSE)/1000,"no data")))) -> no data | AD27: =IF($F27="SPEC",COMP!L$69/1000,IFERROR(VLOOKUP($F27&$G27&$H27&$M27&COMP!$D$65&$I27&"L",AAMC!$A$4:$W$15377,15,FALSE)/1000,IFERROR(VLOOKUP($F27&$G27&$H27&$M27&COMP!$D$65&$I27&"L",MGMAC!$A$4:$W$15377,15,FALSE)/1000,IFERROR(VLOOKUP($F27&$G27&$H27&$M27&COMP!$D$65&$I27&"L",MGMACP!$A$4:$W$15377,15,FALSE)/1000,"no data")))) -> no data | AE27: =IF($F27="SPEC",COMP!M$69/1000,IFERROR(VLOOKUP($F27&$G27&$H27&$M27&COMP!$D$65&$I27&"L",AAMC!$A$4:$W$15377,20,FALSE)/1000,IFERROR(VLOOKUP($F27&$G27&$H27&$M27&COMP!$D$65&$I27&"L",MGMAC!$A$4:$W$15377,20,FALSE)/1000,IFERROR(VLOOKUP($F27&$G27&$H27&$M27&COMP!$D$65&$I27&"L",MGMACP!$A$4:$W$15377,20,FALSE)/1000,"no data")))) -> no data | AL27: 3 | AM27: 0 | AN27: =IF($J27=0,0,IF($B27="SPEC",COMP!$L$76,IF($B27="FPSC",IFERROR(VLOOKUP($B27&$C27&$D27&$E27&"L",FPSC!$A$4:$U$332,13,FALSE),"no data"),IF(B27&C27="MGMAAcademic",IFERROR(VLOOKUP($B27&$C27&$D27&$E27&"L",MGMAR!$A$4:$U$332,13,FALSE),"no data"),IFERROR(VLOOKUP($B27&$C27&$D27&$E27&"L",MGMARP!$A$4:$U$332,13,FALSE),"no data"))))) -> 0 | AO27: 0 | AP27: 0 | AQ27: 0 | AR27: 0 | AS27: 0 | AT27: 0 | AU27: 0 | AV27: 0 | AW27: 0 | AX27: 0
A28: 0 | B28: FPSC | C28: Academic | D28: All | E28: =IF($B28="MGMA",COMP!$D$67,IF($B28="FPSC",COMP!$D$66,IF($B28="SPEC",COMP!$K$77,"no data"))) -> [select] | F28: AAMC | G28: Academic | H28: All | I28: =IF($F28="AAMC",COMP!$D$64,IF($F28="MGMA",COMP!$D$67,IF($F28="SPEC",COMP!$K$70,"no data"))) -> [select] | V28: 0 | AA28: 0 | AB28: 0 | AC28: =IF($F28="SPEC",COMP!K$69/1000,IFERROR(VLOOKUP($F28&$G28&$H28&$M28&COMP!$D$65&$I28&"L",AAMC!$A$4:$W$15377,10,FALSE)/1000,IFERROR(VLOOKUP($F28&$G28&$H28&$M28&COMP!$D$65&$I28&"L",MGMAC!$A$4:$W$15377,10,FALSE)/1000,IFERROR(VLOOKUP($F28&$G28&$H28&$M28&COMP!$D$65&$I28&"L",MGMACP!$A$4:$W$15377,10,FALSE)/1000,"no data")))) -> no data | AD28: =IF($F28="SPEC",COMP!L$69/1000,IFERROR(VLOOKUP($F28&$G28&$H28&$M28&COMP!$D$65&$I28&"L",AAMC!$A$4:$W$15377,15,FALSE)/1000,IFERROR(VLOOKUP($F28&$G28&$H28&$M28&COMP!$D$65&$I28&"L",MGMAC!$A$4:$W$15377,15,FALSE)/1000,IFERROR(VLOOKUP($F28&$G28&$H28&$M28&COMP!$D$65&$I28&"L",MGMACP!$A$4:$W$15377,15,FALSE)/1000,"no data")))) -> no data | AE28: =IF($F28="SPEC",COMP!M$69/1000,IFERROR(VLOOKUP($F28&$G28&$H28&$M28&COMP!$D$65&$I28&"L",AAMC!$A$4:$W$15377,20,FALSE)/1000,IFERROR(VLOOKUP($F28&$G28&$H28&$M28&COMP!$D$65&$I28&"L",MGMAC!$A$4:$W$15377,20,FALSE)/1000,IFERROR(VLOOKUP($F28&$G28&$H28&$M28&COMP!$D$65&$I28&"L",MGMACP!$A$4:$W$15377,20,FALSE)/1000,"no data")))) -> no data | AL28: 3 | AM28: 0 | AN28: =IF($J28=0,0,IF($B28="SPEC",COMP!$L$76,IF($B28="FPSC",IFERROR(VLOOKUP($B28&$C28&$D28&$E28&"L",FPSC!$A$4:$U$332,13,FALSE),"no data"),IF(B28&C28="MGMAAcademic",IFERROR(VLOOKUP($B28&$C28&$D28&$E28&"L",MGMAR!$A$4:$U$332,13,FALSE),"no data"),IFERROR(VLOOKUP($B28&$C28&$D28&$E28&"L",MGMARP!$A$4:$U$332,13,FALSE),"no data"))))) -> 0 | AO28: 0 | AP28: 0 | AQ28: 0 | AR28: 0 | AS28: 0 | AT28: 0 | AU28: 0 | AV28: 0 | AW28: 0 | AX28: 0
A29: 0 | B29: FPSC | C29: Academic | D29: All | E29: =IF($B29="MGMA",COMP!$D$67,IF($B29="FPSC",COMP!$D$66,IF($B29="SPEC",COMP!$K$77,"no data"))) -> [select] | F29: AAMC | G29: Academic | H29: All | I29: =IF($F29="AAMC",COMP!$D$64,IF($F29="MGMA",COMP!$D$67,IF($F29="SPEC",COMP!$K$70,"no data"))) -> [select] | V29: 0 | AA29: 0 | AB29: 0 | AC29: =IF($F29="SPEC",COMP!K$69/1000,IFERROR(VLOOKUP($F29&$G29&$H29&$M29&COMP!$D$65&$I29&"L",AAMC!$A$4:$W$15377,10,FALSE)/1000,IFERROR(VLOOKUP($F29&$G29&$H29&$M29&COMP!$D$65&$I29&"L",MGMAC!$A$4:$W$15377,10,FALSE)/1000,IFERROR(VLOOKUP($F29&$G29&$H29&$M29&COMP!$D$65&$I29&"L",MGMACP!$A$4:$W$15377,10,FALSE)/1000,"no data")))) -> no data | AD29: =IF($F29="SPEC",COMP!L$69/1000,IFERROR(VLOOKUP($F29&$G29&$H29&$M29&COMP!$D$65&$I29&"L",AAMC!$A$4:$W$15377,15,FALSE)/1000,IFERROR(VLOOKUP($F29&$G29&$H29&$M29&COMP!$D$65&$I29&"L",MGMAC!$A$4:$W$15377,15,FALSE)/1000,IFERROR(VLOOKUP($F29&$G29&$H29&$M29&COMP!$D$65&$I29&"L",MGMACP!$A$4:$W$15377,15,FALSE)/1000,"no data")))) -> no data | AE29: =IF($F29="SPEC",COMP!M$69/1000,IFERROR(VLOOKUP($F29&$G29&$H29&$M29&COMP!$D$65&$I29&"L",AAMC!$A$4:$W$15377,20,FALSE)/1000,IFERROR(VLOOKUP($F29&$G29&$H29&$M29&COMP!$D$65&$I29&"L",MGMAC!$A$4:$W$15377,20,FALSE)/1000,IFERROR(VLOOKUP($F29&$G29&$H29&$M29&COMP!$D$65&$I29&"L",MGMACP!$A$4:$W$15377,20,FALSE)/1000,"no data")))) -> no data | AL29: 3 | AM29: 0 | AN29: =IF($J29=0,0,IF($B29="SPEC",COMP!$L$76,IF($B29="FPSC",IFERROR(VLOOKUP($B29&$C29&$D29&$E29&"L",FPSC!$A$4:$U$332,13,FALSE),"no data"),IF(B29&C29="MGMAAcademic",IFERROR(VLOOKUP($B29&$C29&$D29&$E29&"L",MGMAR!$A$4:$U$332,13,FALSE),"no data"),IFERROR(VLOOKUP($B29&$C29&$D29&$E29&"L",MGMARP!$A$4:$U$332,13,FALSE),"no data"))))) -> 0 | AO29: 0 | AP29: 0 | AQ29: 0 | AR29: 0 | AS29: 0 | AT29: 0 | AU29: 0 | AV29: 0 | AW29: 0 | AX29: 0
A30: 0 | B30: FPSC | C30: Academic | D30: All | E30: =IF($B30="MGMA",COMP!$D$67,IF($B30="FPSC",COMP!$D$66,IF($B30="SPEC",COMP!$K$77,"no data"))) -> [select] | F30: AAMC | G30: Academic | H30: All | I30: =IF($F30="AAMC",COMP!$D$64,IF($F30="MGMA",COMP!$D$67,IF($F30="SPEC",COMP!$K$70,"no data"))) -> [select] | V30: 0 | AA30: 0 | AB30: 0 | AC30: =IF($F30="SPEC",COMP!K$69/1000,IFERROR(VLOOKUP($F30&$G30&$H30&$M30&COMP!$D$65&$I30&"L",AAMC!$A$4:$W$15377,10,FALSE)/1000,IFERROR(VLOOKUP($F30&$G30&$H30&$M30&COMP!$D$65&$I30&"L",MGMAC!$A$4:$W$15377,10,FALSE)/1000,IFERROR(VLOOKUP($F30&$G30&$H30&$M30&COMP!$D$65&$I30&"L",MGMACP!$A$4:$W$15377,10,FALSE)/1000,"no data")))) -> no data | AD30: =IF($F30="SPEC",COMP!L$69/1000,IFERROR(VLOOKUP($F30&$G30&$H30&$M30&COMP!$D$65&$I30&"L",AAMC!$A$4:$W$15377,15,FALSE)/1000,IFERROR(VLOOKUP($F30&$G30&$H30&$M30&COMP!$D$65&$I30&"L",MGMAC!$A$4:$W$15377,15,FALSE)/1000,IFERROR(VLOOKUP($F30&$G30&$H30&$M30&COMP!$D$65&$I30&"L",MGMACP!$A$4:$W$15377,15,FALSE)/1000,"no data")))) -> no data | AE30: =IF($F30="SPEC",COMP!M$69/1000,IFERROR(VLOOKUP($F30&$G30&$H30&$M30&COMP!$D$65&$I30&"L",AAMC!$A$4:$W$15377,20,FALSE)/1000,IFERROR(VLOOKUP($F30&$G30&$H30&$M30&COMP!$D$65&$I30&"L",MGMAC!$A$4:$W$15377,20,FALSE)/1000,IFERROR(VLOOKUP($F30&$G30&$H30&$M30&COMP!$D$65&$I30&"L",MGMACP!$A$4:$W$15377,20,FALSE)/1000,"no data")))) -> no data | AL30: 3 | AM30: 0 | AN30: =IF($J30=0,0,IF($B30="SPEC",COMP!$L$76,IF($B30="FPSC",IFERROR(VLOOKUP($B30&$C30&$D30&$E30&"L",FPSC!$A$4:$U$332,13,FALSE),"no data"),IF(B30&C30="MGMAAcademic",IFERROR(VLOOKUP($B30&$C30&$D30&$E30&"L",MGMAR!$A$4:$U$332,13,FALSE),"no data"),IFERROR(VLOOKUP($B30&$C30&$D30&$E30&"L",MGMARP!$A$4:$U$332,13,FALSE),"no data"))))) -> 0 | AO30: 0 | AP30: 0 | AQ30: 0 | AR30: 0 | AS30: 0 | AT30: 0 | AU30: 0 | AV30: 0 | AW30: 0 | AX30: 0
A31: 0 | B31: FPSC | C31: Academic | D31: All | E31: =IF($B31="MGMA",COMP!$D$67,IF($B31="FPSC",COMP!$D$66,IF($B31="SPEC",COMP!$K$77,"no data"))) -> [select] | F31: AAMC | G31: Academic | H31: All | I31: =IF($F31="AAMC",COMP!$D$64,IF($F31="MGMA",COMP!$D$67,IF($F31="SPEC",COMP!$K$70,"no data"))) -> [select] | V31: 0 | AA31: 0 | AB31: 0 | AC31: =IF($F31="SPEC",COMP!K$69/1000,IFERROR(VLOOKUP($F31&$G31&$H31&$M31&COMP!$D$65&$I31&"L",AAMC!$A$4:$W$15377,10,FALSE)/1000,IFERROR(VLOOKUP($F31&$G31&$H31&$M31&COMP!$D$65&$I31&"L",MGMAC!$A$4:$W$15377,10,FALSE)/1000,IFERROR(VLOOKUP($F31&$G31&$H31&$M31&COMP!$D$65&$I31&"L",MGMACP!$A$4:$W$15377,10,FALSE)/1000,"no data")))) -> no data | AD31: =IF($F31="SPEC",COMP!L$69/1000,IFERROR(VLOOKUP($F31&$G31&$H31&$M31&COMP!$D$65&$I31&"L",AAMC!$A$4:$W$15377,15,FALSE)/1000,IFERROR(VLOOKUP($F31&$G31&$H31&$M31&COMP!$D$65&$I31&"L",MGMAC!$A$4:$W$15377,15,FALSE)/1000,IFERROR(VLOOKUP($F31&$G31&$H31&$M31&COMP!$D$65&$I31&"L",MGMACP!$A$4:$W$15377,15,FALSE)/1000,"no data")))) -> no data | AE31: =IF($F31="SPEC",COMP!M$69/1000,IFERROR(VLOOKUP($F31&$G31&$H31&$M31&COMP!$D$65&$I31&"L",AAMC!$A$4:$W$15377,20,FALSE)/1000,IFERROR(VLOOKUP($F31&$G31&$H31&$M31&COMP!$D$65&$I31&"L",MGMAC!$A$4:$W$15377,20,FALSE)/1000,IFERROR(VLOOKUP($F31&$G31&$H31&$M31&COMP!$D$65&$I31&"L",MGMACP!$A$4:$W$15377,20,FALSE)/1000,"no data")))) -> no data | AL31: 3 | AM31: 0 | AN31: =IF($J31=0,0,IF($B31="SPEC",COMP!$L$76,IF($B31="FPSC",IFERROR(VLOOKUP($B31&$C31&$D31&$E31&"L",FPSC!$A$4:$U$332,13,FALSE),"no data"),IF(B31&C31="MGMAAcademic",IFERROR(VLOOKUP($B31&$C31&$D31&$E31&"L",MGMAR!$A$4:$U$332,13,FALSE),"no data"),IFERROR(VLOOKUP($B31&$C31&$D31&$E31&"L",MGMARP!$A$4:$U$332,13,FALSE),"no data"))))) -> 0 | AO31: 0 | AP31: 0 | AQ31: 0 | AR31: 0 | AS31: 0 | AT31: 0 | AU31: 0 | AV31: 0 | AW31: 0 | AX31: 0
A32: 0 | B32: FPSC | C32: Academic | D32: All | E32: =IF($B32="MGMA",COMP!$D$67,IF($B32="FPSC",COMP!$D$66,IF($B32="SPEC",COMP!$K$77,"no data"))) -> [select] | F32: AAMC | G32: Academic | H32: All | I32: =IF($F32="AAMC",COMP!$D$64,IF($F32="MGMA",COMP!$D$67,IF($F32="SPEC",COMP!$K$70,"no data"))) -> [select] | V32: 0 | AA32: 0 | AB32: 0 | AC32: =IF($F32="SPEC",COMP!K$69/1000,IFERROR(VLOOKUP($F32&$G32&$H32&$M32&COMP!$D$65&$I32&"L",AAMC!$A$4:$W$15377,10,FALSE)/1000,IFERROR(VLOOKUP($F32&$G32&$H32&$M32&COMP!$D$65&$I32&"L",MGMAC!$A$4:$W$15377,10,FALSE)/1000,IFERROR(VLOOKUP($F32&$G32&$H32&$M32&COMP!$D$65&$I32&"L",MGMACP!$A$4:$W$15377,10,FALSE)/1000,"no data")))) -> no data | AD32: =IF($F32="SPEC",COMP!L$69/1000,IFERROR(VLOOKUP($F32&$G32&$H32&$M32&COMP!$D$65&$I32&"L",AAMC!$A$4:$W$15377,15,FALSE)/1000,IFERROR(VLOOKUP($F32&$G32&$H32&$M32&COMP!$D$65&$I32&"L",MGMAC!$A$4:$W$15377,15,FALSE)/1000,IFERROR(VLOOKUP($F32&$G32&$H32&$M32&COMP!$D$65&$I32&"L",MGMACP!$A$4:$W$15377,15,FALSE)/1000,"no data")))) -> no data | AE32: =IF($F32="SPEC",COMP!M$69/1000,IFERROR(VLOOKUP($F32&$G32&$H32&$M32&COMP!$D$65&$I32&"L",AAMC!$A$4:$W$15377,20,FALSE)/1000,IFERROR(VLOOKUP($F32&$G32&$H32&$M32&COMP!$D$65&$I32&"L",MGMAC!$A$4:$W$15377,20,FALSE)/1000,IFERROR(VLOOKUP($F32&$G32&$H32&$M32&COMP!$D$65&$I32&"L",MGMACP!$A$4:$W$15377,20,FALSE)/1000,"no data")))) -> no data | AL32: 3 | AM32: 0 | AN32: =IF($J32=0,0,IF($B32="SPEC",COMP!$L$76,IF($B32="FPSC",IFERROR(VLOOKUP($B32&$C32&$D32&$E32&"L",FPSC!$A$4:$U$332,13,FALSE),"no data"),IF(B32&C32="MGMAAcademic",IFERROR(VLOOKUP($B32&$C32&$D32&$E32&"L",MGMAR!$A$4:$U$332,13,FALSE),"no data"),IFERROR(VLOOKUP($B32&$C32&$D32&$E32&"L",MGMARP!$A$4:$U$332,13,FALSE),"no data"))))) -> 0 | AO32: 0 | AP32: 0 | AQ32: 0 | AR32: 0 | AS32: 0 | AT32: 0 | AU32: 0 | AV32: 0 | AW32: 0 | AX32: 0
A33: 0 | B33: FPSC | C33: Academic | D33: All | E33: =IF($B33="MGMA",COMP!$D$67,IF($B33="FPSC",COMP!$D$66,IF($B33="SPEC",COMP!$K$77,"no data"))) -> [select] | F33: AAMC | G33: Academic | H33: All | I33: =IF($F33="AAMC",COMP!$D$64,IF($F33="MGMA",COMP!$D$67,IF($F33="SPEC",COMP!$K$70,"no data"))) -> [select] | V33: 0 | AA33: 0 | AB33: 0 | AC33: =IF($F33="SPEC",COMP!K$69/1000,IFERROR(VLOOKUP($F33&$G33&$H33&$M33&COMP!$D$65&$I33&"L",AAMC!$A$4:$W$15377,10,FALSE)/1000,IFERROR(VLOOKUP($F33&$G33&$H33&$M33&COMP!$D$65&$I33&"L",MGMAC!$A$4:$W$15377,10,FALSE)/1000,IFERROR(VLOOKUP($F33&$G33&$H33&$M33&COMP!$D$65&$I33&"L",MGMACP!$A$4:$W$15377,10,FALSE)/1000,"no data")))) -> no data | AD33: =IF($F33="SPEC",COMP!L$69/1000,IFERROR(VLOOKUP($F33&$G33&$H33&$M33&COMP!$D$65&$I33&"L",AAMC!$A$4:$W$15377,15,FALSE)/1000,IFERROR(VLOOKUP($F33&$G33&$H33&$M33&COMP!$D$65&$I33&"L",MGMAC!$A$4:$W$15377,15,FALSE)/1000,IFERROR(VLOOKUP($F33&$G33&$H33&$M33&COMP!$D$65&$I33&"L",MGMACP!$A$4:$W$15377,15,FALSE)/1000,"no data")))) -> no data | AE33: =IF($F33="SPEC",COMP!M$69/1000,IFERROR(VLOOKUP($F33&$G33&$H33&$M33&COMP!$D$65&$I33&"L",AAMC!$A$4:$W$15377,20,FALSE)/1000,IFERROR(VLOOKUP($F33&$G33&$H33&$M33&COMP!$D$65&$I33&"L",MGMAC!$A$4:$W$15377,20,FALSE)/1000,IFERROR(VLOOKUP($F33&$G33&$H33&$M33&COMP!$D$65&$I33&"L",MGMACP!$A$4:$W$15377,20,FALSE)/1000,"no data")))) -> no data | AL33: 3 | AM33: 0 | AN33: =IF($J33=0,0,IF($B33="SPEC",COMP!$L$76,IF($B33="FPSC",IFERROR(VLOOKUP($B33&$C33&$D33&$E33&"L",FPSC!$A$4:$U$332,13,FALSE),"no data"),IF(B33&C33="MGMAAcademic",IFERROR(VLOOKUP($B33&$C33&$D33&$E33&"L",MGMAR!$A$4:$U$332,13,FALSE),"no data"),IFERROR(VLOOKUP($B33&$C33&$D33&$E33&"L",MGMARP!$A$4:$U$332,13,FALSE),"no data"))))) -> 0 | AO33: 0 | AP33: 0 | AQ33: 0 | AR33: 0 | AS33: 0 | AT33: 0 | AU33: 0 | AV33: 0 | AW33: 0 | AX33: 0
A34: 0 | B34: FPSC | C34: Academic | D34: All | E34: =IF($B34="MGMA",COMP!$D$67,IF($B34="FPSC",COMP!$D$66,IF($B34="SPEC",COMP!$K$77,"no data"))) -> [select] | F34: AAMC | G34: Academic | H34: All | I34: =IF($F34="AAMC",COMP!$D$64,IF($F34="MGMA",COMP!$D$67,IF($F34="SPEC",COMP!$K$70,"no data"))) -> [select] | V34: 0 | AA34: 0 | AB34: 0 | AC34: =IF($F34="SPEC",COMP!K$69/1000,IFERROR(VLOOKUP($F34&$G34&$H34&$M34&COMP!$D$65&$I34&"L",AAMC!$A$4:$W$15377,10,FALSE)/1000,IFERROR(VLOOKUP($F34&$G34&$H34&$M34&COMP!$D$65&$I34&"L",MGMAC!$A$4:$W$15377,10,FALSE)/1000,IFERROR(VLOOKUP($F34&$G34&$H34&$M34&COMP!$D$65&$I34&"L",MGMACP!$A$4:$W$15377,10,FALSE)/1000,"no data")))) -> no data | AD34: =IF($F34="SPEC",COMP!L$69/1000,IFERROR(VLOOKUP($F34&$G34&$H34&$M34&COMP!$D$65&$I34&"L",AAMC!$A$4:$W$15377,15,FALSE)/1000,IFERROR(VLOOKUP($F34&$G34&$H34&$M34&COMP!$D$65&$I34&"L",MGMAC!$A$4:$W$15377,15,FALSE)/1000,IFERROR(VLOOKUP($F34&$G34&$H34&$M34&COMP!$D$65&$I34&"L",MGMACP!$A$4:$W$15377,15,FALSE)/1000,"no data")))) -> no data | AE34: =IF($F34="SPEC",COMP!M$69/1000,IFERROR(VLOOKUP($F34&$G34&$H34&$M34&COMP!$D$65&$I34&"L",AAMC!$A$4:$W$15377,20,FALSE)/1000,IFERROR(VLOOKUP($F34&$G34&$H34&$M34&COMP!$D$65&$I34&"L",MGMAC!$A$4:$W$15377,20,FALSE)/1000,IFERROR(VLOOKUP($F34&$G34&$H34&$M34&COMP!$D$65&$I34&"L",MGMACP!$A$4:$W$15377,20,FALSE)/1000,"no data")))) -> no data | AL34: 3 | AM34: 0 | AN34: =IF($J34=0,0,IF($B34="SPEC",COMP!$L$76,IF($B34="FPSC",IFERROR(VLOOKUP($B34&$C34&$D34&$E34&"L",FPSC!$A$4:$U$332,13,FALSE),"no data"),IF(B34&C34="MGMAAcademic",IFERROR(VLOOKUP($B34&$C34&$D34&$E34&"L",MGMAR!$A$4:$U$332,13,FALSE),"no data"),IFERROR(VLOOKUP($B34&$C34&$D34&$E34&"L",MGMARP!$A$4:$U$332,13,FALSE),"no data"))))) -> 0 | AO34: 0 | AP34: 0 | AQ34: 0 | AR34: 0 | AS34: 0 | AT34: 0 | AU34: 0 | AV34: 0 | AW34: 0 | AX34: 0
A35: 0 | B35: FPSC | C35: Academic | D35: All | E35: =IF($B35="MGMA",COMP!$D$67,IF($B35="FPSC",COMP!$D$66,IF($B35="SPEC",COMP!$K$77,"no data"))) -> [select] | F35: AAMC | G35: Academic | H35: All | I35: =IF($F35="AAMC",COMP!$D$64,IF($F35="MGMA",COMP!$D$67,IF($F35="SPEC",COMP!$K$70,"no data"))) -> [select] | V35: 0 | AA35: 0 | AB35: 0 | AC35: =IF($F35="SPEC",COMP!K$69/1000,IFERROR(VLOOKUP($F35&$G35&$H35&$M35&COMP!$D$65&$I35&"L",AAMC!$A$4:$W$15377,10,FALSE)/1000,IFERROR(VLOOKUP($F35&$G35&$H35&$M35&COMP!$D$65&$I35&"L",MGMAC!$A$4:$W$15377,10,FALSE)/1000,IFERROR(VLOOKUP($F35&$G35&$H35&$M35&COMP!$D$65&$I35&"L",MGMACP!$A$4:$W$15377,10,FALSE)/1000,"no data")))) -> no data | AD35: =IF($F35="SPEC",COMP!L$69/1000,IFERROR(VLOOKUP($F35&$G35&$H35&$M35&COMP!$D$65&$I35&"L",AAMC!$A$4:$W$15377,15,FALSE)/1000,IFERROR(VLOOKUP($F35&$G35&$H35&$M35&COMP!$D$65&$I35&"L",MGMAC!$A$4:$W$15377,15,FALSE)/1000,IFERROR(VLOOKUP($F35&$G35&$H35&$M35&COMP!$D$65&$I35&"L",MGMACP!$A$4:$W$15377,15,FALSE)/1000,"no data")))) -> no data | AE35: =IF($F35="SPEC",COMP!M$69/1000,IFERROR(VLOOKUP($F35&$G35&$H35&$M35&COMP!$D$65&$I35&"L",AAMC!$A$4:$W$15377,20,FALSE)/1000,IFERROR(VLOOKUP($F35&$G35&$H35&$M35&COMP!$D$65&$I35&"L",MGMAC!$A$4:$W$15377,20,FALSE)/1000,IFERROR(VLOOKUP($F35&$G35&$H35&$M35&COMP!$D$65&$I35&"L",MGMACP!$A$4:$W$15377,20,FALSE)/1000,"no data")))) -> no data | AL35: 3 | AM35: 0 | AN35: =IF($J35=0,0,IF($B35="SPEC",COMP!$L$76,IF($B35="FPSC",IFERROR(VLOOKUP($B35&$C35&$D35&$E35&"L",FPSC!$A$4:$U$332,13,FALSE),"no data"),IF(B35&C35="MGMAAcademic",IFERROR(VLOOKUP($B35&$C35&$D35&$E35&"L",MGMAR!$A$4:$U$332,13,FALSE),"no data"),IFERROR(VLOOKUP($B35&$C35&$D35&$E35&"L",MGMARP!$A$4:$U$332,13,FALSE),"no data"))))) -> 0 | AO35: 0 | AP35: 0 | AQ35: 0 | AR35: 0 | AS35: 0 | AT35: 0 | AU35: 0 | AV35: 0 | AW35: 0 | AX35: 0
A36: 0 | B36: FPSC | C36: Academic | D36: All | E36: =IF($B36="MGMA",COMP!$D$67,IF($B36="FPSC",COMP!$D$66,IF($B36="SPEC",COMP!$K$77,"no data"))) -> [select] | F36: AAMC | G36: Academic | H36: All | I36: =IF($F36="AAMC",COMP!$D$64,IF($F36="MGMA",COMP!$D$67,IF($F36="SPEC",COMP!$K$70,"no data"))) -> [select] | V36: 0 | AA36: 0 | AB36: 0 | AC36: =IF($F36="SPEC",COMP!K$69/1000,IFERROR(VLOOKUP($F36&$G36&$H36&$M36&COMP!$D$65&$I36&"L",AAMC!$A$4:$W$15377,10,FALSE)/1000,IFERROR(VLOOKUP($F36&$G36&$H36&$M36&COMP!$D$65&$I36&"L",MGMAC!$A$4:$W$15377,10,FALSE)/1000,IFERROR(VLOOKUP($F36&$G36&$H36&$M36&COMP!$D$65&$I36&"L",MGMACP!$A$4:$W$15377,10,FALSE)/1000,"no data")))) -> no data | AD36: =IF($F36="SPEC",COMP!L$69/1000,IFERROR(VLOOKUP($F36&$G36&$H36&$M36&COMP!$D$65&$I36&"L",AAMC!$A$4:$W$15377,15,FALSE)/1000,IFERROR(VLOOKUP($F36&$G36&$H36&$M36&COMP!$D$65&$I36&"L",MGMAC!$A$4:$W$15377,15,FALSE)/1000,IFERROR(VLOOKUP($F36&$G36&$H36&$M36&COMP!$D$65&$I36&"L",MGMACP!$A$4:$W$15377,15,FALSE)/1000,"no data")))) -> no data | AE36: =IF($F36="SPEC",COMP!M$69/1000,IFERROR(VLOOKUP($F36&$G36&$H36&$M36&COMP!$D$65&$I36&"L",AAMC!$A$4:$W$15377,20,FALSE)/1000,IFERROR(VLOOKUP($F36&$G36&$H36&$M36&COMP!$D$65&$I36&"L",MGMAC!$A$4:$W$15377,20,FALSE)/1000,IFERROR(VLOOKUP($F36&$G36&$H36&$M36&COMP!$D$65&$I36&"L",MGMACP!$A$4:$W$15377,20,FALSE)/1000,"no data")))) -> no data | AL36: 3 | AM36: 0 | AN36: =IF($J36=0,0,IF($B36="SPEC",COMP!$L$76,IF($B36="FPSC",IFERROR(VLOOKUP($B36&$C36&$D36&$E36&"L",FPSC!$A$4:$U$332,13,FALSE),"no data"),IF(B36&C36="MGMAAcademic",IFERROR(VLOOKUP($B36&$C36&$D36&$E36&"L",MGMAR!$A$4:$U$332,13,FALSE),"no data"),IFERROR(VLOOKUP($B36&$C36&$D36&$E36&"L",MGMARP!$A$4:$U$332,13,FALSE),"no data"))))) -> 0 | AO36: 0 | AP36: 0 | AQ36: 0 | AR36: 0 | AS36: 0 | AT36: 0 | AU36: 0 | AV36: 0 | AW36: 0 | AX36: 0
A37: 0 | B37: FPSC | C37: Academic | D37: All | E37: =IF($B37="MGMA",COMP!$D$67,IF($B37="FPSC",COMP!$D$66,IF($B37="SPEC",COMP!$K$77,"no data"))) -> [select] | F37: AAMC | G37: Academic | H37: All | I37: =IF($F37="AAMC",COMP!$D$64,IF($F37="MGMA",COMP!$D$67,IF($F37="SPEC",COMP!$K$70,"no data"))) -> [select] | V37: 0 | AA37: 0 | AB37: 0 | AC37: =IF($F37="SPEC",COMP!K$69/1000,IFERROR(VLOOKUP($F37&$G37&$H37&$M37&COMP!$D$65&$I37&"L",AAMC!$A$4:$W$15377,10,FALSE)/1000,IFERROR(VLOOKUP($F37&$G37&$H37&$M37&COMP!$D$65&$I37&"L",MGMAC!$A$4:$W$15377,10,FALSE)/1000,IFERROR(VLOOKUP($F37&$G37&$H37&$M37&COMP!$D$65&$I37&"L",MGMACP!$A$4:$W$15377,10,FALSE)/1000,"no data")))) -> no data | AD37: =IF($F37="SPEC",COMP!L$69/1000,IFERROR(VLOOKUP($F37&$G37&$H37&$M37&COMP!$D$65&$I37&"L",AAMC!$A$4:$W$15377,15,FALSE)/1000,IFERROR(VLOOKUP($F37&$G37&$H37&$M37&COMP!$D$65&$I37&"L",MGMAC!$A$4:$W$15377,15,FALSE)/1000,IFERROR(VLOOKUP($F37&$G37&$H37&$M37&COMP!$D$65&$I37&"L",MGMACP!$A$4:$W$15377,15,FALSE)/1000,"no data")))) -> no data | AE37: =IF($F37="SPEC",COMP!M$69/1000,IFERROR(VLOOKUP($F37&$G37&$H37&$M37&COMP!$D$65&$I37&"L",AAMC!$A$4:$W$15377,20,FALSE)/1000,IFERROR(VLOOKUP($F37&$G37&$H37&$M37&COMP!$D$65&$I37&"L",MGMAC!$A$4:$W$15377,20,FALSE)/1000,IFERROR(VLOOKUP($F37&$G37&$H37&$M37&COMP!$D$65&$I37&"L",MGMACP!$A$4:$W$15377,20,FALSE)/1000,"no data")))) -> no data | AL37: 3 | AM37: 0 | AN37: =IF($J37=0,0,IF($B37="SPEC",COMP!$L$76,IF($B37="FPSC",IFERROR(VLOOKUP($B37&$C37&$D37&$E37&"L",FPSC!$A$4:$U$332,13,FALSE),"no data"),IF(B37&C37="MGMAAcademic",IFERROR(VLOOKUP($B37&$C37&$D37&$E37&"L",MGMAR!$A$4:$U$332,13,FALSE),"no data"),IFERROR(VLOOKUP($B37&$C37&$D37&$E37&"L",MGMARP!$A$4:$U$332,13,FALSE),"no data"))))) -> 0 | AO37: 0 | AP37: 0 | AQ37: 0 | AR37: 0 | AS37: 0 | AT37: 0 | AU37: 0 | AV37: 0 | AW37: 0 | AX37: 0
A38: 0 | B38: FPSC | C38: Academic | D38: All | E38: =IF($B38="MGMA",COMP!$D$67,IF($B38="FPSC",COMP!$D$66,IF($B38="SPEC",COMP!$K$77,"no data"))) -> [select] | F38: AAMC | G38: Academic | H38: All | I38: =IF($F38="AAMC",COMP!$D$64,IF($F38="MGMA",COMP!$D$67,IF($F38="SPEC",COMP!$K$70,"no data"))) -> [select] | V38: 0 | AA38: 0 | AB38: 0 | AC38: =IF($F38="SPEC",COMP!K$69/1000,IFERROR(VLOOKUP($F38&$G38&$H38&$M38&COMP!$D$65&$I38&"L",AAMC!$A$4:$W$15377,10,FALSE)/1000,IFERROR(VLOOKUP($F38&$G38&$H38&$M38&COMP!$D$65&$I38&"L",MGMAC!$A$4:$W$15377,10,FALSE)/1000,IFERROR(VLOOKUP($F38&$G38&$H38&$M38&COMP!$D$65&$I38&"L",MGMACP!$A$4:$W$15377,10,FALSE)/1000,"no data")))) -> no data | AD38: =IF($F38="SPEC",COMP!L$69/1000,IFERROR(VLOOKUP($F38&$G38&$H38&$M38&COMP!$D$65&$I38&"L",AAMC!$A$4:$W$15377,15,FALSE)/1000,IFERROR(VLOOKUP($F38&$G38&$H38&$M38&COMP!$D$65&$I38&"L",MGMAC!$A$4:$W$15377,15,FALSE)/1000,IFERROR(VLOOKUP($F38&$G38&$H38&$M38&COMP!$D$65&$I38&"L",MGMACP!$A$4:$W$15377,15,FALSE)/1000,"no data")))) -> no data | AE38: =IF($F38="SPEC",COMP!M$69/1000,IFERROR(VLOOKUP($F38&$G38&$H38&$M38&COMP!$D$65&$I38&"L",AAMC!$A$4:$W$15377,20,FALSE)/1000,IFERROR(VLOOKUP($F38&$G38&$H38&$M38&COMP!$D$65&$I38&"L",MGMAC!$A$4:$W$15377,20,FALSE)/1000,IFERROR(VLOOKUP($F38&$G38&$H38&$M38&COMP!$D$65&$I38&"L",MGMACP!$A$4:$W$15377,20,FALSE)/1000,"no data")))) -> no data | AL38: 3 | AM38: 0 | AN38: =IF($J38=0,0,IF($B38="SPEC",COMP!$L$76,IF($B38="FPSC",IFERROR(VLOOKUP($B38&$C38&$D38&$E38&"L",FPSC!$A$4:$U$332,13,FALSE),"no data"),IF(B38&C38="MGMAAcademic",IFERROR(VLOOKUP($B38&$C38&$D38&$E38&"L",MGMAR!$A$4:$U$332,13,FALSE),"no data"),IFERROR(VLOOKUP($B38&$C38&$D38&$E38&"L",MGMARP!$A$4:$U$332,13,FALSE),"no data"))))) -> 0 | AO38: 0 | AP38: 0 | AQ38: 0 | AR38: 0 | AS38: 0 | AT38: 0 | AU38: 0 | AV38: 0 | AW38: 0 | AX38: 0
A39: 0 | B39: FPSC | C39: Academic | D39: All | E39: =IF($B39="MGMA",COMP!$D$67,IF($B39="FPSC",COMP!$D$66,IF($B39="SPEC",COMP!$K$77,"no data"))) -> [select] | F39: AAMC | G39: Academic | H39: All | I39: =IF($F39="AAMC",COMP!$D$64,IF($F39="MGMA",COMP!$D$67,IF($F39="SPEC",COMP!$K$70,"no data"))) -> [select] | V39: 0 | AA39: 0 | AB39: 0 | AC39: =IF($F39="SPEC",COMP!K$69/1000,IFERROR(VLOOKUP($F39&$G39&$H39&$M39&COMP!$D$65&$I39&"L",AAMC!$A$4:$W$15377,10,FALSE)/1000,IFERROR(VLOOKUP($F39&$G39&$H39&$M39&COMP!$D$65&$I39&"L",MGMAC!$A$4:$W$15377,10,FALSE)/1000,IFERROR(VLOOKUP($F39&$G39&$H39&$M39&COMP!$D$65&$I39&"L",MGMACP!$A$4:$W$15377,10,FALSE)/1000,"no data")))) -> no data | AD39: =IF($F39="SPEC",COMP!L$69/1000,IFERROR(VLOOKUP($F39&$G39&$H39&$M39&COMP!$D$65&$I39&"L",AAMC!$A$4:$W$15377,15,FALSE)/1000,IFERROR(VLOOKUP($F39&$G39&$H39&$M39&COMP!$D$65&$I39&"L",MGMAC!$A$4:$W$15377,15,FALSE)/1000,IFERROR(VLOOKUP($F39&$G39&$H39&$M39&COMP!$D$65&$I39&"L",MGMACP!$A$4:$W$15377,15,FALSE)/1000,"no data")))) -> no data | AE39: =IF($F39="SPEC",COMP!M$69/1000,IFERROR(VLOOKUP($F39&$G39&$H39&$M39&COMP!$D$65&$I39&"L",AAMC!$A$4:$W$15377,20,FALSE)/1000,IFERROR(VLOOKUP($F39&$G39&$H39&$M39&COMP!$D$65&$I39&"L",MGMAC!$A$4:$W$15377,20,FALSE)/1000,IFERROR(VLOOKUP($F39&$G39&$H39&$M39&COMP!$D$65&$I39&"L",MGMACP!$A$4:$W$15377,20,FALSE)/1000,"no data")))) -> no data | AL39: 3 | AM39: 0 | AN39: =IF($J39=0,0,IF($B39="SPEC",COMP!$L$76,IF($B39="FPSC",IFERROR(VLOOKUP($B39&$C39&$D39&$E39&"L",FPSC!$A$4:$U$332,13,FALSE),"no data"),IF(B39&C39="MGMAAcademic",IFERROR(VLOOKUP($B39&$C39&$D39&$E39&"L",MGMAR!$A$4:$U$332,13,FALSE),"no data"),IFERROR(VLOOKUP($B39&$C39&$D39&$E39&"L",MGMARP!$A$4:$U$332,13,FALSE),"no data"))))) -> 0 | AO39: 0 | AP39: 0 | AQ39: 0 | AR39: 0 | AS39: 0 | AT39: 0 | AU39: 0 | AV39: 0 | AW39: 0 | AX39: 0
A40: 0 | B40: FPSC | C40: Academic | D40: All | E40: =IF($B40="MGMA",COMP!$D$67,IF($B40="FPSC",COMP!$D$66,IF($B40="SPEC",COMP!$K$77,"no data"))) -> [select] | F40: AAMC | G40: Academic | H40: All | I40: =IF($F40="AAMC",COMP!$D$64,IF($F40="MGMA",COMP!$D$67,IF($F40="SPEC",COMP!$K$70,"no data"))) -> [select] | V40: 0 | AA40: 0 | AB40: 0 | AC40: =IF($F40="SPEC",COMP!K$69/1000,IFERROR(VLOOKUP($F40&$G40&$H40&$M40&COMP!$D$65&$I40&"L",AAMC!$A$4:$W$15377,10,FALSE)/1000,IFERROR(VLOOKUP($F40&$G40&$H40&$M40&COMP!$D$65&$I40&"L",MGMAC!$A$4:$W$15377,10,FALSE)/1000,IFERROR(VLOOKUP($F40&$G40&$H40&$M40&COMP!$D$65&$I40&"L",MGMACP!$A$4:$W$15377,10,FALSE)/1000,"no data")))) -> no data | AD40: =IF($F40="SPEC",COMP!L$69/1000,IFERROR(VLOOKUP($F40&$G40&$H40&$M40&COMP!$D$65&$I40&"L",AAMC!$A$4:$W$15377,15,FALSE)/1000,IFERROR(VLOOKUP($F40&$G40&$H40&$M40&COMP!$D$65&$I40&"L",MGMAC!$A$4:$W$15377,15,FALSE)/1000,IFERROR(VLOOKUP($F40&$G40&$H40&$M40&COMP!$D$65&$I40&"L",MGMACP!$A$4:$W$15377,15,FALSE)/1000,"no data")))) -> no data | AE40: =IF($F40="SPEC",COMP!M$69/1000,IFERROR(VLOOKUP($F40&$G40&$H40&$M40&COMP!$D$65&$I40&"L",AAMC!$A$4:$W$15377,20,FALSE)/1000,IFERROR(VLOOKUP($F40&$G40&$H40&$M40&COMP!$D$65&$I40&"L",MGMAC!$A$4:$W$15377,20,FALSE)/1000,IFERROR(VLOOKUP($F40&$G40&$H40&$M40&COMP!$D$65&$I40&"L",MGMACP!$A$4:$W$15377,20,FALSE)/1000,"no data")))) -> no data | AL40: 3 | AM40: 0 | AN40: =IF($J40=0,0,IF($B40="SPEC",COMP!$L$76,IF($B40="FPSC",IFERROR(VLOOKUP($B40&$C40&$D40&$E40&"L",FPSC!$A$4:$U$332,13,FALSE),"no data"),IF(B40&C40="MGMAAcademic",IFERROR(VLOOKUP($B40&$C40&$D40&$E40&"L",MGMAR!$A$4:$U$332,13,FALSE),"no data"),IFERROR(VLOOKUP($B40&$C40&$D40&$E40&"L",MGMARP!$A$4:$U$332,13,FALSE),"no data"))))) -> 0 | AO40: 0 | AP40: 0 | AQ40: 0 | AR40: 0 | AS40: 0 | AT40: 0 | AU40: 0 | AV40: 0 | AW40: 0 | AX40: 0
A41: 0 | B41: FPSC | C41: Academic | D41: All | E41: =IF($B41="MGMA",COMP!$D$67,IF($B41="FPSC",COMP!$D$66,IF($B41="SPEC",COMP!$K$77,"no data"))) -> [select] | F41: AAMC | G41: Academic | H41: All | I41: =IF($F41="AAMC",COMP!$D$64,IF($F41="MGMA",COMP!$D$67,IF($F41="SPEC",COMP!$K$70,"no data"))) -> [select] | V41: 0 | AA41: 0 | AB41: 0 | AC41: =IF($F41="SPEC",COMP!K$69/1000,IFERROR(VLOOKUP($F41&$G41&$H41&$M41&COMP!$D$65&$I41&"L",AAMC!$A$4:$W$15377,10,FALSE)/1000,IFERROR(VLOOKUP($F41&$G41&$H41&$M41&COMP!$D$65&$I41&"L",MGMAC!$A$4:$W$15377,10,FALSE)/1000,IFERROR(VLOOKUP($F41&$G41&$H41&$M41&COMP!$D$65&$I41&"L",MGMACP!$A$4:$W$15377,10,FALSE)/1000,"no data")))) -> no data | AD41: =IF($F41="SPEC",COMP!L$69/1000,IFERROR(VLOOKUP($F41&$G41&$H41&$M41&COMP!$D$65&$I41&"L",AAMC!$A$4:$W$15377,15,FALSE)/1000,IFERROR(VLOOKUP($F41&$G41&$H41&$M41&COMP!$D$65&$I41&"L",MGMAC!$A$4:$W$15377,15,FALSE)/1000,IFERROR(VLOOKUP($F41&$G41&$H41&$M41&COMP!$D$65&$I41&"L",MGMACP!$A$4:$W$15377,15,FALSE)/1000,"no data")))) -> no data | AE41: =IF($F41="SPEC",COMP!M$69/1000,IFERROR(VLOOKUP($F41&$G41&$H41&$M41&COMP!$D$65&$I41&"L",AAMC!$A$4:$W$15377,20,FALSE)/1000,IFERROR(VLOOKUP($F41&$G41&$H41&$M41&COMP!$D$65&$I41&"L",MGMAC!$A$4:$W$15377,20,FALSE)/1000,IFERROR(VLOOKUP($F41&$G41&$H41&$M41&COMP!$D$65&$I41&"L",MGMACP!$A$4:$W$15377,20,FALSE)/1000,"no data")))) -> no data | AL41: 3 | AM41: 0 | AN41: =IF($J41=0,0,IF($B41="SPEC",COMP!$L$76,IF($B41="FPSC",IFERROR(VLOOKUP($B41&$C41&$D41&$E41&"L",FPSC!$A$4:$U$332,13,FALSE),"no data"),IF(B41&C41="MGMAAcademic",IFERROR(VLOOKUP($B41&$C41&$D41&$E41&"L",MGMAR!$A$4:$U$332,13,FALSE),"no data"),IFERROR(VLOOKUP($B41&$C41&$D41&$E41&"L",MGMARP!$A$4:$U$332,13,FALSE),"no data"))))) -> 0 | AO41: 0 | AP41: 0 | AQ41: 0 | AR41: 0 | AS41: 0 | AT41: 0 | AU41: 0 | AV41: 0 | AW41: 0 | AX41: 0
A42: 0 | B42: FPSC | C42: Academic | D42: All | E42: =IF($B42="MGMA",COMP!$D$67,IF($B42="FPSC",COMP!$D$66,IF($B42="SPEC",COMP!$K$77,"no data"))) -> [select] | F42: AAMC | G42: Academic | H42: All | I42: =IF($F42="AAMC",COMP!$D$64,IF($F42="MGMA",COMP!$D$67,IF($F42="SPEC",COMP!$K$70,"no data"))) -> [select] | V42: 0 | AA42: 0 | AB42: 0 | AC42: =IF($F42="SPEC",COMP!K$69/1000,IFERROR(VLOOKUP($F42&$G42&$H42&$M42&COMP!$D$65&$I42&"L",AAMC!$A$4:$W$15377,10,FALSE)/1000,IFERROR(VLOOKUP($F42&$G42&$H42&$M42&COMP!$D$65&$I42&"L",MGMAC!$A$4:$W$15377,10,FALSE)/1000,IFERROR(VLOOKUP($F42&$G42&$H42&$M42&COMP!$D$65&$I42&"L",MGMACP!$A$4:$W$15377,10,FALSE)/1000,"no data")))) -> no data | AD42: =IF($F42="SPEC",COMP!L$69/1000,IFERROR(VLOOKUP($F42&$G42&$H42&$M42&COMP!$D$65&$I42&"L",AAMC!$A$4:$W$15377,15,FALSE)/1000,IFERROR(VLOOKUP($F42&$G42&$H42&$M42&COMP!$D$65&$I42&"L",MGMAC!$A$4:$W$15377,15,FALSE)/1000,IFERROR(VLOOKUP($F42&$G42&$H42&$M42&COMP!$D$65&$I42&"L",MGMACP!$A$4:$W$15377,15,FALSE)/1000,"no data")))) -> no data | AE42: =IF($F42="SPEC",COMP!M$69/1000,IFERROR(VLOOKUP($F42&$G42&$H42&$M42&COMP!$D$65&$I42&"L",AAMC!$A$4:$W$15377,20,FALSE)/1000,IFERROR(VLOOKUP($F42&$G42&$H42&$M42&COMP!$D$65&$I42&"L",MGMAC!$A$4:$W$15377,20,FALSE)/1000,IFERROR(VLOOKUP($F42&$G42&$H42&$M42&COMP!$D$65&$I42&"L",MGMACP!$A$4:$W$15377,20,FALSE)/1000,"no data")))) -> no data | AL42: 3 | AM42: 0 | AN42: =IF($J42=0,0,IF($B42="SPEC",COMP!$L$76,IF($B42="FPSC",IFERROR(VLOOKUP($B42&$C42&$D42&$E42&"L",FPSC!$A$4:$U$332,13,FALSE),"no data"),IF(B42&C42="MGMAAcademic",IFERROR(VLOOKUP($B42&$C42&$D42&$E42&"L",MGMAR!$A$4:$U$332,13,FALSE),"no data"),IFERROR(VLOOKUP($B42&$C42&$D42&$E42&"L",MGMARP!$A$4:$U$332,13,FALSE),"no data"))))) -> 0 | AO42: 0 | AP42: 0 | AQ42: 0 | AR42: 0 | AS42: 0 | AT42: 0 | AU42: 0 | AV42: 0 | AW42: 0 | AX42: 0
A43: 0 | B43: FPSC | C43: Academic | D43: All | E43: =IF($B43="MGMA",COMP!$D$67,IF($B43="FPSC",COMP!$D$66,IF($B43="SPEC",COMP!$K$77,"no data"))) -> [select] | F43: AAMC | G43: Academic | H43: All | I43: =IF($F43="AAMC",COMP!$D$64,IF($F43="MGMA",COMP!$D$67,IF($F43="SPEC",COMP!$K$70,"no data"))) -> [select] | V43: 0 | AA43: 0 | AB43: 0 | AC43: =IF($F43="SPEC",COMP!K$69/1000,IFERROR(VLOOKUP($F43&$G43&$H43&$M43&COMP!$D$65&$I43&"L",AAMC!$A$4:$W$15377,10,FALSE)/1000,IFERROR(VLOOKUP($F43&$G43&$H43&$M43&COMP!$D$65&$I43&"L",MGMAC!$A$4:$W$15377,10,FALSE)/1000,IFERROR(VLOOKUP($F43&$G43&$H43&$M43&COMP!$D$65&$I43&"L",MGMACP!$A$4:$W$15377,10,FALSE)/1000,"no data")))) -> no data | AD43: =IF($F43="SPEC",COMP!L$69/1000,IFERROR(VLOOKUP($F43&$G43&$H43&$M43&COMP!$D$65&$I43&"L",AAMC!$A$4:$W$15377,15,FALSE)/1000,IFERROR(VLOOKUP($F43&$G43&$H43&$M43&COMP!$D$65&$I43&"L",MGMAC!$A$4:$W$15377,15,FALSE)/1000,IFERROR(VLOOKUP($F43&$G43&$H43&$M43&COMP!$D$65&$I43&"L",MGMACP!$A$4:$W$15377,15,FALSE)/1000,"no data")))) -> no data | AE43: =IF($F43="SPEC",COMP!M$69/1000,IFERROR(VLOOKUP($F43&$G43&$H43&$M43&COMP!$D$65&$I43&"L",AAMC!$A$4:$W$15377,20,FALSE)/1000,IFERROR(VLOOKUP($F43&$G43&$H43&$M43&COMP!$D$65&$I43&"L",MGMAC!$A$4:$W$15377,20,FALSE)/1000,IFERROR(VLOOKUP($F43&$G43&$H43&$M43&COMP!$D$65&$I43&"L",MGMACP!$A$4:$W$15377,20,FALSE)/1000,"no data")))) -> no data | AL43: 3 | AM43: 0 | AN43: =IF($J43=0,0,IF($B43="SPEC",COMP!$L$76,IF($B43="FPSC",IFERROR(VLOOKUP($B43&$C43&$D43&$E43&"L",FPSC!$A$4:$U$332,13,FALSE),"no data"),IF(B43&C43="MGMAAcademic",IFERROR(VLOOKUP($B43&$C43&$D43&$E43&"L",MGMAR!$A$4:$U$332,13,FALSE),"no data"),IFERROR(VLOOKUP($B43&$C43&$D43&$E43&"L",MGMARP!$A$4:$U$332,13,FALSE),"no data"))))) -> 0 | AO43: 0 | AP43: 0 | AQ43: 0 | AR43: 0 | AS43: 0 | AT43: 0 | AU43: 0 | AV43: 0 | AW43: 0 | AX43: 0
A44: 0 | B44: FPSC | C44: Academic | D44: All | E44: =IF($B44="MGMA",COMP!$D$67,IF($B44="FPSC",COMP!$D$66,IF($B44="SPEC",COMP!$K$77,"no data"))) -> [select] | F44: AAMC | G44: Academic | H44: All | I44: =IF($F44="AAMC",COMP!$D$64,IF($F44="MGMA",COMP!$D$67,IF($F44="SPEC",COMP!$K$70,"no data"))) -> [select] | V44: 0 | AA44: 0 | AB44: 0 | AC44: =IF($F44="SPEC",COMP!K$69/1000,IFERROR(VLOOKUP($F44&$G44&$H44&$M44&COMP!$D$65&$I44&"L",AAMC!$A$4:$W$15377,10,FALSE)/1000,IFERROR(VLOOKUP($F44&$G44&$H44&$M44&COMP!$D$65&$I44&"L",MGMAC!$A$4:$W$15377,10,FALSE)/1000,IFERROR(VLOOKUP($F44&$G44&$H44&$M44&COMP!$D$65&$I44&"L",MGMACP!$A$4:$W$15377,10,FALSE)/1000,"no data")))) -> no data | AD44: =IF($F44="SPEC",COMP!L$69/1000,IFERROR(VLOOKUP($F44&$G44&$H44&$M44&COMP!$D$65&$I44&"L",AAMC!$A$4:$W$15377,15,FALSE)/1000,IFERROR(VLOOKUP($F44&$G44&$H44&$M44&COMP!$D$65&$I44&"L",MGMAC!$A$4:$W$15377,15,FALSE)/1000,IFERROR(VLOOKUP($F44&$G44&$H44&$M44&COMP!$D$65&$I44&"L",MGMACP!$A$4:$W$15377,15,FALSE)/1000,"no data")))) -> no data | AE44: =IF($F44="SPEC",COMP!M$69/1000,IFERROR(VLOOKUP($F44&$G44&$H44&$M44&COMP!$D$65&$I44&"L",AAMC!$A$4:$W$15377,20,FALSE)/1000,IFERROR(VLOOKUP($F44&$G44&$H44&$M44&COMP!$D$65&$I44&"L",MGMAC!$A$4:$W$15377,20,FALSE)/1000,IFERROR(VLOOKUP($F44&$G44&$H44&$M44&COMP!$D$65&$I44&"L",MGMACP!$A$4:$W$15377,20,FALSE)/1000,"no data")))) -> no data | AL44: 3 | AM44: 0 | AN44: =IF($J44=0,0,IF($B44="SPEC",COMP!$L$76,IF($B44="FPSC",IFERROR(VLOOKUP($B44&$C44&$D44&$E44&"L",FPSC!$A$4:$U$332,13,FALSE),"no data"),IF(B44&C44="MGMAAcademic",IFERROR(VLOOKUP($B44&$C44&$D44&$E44&"L",MGMAR!$A$4:$U$332,13,FALSE),"no data"),IFERROR(VLOOKUP($B44&$C44&$D44&$E44&"L",MGMARP!$A$4:$U$332,13,FALSE),"no data"))))) -> 0 | AO44: 0 | AP44: 0 | AQ44: 0 | AR44: 0 | AS44: 0 | AT44: 0 | AU44: 0 | AV44: 0 | AW44: 0 | AX44: 0
A45: 0 | B45: FPSC | C45: Academic | D45: All | E45: =IF($B45="MGMA",COMP!$D$67,IF($B45="FPSC",COMP!$D$66,IF($B45="SPEC",COMP!$K$77,"no data"))) -> [select] | F45: AAMC | G45: Academic | H45: All | I45: =IF($F45="AAMC",COMP!$D$64,IF($F45="MGMA",COMP!$D$67,IF($F45="SPEC",COMP!$K$70,"no data"))) -> [select] | V45: 0 | AA45: 0 | AB45: 0 | AC45: =IF($F45="SPEC",COMP!K$69/1000,IFERROR(VLOOKUP($F45&$G45&$H45&$M45&COMP!$D$65&$I45&"L",AAMC!$A$4:$W$15377,10,FALSE)/1000,IFERROR(VLOOKUP($F45&$G45&$H45&$M45&COMP!$D$65&$I45&"L",MGMAC!$A$4:$W$15377,10,FALSE)/1000,IFERROR(VLOOKUP($F45&$G45&$H45&$M45&COMP!$D$65&$I45&"L",MGMACP!$A$4:$W$15377,10,FALSE)/1000,"no data")))) -> no data | AD45: =IF($F45="SPEC",COMP!L$69/1000,IFERROR(VLOOKUP($F45&$G45&$H45&$M45&COMP!$D$65&$I45&"L",AAMC!$A$4:$W$15377,15,FALSE)/1000,IFERROR(VLOOKUP($F45&$G45&$H45&$M45&COMP!$D$65&$I45&"L",MGMAC!$A$4:$W$15377,15,FALSE)/1000,IFERROR(VLOOKUP($F45&$G45&$H45&$M45&COMP!$D$65&$I45&"L",MGMACP!$A$4:$W$15377,15,FALSE)/1000,"no data")))) -> no data | AE45: =IF($F45="SPEC",COMP!M$69/1000,IFERROR(VLOOKUP($F45&$G45&$H45&$M45&COMP!$D$65&$I45&"L",AAMC!$A$4:$W$15377,20,FALSE)/1000,IFERROR(VLOOKUP($F45&$G45&$H45&$M45&COMP!$D$65&$I45&"L",MGMAC!$A$4:$W$15377,20,FALSE)/1000,IFERROR(VLOOKUP($F45&$G45&$H45&$M45&COMP!$D$65&$I45&"L",MGMACP!$A$4:$W$15377,20,FALSE)/1000,"no data")))) -> no data | AL45: 3 | AM45: 0 | AN45: =IF($J45=0,0,IF($B45="SPEC",COMP!$L$76,IF($B45="FPSC",IFERROR(VLOOKUP($B45&$C45&$D45&$E45&"L",FPSC!$A$4:$U$332,13,FALSE),"no data"),IF(B45&C45="MGMAAcademic",IFERROR(VLOOKUP($B45&$C45&$D45&$E45&"L",MGMAR!$A$4:$U$332,13,FALSE),"no data"),IFERROR(VLOOKUP($B45&$C45&$D45&$E45&"L",MGMARP!$A$4:$U$332,13,FALSE),"no data"))))) -> 0 | AO45: 0 | AP45: 0 | AQ45: 0 | AR45: 0 | AS45: 0 | AT45: 0 | AU45: 0 | AV45: 0 | AW45: 0 | AX45: 0
A46: 0 | B46: FPSC | C46: Academic | D46: All | E46: =IF($B46="MGMA",COMP!$D$67,IF($B46="FPSC",COMP!$D$66,IF($B46="SPEC",COMP!$K$77,"no data"))) -> [select] | F46: AAMC | G46: Academic | H46: All | I46: =IF($F46="AAMC",COMP!$D$64,IF($F46="MGMA",COMP!$D$67,IF($F46="SPEC",COMP!$K$70,"no data"))) -> [select] | V46: 0 | AA46: 0 | AB46: 0 | AC46: =IF($F46="SPEC",COMP!K$69/1000,IFERROR(VLOOKUP($F46&$G46&$H46&$M46&COMP!$D$65&$I46&"L",AAMC!$A$4:$W$15377,10,FALSE)/1000,IFERROR(VLOOKUP($F46&$G46&$H46&$M46&COMP!$D$65&$I46&"L",MGMAC!$A$4:$W$15377,10,FALSE)/1000,IFERROR(VLOOKUP($F46&$G46&$H46&$M46&COMP!$D$65&$I46&"L",MGMACP!$A$4:$W$15377,10,FALSE)/1000,"no data")))) -> no data | AD46: =IF($F46="SPEC",COMP!L$69/1000,IFERROR(VLOOKUP($F46&$G46&$H46&$M46&COMP!$D$65&$I46&"L",AAMC!$A$4:$W$15377,15,FALSE)/1000,IFERROR(VLOOKUP($F46&$G46&$H46&$M46&COMP!$D$65&$I46&"L",MGMAC!$A$4:$W$15377,15,FALSE)/1000,IFERROR(VLOOKUP($F46&$G46&$H46&$M46&COMP!$D$65&$I46&"L",MGMACP!$A$4:$W$15377,15,FALSE)/1000,"no data")))) -> no data | AE46: =IF($F46="SPEC",COMP!M$69/1000,IFERROR(VLOOKUP($F46&$G46&$H46&$M46&COMP!$D$65&$I46&"L",AAMC!$A$4:$W$15377,20,FALSE)/1000,IFERROR(VLOOKUP($F46&$G46&$H46&$M46&COMP!$D$65&$I46&"L",MGMAC!$A$4:$W$15377,20,FALSE)/1000,IFERROR(VLOOKUP($F46&$G46&$H46&$M46&COMP!$D$65&$I46&"L",MGMACP!$A$4:$W$15377,20,FALSE)/1000,"no data")))) -> no data | AL46: 3 | AM46: 0 | AN46: =IF($J46=0,0,IF($B46="SPEC",COMP!$L$76,IF($B46="FPSC",IFERROR(VLOOKUP($B46&$C46&$D46&$E46&"L",FPSC!$A$4:$U$332,13,FALSE),"no data"),IF(B46&C46="MGMAAcademic",IFERROR(VLOOKUP($B46&$C46&$D46&$E46&"L",MGMAR!$A$4:$U$332,13,FALSE),"no data"),IFERROR(VLOOKUP($B46&$C46&$D46&$E46&"L",MGMARP!$A$4:$U$332,13,FALSE),"no data"))))) -> 0 | AO46: 0 | AP46: 0 | AQ46: 0 | AR46: 0 | AS46: 0 | AT46: 0 | AU46: 0 | AV46: 0 | AW46: 0 | AX46: 0
A47: 0 | B47: FPSC | C47: Academic | D47: All | E47: =IF($B47="MGMA",COMP!$D$67,IF($B47="FPSC",COMP!$D$66,IF($B47="SPEC",COMP!$K$77,"no data"))) -> [select] | F47: AAMC | G47: Academic | H47: All | I47: =IF($F47="AAMC",COMP!$D$64,IF($F47="MGMA",COMP!$D$67,IF($F47="SPEC",COMP!$K$70,"no data"))) -> [select] | V47: 0 | AA47: 0 | AB47: 0 | AC47: =IF($F47="SPEC",COMP!K$69/1000,IFERROR(VLOOKUP($F47&$G47&$H47&$M47&COMP!$D$65&$I47&"L",AAMC!$A$4:$W$15377,10,FALSE)/1000,IFERROR(VLOOKUP($F47&$G47&$H47&$M47&COMP!$D$65&$I47&"L",MGMAC!$A$4:$W$15377,10,FALSE)/1000,IFERROR(VLOOKUP($F47&$G47&$H47&$M47&COMP!$D$65&$I47&"L",MGMACP!$A$4:$W$15377,10,FALSE)/1000,"no data")))) -> no data | AD47: =IF($F47="SPEC",COMP!L$69/1000,IFERROR(VLOOKUP($F47&$G47&$H47&$M47&COMP!$D$65&$I47&"L",AAMC!$A$4:$W$15377,15,FALSE)/1000,IFERROR(VLOOKUP($F47&$G47&$H47&$M47&COMP!$D$65&$I47&"L",MGMAC!$A$4:$W$15377,15,FALSE)/1000,IFERROR(VLOOKUP($F47&$G47&$H47&$M47&COMP!$D$65&$I47&"L",MGMACP!$A$4:$W$15377,15,FALSE)/1000,"no data")))) -> no data | AE47: =IF($F47="SPEC",COMP!M$69/1000,IFERROR(VLOOKUP($F47&$G47&$H47&$M47&COMP!$D$65&$I47&"L",AAMC!$A$4:$W$15377,20,FALSE)/1000,IFERROR(VLOOKUP($F47&$G47&$H47&$M47&COMP!$D$65&$I47&"L",MGMAC!$A$4:$W$15377,20,FALSE)/1000,IFERROR(VLOOKUP($F47&$G47&$H47&$M47&COMP!$D$65&$I47&"L",MGMACP!$A$4:$W$15377,20,FALSE)/1000,"no data")))) -> no data | AL47: 3 | AM47: 0 | AN47: =IF($J47=0,0,IF($B47="SPEC",COMP!$L$76,IF($B47="FPSC",IFERROR(VLOOKUP($B47&$C47&$D47&$E47&"L",FPSC!$A$4:$U$332,13,FALSE),"no data"),IF(B47&C47="MGMAAcademic",IFERROR(VLOOKUP($B47&$C47&$D47&$E47&"L",MGMAR!$A$4:$U$332,13,FALSE),"no data"),IFERROR(VLOOKUP($B47&$C47&$D47&$E47&"L",MGMARP!$A$4:$U$332,13,FALSE),"no data"))))) -> 0 | AO47: 0 | AP47: 0 | AQ47: 0 | AR47: 0 | AS47: 0 | AT47: 0 | AU47: 0 | AV47: 0 | AW47: 0 | AX47: 0
A48: 0 | B48: FPSC | C48: Academic | D48: All | E48: =IF($B48="MGMA",COMP!$D$67,IF($B48="FPSC",COMP!$D$66,IF($B48="SPEC",COMP!$K$77,"no data"))) -> [select] | F48: AAMC | G48: Academic | H48: All | I48: =IF($F48="AAMC",COMP!$D$64,IF($F48="MGMA",COMP!$D$67,IF($F48="SPEC",COMP!$K$70,"no data"))) -> [select] | V48: 0 | AA48: 0 | AB48: 0 | AC48: =IF($F48="SPEC",COMP!K$69/1000,IFERROR(VLOOKUP($F48&$G48&$H48&$M48&COMP!$D$65&$I48&"L",AAMC!$A$4:$W$15377,10,FALSE)/1000,IFERROR(VLOOKUP($F48&$G48&$H48&$M48&COMP!$D$65&$I48&"L",MGMAC!$A$4:$W$15377,10,FALSE)/1000,IFERROR(VLOOKUP($F48&$G48&$H48&$M48&COMP!$D$65&$I48&"L",MGMACP!$A$4:$W$15377,10,FALSE)/1000,"no data")))) -> no data | AD48: =IF($F48="SPEC",COMP!L$69/1000,IFERROR(VLOOKUP($F48&$G48&$H48&$M48&COMP!$D$65&$I48&"L",AAMC!$A$4:$W$15377,15,FALSE)/1000,IFERROR(VLOOKUP($F48&$G48&$H48&$M48&COMP!$D$65&$I48&"L",MGMAC!$A$4:$W$15377,15,FALSE)/1000,IFERROR(VLOOKUP($F48&$G48&$H48&$M48&COMP!$D$65&$I48&"L",MGMACP!$A$4:$W$15377,15,FALSE)/1000,"no data")))) -> no data | AE48: =IF($F48="SPEC",COMP!M$69/1000,IFERROR(VLOOKUP($F48&$G48&$H48&$M48&COMP!$D$65&$I48&"L",AAMC!$A$4:$W$15377,20,FALSE)/1000,IFERROR(VLOOKUP($F48&$G48&$H48&$M48&COMP!$D$65&$I48&"L",MGMAC!$A$4:$W$15377,20,FALSE)/1000,IFERROR(VLOOKUP($F48&$G48&$H48&$M48&COMP!$D$65&$I48&"L",MGMACP!$A$4:$W$15377,20,FALSE)/1000,"no data")))) -> no data | AL48: 3 | AM48: 0 | AN48: =IF($J48=0,0,IF($B48="SPEC",COMP!$L$76,IF($B48="FPSC",IFERROR(VLOOKUP($B48&$C48&$D48&$E48&"L",FPSC!$A$4:$U$332,13,FALSE),"no data"),IF(B48&C48="MGMAAcademic",IFERROR(VLOOKUP($B48&$C48&$D48&$E48&"L",MGMAR!$A$4:$U$332,13,FALSE),"no data"),IFERROR(VLOOKUP($B48&$C48&$D48&$E48&"L",MGMARP!$A$4:$U$332,13,FALSE),"no data"))))) -> 0 | AO48: 0 | AP48: 0 | AQ48: 0 | AR48: 0 | AS48: 0 | AT48: 0 | AU48: 0 | AV48: 0 | AW48: 0 | AX48: 0
A49: 0 | B49: FPSC | C49: Academic | D49: All | E49: =IF($B49="MGMA",COMP!$D$67,IF($B49="FPSC",COMP!$D$66,IF($B49="SPEC",COMP!$K$77,"no data"))) -> [select] | F49: AAMC | G49: Academic | H49: All | I49: =IF($F49="AAMC",COMP!$D$64,IF($F49="MGMA",COMP!$D$67,IF($F49="SPEC",COMP!$K$70,"no data"))) -> [select] | V49: 0 | AA49: 0 | AB49: 0 | AC49: =IF($F49="SPEC",COMP!K$69/1000,IFERROR(VLOOKUP($F49&$G49&$H49&$M49&COMP!$D$65&$I49&"L",AAMC!$A$4:$W$15377,10,FALSE)/1000,IFERROR(VLOOKUP($F49&$G49&$H49&$M49&COMP!$D$65&$I49&"L",MGMAC!$A$4:$W$15377,10,FALSE)/1000,IFERROR(VLOOKUP($F49&$G49&$H49&$M49&COMP!$D$65&$I49&"L",MGMACP!$A$4:$W$15377,10,FALSE)/1000,"no data")))) -> no data | AD49: =IF($F49="SPEC",COMP!L$69/1000,IFERROR(VLOOKUP($F49&$G49&$H49&$M49&COMP!$D$65&$I49&"L",AAMC!$A$4:$W$15377,15,FALSE)/1000,IFERROR(VLOOKUP($F49&$G49&$H49&$M49&COMP!$D$65&$I49&"L",MGMAC!$A$4:$W$15377,15,FALSE)/1000,IFERROR(VLOOKUP($F49&$G49&$H49&$M49&COMP!$D$65&$I49&"L",MGMACP!$A$4:$W$15377,15,FALSE)/1000,"no data")))) -> no data | AE49: =IF($F49="SPEC",COMP!M$69/1000,IFERROR(VLOOKUP($F49&$G49&$H49&$M49&COMP!$D$65&$I49&"L",AAMC!$A$4:$W$15377,20,FALSE)/1000,IFERROR(VLOOKUP($F49&$G49&$H49&$M49&COMP!$D$65&$I49&"L",MGMAC!$A$4:$W$15377,20,FALSE)/1000,IFERROR(VLOOKUP($F49&$G49&$H49&$M49&COMP!$D$65&$I49&"L",MGMACP!$A$4:$W$15377,20,FALSE)/1000,"no data")))) -> no data | AL49: 3 | AM49: 0 | AN49: =IF($J49=0,0,IF($B49="SPEC",COMP!$L$76,IF($B49="FPSC",IFERROR(VLOOKUP($B49&$C49&$D49&$E49&"L",FPSC!$A$4:$U$332,13,FALSE),"no data"),IF(B49&C49="MGMAAcademic",IFERROR(VLOOKUP($B49&$C49&$D49&$E49&"L",MGMAR!$A$4:$U$332,13,FALSE),"no data"),IFERROR(VLOOKUP($B49&$C49&$D49&$E49&"L",MGMARP!$A$4:$U$332,13,FALSE),"no data"))))) -> 0 | AO49: 0 | AP49: 0 | AQ49: 0 | AR49: 0 | AS49: 0 | AT49: 0 | AU49: 0 | AV49: 0 | AW49: 0 | AX49: 0
A50: 0 | B50: FPSC | C50: Academic | D50: All | E50: =IF($B50="MGMA",COMP!$D$67,IF($B50="FPSC",COMP!$D$66,IF($B50="SPEC",COMP!$K$77,"no data"))) -> [select] | F50: AAMC | G50: Academic | H50: All | I50: =IF($F50="AAMC",COMP!$D$64,IF($F50="MGMA",COMP!$D$67,IF($F50="SPEC",COMP!$K$70,"no data"))) -> [select] | V50: 0 | AA50: 0 | AB50: 0 | AC50: =IF($F50="SPEC",COMP!K$69/1000,IFERROR(VLOOKUP($F50&$G50&$H50&$M50&COMP!$D$65&$I50&"L",AAMC!$A$4:$W$15377,10,FALSE)/1000,IFERROR(VLOOKUP($F50&$G50&$H50&$M50&COMP!$D$65&$I50&"L",MGMAC!$A$4:$W$15377,10,FALSE)/1000,IFERROR(VLOOKUP($F50&$G50&$H50&$M50&COMP!$D$65&$I50&"L",MGMACP!$A$4:$W$15377,10,FALSE)/1000,"no data")))) -> no data | AD50: =IF($F50="SPEC",COMP!L$69/1000,IFERROR(VLOOKUP($F50&$G50&$H50&$M50&COMP!$D$65&$I50&"L",AAMC!$A$4:$W$15377,15,FALSE)/1000,IFERROR(VLOOKUP($F50&$G50&$H50&$M50&COMP!$D$65&$I50&"L",MGMAC!$A$4:$W$15377,15,FALSE)/1000,IFERROR(VLOOKUP($F50&$G50&$H50&$M50&COMP!$D$65&$I50&"L",MGMACP!$A$4:$W$15377,15,FALSE)/1000,"no data")))) -> no data | AE50: =IF($F50="SPEC",COMP!M$69/1000,IFERROR(VLOOKUP($F50&$G50&$H50&$M50&COMP!$D$65&$I50&"L",AAMC!$A$4:$W$15377,20,FALSE)/1000,IFERROR(VLOOKUP($F50&$G50&$H50&$M50&COMP!$D$65&$I50&"L",MGMAC!$A$4:$W$15377,20,FALSE)/1000,IFERROR(VLOOKUP($F50&$G50&$H50&$M50&COMP!$D$65&$I50&"L",MGMACP!$A$4:$W$15377,20,FALSE)/1000,"no data")))) -> no data | AL50: 3 | AM50: 0 | AN50: =IF($J50=0,0,IF($B50="SPEC",COMP!$L$76,IF($B50="FPSC",IFERROR(VLOOKUP($B50&$C50&$D50&$E50&"L",FPSC!$A$4:$U$332,13,FALSE),"no data"),IF(B50&C50="MGMAAcademic",IFERROR(VLOOKUP($B50&$C50&$D50&$E50&"L",MGMAR!$A$4:$U$332,13,FALSE),"no data"),IFERROR(VLOOKUP($B50&$C50&$D50&$E50&"L",MGMARP!$A$4:$U$332,13,FALSE),"no data"))))) -> 0 | AO50: 0 | AP50: 0 | AQ50: 0 | AR50: 0 | AS50: 0 | AT50: 0 | AU50: 0 | AV50: 0 | AW50: 0 | AX50: 0
A51: 0 | B51: FPSC | C51: Academic | D51: All | E51: =IF($B51="MGMA",COMP!$D$67,IF($B51="FPSC",COMP!$D$66,IF($B51="SPEC",COMP!$K$77,"no data"))) -> [select] | F51: AAMC | G51: Academic | H51: All | I51: =IF($F51="AAMC",COMP!$D$64,IF($F51="MGMA",COMP!$D$67,IF($F51="SPEC",COMP!$K$70,"no data"))) -> [select] | V51: 0 | AA51: 0 | AB51: 0 | AC51: =IF($F51="SPEC",COMP!K$69/1000,IFERROR(VLOOKUP($F51&$G51&$H51&$M51&COMP!$D$65&$I51&"L",AAMC!$A$4:$W$15377,10,FALSE)/1000,IFERROR(VLOOKUP($F51&$G51&$H51&$M51&COMP!$D$65&$I51&"L",MGMAC!$A$4:$W$15377,10,FALSE)/1000,IFERROR(VLOOKUP($F51&$G51&$H51&$M51&COMP!$D$65&$I51&"L",MGMACP!$A$4:$W$15377,10,FALSE)/1000,"no data")))) -> no data | AD51: =IF($F51="SPEC",COMP!L$69/1000,IFERROR(VLOOKUP($F51&$G51&$H51&$M51&COMP!$D$65&$I51&"L",AAMC!$A$4:$W$15377,15,FALSE)/1000,IFERROR(VLOOKUP($F51&$G51&$H51&$M51&COMP!$D$65&$I51&"L",MGMAC!$A$4:$W$15377,15,FALSE)/1000,IFERROR(VLOOKUP($F51&$G51&$H51&$M51&COMP!$D$65&$I51&"L",MGMACP!$A$4:$W$15377,15,FALSE)/1000,"no data")))) -> no data | AE51: =IF($F51="SPEC",COMP!M$69/1000,IFERROR(VLOOKUP($F51&$G51&$H51&$M51&COMP!$D$65&$I51&"L",AAMC!$A$4:$W$15377,20,FALSE)/1000,IFERROR(VLOOKUP($F51&$G51&$H51&$M51&COMP!$D$65&$I51&"L",MGMAC!$A$4:$W$15377,20,FALSE)/1000,IFERROR(VLOOKUP($F51&$G51&$H51&$M51&COMP!$D$65&$I51&"L",MGMACP!$A$4:$W$15377,20,FALSE)/1000,"no data")))) -> no data | AL51: 3 | AM51: 0 | AN51: =IF($J51=0,0,IF($B51="SPEC",COMP!$L$76,IF($B51="FPSC",IFERROR(VLOOKUP($B51&$C51&$D51&$E51&"L",FPSC!$A$4:$U$332,13,FALSE),"no data"),IF(B51&C51="MGMAAcademic",IFERROR(VLOOKUP($B51&$C51&$D51&$E51&"L",MGMAR!$A$4:$U$332,13,FALSE),"no data"),IFERROR(VLOOKUP($B51&$C51&$D51&$E51&"L",MGMARP!$A$4:$U$332,13,FALSE),"no data"))))) -> 0 | AO51: 0 | AP51: 0 | AQ51: 0 | AR51: 0 | AS51: 0 | AT51: 0 | AU51: 0 | AV51: 0 | AW51: 0 | AX51: 0
A52: 1
A53: 1 | B53: Grand Totals | E53: Grand Totals | J53: =COUNTA(J9:J51)-1 -> 1 | P53: =SUM(P9:P51) -> 0 | Q53: 0 | R53: 0 | S53: =SUM(S9:S51) -> 0 | T53: 0 | U53: 0 | V53: 0 | X53: =SUM(X9:X51) -> 0 | Y53: 0 | Z53: 0 | AA53: 0 | AB53: 0 | AC53: 0 | AD53: 0 | AE53: 0 | AG53: =SUM(AG12:AG51) -> 0 | AH53: =SUM(AH12:AH51) -> 0 | AI53: =SUM(AI12:AI51) -> 0 | AJ53: =SUM(AJ12:AJ51) -> 0 | AM53: =SUM(AM12:AM51) -> 0 | AN53: =SUM(AN9:AN51) -> 0 | AO53: =SUM(AO9:AO51) -> 0 | AP53: =SUM(AP9:AP51) -> 0 | AQ53: =SUM(AQ9:AQ51) -> 0
A54: 1
A55: 1 | AB55: Div Over/(Under) Benchmark: | AC55: =$AB$53-AC53 -> 0 | AD55: =$AB$53-AD53 -> 0 | AE55: =$AB$53-AE53 -> 0 | AP55: CFTE Above/(Below) Expectation: | AQ55: =IF(AN53=0,0,AQ53/(AN53/J53)) -> 0
A56: =IF(J57>0,1,0) -> 0 | J56: Enter ALL faculty (assitant thru professor) within the same DIVISION sorted by Rank
A57: =IF(J57>0,1,0) -> 0 | B57: =$B$9 -> FPSC | C57: =$C$9 -> Academic | D57: =$D$9 -> All | E57: =IF($B57="MGMA",COMP!$D$67,IF($B57="FPSC",COMP!$D$66,IF($B57="SPEC",COMP!$K$77,"no data"))) -> [select] | F57: =$F$9 -> AAMC | G57: =$G$9 -> Academic | H57: =$H$9 -> All | I57: =IF($F57="AAMC",COMP!$D$64,IF($F57="MGMA",COMP!$D$67,IF($F57="SPEC",COMP!$K$70,"no data"))) -> [select] | V57: =SUM(P57:U57) -> 0 | AA57: =SUM(X57:Z57) -> 0 | AB57: =IF(V57=0,0,AA57/V57) -> 0 | AC57: =IF($F57="SPEC",COMP!K$69/1000,IFERROR(VLOOKUP($F57&$G57&$H57&$M57&COMP!$D$65&$I57&"L",AAMC!$A$4:$W$15377,10,FALSE)/1000,IFERROR(VLOOKUP($F57&$G57&$H57&$M57&COMP!$D$65&$I57&"L",MGMAC!$A$4:$W$15377,10,FALSE)/1000,IFERROR(VLOOKUP($F57&$G57&$H57&$M57&COMP!$D$65&$I57&"L",MGMACP!$A$4:$W$15377,10,FALSE)/1000,"no data")))) -> no data | AD57: =IF($F57="SPEC",COMP!L$69/1000,IFERROR(VLOOKUP($F57&$G57&$H57&$M57&COMP!$D$65&$I57&"L",AAMC!$A$4:$W$15377,15,FALSE)/1000,IFERROR(VLOOKUP($F57&$G57&$H57&$M57&COMP!$D$65&$I57&"L",MGMAC!$A$4:$W$15377,15,FALSE)/1000,IFERROR(VLOOKUP($F57&$G57&$H57&$M57&COMP!$D$65&$I57&"L",MGMACP!$A$4:$W$15377,15,FALSE)/1000,"no data")))) -> no data | AE57: =IF($F57="SPEC",COMP!M$69/1000,IFERROR(VLOOKUP($F57&$G57&$H57&$M57&COMP!$D$65&$I57&"L",AAMC!$A$4:$W$15377,20,FALSE)/1000,IFERROR(VLOOKUP($F57&$G57&$H57&$M57&COMP!$D$65&$I57&"L",MGMAC!$A$4:$W$15377,20,FALSE)/1000,IFERROR(VLOOKUP($F57&$G57&$H57&$M57&COMP!$D$65&$I57&"L",MGMACP!$A$4:$W$15377,20,FALSE)/1000,"no data")))) -> no data | AL57: =$AM$6 -> 3 | AM57: =AJ57/$AM$6*12 -> 0 | AN57: =IF($J57=0,0,IF($B57="SPEC",COMP!$L$76,IF($B57="FPSC",IFERROR(VLOOKUP($B57&$C57&$D57&$E57&"L",FPSC!$A$4:$U$332,13,FALSE),"no data"),IF(B57&C57="MGMAAcademic",IFERROR(VLOOKUP($B57&$C57&$D57&$E57&"L",MGMAR!$A$4:$U$332,13,FALSE),"no data"),IFERROR(VLOOKUP($B57&$C57&$D57&$E57&"L",MGMARP!$A$4:$U$332,13,FALSE),"no data"))))) -> 0 | AO57: =AN57*T57 -> 0 | AP57: =IF($AP$5="Prior",AI57,AM57) -> 0 | AQ57: =IFERROR(AP57-AO57,0) -> 0 | AR57: =IF(J57>0,IF(K57=0,1,0),0) -> 0 | AS57: =IF(J57>0,IF(L57=0,1,0),0) -> 0 | AT57: =IF(J57>0,IF(M57=0,1,0),0) -> 0 | AU57: =IF(J57>0,IF(V57=0,1,0),0) -> 0 | AV57: =IF(J57>0,IF(AA57=0,1,0),0) -> 0 | AW57: =IF($M$9=M57,1,0) -> 0 | AX57: =IF(AL57<>$AM$6,1,0) -> 0
A58: =IF(J58>0,1,0) -> 0 | B58: =$B$9 -> FPSC | C58: =$C$9 -> Academic | D58: =$D$9 -> All | E58: =IF($B58="MGMA",COMP!$D$67,IF($B58="FPSC",COMP!$D$66,IF($B58="SPEC",COMP!$K$77,"no data"))) -> [select] | F58: =$F$9 -> AAMC | G58: =$G$9 -> Academic | H58: =$H$9 -> All | I58: =IF($F58="AAMC",COMP!$D$64,IF($F58="MGMA",COMP!$D$67,IF($F58="SPEC",COMP!$K$70,"no data"))) -> [select] | V58: 0 | AA58: =SUM(X58:Z58) -> 0 | AB58: 0 | AC58: =IF($F58="SPEC",COMP!K$69/1000,IFERROR(VLOOKUP($F58&$G58&$H58&$M58&COMP!$D$65&$I58&"L",AAMC!$A$4:$W$15377,10,FALSE)/1000,IFERROR(VLOOKUP($F58&$G58&$H58&$M58&COMP!$D$65&$I58&"L",MGMAC!$A$4:$W$15377,10,FALSE)/1000,IFERROR(VLOOKUP($F58&$G58&$H58&$M58&COMP!$D$65&$I58&"L",MGMACP!$A$4:$W$15377,10,FALSE)/1000,"no data")))) -> no data | AD58: =IF($F58="SPEC",COMP!L$69/1000,IFERROR(VLOOKUP($F58&$G58&$H58&$M58&COMP!$D$65&$I58&"L",AAMC!$A$4:$W$15377,15,FALSE)/1000,IFERROR(VLOOKUP($F58&$G58&$H58&$M58&COMP!$D$65&$I58&"L",MGMAC!$A$4:$W$15377,15,FALSE)/1000,IFERROR(VLOOKUP($F58&$G58&$H58&$M58&COMP!$D$65&$I58&"L",MGMACP!$A$4:$W$15377,15,FALSE)/1000,"no data")))) -> no data | AE58: =IF($F58="SPEC",COMP!M$69/1000,IFERROR(VLOOKUP($F58&$G58&$H58&$M58&COMP!$D$65&$I58&"L",AAMC!$A$4:$W$15377,20,FALSE)/1000,IFERROR(VLOOKUP($F58&$G58&$H58&$M58&COMP!$D$65&$I58&"L",MGMAC!$A$4:$W$15377,20,FALSE)/1000,IFERROR(VLOOKUP($F58&$G58&$H58&$M58&COMP!$D$65&$I58&"L",MGMACP!$A$4:$W$15377,20,FALSE)/1000,"no data")))) -> no data | AL58: 3 | AM58: =AJ58/$AM$6*12 -> 0 | AN58: =IF($J58=0,0,IF($B58="SPEC",COMP!$L$76,IF($B58="FPSC",IFERROR(VLOOKUP($B58&$C58&$D58&$E58&"L",FPSC!$A$4:$U$332,13,FALSE),"no data"),IF(B58&C58="MGMAAcademic",IFERROR(VLOOKUP($B58&$C58&$D58&$E58&"L",MGMAR!$A$4:$U$332,13,FALSE),"no data"),IFERROR(VLOOKUP($B58&$C58&$D58&$E58&"L",MGMARP!$A$4:$U$332,13,FALSE),"no data"))))) -> 0 | AO58: 0 | AP58: =IF($AP$5="Prior",AI58,AM58) -> 0 | AQ58: =IFERROR(AP58-AO58,0) -> 0 | AR58: =IF(J58>0,IF(K58=0,1,0),0) -> 0 | AS58: =IF(J58>0,IF(L58=0,1,0),0) -> 0 | AT58: =IF(J58>0,IF(M58=0,1,0),0) -> 0 | AU58: 0 | AV58: 0 | AW58: 0 | AX58: 0
A59: =IF(J59>0,1,0) -> 0 | B59: FPSC | C59: Academic | D59: All | E59: =IF($B59="MGMA",COMP!$D$67,IF($B59="FPSC",COMP!$D$66,IF($B59="SPEC",COMP!$K$77,"no data"))) -> [select] | F59: AAMC | G59: Academic | H59: All | I59: =IF($F59="AAMC",COMP!$D$64,IF($F59="MGMA",COMP!$D$67,IF($F59="SPEC",COMP!$K$70,"no data"))) -> [select] | V59: 0 | AA59: 0 | AB59: 0 | AC59: =IF($F59="SPEC",COMP!K$69/1000,IFERROR(VLOOKUP($F59&$G59&$H59&$M59&COMP!$D$65&$I59&"L",AAMC!$A$4:$W$15377,10,FALSE)/1000,IFERROR(VLOOKUP($F59&$G59&$H59&$M59&COMP!$D$65&$I59&"L",MGMAC!$A$4:$W$15377,10,FALSE)/1000,IFERROR(VLOOKUP($F59&$G59&$H59&$M59&COMP!$D$65&$I59&"L",MGMACP!$A$4:$W$15377,10,FALSE)/1000,"no data")))) -> no data | AD59: =IF($F59="SPEC",COMP!L$69/1000,IFERROR(VLOOKUP($F59&$G59&$H59&$M59&COMP!$D$65&$I59&"L",AAMC!$A$4:$W$15377,15,FALSE)/1000,IFERROR(VLOOKUP($F59&$G59&$H59&$M59&COMP!$D$65&$I59&"L",MGMAC!$A$4:$W$15377,15,FALSE)/1000,IFERROR(VLOOKUP($F59&$G59&$H59&$M59&COMP!$D$65&$I59&"L",MGMACP!$A$4:$W$15377,15,FALSE)/1000,"no data")))) -> no data | AE59: =IF($F59="SPEC",COMP!M$69/1000,IFERROR(VLOOKUP($F59&$G59&$H59&$M59&COMP!$D$65&$I59&"L",AAMC!$A$4:$W$15377,20,FALSE)/1000,IFERROR(VLOOKUP($F59&$G59&$H59&$M59&COMP!$D$65&$I59&"L",MGMAC!$A$4:$W$15377,20,FALSE)/1000,IFERROR(VLOOKUP($F59&$G59&$H59&$M59&COMP!$D$65&$I59&"L",MGMACP!$A$4:$W$15377,20,FALSE)/1000,"no data")))) -> no data | AL59: 3 | AM59: 0 | AN59: =IF($J59=0,0,IF($B59="SPEC",COMP!$L$76,IF($B59="FPSC",IFERROR(VLOOKUP($B59&$C59&$D59&$E59&"L",FPSC!$A$4:$U$332,13,FALSE),"no data"),IF(B59&C59="MGMAAcademic",IFERROR(VLOOKUP($B59&$C59&$D59&$E59&"L",MGMAR!$A$4:$U$332,13,FALSE),"no data"),IFERROR(VLOOKUP($B59&$C59&$D59&$E59&"L",MGMARP!$A$4:$U$332,13,FALSE),"no data"))))) -> 0 | AO59: 0 | AP59: 0 | AQ59: 0 | AR59: 0 | AS59: 0 | AT59: 0 | AU59: 0 | AV59: 0 | AW59: 0 | AX59: 0
A60: 0 | B60: FPSC | C60: Academic | D60: All | E60: =IF($B60="MGMA",COMP!$D$67,IF($B60="FPSC",COMP!$D$66,IF($B60="SPEC",COMP!$K$77,"no data"))) -> [select] | F60: AAMC | G60: Academic | H60: All | I60: =IF($F60="AAMC",COMP!$D$64,IF($F60="MGMA",COMP!$D$67,IF($F60="SPEC",COMP!$K$70,"no data"))) -> [select] | V60: 0 | AA60: 0 | AB60: 0 | AC60: =IF($F60="SPEC",COMP!K$69/1000,IFERROR(VLOOKUP($F60&$G60&$H60&$M60&COMP!$D$65&$I60&"L",AAMC!$A$4:$W$15377,10,FALSE)/1000,IFERROR(VLOOKUP($F60&$G60&$H60&$M60&COMP!$D$65&$I60&"L",MGMAC!$A$4:$W$15377,10,FALSE)/1000,IFERROR(VLOOKUP($F60&$G60&$H60&$M60&COMP!$D$65&$I60&"L",MGMACP!$A$4:$W$15377,10,FALSE)/1000,"no data")))) -> no data | AD60: =IF($F60="SPEC",COMP!L$69/1000,IFERROR(VLOOKUP($F60&$G60&$H60&$M60&COMP!$D$65&$I60&"L",AAMC!$A$4:$W$15377,15,FALSE)/1000,IFERROR(VLOOKUP($F60&$G60&$H60&$M60&COMP!$D$65&$I60&"L",MGMAC!$A$4:$W$15377,15,FALSE)/1000,IFERROR(VLOOKUP($F60&$G60&$H60&$M60&COMP!$D$65&$I60&"L",MGMACP!$A$4:$W$15377,15,FALSE)/1000,"no data")))) -> no data | AE60: =IF($F60="SPEC",COMP!M$69/1000,IFERROR(VLOOKUP($F60&$G60&$H60&$M60&COMP!$D$65&$I60&"L",AAMC!$A$4:$W$15377,20,FALSE)/1000,IFERROR(VLOOKUP($F60&$G60&$H60&$M60&COMP!$D$65&$I60&"L",MGMAC!$A$4:$W$15377,20,FALSE)/1000,IFERROR(VLOOKUP($F60&$G60&$H60&$M60&COMP!$D$65&$I60&"L",MGMACP!$A$4:$W$15377,20,FALSE)/1000,"no data")))) -> no data | AL60: 3 | AM60: 0 | AN60: =IF($J60=0,0,IF($B60="SPEC",COMP!$L$76,IF($B60="FPSC",IFERROR(VLOOKUP($B60&$C60&$D60&$E60&"L",FPSC!$A$4:$U$332,13,FALSE),"no data"),IF(B60&C60="MGMAAcademic",IFERROR(VLOOKUP($B60&$C60&$D60&$E60&"L",MGMAR!$A$4:$U$332,13,FALSE),"no data"),IFERROR(VLOOKUP($B60&$C60&$D60&$E60&"L",MGMARP!$A$4:$U$332,13,FALSE),"no data"))))) -> 0 | AO60: 0 | AP60: 0 | AQ60: 0 | AR60: 0 | AS60: 0 | AT60: 0 | AU60: 0 | AV60: 0 | AW60: 0 | AX60: 0
A61: 0 | B61: FPSC | C61: Academic | D61: All | E61: =IF($B61="MGMA",COMP!$D$67,IF($B61="FPSC",COMP!$D$66,IF($B61="SPEC",COMP!$K$77,"no data"))) -> [select] | F61: AAMC | G61: Academic | H61: All | I61: =IF($F61="AAMC",COMP!$D$64,IF($F61="MGMA",COMP!$D$67,IF($F61="SPEC",COMP!$K$70,"no data"))) -> [select] | V61: 0 | AA61: 0 | AB61: 0 | AC61: =IF($F61="SPEC",COMP!K$69/1000,IFERROR(VLOOKUP($F61&$G61&$H61&$M61&COMP!$D$65&$I61&"L",AAMC!$A$4:$W$15377,10,FALSE)/1000,IFERROR(VLOOKUP($F61&$G61&$H61&$M61&COMP!$D$65&$I61&"L",MGMAC!$A$4:$W$15377,10,FALSE)/1000,IFERROR(VLOOKUP($F61&$G61&$H61&$M61&COMP!$D$65&$I61&"L",MGMACP!$A$4:$W$15377,10,FALSE)/1000,"no data")))) -> no data | AD61: =IF($F61="SPEC",COMP!L$69/1000,IFERROR(VLOOKUP($F61&$G61&$H61&$M61&COMP!$D$65&$I61&"L",AAMC!$A$4:$W$15377,15,FALSE)/1000,IFERROR(VLOOKUP($F61&$G61&$H61&$M61&COMP!$D$65&$I61&"L",MGMAC!$A$4:$W$15377,15,FALSE)/1000,IFERROR(VLOOKUP($F61&$G61&$H61&$M61&COMP!$D$65&$I61&"L",MGMACP!$A$4:$W$15377,15,FALSE)/1000,"no data")))) -> no data | AE61: =IF($F61="SPEC",COMP!M$69/1000,IFERROR(VLOOKUP($F61&$G61&$H61&$M61&COMP!$D$65&$I61&"L",AAMC!$A$4:$W$15377,20,FALSE)/1000,IFERROR(VLOOKUP($F61&$G61&$H61&$M61&COMP!$D$65&$I61&"L",MGMAC!$A$4:$W$15377,20,FALSE)/1000,IFERROR(VLOOKUP($F61&$G61&$H61&$M61&COMP!$D$65&$I61&"L",MGMACP!$A$4:$W$15377,20,FALSE)/1000,"no data")))) -> no data | AL61: 3 | AM61: 0 | AN61: =IF($J61=0,0,IF($B61="SPEC",COMP!$L$76,IF($B61="FPSC",IFERROR(VLOOKUP($B61&$C61&$D61&$E61&"L",FPSC!$A$4:$U$332,13,FALSE),"no data"),IF(B61&C61="MGMAAcademic",IFERROR(VLOOKUP($B61&$C61&$D61&$E61&"L",MGMAR!$A$4:$U$332,13,FALSE),"no data"),IFERROR(VLOOKUP($B61&$C61&$D61&$E61&"L",MGMARP!$A$4:$U$332,13,FALSE),"no data"))))) -> 0 | AO61: 0 | AP61: 0 | AQ61: 0 | AR61: 0 | AS61: 0 | AT61: 0 | AU61: 0 | AV61: 0 | AW61: 0 | AX61: 0
A62: 0 | B62: FPSC | C62: Academic | D62: All | E62: =IF($B62="MGMA",COMP!$D$67,IF($B62="FPSC",COMP!$D$66,IF($B62="SPEC",COMP!$K$77,"no data"))) -> [select] | F62: AAMC | G62: Academic | H62: All | I62: =IF($F62="AAMC",COMP!$D$64,IF($F62="MGMA",COMP!$D$67,IF($F62="SPEC",COMP!$K$70,"no data"))) -> [select] | V62: 0 | AA62: 0 | AB62: 0 | AC62: =IF($F62="SPEC",COMP!K$69/1000,IFERROR(VLOOKUP($F62&$G62&$H62&$M62&COMP!$D$65&$I62&"L",AAMC!$A$4:$W$15377,10,FALSE)/1000,IFERROR(VLOOKUP($F62&$G62&$H62&$M62&COMP!$D$65&$I62&"L",MGMAC!$A$4:$W$15377,10,FALSE)/1000,IFERROR(VLOOKUP($F62&$G62&$H62&$M62&COMP!$D$65&$I62&"L",MGMACP!$A$4:$W$15377,10,FALSE)/1000,"no data")))) -> no data | AD62: =IF($F62="SPEC",COMP!L$69/1000,IFERROR(VLOOKUP($F62&$G62&$H62&$M62&COMP!$D$65&$I62&"L",AAMC!$A$4:$W$15377,15,FALSE)/1000,IFERROR(VLOOKUP($F62&$G62&$H62&$M62&COMP!$D$65&$I62&"L",MGMAC!$A$4:$W$15377,15,FALSE)/1000,IFERROR(VLOOKUP($F62&$G62&$H62&$M62&COMP!$D$65&$I62&"L",MGMACP!$A$4:$W$15377,15,FALSE)/1000,"no data")))) -> no data | AE62: =IF($F62="SPEC",COMP!M$69/1000,IFERROR(VLOOKUP($F62&$G62&$H62&$M62&COMP!$D$65&$I62&"L",AAMC!$A$4:$W$15377,20,FALSE)/1000,IFERROR(VLOOKUP($F62&$G62&$H62&$M62&COMP!$D$65&$I62&"L",MGMAC!$A$4:$W$15377,20,FALSE)/1000,IFERROR(VLOOKUP($F62&$G62&$H62&$M62&COMP!$D$65&$I62&"L",MGMACP!$A$4:$W$15377,20,FALSE)/1000,"no data")))) -> no data | AL62: 3 | AM62: 0 | AN62: =IF($J62=0,0,IF($B62="SPEC",COMP!$L$76,IF($B62="FPSC",IFERROR(VLOOKUP($B62&$C62&$D62&$E62&"L",FPSC!$A$4:$U$332,13,FALSE),"no data"),IF(B62&C62="MGMAAcademic",IFERROR(VLOOKUP($B62&$C62&$D62&$E62&"L",MGMAR!$A$4:$U$332,13,FALSE),"no data"),IFERROR(VLOOKUP($B62&$C62&$D62&$E62&"L",MGMARP!$A$4:$U$332,13,FALSE),"no data"))))) -> 0 | AO62: 0 | AP62: 0 | AQ62: 0 | AR62: 0 | AS62: 0 | AT62: 0 | AU62: 0 | AV62: 0 | AW62: 0 | AX62: 0
A63: 0 | B63: FPSC | C63: Academic | D63: All | E63: =IF($B63="MGMA",COMP!$D$67,IF($B63="FPSC",COMP!$D$66,IF($B63="SPEC",COMP!$K$77,"no data"))) -> [select] | F63: AAMC | G63: Academic | H63: All | I63: =IF($F63="AAMC",COMP!$D$64,IF($F63="MGMA",COMP!$D$67,IF($F63="SPEC",COMP!$K$70,"no data"))) -> [select] | V63: 0 | AA63: 0 | AB63: 0 | AC63: =IF($F63="SPEC",COMP!K$69/1000,IFERROR(VLOOKUP($F63&$G63&$H63&$M63&COMP!$D$65&$I63&"L",AAMC!$A$4:$W$15377,10,FALSE)/1000,IFERROR(VLOOKUP($F63&$G63&$H63&$M63&COMP!$D$65&$I63&"L",MGMAC!$A$4:$W$15377,10,FALSE)/1000,IFERROR(VLOOKUP($F63&$G63&$H63&$M63&COMP!$D$65&$I63&"L",MGMACP!$A$4:$W$15377,10,FALSE)/1000,"no data")))) -> no data | AD63: =IF($F63="SPEC",COMP!L$69/1000,IFERROR(VLOOKUP($F63&$G63&$H63&$M63&COMP!$D$65&$I63&"L",AAMC!$A$4:$W$15377,15,FALSE)/1000,IFERROR(VLOOKUP($F63&$G63&$H63&$M63&COMP!$D$65&$I63&"L",MGMAC!$A$4:$W$15377,15,FALSE)/1000,IFERROR(VLOOKUP($F63&$G63&$H63&$M63&COMP!$D$65&$I63&"L",MGMACP!$A$4:$W$15377,15,FALSE)/1000,"no data")))) -> no data | AE63: =IF($F63="SPEC",COMP!M$69/1000,IFERROR(VLOOKUP($F63&$G63&$H63&$M63&COMP!$D$65&$I63&"L",AAMC!$A$4:$W$15377,20,FALSE)/1000,IFERROR(VLOOKUP($F63&$G63&$H63&$M63&COMP!$D$65&$I63&"L",MGMAC!$A$4:$W$15377,20,FALSE)/1000,IFERROR(VLOOKUP($F63&$G63&$H63&$M63&COMP!$D$65&$I63&"L",MGMACP!$A$4:$W$15377,20,FALSE)/1000,"no data")))) -> no data | AL63: 3 | AM63: 0 | AN63: =IF($J63=0,0,IF($B63="SPEC",COMP!$L$76,IF($B63="FPSC",IFERROR(VLOOKUP($B63&$C63&$D63&$E63&"L",FPSC!$A$4:$U$332,13,FALSE),"no data"),IF(B63&C63="MGMAAcademic",IFERROR(VLOOKUP($B63&$C63&$D63&$E63&"L",MGMAR!$A$4:$U$332,13,FALSE),"no data"),IFERROR(VLOOKUP($B63&$C63&$D63&$E63&"L",MGMARP!$A$4:$U$332,13,FALSE),"no data"))))) -> 0 | AO63: 0 | AP63: 0 | AQ63: 0 | AR63: 0 | AS63: 0 | AT63: 0 | AU63: 0 | AV63: 0 | AW63: 0 | AX63: 0
A64: 0 | B64: FPSC | C64: Academic | D64: All | E64: =IF($B64="MGMA",COMP!$D$67,IF($B64="FPSC",COMP!$D$66,IF($B64="SPEC",COMP!$K$77,"no data"))) -> [select] | F64: AAMC | G64: Academic | H64: All | I64: =IF($F64="AAMC",COMP!$D$64,IF($F64="MGMA",COMP!$D$67,IF($F64="SPEC",COMP!$K$70,"no data"))) -> [select] | V64: 0 | AA64: 0 | AB64: 0 | AC64: =IF($F64="SPEC",COMP!K$69/1000,IFERROR(VLOOKUP($F64&$G64&$H64&$M64&COMP!$D$65&$I64&"L",AAMC!$A$4:$W$15377,10,FALSE)/1000,IFERROR(VLOOKUP($F64&$G64&$H64&$M64&COMP!$D$65&$I64&"L",MGMAC!$A$4:$W$15377,10,FALSE)/1000,IFERROR(VLOOKUP($F64&$G64&$H64&$M64&COMP!$D$65&$I64&"L",MGMACP!$A$4:$W$15377,10,FALSE)/1000,"no data")))) -> no data | AD64: =IF($F64="SPEC",COMP!L$69/1000,IFERROR(VLOOKUP($F64&$G64&$H64&$M64&COMP!$D$65&$I64&"L",AAMC!$A$4:$W$15377,15,FALSE)/1000,IFERROR(VLOOKUP($F64&$G64&$H64&$M64&COMP!$D$65&$I64&"L",MGMAC!$A$4:$W$15377,15,FALSE)/1000,IFERROR(VLOOKUP($F64&$G64&$H64&$M64&COMP!$D$65&$I64&"L",MGMACP!$A$4:$W$15377,15,FALSE)/1000,"no data")))) -> no data | AE64: =IF($F64="SPEC",COMP!M$69/1000,IFERROR(VLOOKUP($F64&$G64&$H64&$M64&COMP!$D$65&$I64&"L",AAMC!$A$4:$W$15377,20,FALSE)/1000,IFERROR(VLOOKUP($F64&$G64&$H64&$M64&COMP!$D$65&$I64&"L",MGMAC!$A$4:$W$15377,20,FALSE)/1000,IFERROR(VLOOKUP($F64&$G64&$H64&$M64&COMP!$D$65&$I64&"L",MGMACP!$A$4:$W$15377,20,FALSE)/1000,"no data")))) -> no data | AL64: 3 | AM64: 0 | AN64: =IF($J64=0,0,IF($B64="SPEC",COMP!$L$76,IF($B64="FPSC",IFERROR(VLOOKUP($B64&$C64&$D64&$E64&"L",FPSC!$A$4:$U$332,13,FALSE),"no data"),IF(B64&C64="MGMAAcademic",IFERROR(VLOOKUP($B64&$C64&$D64&$E64&"L",MGMAR!$A$4:$U$332,13,FALSE),"no data"),IFERROR(VLOOKUP($B64&$C64&$D64&$E64&"L",MGMARP!$A$4:$U$332,13,FALSE),"no data"))))) -> 0 | AO64: 0 | AP64: 0 | AQ64: 0 | AR64: 0 | AS64: 0 | AT64: 0 | AU64: 0 | AV64: 0 | AW64: 0 | AX64: 0
A65: 0 | B65: FPSC | C65: Academic | D65: All | E65: =IF($B65="MGMA",COMP!$D$67,IF($B65="FPSC",COMP!$D$66,IF($B65="SPEC",COMP!$K$77,"no data"))) -> [select] | F65: AAMC | G65: Academic | H65: All | I65: =IF($F65="AAMC",COMP!$D$64,IF($F65="MGMA",COMP!$D$67,IF($F65="SPEC",COMP!$K$70,"no data"))) -> [select] | V65: 0 | AA65: 0 | AB65: 0 | AC65: =IF($F65="SPEC",COMP!K$69/1000,IFERROR(VLOOKUP($F65&$G65&$H65&$M65&COMP!$D$65&$I65&"L",AAMC!$A$4:$W$15377,10,FALSE)/1000,IFERROR(VLOOKUP($F65&$G65&$H65&$M65&COMP!$D$65&$I65&"L",MGMAC!$A$4:$W$15377,10,FALSE)/1000,IFERROR(VLOOKUP($F65&$G65&$H65&$M65&COMP!$D$65&$I65&"L",MGMACP!$A$4:$W$15377,10,FALSE)/1000,"no data")))) -> no data | AD65: =IF($F65="SPEC",COMP!L$69/1000,IFERROR(VLOOKUP($F65&$G65&$H65&$M65&COMP!$D$65&$I65&"L",AAMC!$A$4:$W$15377,15,FALSE)/1000,IFERROR(VLOOKUP($F65&$G65&$H65&$M65&COMP!$D$65&$I65&"L",MGMAC!$A$4:$W$15377,15,FALSE)/1000,IFERROR(VLOOKUP($F65&$G65&$H65&$M65&COMP!$D$65&$I65&"L",MGMACP!$A$4:$W$15377,15,FALSE)/1000,"no data")))) -> no data | AE65: =IF($F65="SPEC",COMP!M$69/1000,IFERROR(VLOOKUP($F65&$G65&$H65&$M65&COMP!$D$65&$I65&"L",AAMC!$A$4:$W$15377,20,FALSE)/1000,IFERROR(VLOOKUP($F65&$G65&$H65&$M65&COMP!$D$65&$I65&"L",MGMAC!$A$4:$W$15377,20,FALSE)/1000,IFERROR(VLOOKUP($F65&$G65&$H65&$M65&COMP!$D$65&$I65&"L",MGMACP!$A$4:$W$15377,20,FALSE)/1000,"no data")))) -> no data | AL65: 3 | AM65: 0 | AN65: =IF($J65=0,0,IF($B65="SPEC",COMP!$L$76,IF($B65="FPSC",IFERROR(VLOOKUP($B65&$C65&$D65&$E65&"L",FPSC!$A$4:$U$332,13,FALSE),"no data"),IF(B65&C65="MGMAAcademic",IFERROR(VLOOKUP($B65&$C65&$D65&$E65&"L",MGMAR!$A$4:$U$332,13,FALSE),"no data"),IFERROR(VLOOKUP($B65&$C65&$D65&$E65&"L",MGMARP!$A$4:$U$332,13,FALSE),"no data"))))) -> 0 | AO65: 0 | AP65: 0 | AQ65: 0 | AR65: 0 | AS65: 0 | AT65: 0 | AU65: 0 | AV65: 0 | AW65: 0 | AX65: 0
A66: 0 | B66: FPSC | C66: Academic | D66: All | E66: =IF($B66="MGMA",COMP!$D$67,IF($B66="FPSC",COMP!$D$66,IF($B66="SPEC",COMP!$K$77,"no data"))) -> [select] | F66: AAMC | G66: Academic | H66: All | I66: =IF($F66="AAMC",COMP!$D$64,IF($F66="MGMA",COMP!$D$67,IF($F66="SPEC",COMP!$K$70,"no data"))) -> [select] | V66: 0 | AA66: 0 | AB66: 0 | AC66: =IF($F66="SPEC",COMP!K$69/1000,IFERROR(VLOOKUP($F66&$G66&$H66&$M66&COMP!$D$65&$I66&"L",AAMC!$A$4:$W$15377,10,FALSE)/1000,IFERROR(VLOOKUP($F66&$G66&$H66&$M66&COMP!$D$65&$I66&"L",MGMAC!$A$4:$W$15377,10,FALSE)/1000,IFERROR(VLOOKUP($F66&$G66&$H66&$M66&COMP!$D$65&$I66&"L",MGMACP!$A$4:$W$15377,10,FALSE)/1000,"no data")))) -> no data | AD66: =IF($F66="SPEC",COMP!L$69/1000,IFERROR(VLOOKUP($F66&$G66&$H66&$M66&COMP!$D$65&$I66&"L",AAMC!$A$4:$W$15377,15,FALSE)/1000,IFERROR(VLOOKUP($F66&$G66&$H66&$M66&COMP!$D$65&$I66&"L",MGMAC!$A$4:$W$15377,15,FALSE)/1000,IFERROR(VLOOKUP($F66&$G66&$H66&$M66&COMP!$D$65&$I66&"L",MGMACP!$A$4:$W$15377,15,FALSE)/1000,"no data")))) -> no data | AE66: =IF($F66="SPEC",COMP!M$69/1000,IFERROR(VLOOKUP($F66&$G66&$H66&$M66&COMP!$D$65&$I66&"L",AAMC!$A$4:$W$15377,20,FALSE)/1000,IFERROR(VLOOKUP($F66&$G66&$H66&$M66&COMP!$D$65&$I66&"L",MGMAC!$A$4:$W$15377,20,FALSE)/1000,IFERROR(VLOOKUP($F66&$G66&$H66&$M66&COMP!$D$65&$I66&"L",MGMACP!$A$4:$W$15377,20,FALSE)/1000,"no data")))) -> no data | AL66: 3 | AM66: 0 | AN66: =IF($J66=0,0,IF($B66="SPEC",COMP!$L$76,IF($B66="FPSC",IFERROR(VLOOKUP($B66&$C66&$D66&$E66&"L",FPSC!$A$4:$U$332,13,FALSE),"no data"),IF(B66&C66="MGMAAcademic",IFERROR(VLOOKUP($B66&$C66&$D66&$E66&"L",MGMAR!$A$4:$U$332,13,FALSE),"no data"),IFERROR(VLOOKUP($B66&$C66&$D66&$E66&"L",MGMARP!$A$4:$U$332,13,FALSE),"no data"))))) -> 0 | AO66: 0 | AP66: 0 | AQ66: 0 | AR66: 0 | AS66: 0 | AT66: 0 | AU66: 0 | AV66: 0 | AW66: 0 | AX66: 0
A67: 0 | B67: FPSC | C67: Academic | D67: All | E67: =IF($B67="MGMA",COMP!$D$67,IF($B67="FPSC",COMP!$D$66,IF($B67="SPEC",COMP!$K$77,"no data"))) -> [select] | F67: AAMC | G67: Academic | H67: All | I67: =IF($F67="AAMC",COMP!$D$64,IF($F67="MGMA",COMP!$D$67,IF($F67="SPEC",COMP!$K$70,"no data"))) -> [select] | V67: 0 | AA67: 0 | AB67: 0 | AC67: =IF($F67="SPEC",COMP!K$69/1000,IFERROR(VLOOKUP($F67&$G67&$H67&$M67&COMP!$D$65&$I67&"L",AAMC!$A$4:$W$15377,10,FALSE)/1000,IFERROR(VLOOKUP($F67&$G67&$H67&$M67&COMP!$D$65&$I67&"L",MGMAC!$A$4:$W$15377,10,FALSE)/1000,IFERROR(VLOOKUP($F67&$G67&$H67&$M67&COMP!$D$65&$I67&"L",MGMACP!$A$4:$W$15377,10,FALSE)/1000,"no data")))) -> no data | AD67: =IF($F67="SPEC",COMP!L$69/1000,IFERROR(VLOOKUP($F67&$G67&$H67&$M67&COMP!$D$65&$I67&"L",AAMC!$A$4:$W$15377,15,FALSE)/1000,IFERROR(VLOOKUP($F67&$G67&$H67&$M67&COMP!$D$65&$I67&"L",MGMAC!$A$4:$W$15377,15,FALSE)/1000,IFERROR(VLOOKUP($F67&$G67&$H67&$M67&COMP!$D$65&$I67&"L",MGMACP!$A$4:$W$15377,15,FALSE)/1000,"no data")))) -> no data | AE67: =IF($F67="SPEC",COMP!M$69/1000,IFERROR(VLOOKUP($F67&$G67&$H67&$M67&COMP!$D$65&$I67&"L",AAMC!$A$4:$W$15377,20,FALSE)/1000,IFERROR(VLOOKUP($F67&$G67&$H67&$M67&COMP!$D$65&$I67&"L",MGMAC!$A$4:$W$15377,20,FALSE)/1000,IFERROR(VLOOKUP($F67&$G67&$H67&$M67&COMP!$D$65&$I67&"L",MGMACP!$A$4:$W$15377,20,FALSE)/1000,"no data")))) -> no data | AL67: 3 | AM67: 0 | AN67: =IF($J67=0,0,IF($B67="SPEC",COMP!$L$76,IF($B67="FPSC",IFERROR(VLOOKUP($B67&$C67&$D67&$E67&"L",FPSC!$A$4:$U$332,13,FALSE),"no data"),IF(B67&C67="MGMAAcademic",IFERROR(VLOOKUP($B67&$C67&$D67&$E67&"L",MGMAR!$A$4:$U$332,13,FALSE),"no data"),IFERROR(VLOOKUP($B67&$C67&$D67&$E67&"L",MGMARP!$A$4:$U$332,13,FALSE),"no data"))))) -> 0 | AO67: 0 | AP67: 0 | AQ67: 0 | AR67: 0 | AS67: 0 | AT67: 0 | AU67: 0 | AV67: 0 | AW67: 0 | AX67: 0
A68: 0 | B68: FPSC | C68: Academic | D68: All | E68: =IF($B68="MGMA",COMP!$D$67,IF($B68="FPSC",COMP!$D$66,IF($B68="SPEC",COMP!$K$77,"no data"))) -> [select] | F68: AAMC | G68: Academic | H68: All | I68: =IF($F68="AAMC",COMP!$D$64,IF($F68="MGMA",COMP!$D$67,IF($F68="SPEC",COMP!$K$70,"no data"))) -> [select] | V68: 0 | AA68: 0 | AB68: 0 | AC68: =IF($F68="SPEC",COMP!K$69/1000,IFERROR(VLOOKUP($F68&$G68&$H68&$M68&COMP!$D$65&$I68&"L",AAMC!$A$4:$W$15377,10,FALSE)/1000,IFERROR(VLOOKUP($F68&$G68&$H68&$M68&COMP!$D$65&$I68&"L",MGMAC!$A$4:$W$15377,10,FALSE)/1000,IFERROR(VLOOKUP($F68&$G68&$H68&$M68&COMP!$D$65&$I68&"L",MGMACP!$A$4:$W$15377,10,FALSE)/1000,"no data")))) -> no data | AD68: =IF($F68="SPEC",COMP!L$69/1000,IFERROR(VLOOKUP($F68&$G68&$H68&$M68&COMP!$D$65&$I68&"L",AAMC!$A$4:$W$15377,15,FALSE)/1000,IFERROR(VLOOKUP($F68&$G68&$H68&$M68&COMP!$D$65&$I68&"L",MGMAC!$A$4:$W$15377,15,FALSE)/1000,IFERROR(VLOOKUP($F68&$G68&$H68&$M68&COMP!$D$65&$I68&"L",MGMACP!$A$4:$W$15377,15,FALSE)/1000,"no data")))) -> no data | AE68: =IF($F68="SPEC",COMP!M$69/1000,IFERROR(VLOOKUP($F68&$G68&$H68&$M68&COMP!$D$65&$I68&"L",AAMC!$A$4:$W$15377,20,FALSE)/1000,IFERROR(VLOOKUP($F68&$G68&$H68&$M68&COMP!$D$65&$I68&"L",MGMAC!$A$4:$W$15377,20,FALSE)/1000,IFERROR(VLOOKUP($F68&$G68&$H68&$M68&COMP!$D$65&$I68&"L",MGMACP!$A$4:$W$15377,20,FALSE)/1000,"no data")))) -> no data | AL68: 3 | AM68: 0 | AN68: =IF($J68=0,0,IF($B68="SPEC",COMP!$L$76,IF($B68="FPSC",IFERROR(VLOOKUP($B68&$C68&$D68&$E68&"L",FPSC!$A$4:$U$332,13,FALSE),"no data"),IF(B68&C68="MGMAAcademic",IFERROR(VLOOKUP($B68&$C68&$D68&$E68&"L",MGMAR!$A$4:$U$332,13,FALSE),"no data"),IFERROR(VLOOKUP($B68&$C68&$D68&$E68&"L",MGMARP!$A$4:$U$332,13,FALSE),"no data"))))) -> 0 | AO68: 0 | AP68: 0 | AQ68: 0 | AR68: 0 | AS68: 0 | AT68: 0 | AU68: 0 | AV68: 0 | AW68: 0 | AX68: 0
A69: 0 | B69: FPSC | C69: Academic | D69: All | E69: =IF($B69="MGMA",COMP!$D$67,IF($B69="FPSC",COMP!$D$66,IF($B69="SPEC",COMP!$K$77,"no data"))) -> [select] | F69: AAMC | G69: Academic | H69: All | I69: =IF($F69="AAMC",COMP!$D$64,IF($F69="MGMA",COMP!$D$67,IF($F69="SPEC",COMP!$K$70,"no data"))) -> [select] | V69: 0 | AA69: 0 | AB69: 0 | AC69: =IF($F69="SPEC",COMP!K$69/1000,IFERROR(VLOOKUP($F69&$G69&$H69&$M69&COMP!$D$65&$I69&"L",AAMC!$A$4:$W$15377,10,FALSE)/1000,IFERROR(VLOOKUP($F69&$G69&$H69&$M69&COMP!$D$65&$I69&"L",MGMAC!$A$4:$W$15377,10,FALSE)/1000,IFERROR(VLOOKUP($F69&$G69&$H69&$M69&COMP!$D$65&$I69&"L",MGMACP!$A$4:$W$15377,10,FALSE)/1000,"no data")))) -> no data | AD69: =IF($F69="SPEC",COMP!L$69/1000,IFERROR(VLOOKUP($F69&$G69&$H69&$M69&COMP!$D$65&$I69&"L",AAMC!$A$4:$W$15377,15,FALSE)/1000,IFERROR(VLOOKUP($F69&$G69&$H69&$M69&COMP!$D$65&$I69&"L",MGMAC!$A$4:$W$15377,15,FALSE)/1000,IFERROR(VLOOKUP($F69&$G69&$H69&$M69&COMP!$D$65&$I69&"L",MGMACP!$A$4:$W$15377,15,FALSE)/1000,"no data")))) -> no data | AE69: =IF($F69="SPEC",COMP!M$69/1000,IFERROR(VLOOKUP($F69&$G69&$H69&$M69&COMP!$D$65&$I69&"L",AAMC!$A$4:$W$15377,20,FALSE)/1000,IFERROR(VLOOKUP($F69&$G69&$H69&$M69&COMP!$D$65&$I69&"L",MGMAC!$A$4:$W$15377,20,FALSE)/1000,IFERROR(VLOOKUP($F69&$G69&$H69&$M69&COMP!$D$65&$I69&"L",MGMACP!$A$4:$W$15377,20,FALSE)/1000,"no data")))) -> no data | AL69: 3 | AM69: 0 | AN69: =IF($J69=0,0,IF($B69="SPEC",COMP!$L$76,IF($B69="FPSC",IFERROR(VLOOKUP($B69&$C69&$D69&$E69&"L",FPSC!$A$4:$U$332,13,FALSE),"no data"),IF(B69&C69="MGMAAcademic",IFERROR(VLOOKUP($B69&$C69&$D69&$E69&"L",MGMAR!$A$4:$U$332,13,FALSE),"no data"),IFERROR(VLOOKUP($B69&$C69&$D69&$E69&"L",MGMARP!$A$4:$U$332,13,FALSE),"no data"))))) -> 0 | AO69: 0 | AP69: 0 | AQ69: 0 | AR69: 0 | AS69: 0 | AT69: 0 | AU69: 0 | AV69: 0 | AW69: 0 | AX69: 0
A70: 0 | B70: FPSC | C70: Academic | D70: All | E70: =IF($B70="MGMA",COMP!$D$67,IF($B70="FPSC",COMP!$D$66,IF($B70="SPEC",COMP!$K$77,"no data"))) -> [select] | F70: AAMC | G70: Academic | H70: All | I70: =IF($F70="AAMC",COMP!$D$64,IF($F70="MGMA",COMP!$D$67,IF($F70="SPEC",COMP!$K$70,"no data"))) -> [select] | V70: 0 | AA70: 0 | AB70: 0 | AC70: =IF($F70="SPEC",COMP!K$69/1000,IFERROR(VLOOKUP($F70&$G70&$H70&$M70&COMP!$D$65&$I70&"L",AAMC!$A$4:$W$15377,10,FALSE)/1000,IFERROR(VLOOKUP($F70&$G70&$H70&$M70&COMP!$D$65&$I70&"L",MGMAC!$A$4:$W$15377,10,FALSE)/1000,IFERROR(VLOOKUP($F70&$G70&$H70&$M70&COMP!$D$65&$I70&"L",MGMACP!$A$4:$W$15377,10,FALSE)/1000,"no data")))) -> no data | AD70: =IF($F70="SPEC",COMP!L$69/1000,IFERROR(VLOOKUP($F70&$G70&$H70&$M70&COMP!$D$65&$I70&"L",AAMC!$A$4:$W$15377,15,FALSE)/1000,IFERROR(VLOOKUP($F70&$G70&$H70&$M70&COMP!$D$65&$I70&"L",MGMAC!$A$4:$W$15377,15,FALSE)/1000,IFERROR(VLOOKUP($F70&$G70&$H70&$M70&COMP!$D$65&$I70&"L",MGMACP!$A$4:$W$15377,15,FALSE)/1000,"no data")))) -> no data | AE70: =IF($F70="SPEC",COMP!M$69/1000,IFERROR(VLOOKUP($F70&$G70&$H70&$M70&COMP!$D$65&$I70&"L",AAMC!$A$4:$W$15377,20,FALSE)/1000,IFERROR(VLOOKUP($F70&$G70&$H70&$M70&COMP!$D$65&$I70&"L",MGMAC!$A$4:$W$15377,20,FALSE)/1000,IFERROR(VLOOKUP($F70&$G70&$H70&$M70&COMP!$D$65&$I70&"L",MGMACP!$A$4:$W$15377,20,FALSE)/1000,"no data")))) -> no data | AL70: 3 | AM70: 0 | AN70: =IF($J70=0,0,IF($B70="SPEC",COMP!$L$76,IF($B70="FPSC",IFERROR(VLOOKUP($B70&$C70&$D70&$E70&"L",FPSC!$A$4:$U$332,13,FALSE),"no data"),IF(B70&C70="MGMAAcademic",IFERROR(VLOOKUP($B70&$C70&$D70&$E70&"L",MGMAR!$A$4:$U$332,13,FALSE),"no data"),IFERROR(VLOOKUP($B70&$C70&$D70&$E70&"L",MGMARP!$A$4:$U$332,13,FALSE),"no data"))))) -> 0 | AO70: 0 | AP70: 0 | AQ70: 0 | AR70: 0 | AS70: 0 | AT70: 0 | AU70: 0 | AV70: 0 | AW70: 0 | AX70: 0
A71: 0 | B71: FPSC | C71: Academic | D71: All | E71: =IF($B71="MGMA",COMP!$D$67,IF($B71="FPSC",COMP!$D$66,IF($B71="SPEC",COMP!$K$77,"no data"))) -> [select] | F71: AAMC | G71: Academic | H71: All | I71: =IF($F71="AAMC",COMP!$D$64,IF($F71="MGMA",COMP!$D$67,IF($F71="SPEC",COMP!$K$70,"no data"))) -> [select] | V71: 0 | AA71: 0 | AB71: 0 | AC71: =IF($F71="SPEC",COMP!K$69/1000,IFERROR(VLOOKUP($F71&$G71&$H71&$M71&COMP!$D$65&$I71&"L",AAMC!$A$4:$W$15377,10,FALSE)/1000,IFERROR(VLOOKUP($F71&$G71&$H71&$M71&COMP!$D$65&$I71&"L",MGMAC!$A$4:$W$15377,10,FALSE)/1000,IFERROR(VLOOKUP($F71&$G71&$H71&$M71&COMP!$D$65&$I71&"L",MGMACP!$A$4:$W$15377,10,FALSE)/1000,"no data")))) -> no data | AD71: =IF($F71="SPEC",COMP!L$69/1000,IFERROR(VLOOKUP($F71&$G71&$H71&$M71&COMP!$D$65&$I71&"L",AAMC!$A$4:$W$15377,15,FALSE)/1000,IFERROR(VLOOKUP($F71&$G71&$H71&$M71&COMP!$D$65&$I71&"L",MGMAC!$A$4:$W$15377,15,FALSE)/1000,IFERROR(VLOOKUP($F71&$G71&$H71&$M71&COMP!$D$65&$I71&"L",MGMACP!$A$4:$W$15377,15,FALSE)/1000,"no data")))) -> no data | AE71: =IF($F71="SPEC",COMP!M$69/1000,IFERROR(VLOOKUP($F71&$G71&$H71&$M71&COMP!$D$65&$I71&"L",AAMC!$A$4:$W$15377,20,FALSE)/1000,IFERROR(VLOOKUP($F71&$G71&$H71&$M71&COMP!$D$65&$I71&"L",MGMAC!$A$4:$W$15377,20,FALSE)/1000,IFERROR(VLOOKUP($F71&$G71&$H71&$M71&COMP!$D$65&$I71&"L",MGMACP!$A$4:$W$15377,20,FALSE)/1000,"no data")))) -> no data | AL71: 3 | AM71: 0 | AN71: =IF($J71=0,0,IF($B71="SPEC",COMP!$L$76,IF($B71="FPSC",IFERROR(VLOOKUP($B71&$C71&$D71&$E71&"L",FPSC!$A$4:$U$332,13,FALSE),"no data"),IF(B71&C71="MGMAAcademic",IFERROR(VLOOKUP($B71&$C71&$D71&$E71&"L",MGMAR!$A$4:$U$332,13,FALSE),"no data"),IFERROR(VLOOKUP($B71&$C71&$D71&$E71&"L",MGMARP!$A$4:$U$332,13,FALSE),"no data"))))) -> 0 | AO71: 0 | AP71: 0 | AQ71: 0 | AR71: 0 | AS71: 0 | AT71: 0 | AU71: 0 | AV71: 0 | AW71: 0 | AX71: 0
A72: 0 | B72: FPSC | C72: Academic | D72: All | E72: =IF($B72="MGMA",COMP!$D$67,IF($B72="FPSC",COMP!$D$66,IF($B72="SPEC",COMP!$K$77,"no data"))) -> [select] | F72: AAMC | G72: Academic | H72: All | I72: =IF($F72="AAMC",COMP!$D$64,IF($F72="MGMA",COMP!$D$67,IF($F72="SPEC",COMP!$K$70,"no data"))) -> [select] | V72: 0 | AA72: 0 | AB72: 0 | AC72: =IF($F72="SPEC",COMP!K$69/1000,IFERROR(VLOOKUP($F72&$G72&$H72&$M72&COMP!$D$65&$I72&"L",AAMC!$A$4:$W$15377,10,FALSE)/1000,IFERROR(VLOOKUP($F72&$G72&$H72&$M72&COMP!$D$65&$I72&"L",MGMAC!$A$4:$W$15377,10,FALSE)/1000,IFERROR(VLOOKUP($F72&$G72&$H72&$M72&COMP!$D$65&$I72&"L",MGMACP!$A$4:$W$15377,10,FALSE)/1000,"no data")))) -> no data | AD72: =IF($F72="SPEC",COMP!L$69/1000,IFERROR(VLOOKUP($F72&$G72&$H72&$M72&COMP!$D$65&$I72&"L",AAMC!$A$4:$W$15377,15,FALSE)/1000,IFERROR(VLOOKUP($F72&$G72&$H72&$M72&COMP!$D$65&$I72&"L",MGMAC!$A$4:$W$15377,15,FALSE)/1000,IFERROR(VLOOKUP($F72&$G72&$H72&$M72&COMP!$D$65&$I72&"L",MGMACP!$A$4:$W$15377,15,FALSE)/1000,"no data")))) -> no data | AE72: =IF($F72="SPEC",COMP!M$69/1000,IFERROR(VLOOKUP($F72&$G72&$H72&$M72&COMP!$D$65&$I72&"L",AAMC!$A$4:$W$15377,20,FALSE)/1000,IFERROR(VLOOKUP($F72&$G72&$H72&$M72&COMP!$D$65&$I72&"L",MGMAC!$A$4:$W$15377,20,FALSE)/1000,IFERROR(VLOOKUP($F72&$G72&$H72&$M72&COMP!$D$65&$I72&"L",MGMACP!$A$4:$W$15377,20,FALSE)/1000,"no data")))) -> no data | AL72: 3 | AM72: 0 | AN72: =IF($J72=0,0,IF($B72="SPEC",COMP!$L$76,IF($B72="FPSC",IFERROR(VLOOKUP($B72&$C72&$D72&$E72&"L",FPSC!$A$4:$U$332,13,FALSE),"no data"),IF(B72&C72="MGMAAcademic",IFERROR(VLOOKUP($B72&$C72&$D72&$E72&"L",MGMAR!$A$4:$U$332,13,FALSE),"no data"),IFERROR(VLOOKUP($B72&$C72&$D72&$E72&"L",MGMARP!$A$4:$U$332,13,FALSE),"no data"))))) -> 0 | AO72: 0 | AP72: 0 | AQ72: 0 | AR72: 0 | AS72: 0 | AT72: 0 | AU72: 0 | AV72: 0 | AW72: 0 | AX72: 0
A73: 0 | B73: FPSC | C73: Academic | D73: All | E73: =IF($B73="MGMA",COMP!$D$67,IF($B73="FPSC",COMP!$D$66,IF($B73="SPEC",COMP!$K$77,"no data"))) -> [select] | F73: AAMC | G73: Academic | H73: All | I73: =IF($F73="AAMC",COMP!$D$64,IF($F73="MGMA",COMP!$D$67,IF($F73="SPEC",COMP!$K$70,"no data"))) -> [select] | V73: 0 | AA73: 0 | AB73: 0 | AC73: =IF($F73="SPEC",COMP!K$69/1000,IFERROR(VLOOKUP($F73&$G73&$H73&$M73&COMP!$D$65&$I73&"L",AAMC!$A$4:$W$15377,10,FALSE)/1000,IFERROR(VLOOKUP($F73&$G73&$H73&$M73&COMP!$D$65&$I73&"L",MGMAC!$A$4:$W$15377,10,FALSE)/1000,IFERROR(VLOOKUP($F73&$G73&$H73&$M73&COMP!$D$65&$I73&"L",MGMACP!$A$4:$W$15377,10,FALSE)/1000,"no data")))) -> no data | AD73: =IF($F73="SPEC",COMP!L$69/1000,IFERROR(VLOOKUP($F73&$G73&$H73&$M73&COMP!$D$65&$I73&"L",AAMC!$A$4:$W$15377,15,FALSE)/1000,IFERROR(VLOOKUP($F73&$G73&$H73&$M73&COMP!$D$65&$I73&"L",MGMAC!$A$4:$W$15377,15,FALSE)/1000,IFERROR(VLOOKUP($F73&$G73&$H73&$M73&COMP!$D$65&$I73&"L",MGMACP!$A$4:$W$15377,15,FALSE)/1000,"no data")))) -> no data | AE73: =IF($F73="SPEC",COMP!M$69/1000,IFERROR(VLOOKUP($F73&$G73&$H73&$M73&COMP!$D$65&$I73&"L",AAMC!$A$4:$W$15377,20,FALSE)/1000,IFERROR(VLOOKUP($F73&$G73&$H73&$M73&COMP!$D$65&$I73&"L",MGMAC!$A$4:$W$15377,20,FALSE)/1000,IFERROR(VLOOKUP($F73&$G73&$H73&$M73&COMP!$D$65&$I73&"L",MGMACP!$A$4:$W$15377,20,FALSE)/1000,"no data")))) -> no data | AL73: 3 | AM73: 0 | AN73: =IF($J73=0,0,IF($B73="SPEC",COMP!$L$76,IF($B73="FPSC",IFERROR(VLOOKUP($B73&$C73&$D73&$E73&"L",FPSC!$A$4:$U$332,13,FALSE),"no data"),IF(B73&C73="MGMAAcademic",IFERROR(VLOOKUP($B73&$C73&$D73&$E73&"L",MGMAR!$A$4:$U$332,13,FALSE),"no data"),IFERROR(VLOOKUP($B73&$C73&$D73&$E73&"L",MGMARP!$A$4:$U$332,13,FALSE),"no data"))))) -> 0 | AO73: 0 | AP73: 0 | AQ73: 0 | AR73: 0 | AS73: 0 | AT73: 0 | AU73: 0 | AV73: 0 | AW73: 0 | AX73: 0
A74: 0 | B74: FPSC | C74: Academic | D74: All | E74: =IF($B74="MGMA",COMP!$D$67,IF($B74="FPSC",COMP!$D$66,IF($B74="SPEC",COMP!$K$77,"no data"))) -> [select] | F74: AAMC | G74: Academic | H74: All | I74: =IF($F74="AAMC",COMP!$D$64,IF($F74="MGMA",COMP!$D$67,IF($F74="SPEC",COMP!$K$70,"no data"))) -> [select] | V74: 0 | AA74: 0 | AB74: 0 | AC74: =IF($F74="SPEC",COMP!K$69/1000,IFERROR(VLOOKUP($F74&$G74&$H74&$M74&COMP!$D$65&$I74&"L",AAMC!$A$4:$W$15377,10,FALSE)/1000,IFERROR(VLOOKUP($F74&$G74&$H74&$M74&COMP!$D$65&$I74&"L",MGMAC!$A$4:$W$15377,10,FALSE)/1000,IFERROR(VLOOKUP($F74&$G74&$H74&$M74&COMP!$D$65&$I74&"L",MGMACP!$A$4:$W$15377,10,FALSE)/1000,"no data")))) -> no data | AD74: =IF($F74="SPEC",COMP!L$69/1000,IFERROR(VLOOKUP($F74&$G74&$H74&$M74&COMP!$D$65&$I74&"L",AAMC!$A$4:$W$15377,15,FALSE)/1000,IFERROR(VLOOKUP($F74&$G74&$H74&$M74&COMP!$D$65&$I74&"L",MGMAC!$A$4:$W$15377,15,FALSE)/1000,IFERROR(VLOOKUP($F74&$G74&$H74&$M74&COMP!$D$65&$I74&"L",MGMACP!$A$4:$W$15377,15,FALSE)/1000,"no data")))) -> no data | AE74: =IF($F74="SPEC",COMP!M$69/1000,IFERROR(VLOOKUP($F74&$G74&$H74&$M74&COMP!$D$65&$I74&"L",AAMC!$A$4:$W$15377,20,FALSE)/1000,IFERROR(VLOOKUP($F74&$G74&$H74&$M74&COMP!$D$65&$I74&"L",MGMAC!$A$4:$W$15377,20,FALSE)/1000,IFERROR(VLOOKUP($F74&$G74&$H74&$M74&COMP!$D$65&$I74&"L",MGMACP!$A$4:$W$15377,20,FALSE)/1000,"no data")))) -> no data | AL74: 3 | AM74: 0 | AN74: =IF($J74=0,0,IF($B74="SPEC",COMP!$L$76,IF($B74="FPSC",IFERROR(VLOOKUP($B74&$C74&$D74&$E74&"L",FPSC!$A$4:$U$332,13,FALSE),"no data"),IF(B74&C74="MGMAAcademic",IFERROR(VLOOKUP($B74&$C74&$D74&$E74&"L",MGMAR!$A$4:$U$332,13,FALSE),"no data"),IFERROR(VLOOKUP($B74&$C74&$D74&$E74&"L",MGMARP!$A$4:$U$332,13,FALSE),"no data"))))) -> 0 | AO74: 0 | AP74: 0 | AQ74: 0 | AR74: 0 | AS74: 0 | AT74: 0 | AU74: 0 | AV74: 0 | AW74: 0 | AX74: 0
A75: 0 | B75: FPSC | C75: Academic | D75: All | E75: =IF($B75="MGMA",COMP!$D$67,IF($B75="FPSC",COMP!$D$66,IF($B75="SPEC",COMP!$K$77,"no data"))) -> [select] | F75: AAMC | G75: Academic | H75: All | I75: =IF($F75="AAMC",COMP!$D$64,IF($F75="MGMA",COMP!$D$67,IF($F75="SPEC",COMP!$K$70,"no data"))) -> [select] | V75: 0 | AA75: 0 | AB75: 0 | AC75: =IF($F75="SPEC",COMP!K$69/1000,IFERROR(VLOOKUP($F75&$G75&$H75&$M75&COMP!$D$65&$I75&"L",AAMC!$A$4:$W$15377,10,FALSE)/1000,IFERROR(VLOOKUP($F75&$G75&$H75&$M75&COMP!$D$65&$I75&"L",MGMAC!$A$4:$W$15377,10,FALSE)/1000,IFERROR(VLOOKUP($F75&$G75&$H75&$M75&COMP!$D$65&$I75&"L",MGMACP!$A$4:$W$15377,10,FALSE)/1000,"no data")))) -> no data | AD75: =IF($F75="SPEC",COMP!L$69/1000,IFERROR(VLOOKUP($F75&$G75&$H75&$M75&COMP!$D$65&$I75&"L",AAMC!$A$4:$W$15377,15,FALSE)/1000,IFERROR(VLOOKUP($F75&$G75&$H75&$M75&COMP!$D$65&$I75&"L",MGMAC!$A$4:$W$15377,15,FALSE)/1000,IFERROR(VLOOKUP($F75&$G75&$H75&$M75&COMP!$D$65&$I75&"L",MGMACP!$A$4:$W$15377,15,FALSE)/1000,"no data")))) -> no data | AE75: =IF($F75="SPEC",COMP!M$69/1000,IFERROR(VLOOKUP($F75&$G75&$H75&$M75&COMP!$D$65&$I75&"L",AAMC!$A$4:$W$15377,20,FALSE)/1000,IFERROR(VLOOKUP($F75&$G75&$H75&$M75&COMP!$D$65&$I75&"L",MGMAC!$A$4:$W$15377,20,FALSE)/1000,IFERROR(VLOOKUP($F75&$G75&$H75&$M75&COMP!$D$65&$I75&"L",MGMACP!$A$4:$W$15377,20,FALSE)/1000,"no data")))) -> no data | AL75: 3 | AM75: 0 | AN75: =IF($J75=0,0,IF($B75="SPEC",COMP!$L$76,IF($B75="FPSC",IFERROR(VLOOKUP($B75&$C75&$D75&$E75&"L",FPSC!$A$4:$U$332,13,FALSE),"no data"),IF(B75&C75="MGMAAcademic",IFERROR(VLOOKUP($B75&$C75&$D75&$E75&"L",MGMAR!$A$4:$U$332,13,FALSE),"no data"),IFERROR(VLOOKUP($B75&$C75&$D75&$E75&"L",MGMARP!$A$4:$U$332,13,FALSE),"no data"))))) -> 0 | AO75: 0 | AP75: 0 | AQ75: 0 | AR75: 0 | AS75: 0 | AT75: 0 | AU75: 0 | AV75: 0 | AW75: 0 | AX75: 0
A76: 0 | B76: FPSC | C76: Academic | D76: All | E76: =IF($B76="MGMA",COMP!$D$67,IF($B76="FPSC",COMP!$D$66,IF($B76="SPEC",COMP!$K$77,"no data"))) -> [select] | F76: AAMC | G76: Academic | H76: All | I76: =IF($F76="AAMC",COMP!$D$64,IF($F76="MGMA",COMP!$D$67,IF($F76="SPEC",COMP!$K$70,"no data"))) -> [select] | V76: 0 | AA76: 0 | AB76: 0 | AC76: =IF($F76="SPEC",COMP!K$69/1000,IFERROR(VLOOKUP($F76&$G76&$H76&$M76&COMP!$D$65&$I76&"L",AAMC!$A$4:$W$15377,10,FALSE)/1000,IFERROR(VLOOKUP($F76&$G76&$H76&$M76&COMP!$D$65&$I76&"L",MGMAC!$A$4:$W$15377,10,FALSE)/1000,IFERROR(VLOOKUP($F76&$G76&$H76&$M76&COMP!$D$65&$I76&"L",MGMACP!$A$4:$W$15377,10,FALSE)/1000,"no data")))) -> no data | AD76: =IF($F76="SPEC",COMP!L$69/1000,IFERROR(VLOOKUP($F76&$G76&$H76&$M76&COMP!$D$65&$I76&"L",AAMC!$A$4:$W$15377,15,FALSE)/1000,IFERROR(VLOOKUP($F76&$G76&$H76&$M76&COMP!$D$65&$I76&"L",MGMAC!$A$4:$W$15377,15,FALSE)/1000,IFERROR(VLOOKUP($F76&$G76&$H76&$M76&COMP!$D$65&$I76&"L",MGMACP!$A$4:$W$15377,15,FALSE)/1000,"no data")))) -> no data | AE76: =IF($F76="SPEC",COMP!M$69/1000,IFERROR(VLOOKUP($F76&$G76&$H76&$M76&COMP!$D$65&$I76&"L",AAMC!$A$4:$W$15377,20,FALSE)/1000,IFERROR(VLOOKUP($F76&$G76&$H76&$M76&COMP!$D$65&$I76&"L",MGMAC!$A$4:$W$15377,20,FALSE)/1000,IFERROR(VLOOKUP($F76&$G76&$H76&$M76&COMP!$D$65&$I76&"L",MGMACP!$A$4:$W$15377,20,FALSE)/1000,"no data")))) -> no data | AL76: 3 | AM76: 0 | AN76: =IF($J76=0,0,IF($B76="SPEC",COMP!$L$76,IF($B76="FPSC",IFERROR(VLOOKUP($B76&$C76&$D76&$E76&"L",FPSC!$A$4:$U$332,13,FALSE),"no data"),IF(B76&C76="MGMAAcademic",IFERROR(VLOOKUP($B76&$C76&$D76&$E76&"L",MGMAR!$A$4:$U$332,13,FALSE),"no data"),IFERROR(VLOOKUP($B76&$C76&$D76&$E76&"L",MGMARP!$A$4:$U$332,13,FALSE),"no data"))))) -> 0 | AO76: 0 | AP76: 0 | AQ76: 0 | AR76: 0 | AS76: 0 | AT76: 0 | AU76: 0 | AV76: 0 | AW76: 0 | AX76: 0
A77: 0 | B77: FPSC | C77: Academic | D77: All | E77: =IF($B77="MGMA",COMP!$D$67,IF($B77="FPSC",COMP!$D$66,IF($B77="SPEC",COMP!$K$77,"no data"))) -> [select] | F77: AAMC | G77: Academic | H77: All | I77: =IF($F77="AAMC",COMP!$D$64,IF($F77="MGMA",COMP!$D$67,IF($F77="SPEC",COMP!$K$70,"no data"))) -> [select] | V77: 0 | AA77: 0 | AB77: 0 | AC77: =IF($F77="SPEC",COMP!K$69/1000,IFERROR(VLOOKUP($F77&$G77&$H77&$M77&COMP!$D$65&$I77&"L",AAMC!$A$4:$W$15377,10,FALSE)/1000,IFERROR(VLOOKUP($F77&$G77&$H77&$M77&COMP!$D$65&$I77&"L",MGMAC!$A$4:$W$15377,10,FALSE)/1000,IFERROR(VLOOKUP($F77&$G77&$H77&$M77&COMP!$D$65&$I77&"L",MGMACP!$A$4:$W$15377,10,FALSE)/1000,"no data")))) -> no data | AD77: =IF($F77="SPEC",COMP!L$69/1000,IFERROR(VLOOKUP($F77&$G77&$H77&$M77&COMP!$D$65&$I77&"L",AAMC!$A$4:$W$15377,15,FALSE)/1000,IFERROR(VLOOKUP($F77&$G77&$H77&$M77&COMP!$D$65&$I77&"L",MGMAC!$A$4:$W$15377,15,FALSE)/1000,IFERROR(VLOOKUP($F77&$G77&$H77&$M77&COMP!$D$65&$I77&"L",MGMACP!$A$4:$W$15377,15,FALSE)/1000,"no data")))) -> no data | AE77: =IF($F77="SPEC",COMP!M$69/1000,IFERROR(VLOOKUP($F77&$G77&$H77&$M77&COMP!$D$65&$I77&"L",AAMC!$A$4:$W$15377,20,FALSE)/1000,IFERROR(VLOOKUP($F77&$G77&$H77&$M77&COMP!$D$65&$I77&"L",MGMAC!$A$4:$W$15377,20,FALSE)/1000,IFERROR(VLOOKUP($F77&$G77&$H77&$M77&COMP!$D$65&$I77&"L",MGMACP!$A$4:$W$15377,20,FALSE)/1000,"no data")))) -> no data | AL77: 3 | AM77: 0 | AN77: =IF($J77=0,0,IF($B77="SPEC",COMP!$L$76,IF($B77="FPSC",IFERROR(VLOOKUP($B77&$C77&$D77&$E77&"L",FPSC!$A$4:$U$332,13,FALSE),"no data"),IF(B77&C77="MGMAAcademic",IFERROR(VLOOKUP($B77&$C77&$D77&$E77&"L",MGMAR!$A$4:$U$332,13,FALSE),"no data"),IFERROR(VLOOKUP($B77&$C77&$D77&$E77&"L",MGMARP!$A$4:$U$332,13,FALSE),"no data"))))) -> 0 | AO77: 0 | AP77: 0 | AQ77: 0 | AR77: 0 | AS77: 0 | AT77: 0 | AU77: 0 | AV77: 0 | AW77: 0 | AX77: 0
A78: 0 | B78: FPSC | C78: Academic | D78: All | E78: =IF($B78="MGMA",COMP!$D$67,IF($B78="FPSC",COMP!$D$66,IF($B78="SPEC",COMP!$K$77,"no data"))) -> [select] | F78: AAMC | G78: Academic | H78: All | I78: =IF($F78="AAMC",COMP!$D$64,IF($F78="MGMA",COMP!$D$67,IF($F78="SPEC",COMP!$K$70,"no data"))) -> [select] | V78: 0 | AA78: 0 | AB78: 0 | AC78: =IF($F78="SPEC",COMP!K$69/1000,IFERROR(VLOOKUP($F78&$G78&$H78&$M78&COMP!$D$65&$I78&"L",AAMC!$A$4:$W$15377,10,FALSE)/1000,IFERROR(VLOOKUP($F78&$G78&$H78&$M78&COMP!$D$65&$I78&"L",MGMAC!$A$4:$W$15377,10,FALSE)/1000,IFERROR(VLOOKUP($F78&$G78&$H78&$M78&COMP!$D$65&$I78&"L",MGMACP!$A$4:$W$15377,10,FALSE)/1000,"no data")))) -> no data | AD78: =IF($F78="SPEC",COMP!L$69/1000,IFERROR(VLOOKUP($F78&$G78&$H78&$M78&COMP!$D$65&$I78&"L",AAMC!$A$4:$W$15377,15,FALSE)/1000,IFERROR(VLOOKUP($F78&$G78&$H78&$M78&COMP!$D$65&$I78&"L",MGMAC!$A$4:$W$15377,15,FALSE)/1000,IFERROR(VLOOKUP($F78&$G78&$H78&$M78&COMP!$D$65&$I78&"L",MGMACP!$A$4:$W$15377,15,FALSE)/1000,"no data")))) -> no data | AE78: =IF($F78="SPEC",COMP!M$69/1000,IFERROR(VLOOKUP($F78&$G78&$H78&$M78&COMP!$D$65&$I78&"L",AAMC!$A$4:$W$15377,20,FALSE)/1000,IFERROR(VLOOKUP($F78&$G78&$H78&$M78&COMP!$D$65&$I78&"L",MGMAC!$A$4:$W$15377,20,FALSE)/1000,IFERROR(VLOOKUP($F78&$G78&$H78&$M78&COMP!$D$65&$I78&"L",MGMACP!$A$4:$W$15377,20,FALSE)/1000,"no data")))) -> no data | AL78: 3 | AM78: 0 | AN78: =IF($J78=0,0,IF($B78="SPEC",COMP!$L$76,IF($B78="FPSC",IFERROR(VLOOKUP($B78&$C78&$D78&$E78&"L",FPSC!$A$4:$U$332,13,FALSE),"no data"),IF(B78&C78="MGMAAcademic",IFERROR(VLOOKUP($B78&$C78&$D78&$E78&"L",MGMAR!$A$4:$U$332,13,FALSE),"no data"),IFERROR(VLOOKUP($B78&$C78&$D78&$E78&"L",MGMARP!$A$4:$U$332,13,FALSE),"no data"))))) -> 0 | AO78: 0 | AP78: 0 | AQ78: 0 | AR78: 0 | AS78: 0 | AT78: 0 | AU78: 0 | AV78: 0 | AW78: 0 | AX78: 0
A79: 0 | B79: FPSC | C79: Academic | D79: All | E79: =IF($B79="MGMA",COMP!$D$67,IF($B79="FPSC",COMP!$D$66,IF($B79="SPEC",COMP!$K$77,"no data"))) -> [select] | F79: AAMC | G79: Academic | H79: All | I79: =IF($F79="AAMC",COMP!$D$64,IF($F79="MGMA",COMP!$D$67,IF($F79="SPEC",COMP!$K$70,"no data"))) -> [select] | V79: 0 | AA79: 0 | AB79: 0 | AC79: =IF($F79="SPEC",COMP!K$69/1000,IFERROR(VLOOKUP($F79&$G79&$H79&$M79&COMP!$D$65&$I79&"L",AAMC!$A$4:$W$15377,10,FALSE)/1000,IFERROR(VLOOKUP($F79&$G79&$H79&$M79&COMP!$D$65&$I79&"L",MGMAC!$A$4:$W$15377,10,FALSE)/1000,IFERROR(VLOOKUP($F79&$G79&$H79&$M79&COMP!$D$65&$I79&"L",MGMACP!$A$4:$W$15377,10,FALSE)/1000,"no data")))) -> no data | AD79: =IF($F79="SPEC",COMP!L$69/1000,IFERROR(VLOOKUP($F79&$G79&$H79&$M79&COMP!$D$65&$I79&"L",AAMC!$A$4:$W$15377,15,FALSE)/1000,IFERROR(VLOOKUP($F79&$G79&$H79&$M79&COMP!$D$65&$I79&"L",MGMAC!$A$4:$W$15377,15,FALSE)/1000,IFERROR(VLOOKUP($F79&$G79&$H79&$M79&COMP!$D$65&$I79&"L",MGMACP!$A$4:$W$15377,15,FALSE)/1000,"no data")))) -> no data | AE79: =IF($F79="SPEC",COMP!M$69/1000,IFERROR(VLOOKUP($F79&$G79&$H79&$M79&COMP!$D$65&$I79&"L",AAMC!$A$4:$W$15377,20,FALSE)/1000,IFERROR(VLOOKUP($F79&$G79&$H79&$M79&COMP!$D$65&$I79&"L",MGMAC!$A$4:$W$15377,20,FALSE)/1000,IFERROR(VLOOKUP($F79&$G79&$H79&$M79&COMP!$D$65&$I79&"L",MGMACP!$A$4:$W$15377,20,FALSE)/1000,"no data")))) -> no data | AL79: 3 | AM79: 0 | AN79: =IF($J79=0,0,IF($B79="SPEC",COMP!$L$76,IF($B79="FPSC",IFERROR(VLOOKUP($B79&$C79&$D79&$E79&"L",FPSC!$A$4:$U$332,13,FALSE),"no data"),IF(B79&C79="MGMAAcademic",IFERROR(VLOOKUP($B79&$C79&$D79&$E79&"L",MGMAR!$A$4:$U$332,13,FALSE),"no data"),IFERROR(VLOOKUP($B79&$C79&$D79&$E79&"L",MGMARP!$A$4:$U$332,13,FALSE),"no data"))))) -> 0 | AO79: 0 | AP79: 0 | AQ79: 0 | AR79: 0 | AS79: 0 | AT79: 0 | AU79: 0 | AV79: 0 | AW79: 0 | AX79: 0
A80: 0 | B80: FPSC | C80: Academic | D80: All | E80: =IF($B80="MGMA",COMP!$D$67,IF($B80="FPSC",COMP!$D$66,IF($B80="SPEC",COMP!$K$77,"no data"))) -> [select] | F80: AAMC | G80: Academic | H80: All | I80: =IF($F80="AAMC",COMP!$D$64,IF($F80="MGMA",COMP!$D$67,IF($F80="SPEC",COMP!$K$70,"no data"))) -> [select] | V80: 0 | AA80: 0 | AB80: 0 | AC80: =IF($F80="SPEC",COMP!K$69/1000,IFERROR(VLOOKUP($F80&$G80&$H80&$M80&COMP!$D$65&$I80&"L",AAMC!$A$4:$W$15377,10,FALSE)/1000,IFERROR(VLOOKUP($F80&$G80&$H80&$M80&COMP!$D$65&$I80&"L",MGMAC!$A$4:$W$15377,10,FALSE)/1000,IFERROR(VLOOKUP($F80&$G80&$H80&$M80&COMP!$D$65&$I80&"L",MGMACP!$A$4:$W$15377,10,FALSE)/1000,"no data")))) -> no data | AD80: =IF($F80="SPEC",COMP!L$69/1000,IFERROR(VLOOKUP($F80&$G80&$H80&$M80&COMP!$D$65&$I80&"L",AAMC!$A$4:$W$15377,15,FALSE)/1000,IFERROR(VLOOKUP($F80&$G80&$H80&$M80&COMP!$D$65&$I80&"L",MGMAC!$A$4:$W$15377,15,FALSE)/1000,IFERROR(VLOOKUP($F80&$G80&$H80&$M80&COMP!$D$65&$I80&"L",MGMACP!$A$4:$W$15377,15,FALSE)/1000,"no data")))) -> no data | AE80: =IF($F80="SPEC",COMP!M$69/1000,IFERROR(VLOOKUP($F80&$G80&$H80&$M80&COMP!$D$65&$I80&"L",AAMC!$A$4:$W$15377,20,FALSE)/1000,IFERROR(VLOOKUP($F80&$G80&$H80&$M80&COMP!$D$65&$I80&"L",MGMAC!$A$4:$W$15377,20,FALSE)/1000,IFERROR(VLOOKUP($F80&$G80&$H80&$M80&COMP!$D$65&$I80&"L",MGMACP!$A$4:$W$15377,20,FALSE)/1000,"no data")))) -> no data | AL80: 3 | AM80: 0 | AN80: =IF($J80=0,0,IF($B80="SPEC",COMP!$L$76,IF($B80="FPSC",IFERROR(VLOOKUP($B80&$C80&$D80&$E80&"L",FPSC!$A$4:$U$332,13,FALSE),"no data"),IF(B80&C80="MGMAAcademic",IFERROR(VLOOKUP($B80&$C80&$D80&$E80&"L",MGMAR!$A$4:$U$332,13,FALSE),"no data"),IFERROR(VLOOKUP($B80&$C80&$D80&$E80&"L",MGMARP!$A$4:$U$332,13,FALSE),"no data"))))) -> 0 | AO80: 0 | AP80: 0 | AQ80: 0 | AR80: 0 | AS80: 0 | AT80: 0 | AU80: 0 | AV80: 0 | AW80: 0 | AX80: 0
A81: 0 | B81: FPSC | C81: Academic | D81: All | E81: =IF($B81="MGMA",COMP!$D$67,IF($B81="FPSC",COMP!$D$66,IF($B81="SPEC",COMP!$K$77,"no data"))) -> [select] | F81: AAMC | G81: Academic | H81: All | I81: =IF($F81="AAMC",COMP!$D$64,IF($F81="MGMA",COMP!$D$67,IF($F81="SPEC",COMP!$K$70,"no data"))) -> [select] | V81: 0 | AA81: 0 | AB81: 0 | AC81: =IF($F81="SPEC",COMP!K$69/1000,IFERROR(VLOOKUP($F81&$G81&$H81&$M81&COMP!$D$65&$I81&"L",AAMC!$A$4:$W$15377,10,FALSE)/1000,IFERROR(VLOOKUP($F81&$G81&$H81&$M81&COMP!$D$65&$I81&"L",MGMAC!$A$4:$W$15377,10,FALSE)/1000,IFERROR(VLOOKUP($F81&$G81&$H81&$M81&COMP!$D$65&$I81&"L",MGMACP!$A$4:$W$15377,10,FALSE)/1000,"no data")))) -> no data | AD81: =IF($F81="SPEC",COMP!L$69/1000,IFERROR(VLOOKUP($F81&$G81&$H81&$M81&COMP!$D$65&$I81&"L",AAMC!$A$4:$W$15377,15,FALSE)/1000,IFERROR(VLOOKUP($F81&$G81&$H81&$M81&COMP!$D$65&$I81&"L",MGMAC!$A$4:$W$15377,15,FALSE)/1000,IFERROR(VLOOKUP($F81&$G81&$H81&$M81&COMP!$D$65&$I81&"L",MGMACP!$A$4:$W$15377,15,FALSE)/1000,"no data")))) -> no data | AE81: =IF($F81="SPEC",COMP!M$69/1000,IFERROR(VLOOKUP($F81&$G81&$H81&$M81&COMP!$D$65&$I81&"L",AAMC!$A$4:$W$15377,20,FALSE)/1000,IFERROR(VLOOKUP($F81&$G81&$H81&$M81&COMP!$D$65&$I81&"L",MGMAC!$A$4:$W$15377,20,FALSE)/1000,IFERROR(VLOOKUP($F81&$G81&$H81&$M81&COMP!$D$65&$I81&"L",MGMACP!$A$4:$W$15377,20,FALSE)/1000,"no data")))) -> no data | AL81: 3 | AM81: 0 | AN81: =IF($J81=0,0,IF($B81="SPEC",COMP!$L$76,IF($B81="FPSC",IFERROR(VLOOKUP($B81&$C81&$D81&$E81&"L",FPSC!$A$4:$U$332,13,FALSE),"no data"),IF(B81&C81="MGMAAcademic",IFERROR(VLOOKUP($B81&$C81&$D81&$E81&"L",MGMAR!$A$4:$U$332,13,FALSE),"no data"),IFERROR(VLOOKUP($B81&$C81&$D81&$E81&"L",MGMARP!$A$4:$U$332,13,FALSE),"no data"))))) -> 0 | AO81: 0 | AP81: 0 | AQ81: 0 | AR81: 0 | AS81: 0 | AT81: 0 | AU81: 0 | AV81: 0 | AW81: 0 | AX81: 0
A82: 0 | B82: FPSC | C82: Academic | D82: All | E82: =IF($B82="MGMA",COMP!$D$67,IF($B82="FPSC",COMP!$D$66,IF($B82="SPEC",COMP!$K$77,"no data"))) -> [select] | F82: AAMC | G82: Academic | H82: All | I82: =IF($F82="AAMC",COMP!$D$64,IF($F82="MGMA",COMP!$D$67,IF($F82="SPEC",COMP!$K$70,"no data"))) -> [select] | V82: 0 | AA82: 0 | AB82: 0 | AC82: =IF($F82="SPEC",COMP!K$69/1000,IFERROR(VLOOKUP($F82&$G82&$H82&$M82&COMP!$D$65&$I82&"L",AAMC!$A$4:$W$15377,10,FALSE)/1000,IFERROR(VLOOKUP($F82&$G82&$H82&$M82&COMP!$D$65&$I82&"L",MGMAC!$A$4:$W$15377,10,FALSE)/1000,IFERROR(VLOOKUP($F82&$G82&$H82&$M82&COMP!$D$65&$I82&"L",MGMACP!$A$4:$W$15377,10,FALSE)/1000,"no data")))) -> no data | AD82: =IF($F82="SPEC",COMP!L$69/1000,IFERROR(VLOOKUP($F82&$G82&$H82&$M82&COMP!$D$65&$I82&"L",AAMC!$A$4:$W$15377,15,FALSE)/1000,IFERROR(VLOOKUP($F82&$G82&$H82&$M82&COMP!$D$65&$I82&"L",MGMAC!$A$4:$W$15377,15,FALSE)/1000,IFERROR(VLOOKUP($F82&$G82&$H82&$M82&COMP!$D$65&$I82&"L",MGMACP!$A$4:$W$15377,15,FALSE)/1000,"no data")))) -> no data | AE82: =IF($F82="SPEC",COMP!M$69/1000,IFERROR(VLOOKUP($F82&$G82&$H82&$M82&COMP!$D$65&$I82&"L",AAMC!$A$4:$W$15377,20,FALSE)/1000,IFERROR(VLOOKUP($F82&$G82&$H82&$M82&COMP!$D$65&$I82&"L",MGMAC!$A$4:$W$15377,20,FALSE)/1000,IFERROR(VLOOKUP($F82&$G82&$H82&$M82&COMP!$D$65&$I82&"L",MGMACP!$A$4:$W$15377,20,FALSE)/1000,"no data")))) -> no data | AL82: 3 | AM82: 0 | AN82: =IF($J82=0,0,IF($B82="SPEC",COMP!$L$76,IF($B82="FPSC",IFERROR(VLOOKUP($B82&$C82&$D82&$E82&"L",FPSC!$A$4:$U$332,13,FALSE),"no data"),IF(B82&C82="MGMAAcademic",IFERROR(VLOOKUP($B82&$C82&$D82&$E82&"L",MGMAR!$A$4:$U$332,13,FALSE),"no data"),IFERROR(VLOOKUP($B82&$C82&$D82&$E82&"L",MGMARP!$A$4:$U$332,13,FALSE),"no data"))))) -> 0 | AO82: 0 | AP82: 0 | AQ82: 0 | AR82: 0 | AS82: 0 | AT82: 0 | AU82: 0 | AV82: 0 | AW82: 0 | AX82: 0
A83: 0 | B83: FPSC | C83: Academic | D83: All | E83: =IF($B83="MGMA",COMP!$D$67,IF($B83="FPSC",COMP!$D$66,IF($B83="SPEC",COMP!$K$77,"no data"))) -> [select] | F83: AAMC | G83: Academic | H83: All | I83: =IF($F83="AAMC",COMP!$D$64,IF($F83="MGMA",COMP!$D$67,IF($F83="SPEC",COMP!$K$70,"no data"))) -> [select] | V83: 0 | AA83: 0 | AB83: 0 | AC83: =IF($F83="SPEC",COMP!K$69/1000,IFERROR(VLOOKUP($F83&$G83&$H83&$M83&COMP!$D$65&$I83&"L",AAMC!$A$4:$W$15377,10,FALSE)/1000,IFERROR(VLOOKUP($F83&$G83&$H83&$M83&COMP!$D$65&$I83&"L",MGMAC!$A$4:$W$15377,10,FALSE)/1000,IFERROR(VLOOKUP($F83&$G83&$H83&$M83&COMP!$D$65&$I83&"L",MGMACP!$A$4:$W$15377,10,FALSE)/1000,"no data")))) -> no data | AD83: =IF($F83="SPEC",COMP!L$69/1000,IFERROR(VLOOKUP($F83&$G83&$H83&$M83&COMP!$D$65&$I83&"L",AAMC!$A$4:$W$15377,15,FALSE)/1000,IFERROR(VLOOKUP($F83&$G83&$H83&$M83&COMP!$D$65&$I83&"L",MGMAC!$A$4:$W$15377,15,FALSE)/1000,IFERROR(VLOOKUP($F83&$G83&$H83&$M83&COMP!$D$65&$I83&"L",MGMACP!$A$4:$W$15377,15,FALSE)/1000,"no data")))) -> no data | AE83: =IF($F83="SPEC",COMP!M$69/1000,IFERROR(VLOOKUP($F83&$G83&$H83&$M83&COMP!$D$65&$I83&"L",AAMC!$A$4:$W$15377,20,FALSE)/1000,IFERROR(VLOOKUP($F83&$G83&$H83&$M83&COMP!$D$65&$I83&"L",MGMAC!$A$4:$W$15377,20,FALSE)/1000,IFERROR(VLOOKUP($F83&$G83&$H83&$M83&COMP!$D$65&$I83&"L",MGMACP!$A$4:$W$15377,20,FALSE)/1000,"no data")))) -> no data | AL83: 3 | AM83: 0 | AN83: =IF($J83=0,0,IF($B83="SPEC",COMP!$L$76,IF($B83="FPSC",IFERROR(VLOOKUP($B83&$C83&$D83&$E83&"L",FPSC!$A$4:$U$332,13,FALSE),"no data"),IF(B83&C83="MGMAAcademic",IFERROR(VLOOKUP($B83&$C83&$D83&$E83&"L",MGMAR!$A$4:$U$332,13,FALSE),"no data"),IFERROR(VLOOKUP($B83&$C83&$D83&$E83&"L",MGMARP!$A$4:$U$332,13,FALSE),"no data"))))) -> 0 | AO83: 0 | AP83: 0 | AQ83: 0 | AR83: 0 | AS83: 0 | AT83: 0 | AU83: 0 | AV83: 0 | AW83: 0 | AX83: 0
A84: 0 | B84: FPSC | C84: Academic | D84: All | E84: =IF($B84="MGMA",COMP!$D$67,IF($B84="FPSC",COMP!$D$66,IF($B84="SPEC",COMP!$K$77,"no data"))) -> [select] | F84: AAMC | G84: Academic | H84: All | I84: =IF($F84="AAMC",COMP!$D$64,IF($F84="MGMA",COMP!$D$67,IF($F84="SPEC",COMP!$K$70,"no data"))) -> [select] | V84: 0 | AA84: 0 | AB84: 0 | AC84: =IF($F84="SPEC",COMP!K$69/1000,IFERROR(VLOOKUP($F84&$G84&$H84&$M84&COMP!$D$65&$I84&"L",AAMC!$A$4:$W$15377,10,FALSE)/1000,IFERROR(VLOOKUP($F84&$G84&$H84&$M84&COMP!$D$65&$I84&"L",MGMAC!$A$4:$W$15377,10,FALSE)/1000,IFERROR(VLOOKUP($F84&$G84&$H84&$M84&COMP!$D$65&$I84&"L",MGMACP!$A$4:$W$15377,10,FALSE)/1000,"no data")))) -> no data | AD84: =IF($F84="SPEC",COMP!L$69/1000,IFERROR(VLOOKUP($F84&$G84&$H84&$M84&COMP!$D$65&$I84&"L",AAMC!$A$4:$W$15377,15,FALSE)/1000,IFERROR(VLOOKUP($F84&$G84&$H84&$M84&COMP!$D$65&$I84&"L",MGMAC!$A$4:$W$15377,15,FALSE)/1000,IFERROR(VLOOKUP($F84&$G84&$H84&$M84&COMP!$D$65&$I84&"L",MGMACP!$A$4:$W$15377,15,FALSE)/1000,"no data")))) -> no data | AE84: =IF($F84="SPEC",COMP!M$69/1000,IFERROR(VLOOKUP($F84&$G84&$H84&$M84&COMP!$D$65&$I84&"L",AAMC!$A$4:$W$15377,20,FALSE)/1000,IFERROR(VLOOKUP($F84&$G84&$H84&$M84&COMP!$D$65&$I84&"L",MGMAC!$A$4:$W$15377,20,FALSE)/1000,IFERROR(VLOOKUP($F84&$G84&$H84&$M84&COMP!$D$65&$I84&"L",MGMACP!$A$4:$W$15377,20,FALSE)/1000,"no data")))) -> no data | AL84: 3 | AM84: 0 | AN84: =IF($J84=0,0,IF($B84="SPEC",COMP!$L$76,IF($B84="FPSC",IFERROR(VLOOKUP($B84&$C84&$D84&$E84&"L",FPSC!$A$4:$U$332,13,FALSE),"no data"),IF(B84&C84="MGMAAcademic",IFERROR(VLOOKUP($B84&$C84&$D84&$E84&"L",MGMAR!$A$4:$U$332,13,FALSE),"no data"),IFERROR(VLOOKUP($B84&$C84&$D84&$E84&"L",MGMARP!$A$4:$U$332,13,FALSE),"no data"))))) -> 0 | AO84: 0 | AP84: 0 | AQ84: 0 | AR84: 0 | AS84: 0 | AT84: 0 | AU84: 0 | AV84: 0 | AW84: 0 | AX84: 0
A85: 0 | B85: FPSC | C85: Academic | D85: All | E85: =IF($B85="MGMA",COMP!$D$67,IF($B85="FPSC",COMP!$D$66,IF($B85="SPEC",COMP!$K$77,"no data"))) -> [select] | F85: AAMC | G85: Academic | H85: All | I85: =IF($F85="AAMC",COMP!$D$64,IF($F85="MGMA",COMP!$D$67,IF($F85="SPEC",COMP!$K$70,"no data"))) -> [select] | V85: 0 | AA85: 0 | AB85: 0 | AC85: =IF($F85="SPEC",COMP!K$69/1000,IFERROR(VLOOKUP($F85&$G85&$H85&$M85&COMP!$D$65&$I85&"L",AAMC!$A$4:$W$15377,10,FALSE)/1000,IFERROR(VLOOKUP($F85&$G85&$H85&$M85&COMP!$D$65&$I85&"L",MGMAC!$A$4:$W$15377,10,FALSE)/1000,IFERROR(VLOOKUP($F85&$G85&$H85&$M85&COMP!$D$65&$I85&"L",MGMACP!$A$4:$W$15377,10,FALSE)/1000,"no data")))) -> no data | AD85: =IF($F85="SPEC",COMP!L$69/1000,IFERROR(VLOOKUP($F85&$G85&$H85&$M85&COMP!$D$65&$I85&"L",AAMC!$A$4:$W$15377,15,FALSE)/1000,IFERROR(VLOOKUP($F85&$G85&$H85&$M85&COMP!$D$65&$I85&"L",MGMAC!$A$4:$W$15377,15,FALSE)/1000,IFERROR(VLOOKUP($F85&$G85&$H85&$M85&COMP!$D$65&$I85&"L",MGMACP!$A$4:$W$15377,15,FALSE)/1000,"no data")))) -> no data | AE85: =IF($F85="SPEC",COMP!M$69/1000,IFERROR(VLOOKUP($F85&$G85&$H85&$M85&COMP!$D$65&$I85&"L",AAMC!$A$4:$W$15377,20,FALSE)/1000,IFERROR(VLOOKUP($F85&$G85&$H85&$M85&COMP!$D$65&$I85&"L",MGMAC!$A$4:$W$15377,20,FALSE)/1000,IFERROR(VLOOKUP($F85&$G85&$H85&$M85&COMP!$D$65&$I85&"L",MGMACP!$A$4:$W$15377,20,FALSE)/1000,"no data")))) -> no data | AL85: 3 | AM85: 0 | AN85: =IF($J85=0,0,IF($B85="SPEC",COMP!$L$76,IF($B85="FPSC",IFERROR(VLOOKUP($B85&$C85&$D85&$E85&"L",FPSC!$A$4:$U$332,13,FALSE),"no data"),IF(B85&C85="MGMAAcademic",IFERROR(VLOOKUP($B85&$C85&$D85&$E85&"L",MGMAR!$A$4:$U$332,13,FALSE),"no data"),IFERROR(VLOOKUP($B85&$C85&$D85&$E85&"L",MGMARP!$A$4:$U$332,13,FALSE),"no data"))))) -> 0 | AO85: 0 | AP85: 0 | AQ85: 0 | AR85: 0 | AS85: 0 | AT85: 0 | AU85: 0 | AV85: 0 | AW85: 0 | AX85: 0
A86: 0 | B86: FPSC | C86: Academic | D86: All | E86: =IF($B86="MGMA",COMP!$D$67,IF($B86="FPSC",COMP!$D$66,IF($B86="SPEC",COMP!$K$77,"no data"))) -> [select] | F86: AAMC | G86: Academic | H86: All | I86: =IF($F86="AAMC",COMP!$D$64,IF($F86="MGMA",COMP!$D$67,IF($F86="SPEC",COMP!$K$70,"no data"))) -> [select] | V86: 0 | AA86: 0 | AB86: 0 | AC86: =IF($F86="SPEC",COMP!K$69/1000,IFERROR(VLOOKUP($F86&$G86&$H86&$M86&COMP!$D$65&$I86&"L",AAMC!$A$4:$W$15377,10,FALSE)/1000,IFERROR(VLOOKUP($F86&$G86&$H86&$M86&COMP!$D$65&$I86&"L",MGMAC!$A$4:$W$15377,10,FALSE)/1000,IFERROR(VLOOKUP($F86&$G86&$H86&$M86&COMP!$D$65&$I86&"L",MGMACP!$A$4:$W$15377,10,FALSE)/1000,"no data")))) -> no data | AD86: =IF($F86="SPEC",COMP!L$69/1000,IFERROR(VLOOKUP($F86&$G86&$H86&$M86&COMP!$D$65&$I86&"L",AAMC!$A$4:$W$15377,15,FALSE)/1000,IFERROR(VLOOKUP($F86&$G86&$H86&$M86&COMP!$D$65&$I86&"L",MGMAC!$A$4:$W$15377,15,FALSE)/1000,IFERROR(VLOOKUP($F86&$G86&$H86&$M86&COMP!$D$65&$I86&"L",MGMACP!$A$4:$W$15377,15,FALSE)/1000,"no data")))) -> no data | AE86: =IF($F86="SPEC",COMP!M$69/1000,IFERROR(VLOOKUP($F86&$G86&$H86&$M86&COMP!$D$65&$I86&"L",AAMC!$A$4:$W$15377,20,FALSE)/1000,IFERROR(VLOOKUP($F86&$G86&$H86&$M86&COMP!$D$65&$I86&"L",MGMAC!$A$4:$W$15377,20,FALSE)/1000,IFERROR(VLOOKUP($F86&$G86&$H86&$M86&COMP!$D$65&$I86&"L",MGMACP!$A$4:$W$15377,20,FALSE)/1000,"no data")))) -> no data | AL86: 3 | AM86: 0 | AN86: =IF($J86=0,0,IF($B86="SPEC",COMP!$L$76,IF($B86="FPSC",IFERROR(VLOOKUP($B86&$C86&$D86&$E86&"L",FPSC!$A$4:$U$332,13,FALSE),"no data"),IF(B86&C86="MGMAAcademic",IFERROR(VLOOKUP($B86&$C86&$D86&$E86&"L",MGMAR!$A$4:$U$332,13,FALSE),"no data"),IFERROR(VLOOKUP($B86&$C86&$D86&$E86&"L",MGMARP!$A$4:$U$332,13,FALSE),"no data"))))) -> 0 | AO86: 0 | AP86: 0 | AQ86: 0 | AR86: 0 | AS86: 0 | AT86: 0 | AU86: 0 | AV86: 0 | AW86: 0 | AX86: 0
A87: 0 | B87: FPSC | C87: Academic | D87: All | E87: =IF($B87="MGMA",COMP!$D$67,IF($B87="FPSC",COMP!$D$66,IF($B87="SPEC",COMP!$K$77,"no data"))) -> [select] | F87: AAMC | G87: Academic | H87: All | I87: =IF($F87="AAMC",COMP!$D$64,IF($F87="MGMA",COMP!$D$67,IF($F87="SPEC",COMP!$K$70,"no data"))) -> [select] | V87: 0 | AA87: 0 | AB87: 0 | AC87: =IF($F87="SPEC",COMP!K$69/1000,IFERROR(VLOOKUP($F87&$G87&$H87&$M87&COMP!$D$65&$I87&"L",AAMC!$A$4:$W$15377,10,FALSE)/1000,IFERROR(VLOOKUP($F87&$G87&$H87&$M87&COMP!$D$65&$I87&"L",MGMAC!$A$4:$W$15377,10,FALSE)/1000,IFERROR(VLOOKUP($F87&$G87&$H87&$M87&COMP!$D$65&$I87&"L",MGMACP!$A$4:$W$15377,10,FALSE)/1000,"no data")))) -> no data | AD87: =IF($F87="SPEC",COMP!L$69/1000,IFERROR(VLOOKUP($F87&$G87&$H87&$M87&COMP!$D$65&$I87&"L",AAMC!$A$4:$W$15377,15,FALSE)/1000,IFERROR(VLOOKUP($F87&$G87&$H87&$M87&COMP!$D$65&$I87&"L",MGMAC!$A$4:$W$15377,15,FALSE)/1000,IFERROR(VLOOKUP($F87&$G87&$H87&$M87&COMP!$D$65&$I87&"L",MGMACP!$A$4:$W$15377,15,FALSE)/1000,"no data")))) -> no data | AE87: =IF($F87="SPEC",COMP!M$69/1000,IFERROR(VLOOKUP($F87&$G87&$H87&$M87&COMP!$D$65&$I87&"L",AAMC!$A$4:$W$15377,20,FALSE)/1000,IFERROR(VLOOKUP($F87&$G87&$H87&$M87&COMP!$D$65&$I87&"L",MGMAC!$A$4:$W$15377,20,FALSE)/1000,IFERROR(VLOOKUP($F87&$G87&$H87&$M87&COMP!$D$65&$I87&"L",MGMACP!$A$4:$W$15377,20,FALSE)/1000,"no data")))) -> no data | AL87: 3 | AM87: 0 | AN87: =IF($J87=0,0,IF($B87="SPEC",COMP!$L$76,IF($B87="FPSC",IFERROR(VLOOKUP($B87&$C87&$D87&$E87&"L",FPSC!$A$4:$U$332,13,FALSE),"no data"),IF(B87&C87="MGMAAcademic",IFERROR(VLOOKUP($B87&$C87&$D87&$E87&"L",MGMAR!$A$4:$U$332,13,FALSE),"no data"),IFERROR(VLOOKUP($B87&$C87&$D87&$E87&"L",MGMARP!$A$4:$U$332,13,FALSE),"no data"))))) -> 0 | AO87: 0 | AP87: 0 | AQ87: 0 | AR87: 0 | AS87: 0 | AT87: 0 | AU87: 0 | AV87: 0 | AW87: 0 | AX87: 0
A88: 0 | B88: FPSC | C88: Academic | D88: All | E88: =IF($B88="MGMA",COMP!$D$67,IF($B88="FPSC",COMP!$D$66,IF($B88="SPEC",COMP!$K$77,"no data"))) -> [select] | F88: AAMC | G88: Academic | H88: All | I88: =IF($F88="AAMC",COMP!$D$64,IF($F88="MGMA",COMP!$D$67,IF($F88="SPEC",COMP!$K$70,"no data"))) -> [select] | V88: 0 | AA88: 0 | AB88: 0 | AC88: =IF($F88="SPEC",COMP!K$69/1000,IFERROR(VLOOKUP($F88&$G88&$H88&$M88&COMP!$D$65&$I88&"L",AAMC!$A$4:$W$15377,10,FALSE)/1000,IFERROR(VLOOKUP($F88&$G88&$H88&$M88&COMP!$D$65&$I88&"L",MGMAC!$A$4:$W$15377,10,FALSE)/1000,IFERROR(VLOOKUP($F88&$G88&$H88&$M88&COMP!$D$65&$I88&"L",MGMACP!$A$4:$W$15377,10,FALSE)/1000,"no data")))) -> no data | AD88: =IF($F88="SPEC",COMP!L$69/1000,IFERROR(VLOOKUP($F88&$G88&$H88&$M88&COMP!$D$65&$I88&"L",AAMC!$A$4:$W$15377,15,FALSE)/1000,IFERROR(VLOOKUP($F88&$G88&$H88&$M88&COMP!$D$65&$I88&"L",MGMAC!$A$4:$W$15377,15,FALSE)/1000,IFERROR(VLOOKUP($F88&$G88&$H88&$M88&COMP!$D$65&$I88&"L",MGMACP!$A$4:$W$15377,15,FALSE)/1000,"no data")))) -> no data | AE88: =IF($F88="SPEC",COMP!M$69/1000,IFERROR(VLOOKUP($F88&$G88&$H88&$M88&COMP!$D$65&$I88&"L",AAMC!$A$4:$W$15377,20,FALSE)/1000,IFERROR(VLOOKUP($F88&$G88&$H88&$M88&COMP!$D$65&$I88&"L",MGMAC!$A$4:$W$15377,20,FALSE)/1000,IFERROR(VLOOKUP($F88&$G88&$H88&$M88&COMP!$D$65&$I88&"L",MGMACP!$A$4:$W$15377,20,FALSE)/1000,"no data")))) -> no data | AL88: 3 | AM88: 0 | AN88: =IF($J88=0,0,IF($B88="SPEC",COMP!$L$76,IF($B88="FPSC",IFERROR(VLOOKUP($B88&$C88&$D88&$E88&"L",FPSC!$A$4:$U$332,13,FALSE),"no data"),IF(B88&C88="MGMAAcademic",IFERROR(VLOOKUP($B88&$C88&$D88&$E88&"L",MGMAR!$A$4:$U$332,13,FALSE),"no data"),IFERROR(VLOOKUP($B88&$C88&$D88&$E88&"L",MGMARP!$A$4:$U$332,13,FALSE),"no data"))))) -> 0 | AO88: 0 | AP88: 0 | AQ88: 0 | AR88: 0 | AS88: 0 | AT88: 0 | AU88: 0 | AV88: 0 | AW88: 0 | AX88: 0
A89: 0 | B89: FPSC | C89: Academic | D89: All | E89: =IF($B89="MGMA",COMP!$D$67,IF($B89="FPSC",COMP!$D$66,IF($B89="SPEC",COMP!$K$77,"no data"))) -> [select] | F89: AAMC | G89: Academic | H89: All | I89: =IF($F89="AAMC",COMP!$D$64,IF($F89="MGMA",COMP!$D$67,IF($F89="SPEC",COMP!$K$70,"no data"))) -> [select] | V89: 0 | AA89: 0 | AB89: 0 | AC89: =IF($F89="SPEC",COMP!K$69/1000,IFERROR(VLOOKUP($F89&$G89&$H89&$M89&COMP!$D$65&$I89&"L",AAMC!$A$4:$W$15377,10,FALSE)/1000,IFERROR(VLOOKUP($F89&$G89&$H89&$M89&COMP!$D$65&$I89&"L",MGMAC!$A$4:$W$15377,10,FALSE)/1000,IFERROR(VLOOKUP($F89&$G89&$H89&$M89&COMP!$D$65&$I89&"L",MGMACP!$A$4:$W$15377,10,FALSE)/1000,"no data")))) -> no data | AD89: =IF($F89="SPEC",COMP!L$69/1000,IFERROR(VLOOKUP($F89&$G89&$H89&$M89&COMP!$D$65&$I89&"L",AAMC!$A$4:$W$15377,15,FALSE)/1000,IFERROR(VLOOKUP($F89&$G89&$H89&$M89&COMP!$D$65&$I89&"L",MGMAC!$A$4:$W$15377,15,FALSE)/1000,IFERROR(VLOOKUP($F89&$G89&$H89&$M89&COMP!$D$65&$I89&"L",MGMACP!$A$4:$W$15377,15,FALSE)/1000,"no data")))) -> no data | AE89: =IF($F89="SPEC",COMP!M$69/1000,IFERROR(VLOOKUP($F89&$G89&$H89&$M89&COMP!$D$65&$I89&"L",AAMC!$A$4:$W$15377,20,FALSE)/1000,IFERROR(VLOOKUP($F89&$G89&$H89&$M89&COMP!$D$65&$I89&"L",MGMAC!$A$4:$W$15377,20,FALSE)/1000,IFERROR(VLOOKUP($F89&$G89&$H89&$M89&COMP!$D$65&$I89&"L",MGMACP!$A$4:$W$15377,20,FALSE)/1000,"no data")))) -> no data | AL89: 3 | AM89: 0 | AN89: =IF($J89=0,0,IF($B89="SPEC",COMP!$L$76,IF($B89="FPSC",IFERROR(VLOOKUP($B89&$C89&$D89&$E89&"L",FPSC!$A$4:$U$332,13,FALSE),"no data"),IF(B89&C89="MGMAAcademic",IFERROR(VLOOKUP($B89&$C89&$D89&$E89&"L",MGMAR!$A$4:$U$332,13,FALSE),"no data"),IFERROR(VLOOKUP($B89&$C89&$D89&$E89&"L",MGMARP!$A$4:$U$332,13,FALSE),"no data"))))) -> 0 | AO89: 0 | AP89: 0 | AQ89: 0 | AR89: 0 | AS89: 0 | AT89: 0 | AU89: 0 | AV89: 0 | AW89: 0 | AX89: 0
A90: 0 | B90: FPSC | C90: Academic | D90: All | E90: =IF($B90="MGMA",COMP!$D$67,IF($B90="FPSC",COMP!$D$66,IF($B90="SPEC",COMP!$K$77,"no data"))) -> [select] | F90: AAMC | G90: Academic | H90: All | I90: =IF($F90="AAMC",COMP!$D$64,IF($F90="MGMA",COMP!$D$67,IF($F90="SPEC",COMP!$K$70,"no data"))) -> [select] | V90: 0 | AA90: 0 | AB90: 0 | AC90: =IF($F90="SPEC",COMP!K$69/1000,IFERROR(VLOOKUP($F90&$G90&$H90&$M90&COMP!$D$65&$I90&"L",AAMC!$A$4:$W$15377,10,FALSE)/1000,IFERROR(VLOOKUP($F90&$G90&$H90&$M90&COMP!$D$65&$I90&"L",MGMAC!$A$4:$W$15377,10,FALSE)/1000,IFERROR(VLOOKUP($F90&$G90&$H90&$M90&COMP!$D$65&$I90&"L",MGMACP!$A$4:$W$15377,10,FALSE)/1000,"no data")))) -> no data | AD90: =IF($F90="SPEC",COMP!L$69/1000,IFERROR(VLOOKUP($F90&$G90&$H90&$M90&COMP!$D$65&$I90&"L",AAMC!$A$4:$W$15377,15,FALSE)/1000,IFERROR(VLOOKUP($F90&$G90&$H90&$M90&COMP!$D$65&$I90&"L",MGMAC!$A$4:$W$15377,15,FALSE)/1000,IFERROR(VLOOKUP($F90&$G90&$H90&$M90&COMP!$D$65&$I90&"L",MGMACP!$A$4:$W$15377,15,FALSE)/1000,"no data")))) -> no data | AE90: =IF($F90="SPEC",COMP!M$69/1000,IFERROR(VLOOKUP($F90&$G90&$H90&$M90&COMP!$D$65&$I90&"L",AAMC!$A$4:$W$15377,20,FALSE)/1000,IFERROR(VLOOKUP($F90&$G90&$H90&$M90&COMP!$D$65&$I90&"L",MGMAC!$A$4:$W$15377,20,FALSE)/1000,IFERROR(VLOOKUP($F90&$G90&$H90&$M90&COMP!$D$65&$I90&"L",MGMACP!$A$4:$W$15377,20,FALSE)/1000,"no data")))) -> no data | AL90: 3 | AM90: 0 | AN90: =IF($J90=0,0,IF($B90="SPEC",COMP!$L$76,IF($B90="FPSC",IFERROR(VLOOKUP($B90&$C90&$D90&$E90&"L",FPSC!$A$4:$U$332,13,FALSE),"no data"),IF(B90&C90="MGMAAcademic",IFERROR(VLOOKUP($B90&$C90&$D90&$E90&"L",MGMAR!$A$4:$U$332,13,FALSE),"no data"),IFERROR(VLOOKUP($B90&$C90&$D90&$E90&"L",MGMARP!$A$4:$U$332,13,FALSE),"no data"))))) -> 0 | AO90: 0 | AP90: 0 | AQ90: 0 | AR90: 0 | AS90: 0 | AT90: 0 | AU90: 0 | AV90: 0 | AW90: 0 | AX90: 0
A91: 0 | B91: FPSC | C91: Academic | D91: All | E91: =IF($B91="MGMA",COMP!$D$67,IF($B91="FPSC",COMP!$D$66,IF($B91="SPEC",COMP!$K$77,"no data"))) -> [select] | F91: AAMC | G91: Academic | H91: All | I91: =IF($F91="AAMC",COMP!$D$64,IF($F91="MGMA",COMP!$D$67,IF($F91="SPEC",COMP!$K$70,"no data"))) -> [select] | V91: 0 | AA91: 0 | AB91: 0 | AC91: =IF($F91="SPEC",COMP!K$69/1000,IFERROR(VLOOKUP($F91&$G91&$H91&$M91&COMP!$D$65&$I91&"L",AAMC!$A$4:$W$15377,10,FALSE)/1000,IFERROR(VLOOKUP($F91&$G91&$H91&$M91&COMP!$D$65&$I91&"L",MGMAC!$A$4:$W$15377,10,FALSE)/1000,IFERROR(VLOOKUP($F91&$G91&$H91&$M91&COMP!$D$65&$I91&"L",MGMACP!$A$4:$W$15377,10,FALSE)/1000,"no data")))) -> no data | AD91: =IF($F91="SPEC",COMP!L$69/1000,IFERROR(VLOOKUP($F91&$G91&$H91&$M91&COMP!$D$65&$I91&"L",AAMC!$A$4:$W$15377,15,FALSE)/1000,IFERROR(VLOOKUP($F91&$G91&$H91&$M91&COMP!$D$65&$I91&"L",MGMAC!$A$4:$W$15377,15,FALSE)/1000,IFERROR(VLOOKUP($F91&$G91&$H91&$M91&COMP!$D$65&$I91&"L",MGMACP!$A$4:$W$15377,15,FALSE)/1000,"no data")))) -> no data | AE91: =IF($F91="SPEC",COMP!M$69/1000,IFERROR(VLOOKUP($F91&$G91&$H91&$M91&COMP!$D$65&$I91&"L",AAMC!$A$4:$W$15377,20,FALSE)/1000,IFERROR(VLOOKUP($F91&$G91&$H91&$M91&COMP!$D$65&$I91&"L",MGMAC!$A$4:$W$15377,20,FALSE)/1000,IFERROR(VLOOKUP($F91&$G91&$H91&$M91&COMP!$D$65&$I91&"L",MGMACP!$A$4:$W$15377,20,FALSE)/1000,"no data")))) -> no data | AL91: 3 | AM91: 0 | AN91: =IF($J91=0,0,IF($B91="SPEC",COMP!$L$76,IF($B91="FPSC",IFERROR(VLOOKUP($B91&$C91&$D91&$E91&"L",FPSC!$A$4:$U$332,13,FALSE),"no data"),IF(B91&C91="MGMAAcademic",IFERROR(VLOOKUP($B91&$C91&$D91&$E91&"L",MGMAR!$A$4:$U$332,13,FALSE),"no data"),IFERROR(VLOOKUP($B91&$C91&$D91&$E91&"L",MGMARP!$A$4:$U$332,13,FALSE),"no data"))))) -> 0 | AO91: 0 | AP91: 0 | AQ91: 0 | AR91: 0 | AS91: 0 | AT91: 0 | AU91: 0 | AV91: 0 | AW91: 0 | AX91: 0
A92: 0 | B92: FPSC | C92: Academic | D92: All | E92: =IF($B92="MGMA",COMP!$D$67,IF($B92="FPSC",COMP!$D$66,IF($B92="SPEC",COMP!$K$77,"no data"))) -> [select] | F92: AAMC | G92: Academic | H92: All | I92: =IF($F92="AAMC",COMP!$D$64,IF($F92="MGMA",COMP!$D$67,IF($F92="SPEC",COMP!$K$70,"no data"))) -> [select] | V92: 0 | AA92: 0 | AB92: 0 | AC92: =IF($F92="SPEC",COMP!K$69/1000,IFERROR(VLOOKUP($F92&$G92&$H92&$M92&COMP!$D$65&$I92&"L",AAMC!$A$4:$W$15377,10,FALSE)/1000,IFERROR(VLOOKUP($F92&$G92&$H92&$M92&COMP!$D$65&$I92&"L",MGMAC!$A$4:$W$15377,10,FALSE)/1000,IFERROR(VLOOKUP($F92&$G92&$H92&$M92&COMP!$D$65&$I92&"L",MGMACP!$A$4:$W$15377,10,FALSE)/1000,"no data")))) -> no data | AD92: =IF($F92="SPEC",COMP!L$69/1000,IFERROR(VLOOKUP($F92&$G92&$H92&$M92&COMP!$D$65&$I92&"L",AAMC!$A$4:$W$15377,15,FALSE)/1000,IFERROR(VLOOKUP($F92&$G92&$H92&$M92&COMP!$D$65&$I92&"L",MGMAC!$A$4:$W$15377,15,FALSE)/1000,IFERROR(VLOOKUP($F92&$G92&$H92&$M92&COMP!$D$65&$I92&"L",MGMACP!$A$4:$W$15377,15,FALSE)/1000,"no data")))) -> no data | AE92: =IF($F92="SPEC",COMP!M$69/1000,IFERROR(VLOOKUP($F92&$G92&$H92&$M92&COMP!$D$65&$I92&"L",AAMC!$A$4:$W$15377,20,FALSE)/1000,IFERROR(VLOOKUP($F92&$G92&$H92&$M92&COMP!$D$65&$I92&"L",MGMAC!$A$4:$W$15377,20,FALSE)/1000,IFERROR(VLOOKUP($F92&$G92&$H92&$M92&COMP!$D$65&$I92&"L",MGMACP!$A$4:$W$15377,20,FALSE)/1000,"no data")))) -> no data | AL92: 3 | AM92: 0 | AN92: =IF($J92=0,0,IF($B92="SPEC",COMP!$L$76,IF($B92="FPSC",IFERROR(VLOOKUP($B92&$C92&$D92&$E92&"L",FPSC!$A$4:$U$332,13,FALSE),"no data"),IF(B92&C92="MGMAAcademic",IFERROR(VLOOKUP($B92&$C92&$D92&$E92&"L",MGMAR!$A$4:$U$332,13,FALSE),"no data"),IFERROR(VLOOKUP($B92&$C92&$D92&$E92&"L",MGMARP!$A$4:$U$332,13,FALSE),"no data"))))) -> 0 | AO92: 0 | AP92: 0 | AQ92: 0 | AR92: 0 | AS92: 0 | AT92: 0 | AU92: 0 | AV92: 0 | AW92: 0 | AX92: 0
A93: 0 | B93: FPSC | C93: Academic | D93: All | E93: =IF($B93="MGMA",COMP!$D$67,IF($B93="FPSC",COMP!$D$66,IF($B93="SPEC",COMP!$K$77,"no data"))) -> [select] | F93: AAMC | G93: Academic | H93: All | I93: =IF($F93="AAMC",COMP!$D$64,IF($F93="MGMA",COMP!$D$67,IF($F93="SPEC",COMP!$K$70,"no data"))) -> [select] | V93: 0 | AA93: 0 | AB93: 0 | AC93: =IF($F93="SPEC",COMP!K$69/1000,IFERROR(VLOOKUP($F93&$G93&$H93&$M93&COMP!$D$65&$I93&"L",AAMC!$A$4:$W$15377,10,FALSE)/1000,IFERROR(VLOOKUP($F93&$G93&$H93&$M93&COMP!$D$65&$I93&"L",MGMAC!$A$4:$W$15377,10,FALSE)/1000,IFERROR(VLOOKUP($F93&$G93&$H93&$M93&COMP!$D$65&$I93&"L",MGMACP!$A$4:$W$15377,10,FALSE)/1000,"no data")))) -> no data | AD93: =IF($F93="SPEC",COMP!L$69/1000,IFERROR(VLOOKUP($F93&$G93&$H93&$M93&COMP!$D$65&$I93&"L",AAMC!$A$4:$W$15377,15,FALSE)/1000,IFERROR(VLOOKUP($F93&$G93&$H93&$M93&COMP!$D$65&$I93&"L",MGMAC!$A$4:$W$15377,15,FALSE)/1000,IFERROR(VLOOKUP($F93&$G93&$H93&$M93&COMP!$D$65&$I93&"L",MGMACP!$A$4:$W$15377,15,FALSE)/1000,"no data")))) -> no data | AE93: =IF($F93="SPEC",COMP!M$69/1000,IFERROR(VLOOKUP($F93&$G93&$H93&$M93&COMP!$D$65&$I93&"L",AAMC!$A$4:$W$15377,20,FALSE)/1000,IFERROR(VLOOKUP($F93&$G93&$H93&$M93&COMP!$D$65&$I93&"L",MGMAC!$A$4:$W$15377,20,FALSE)/1000,IFERROR(VLOOKUP($F93&$G93&$H93&$M93&COMP!$D$65&$I93&"L",MGMACP!$A$4:$W$15377,20,FALSE)/1000,"no data")))) -> no data | AL93: 3 | AM93: 0 | AN93: =IF($J93=0,0,IF($B93="SPEC",COMP!$L$76,IF($B93="FPSC",IFERROR(VLOOKUP($B93&$C93&$D93&$E93&"L",FPSC!$A$4:$U$332,13,FALSE),"no data"),IF(B93&C93="MGMAAcademic",IFERROR(VLOOKUP($B93&$C93&$D93&$E93&"L",MGMAR!$A$4:$U$332,13,FALSE),"no data"),IFERROR(VLOOKUP($B93&$C93&$D93&$E93&"L",MGMARP!$A$4:$U$332,13,FALSE),"no data"))))) -> 0 | AO93: 0 | AP93: 0 | AQ93: 0 | AR93: 0 | AS93: 0 | AT93: 0 | AU93: 0 | AV93: 0 | AW93: 0 | AX93: 0
A94: 0 | B94: FPSC | C94: Academic | D94: All | E94: =IF($B94="MGMA",COMP!$D$67,IF($B94="FPSC",COMP!$D$66,IF($B94="SPEC",COMP!$K$77,"no data"))) -> [select] | F94: AAMC | G94: Academic | H94: All | I94: =IF($F94="AAMC",COMP!$D$64,IF($F94="MGMA",COMP!$D$67,IF($F94="SPEC",COMP!$K$70,"no data"))) -> [select] | V94: 0 | AA94: 0 | AB94: 0 | AC94: =IF($F94="SPEC",COMP!K$69/1000,IFERROR(VLOOKUP($F94&$G94&$H94&$M94&COMP!$D$65&$I94&"L",AAMC!$A$4:$W$15377,10,FALSE)/1000,IFERROR(VLOOKUP($F94&$G94&$H94&$M94&COMP!$D$65&$I94&"L",MGMAC!$A$4:$W$15377,10,FALSE)/1000,IFERROR(VLOOKUP($F94&$G94&$H94&$M94&COMP!$D$65&$I94&"L",MGMACP!$A$4:$W$15377,10,FALSE)/1000,"no data")))) -> no data | AD94: =IF($F94="SPEC",COMP!L$69/1000,IFERROR(VLOOKUP($F94&$G94&$H94&$M94&COMP!$D$65&$I94&"L",AAMC!$A$4:$W$15377,15,FALSE)/1000,IFERROR(VLOOKUP($F94&$G94&$H94&$M94&COMP!$D$65&$I94&"L",MGMAC!$A$4:$W$15377,15,FALSE)/1000,IFERROR(VLOOKUP($F94&$G94&$H94&$M94&COMP!$D$65&$I94&"L",MGMACP!$A$4:$W$15377,15,FALSE)/1000,"no data")))) -> no data | AE94: =IF($F94="SPEC",COMP!M$69/1000,IFERROR(VLOOKUP($F94&$G94&$H94&$M94&COMP!$D$65&$I94&"L",AAMC!$A$4:$W$15377,20,FALSE)/1000,IFERROR(VLOOKUP($F94&$G94&$H94&$M94&COMP!$D$65&$I94&"L",MGMAC!$A$4:$W$15377,20,FALSE)/1000,IFERROR(VLOOKUP($F94&$G94&$H94&$M94&COMP!$D$65&$I94&"L",MGMACP!$A$4:$W$15377,20,FALSE)/1000,"no data")))) -> no data | AL94: 3 | AM94: 0 | AN94: =IF($J94=0,0,IF($B94="SPEC",COMP!$L$76,IF($B94="FPSC",IFERROR(VLOOKUP($B94&$C94&$D94&$E94&"L",FPSC!$A$4:$U$332,13,FALSE),"no data"),IF(B94&C94="MGMAAcademic",IFERROR(VLOOKUP($B94&$C94&$D94&$E94&"L",MGMAR!$A$4:$U$332,13,FALSE),"no data"),IFERROR(VLOOKUP($B94&$C94&$D94&$E94&"L",MGMARP!$A$4:$U$332,13,FALSE),"no data"))))) -> 0 | AO94: 0 | AP94: 0 | AQ94: 0 | AR94: 0 | AS94: 0 | AT94: 0 | AU94: 0 | AV94: 0 | AW94: 0 | AX94: 0
A95: 0 | B95: FPSC | C95: Academic | D95: All | E95: =IF($B95="MGMA",COMP!$D$67,IF($B95="FPSC",COMP!$D$66,IF($B95="SPEC",COMP!$K$77,"no data"))) -> [select] | F95: AAMC | G95: Academic | H95: All | I95: =IF($F95="AAMC",COMP!$D$64,IF($F95="MGMA",COMP!$D$67,IF($F95="SPEC",COMP!$K$70,"no data"))) -> [select] | V95: 0 | AA95: 0 | AB95: 0 | AC95: =IF($F95="SPEC",COMP!K$69/1000,IFERROR(VLOOKUP($F95&$G95&$H95&$M95&COMP!$D$65&$I95&"L",AAMC!$A$4:$W$15377,10,FALSE)/1000,IFERROR(VLOOKUP($F95&$G95&$H95&$M95&COMP!$D$65&$I95&"L",MGMAC!$A$4:$W$15377,10,FALSE)/1000,IFERROR(VLOOKUP($F95&$G95&$H95&$M95&COMP!$D$65&$I95&"L",MGMACP!$A$4:$W$15377,10,FALSE)/1000,"no data")))) -> no data | AD95: =IF($F95="SPEC",COMP!L$69/1000,IFERROR(VLOOKUP($F95&$G95&$H95&$M95&COMP!$D$65&$I95&"L",AAMC!$A$4:$W$15377,15,FALSE)/1000,IFERROR(VLOOKUP($F95&$G95&$H95&$M95&COMP!$D$65&$I95&"L",MGMAC!$A$4:$W$15377,15,FALSE)/1000,IFERROR(VLOOKUP($F95&$G95&$H95&$M95&COMP!$D$65&$I95&"L",MGMACP!$A$4:$W$15377,15,FALSE)/1000,"no data")))) -> no data | AE95: =IF($F95="SPEC",COMP!M$69/1000,IFERROR(VLOOKUP($F95&$G95&$H95&$M95&COMP!$D$65&$I95&"L",AAMC!$A$4:$W$15377,20,FALSE)/1000,IFERROR(VLOOKUP($F95&$G95&$H95&$M95&COMP!$D$65&$I95&"L",MGMAC!$A$4:$W$15377,20,FALSE)/1000,IFERROR(VLOOKUP($F95&$G95&$H95&$M95&COMP!$D$65&$I95&"L",MGMACP!$A$4:$W$15377,20,FALSE)/1000,"no data")))) -> no data | AL95: 3 | AM95: 0 | AN95: =IF($J95=0,0,IF($B95="SPEC",COMP!$L$76,IF($B95="FPSC",IFERROR(VLOOKUP($B95&$C95&$D95&$E95&"L",FPSC!$A$4:$U$332,13,FALSE),"no data"),IF(B95&C95="MGMAAcademic",IFERROR(VLOOKUP($B95&$C95&$D95&$E95&"L",MGMAR!$A$4:$U$332,13,FALSE),"no data"),IFERROR(VLOOKUP($B95&$C95&$D95&$E95&"L",MGMARP!$A$4:$U$332,13,FALSE),"no data"))))) -> 0 | AO95: 0 | AP95: 0 | AQ95: 0 | AR95: 0 | AS95: 0 | AT95: 0 | AU95: 0 | AV95: 0 | AW95: 0 | AX95: 0
A96: 0 | B96: FPSC | C96: Academic | D96: All | E96: =IF($B96="MGMA",COMP!$D$67,IF($B96="FPSC",COMP!$D$66,IF($B96="SPEC",COMP!$K$77,"no data"))) -> [select] | F96: AAMC | G96: Academic | H96: All | I96: =IF($F96="AAMC",COMP!$D$64,IF($F96="MGMA",COMP!$D$67,IF($F96="SPEC",COMP!$K$70,"no data"))) -> [select] | V96: 0 | AA96: 0 | AB96: 0 | AC96: =IF($F96="SPEC",COMP!K$69/1000,IFERROR(VLOOKUP($F96&$G96&$H96&$M96&COMP!$D$65&$I96&"L",AAMC!$A$4:$W$15377,10,FALSE)/1000,IFERROR(VLOOKUP($F96&$G96&$H96&$M96&COMP!$D$65&$I96&"L",MGMAC!$A$4:$W$15377,10,FALSE)/1000,IFERROR(VLOOKUP($F96&$G96&$H96&$M96&COMP!$D$65&$I96&"L",MGMACP!$A$4:$W$15377,10,FALSE)/1000,"no data")))) -> no data | AD96: =IF($F96="SPEC",COMP!L$69/1000,IFERROR(VLOOKUP($F96&$G96&$H96&$M96&COMP!$D$65&$I96&"L",AAMC!$A$4:$W$15377,15,FALSE)/1000,IFERROR(VLOOKUP($F96&$G96&$H96&$M96&COMP!$D$65&$I96&"L",MGMAC!$A$4:$W$15377,15,FALSE)/1000,IFERROR(VLOOKUP($F96&$G96&$H96&$M96&COMP!$D$65&$I96&"L",MGMACP!$A$4:$W$15377,15,FALSE)/1000,"no data")))) -> no data | AE96: =IF($F96="SPEC",COMP!M$69/1000,IFERROR(VLOOKUP($F96&$G96&$H96&$M96&COMP!$D$65&$I96&"L",AAMC!$A$4:$W$15377,20,FALSE)/1000,IFERROR(VLOOKUP($F96&$G96&$H96&$M96&COMP!$D$65&$I96&"L",MGMAC!$A$4:$W$15377,20,FALSE)/1000,IFERROR(VLOOKUP($F96&$G96&$H96&$M96&COMP!$D$65&$I96&"L",MGMACP!$A$4:$W$15377,20,FALSE)/1000,"no data")))) -> no data | AL96: 3 | AM96: 0 | AN96: =IF($J96=0,0,IF($B96="SPEC",COMP!$L$76,IF($B96="FPSC",IFERROR(VLOOKUP($B96&$C96&$D96&$E96&"L",FPSC!$A$4:$U$332,13,FALSE),"no data"),IF(B96&C96="MGMAAcademic",IFERROR(VLOOKUP($B96&$C96&$D96&$E96&"L",MGMAR!$A$4:$U$332,13,FALSE),"no data"),IFERROR(VLOOKUP($B96&$C96&$D96&$E96&"L",MGMARP!$A$4:$U$332,13,FALSE),"no data"))))) -> 0 | AO96: 0 | AP96: 0 | AQ96: 0 | AR96: 0 | AS96: 0 | AT96: 0 | AU96: 0 | AV96: 0 | AW96: 0 | AX96: 0

Sheet SUMMARY
A1: COLLEGE OF MEDICINE | Q1: JFR #: | R1: =COMP!D9 -> 0 | AF1: =COMP!N1 -> COM FBP V19.2
A2: FACULTY RECRUITMENT BUSINESS PLAN | Q2: Printed on: | R2: =TODAY() -> 2019-01-04 | AF2: ="Transaction Type: "&COMP!D11 -> Transaction Type: Request to Hire
Q3: Error Count: | R3: =ERROR!E7 -> 22
A4: GENERAL INFORMATION
A5: Department: | F5: =COMP!J9 -> [select] | L5: Working Posn Title: | Q5: =COMP!D10 -> [select] [select]; | W5: New/Replacement: | AA5: =COMP!D16 -> [select]
A6: Section/Division: | F6: =COMP!J10 -> 0 | L6: Position Type: | Q6: =COMP!J15 -> [select] | W6: Replacing: | AA6: =COMP!D17 -> 0
A7: Service Line: | F7: =COMP!J12 -> [select] | L7: Tenure Track: | Q7: =COMP!J16 -> [select] | W7: Departure Date: | AA7: =COMP!D18 -> 00:00:00
A8: Candidate Name: | F8: =IF(COMP!D15=0,"TBD",COMP!D15) -> TBD | L8: Rank: | Q8: =COMP!J17 -> [select]
A9: Start Date: | F9: =COMP!D14 -> 00:00:00 | L9: Degree: | Q9: =COMP!D65 -> [select] | S9: =COMP!J15 -> [select] | W9: Budgeted: | Z9: =COMP!D46&"; "&COMP!D47 -> ;
A11: JUSTIFICATION
A12: =COMP!B20 -> 0
A15: COMPENSATION
A16: Base Salary: | F16: =COMP!D27 -> 0 | T16: Benchmark Source Data
A17: Base Attachment: | F17: =COMP!D28 -> 0 | J17: =IF(COMP!J18=0,"",COMP!J18) ->  | Q17: Data Year | T17: 25%ILE | W17: MEDIAN | Z17: 75%ILE | AC17: 90%ILE
A18: UAMS Salary: | F18: =SUM(F16:I17) -> 0 | P18: AAMC Public Schools: | Q18: =COMP!J65 -> 2017 | T18: =COMP!K65 -> no data | W18: =COMP!L65 -> no data | Z18: =COMP!M65 -> no data | AC18: =COMP!N65 -> no data
P19: AAMC All Schools: | Q19: =COMP!J66 -> 2017 | T19: =COMP!K66 -> no data | W19: =COMP!L66 -> no data | Z19: =COMP!M66 -> no data | AC19: =COMP!N66 -> no data
A20: VA Salary: | F20: =COMP!D30 -> 0 | P20: MGMA Academic: | Q20: =COMP!J67 -> 2016 | T20: =COMP!K67 -> no data | W20: =COMP!L67 -> no data | Z20: =COMP!M67 -> no data | AC20: =COMP!N67 -> no data
A21: Total Salary: | F21: =F18+F20 -> 0 | P21: MGMA Private Practice: | Q21: =COMP!J68 -> 2016 | T21: =COMP!K68 -> no data | W21: =COMP!L68 -> no data | Z21: =COMP!M68 -> no data | AC21: =COMP!N68 -> no data
T22: Specialty Assoiation Data
A23: Incentive: | F23: =COMP!J33 -> 0 | P23: Specialty Assoc: | Q23: =COMP!J69 -> 0 | T23: =COMP!K69 -> 0 | W23: =COMP!L69 -> 0 | Z23: =COMP!M69 -> 0 | AC23: =COMP!N69 -> 0
A24: Total Comp: | F24: =F21+F23 -> 0 | P24: Specialty Association: | T24: =IF(COMP!K70=0,"",COMP!K70) -> 
P26: 1.0 Normalized FTE Compensation: | T26: =F24/O39 -> 
A27: Salary Justification:
A28: =COMP!B50 -> 0
A32: YEAR 1 COMPENSATION PLAN EFFORT SUMMARY
E33: COM | G33: ICE | I33: ACH | K33: INST | M33: Other | O33: Total | U33: Administrative Assignments | AC33: FTE
A34: Administration | E34: =ASSIGN!C44 -> 0 | G34: =ASSIGN!D44 -> 0 | I34: =ASSIGN!E44 -> 0 | K34: =ASSIGN!F44 -> 0 | M34: =ASSIGN!G44 -> 0 | O34: =SUM(E34:N34) -> 0 | U34: =IF(ASSIGN!B11=0,"",ASSIGN!C11) ->  | AC34: =IF(U34="","",ASSIGN!M11) -> 
A35: Research | E35: =ASSIGN!C45 -> 0 | G35: =ASSIGN!D45 -> 0 | I35: =ASSIGN!E45 -> 0 | K35: =ASSIGN!F45 -> 0 | M35: =ASSIGN!G45 -> 0 | O35: =SUM(E35:N35) -> 0 | U35: =IF(ASSIGN!B12=0,"",ASSIGN!C12) ->  | AC35: =IF(U35="","",ASSIGN!M12) -> 
A36: Education | E36: =ASSIGN!C46 -> 0 | G36: =ASSIGN!D46 -> 0 | I36: =ASSIGN!E46 -> 0 | K36: =ASSIGN!F46 -> 0 | M36: =ASSIGN!G46 -> 0 | O36: 0 | U36: =IF(ASSIGN!B13=0,"",ASSIGN!C13) ->  | AC36: =IF(U36="","",ASSIGN!M13) -> 
A37: Clinical | E37: =ASSIGN!C47 -> 0 | G37: =ASSIGN!D47 -> 0 | I37: =ASSIGN!E47 -> 0 | K37: =ASSIGN!F47 -> 0 | M37: =ASSIGN!G47 -> 0 | O37: 0 | U37: =IF(ASSIGN!B14=0,"",ASSIGN!C14) ->  | AC37: =IF(U37="","",ASSIGN!M14) -> 
A38: VA | E38: =ASSIGN!C48 -> 0 | G38: =ASSIGN!D48 -> 0 | I38: =ASSIGN!E48 -> 0 | K38: =ASSIGN!F48 -> 0 | M38: =ASSIGN!G48 -> 0 | O38: 0 | U38: =IF(ASSIGN!B15=0,"",ASSIGN!C15) ->  | AC38: =IF(U38="","",ASSIGN!M15) -> 
A39: Total | E39: =SUM(E34:F38) -> 0 | G39: =SUM(G34:H38) -> 0 | I39: =SUM(I34:J38) -> 0 | K39: =SUM(K34:L38) -> 0 | M39: =SUM(M34:N38) -> 0 | O39: 0
A41: FINANCIAL IMPACT SUMMARY
E42: Year 1 | I42: Year 2 | M42: Year 3 | Q42: Year 4 | U42: Year 5
A43: COM | E43: =PROFORMA!D45 -> 0 | I43: =PROFORMA!E45 -> 0 | M43: =PROFORMA!F45 -> 0 | Q43: =PROFORMA!G45 -> 0 | U43: =PROFORMA!H45 -> 0
A44: ICE | E44: =PROFORMA!D80 -> 0 | I44: =PROFORMA!E80 -> 0 | M44: =PROFORMA!F80 -> 0 | Q44: =PROFORMA!G80 -> 0 | U44: =PROFORMA!H80 -> 0
A45: ACH | E45: =PROFORMA!D115 -> 0 | I45: =PROFORMA!E115 -> 0 | M45: =PROFORMA!F115 -> 0 | Q45: =PROFORMA!G115 -> 0 | U45: =PROFORMA!H115 -> 0
A46: INST | E46: =PROFORMA!D150 -> 0 | I46: =PROFORMA!E150 -> 0 | M46: =PROFORMA!F150 -> 0 | Q46: =PROFORMA!G150 -> 0 | U46: =PROFORMA!H150 -> 0
A47: Other | E47: =PROFORMA!D185 -> 0 | I47: =PROFORMA!E185 -> 0 | M47: =PROFORMA!F185 -> 0 | Q47: =PROFORMA!G185 -> 0 | U47: =PROFORMA!H185 -> 0
A48: Total | E48: =SUM(E43:H47) -> 0 | I48: =SUM(I43:L47) -> 0 | M48: =SUM(M43:P47) -> 0 | Q48: =SUM(Q43:T47) -> 0 | U48: =SUM(U43:X47) -> 0
A50: wRVU PROJECTED PRODUCTIVITY
A51: Incremental | E51: Year 1 | I51: Year 2 | M51: Year 3 | Q51: Year 4 | U51: Year 5
A52: ICE | E52: =SUMIF('CLIN REV'!$A$13:$A$46,$A52,'CLIN REV'!D$13:D$46) -> 0 | F52: =SUMIF('CLIN REV'!$A$13:$A$46,$A52,'CLIN REV'!F$13:F$46) -> 0 | G52: =SUMIF('CLIN REV'!$A$13:$A$46,$A52,'CLIN REV'!G$13:G$46) -> 0 | H52: =SUMIF('CLIN REV'!$A$13:$A$46,$A52,'CLIN REV'!H$13:H$46) -> 0 | I52: =SUMIF('CLIN REV'!$A$13:$A$46,$A52,'CLIN REV'!E$13:E$46) -> 0 | J52: =SUMIF('CLIN REV'!$A$13:$A$46,$A52,'CLIN REV'!J$13:J$46) -> 0 | K52: =SUMIF('CLIN REV'!$A$13:$A$46,$A52,'CLIN REV'!K$13:K$46) -> 0 | L52: =SUMIF('CLIN REV'!$A$13:$A$46,$A52,'CLIN REV'!L$13:L$46) -> 0 | M52: =SUMIF('CLIN REV'!$A$13:$A$46,$A52,'CLIN REV'!F$13:F$46) -> 0 | N52: =SUMIF('CLIN REV'!$A$13:$A$46,$A52,'CLIN REV'!N$13:N$46) -> 0 | O52: =SUMIF('CLIN REV'!$A$13:$A$46,$A52,'CLIN REV'!O$13:O$46) -> 0 | P52: =SUMIF('CLIN REV'!$A$13:$A$46,$A52,'CLIN REV'!P$13:P$46) -> 0 | Q52: =SUMIF('CLIN REV'!$A$13:$A$46,$A52,'CLIN REV'!G$13:G$46) -> 0 | R52: =SUMIF('CLIN REV'!$A$13:$A$46,$A52,'CLIN REV'!R$13:R$46) -> 0 | S52: =SUMIF('CLIN REV'!$A$13:$A$46,$A52,'CLIN REV'!S$13:S$46) -> 0 | T52: =SUMIF('CLIN REV'!$A$13:$A$46,$A52,'CLIN REV'!T$13:T$46) -> 0 | U52: =SUMIF('CLIN REV'!$A$13:$A$46,$A52,'CLIN REV'!H$13:H$46) -> 0 | V52: =SUMIF('CLIN REV'!$A$13:$A$46,$A52,'CLIN REV'!V$13:V$46) -> 0 | W52: =SUMIF('CLIN REV'!$A$13:$A$46,$A52,'CLIN REV'!W$13:W$46) -> 0 | X52: =SUMIF('CLIN REV'!$A$13:$A$46,$A52,'CLIN REV'!X$13:X$46) -> 0
A53: ACH | E53: =SUMIF('CLIN REV'!$A$127:$A$160,$A53,'CLIN REV'!D$127:D$160) -> 0 | F53: =SUMIF('CLIN REV'!$A$13:$A$46,$A53,'CLIN REV'!F$13:F$46) -> 0 | G53: =SUMIF('CLIN REV'!$A$13:$A$46,$A53,'CLIN REV'!G$13:G$46) -> 0 | H53: =SUMIF('CLIN REV'!$A$13:$A$46,$A53,'CLIN REV'!H$13:H$46) -> 0 | I53: =SUMIF('CLIN REV'!$A$127:$A$160,$A53,'CLIN REV'!E$127:E$160) -> 0 | J53: =SUMIF('CLIN REV'!$A$13:$A$46,$A53,'CLIN REV'!J$13:J$46) -> 0 | K53: =SUMIF('CLIN REV'!$A$13:$A$46,$A53,'CLIN REV'!K$13:K$46) -> 0 | L53: =SUMIF('CLIN REV'!$A$13:$A$46,$A53,'CLIN REV'!L$13:L$46) -> 0 | M53: =SUMIF('CLIN REV'!$A$127:$A$160,$A53,'CLIN REV'!F$127:F$160) -> 0 | N53: =SUMIF('CLIN REV'!$A$13:$A$46,$A53,'CLIN REV'!N$13:N$46) -> 0 | O53: =SUMIF('CLIN REV'!$A$13:$A$46,$A53,'CLIN REV'!O$13:O$46) -> 0 | P53: =SUMIF('CLIN REV'!$A$13:$A$46,$A53,'CLIN REV'!P$13:P$46) -> 0 | Q53: =SUMIF('CLIN REV'!$A$127:$A$160,$A53,'CLIN REV'!G$127:G$160) -> 0 | R53: =SUMIF('CLIN REV'!$A$13:$A$46,$A53,'CLIN REV'!R$13:R$46) -> 0 | S53: =SUMIF('CLIN REV'!$A$13:$A$46,$A53,'CLIN REV'!S$13:S$46) -> 0 | T53: =SUMIF('CLIN REV'!$A$13:$A$46,$A53,'CLIN REV'!T$13:T$46) -> 0 | U53: =SUMIF('CLIN REV'!$A$127:$A$160,$A53,'CLIN REV'!H$127:H$160) -> 0 | V53: =SUMIF('CLIN REV'!$A$13:$A$46,$A53,'CLIN REV'!V$13:V$46) -> 0 | W53: =SUMIF('CLIN REV'!$A$13:$A$46,$A53,'CLIN REV'!W$13:W$46) -> 0 | X53: =SUMIF('CLIN REV'!$A$13:$A$46,$A53,'CLIN REV'!X$13:X$46) -> 0
A54: COM | E54: =SUMIF('CLIN REV'!$A$165:$A$198,$A54,'CLIN REV'!D$165:D$198) -> 0 | F54: =SUMIF('CLIN REV'!$A$13:$A$46,$A54,'CLIN REV'!F$13:F$46) -> 0 | G54: =SUMIF('CLIN REV'!$A$13:$A$46,$A54,'CLIN REV'!G$13:G$46) -> 0 | H54: =SUMIF('CLIN REV'!$A$13:$A$46,$A54,'CLIN REV'!H$13:H$46) -> 0 | I54: =SUMIF('CLIN REV'!$A$165:$A$198,$A54,'CLIN REV'!E$165:E$198) -> 0 | J54: =SUMIF('CLIN REV'!$A$13:$A$46,$A54,'CLIN REV'!J$13:J$46) -> 0 | K54: =SUMIF('CLIN REV'!$A$13:$A$46,$A54,'CLIN REV'!K$13:K$46) -> 0 | L54: =SUMIF('CLIN REV'!$A$13:$A$46,$A54,'CLIN REV'!L$13:L$46) -> 0 | M54: =SUMIF('CLIN REV'!$A$165:$A$198,$A54,'CLIN REV'!F$165:F$198) -> 0 | N54: =SUMIF('CLIN REV'!$A$13:$A$46,$A54,'CLIN REV'!N$13:N$46) -> 0 | O54: =SUMIF('CLIN REV'!$A$13:$A$46,$A54,'CLIN REV'!O$13:O$46) -> 0 | P54: =SUMIF('CLIN REV'!$A$13:$A$46,$A54,'CLIN REV'!P$13:P$46) -> 0 | Q54: =SUMIF('CLIN REV'!$A$165:$A$198,$A54,'CLIN REV'!G$165:G$198) -> 0 | R54: =SUMIF('CLIN REV'!$A$13:$A$46,$A54,'CLIN REV'!R$13:R$46) -> 0 | S54: =SUMIF('CLIN REV'!$A$13:$A$46,$A54,'CLIN REV'!S$13:S$46) -> 0 | T54: =SUMIF('CLIN REV'!$A$13:$A$46,$A54,'CLIN REV'!T$13:T$46) -> 0 | U54: =SUMIF('CLIN REV'!$A$165:$A$198,$A54,'CLIN REV'!H$165:H$198) -> 0 | V54: =SUMIF('CLIN REV'!$A$13:$A$46,$A54,'CLIN REV'!V$13:V$46) -> 0 | W54: =SUMIF('CLIN REV'!$A$13:$A$46,$A54,'CLIN REV'!W$13:W$46) -> 0 | X54: =SUMIF('CLIN REV'!$A$13:$A$46,$A54,'CLIN REV'!X$13:X$46) -> 0
A55: Total | E55: =SUM(E52:E54) -> 0 | I55: =SUM(I52:I54) -> 0 | M55: =SUM(M52:M54) -> 0 | Q55: =SUM(Q52:Q54) -> 0 | U55: =SUM(U52:U54) -> 0
H56: 2016 Benchmark Source Data
H57: 25%ILE | K57: MEDIAN | N57: 75%ILE | Q57: 90%ILE | T57: Data Year
G58: FPSC Academic: | H58: =COMP!K73 -> no data | K58: =COMP!L73 -> no data | N58: =COMP!M73 -> no data | Q58: =COMP!N73 -> no data | T58: =COMP!J73 -> 2017
G59: MGMA Academic: | H59: =COMP!K74 -> no data | K59: =COMP!L74 -> no data | N59: =COMP!M74 -> no data | Q59: =COMP!N74 -> no data | T59: =COMP!J74 -> 2016
G60: MGMA Private Practice: | H60: =COMP!K75 -> no data | K60: =COMP!L75 -> no data | N60: =COMP!M75 -> no data | Q60: =COMP!N75 -> no data | T60: =COMP!J75 -> 2016
G61: Specialty Association: | H61: =COMP!K76 -> 0 | K61: =COMP!L76 -> 0 | N61: =COMP!M76 -> 0 | Q61: =COMP!N76 -> 0 | T61: =COMP!J76 -> 0
G62: FPSC Academic Normalized: | H62: =IFERROR(H58*$O$37,"no data") -> no data | K62: =IFERROR(K58*$O$37,"no data") -> no data | N62: =IFERROR(N58*$O$37,"no data") -> no data | Q62: =IFERROR(Q58*$O$37,"no data") -> no data
G63: MGMA Academic Normalized: | H63: =IFERROR(H59*$O$37,"no data") -> no data | K63: =IFERROR(K59*$O$37,"no data") -> no data | N63: =IFERROR(N59*$O$37,"no data") -> no data | Q63: =IFERROR(Q59*$O$37,"no data") -> no data
G64: MGMA Private Normalized: | H64: no data | K64: =IFERROR(K60*$O$37,"no data") -> no data | N64: =IFERROR(N60*$O$37,"no data") -> no data | Q64: =IFERROR(Q60*$O$37,"no data") -> no data
G65: Specialty Association Normalized: | H65: =H61*$O$37 -> 0 | K65: =K61*$O$37 -> 0 | N65: =N61*$O$37 -> 0 | Q65: =Q61*$O$37 -> 0
A67: DEAN'S COMMITMENT REQUESTS
E68: Year 1 | I68: Year 2 | M68: Year 3 | Q68: Year 4 | U68: Year 5 | Y68: Grand Total
A69: COM | E69: =PROFORMA!D20 -> 0 | I69: =PROFORMA!E20 -> 0 | M69: =PROFORMA!F20 -> 0 | Q69: =PROFORMA!G20 -> 0 | U69: =PROFORMA!H20 -> 0 | Y69: =SUM(E69:X69) -> 0
A70: Part of an existing Dean's Commitment? | K70: =COMP!D43 -> 0 | N70: =IF(K70="Yes",COMP!D44,"") -> 

Sheet PROFORMA
A1: HIDE | B1: COLLEGE OF MEDICINE | H1: =COMP!N1 -> COM FBP V19.2 | I1: HIDE | J1: HIDE | K1: HIDE | L1: HIDE | M1: HIDE | N1: HIDE
B2: FACULTY RECRUITMENT BUSINESS PLAN | H2: =COMP!B1 -> ; [select]; [select] [select]; | N2: 1
N3: 2
B4: PROFORMA | N4: 3
D5: Year 1 | E5: Year 2 | F5: Year 3 | G5: Year 4 | H5: Year 5 | N5: 4
B6: Total Impact | D6: =D45+D80+D115+D150+D185 -> 0 | E6: =E45+E80+E115+E150+E185 -> 0 | F6: =F45+F80+F115+F150+F185 -> 0 | G6: =G45+G80+G115+G150+G185 -> 0 | H6: =H45+H80+H115+H150+H185 -> 0 | N6: 5
N7: 6
N8: 7
N9: 8
N10: 9
N11: 10
B12: COM | N12: =N26+N43 -> 0
B13: Incremental Budget Impact | N13: =N26+N43 -> 0
C14: L# | D14: Year 1 | E14: Year 2 | F14: Year 3 | G14: Year 4 | H14: Year 5 | N14: =N26+N43 -> 0
A15: ="COM"&B15 -> COMClinical Pro Fees | B15: Clinical Pro Fees | C15: -1 | D15: =SUMIF('CLIN REV'!$A$13:$A$201,$A15,'CLIN REV'!D$13:D$201) -> 0 | E15: =SUMIF('CLIN REV'!$A$13:$A$201,$A15,'CLIN REV'!E$13:E$201) -> 0 | F15: =SUMIF('CLIN REV'!$A$13:$A$201,$A15,'CLIN REV'!F$13:F$201) -> 0 | G15: =SUMIF('CLIN REV'!$A$13:$A$201,$A15,'CLIN REV'!G$13:G$201) -> 0 | H15: =SUMIF('CLIN REV'!$A$13:$A$201,$A15,'CLIN REV'!H$13:H$201) -> 0 | I15: =IF(D15=0,0,1) -> 0 | J15: =IF(E15=0,0,1) -> 0 | K15: =IF(F15=0,0,1) -> 0 | L15: =IF(G15=0,0,1) -> 0 | M15: =IF(H15=0,0,1) -> 0 | N15: =SUM(I15:M15) -> 0
A16: ="COM"&B16 -> COMClinical Tech Fees | B16: Clinical Tech Fees | C16: =C15-1 -> -2 | D16: =SUMIF('CLIN REV'!$A$13:$A$201,$A16,'CLIN REV'!D$13:D$201) -> 0 | E16: =SUMIF('CLIN REV'!$A$13:$A$201,$A16,'CLIN REV'!E$13:E$201) -> 0 | F16: =SUMIF('CLIN REV'!$A$13:$A$201,$A16,'CLIN REV'!F$13:F$201) -> 0 | G16: =SUMIF('CLIN REV'!$A$13:$A$201,$A16,'CLIN REV'!G$13:G$201) -> 0 | H16: =SUMIF('CLIN REV'!$A$13:$A$201,$A16,'CLIN REV'!H$13:H$201) -> 0 | I16: =IF(D16=0,0,1) -> 0 | J16: =IF(E16=0,0,1) -> 0 | K16: =IF(F16=0,0,1) -> 0 | L16: =IF(G16=0,0,1) -> 0 | M16: =IF(H16=0,0,1) -> 0 | N16: =SUM(I16:M16) -> 0
A17: COMClinical Down Stream | B17: Clinical Down Stream | C17: -3 | D17: =SUMIF('CLIN REV'!$A$13:$A$201,$A17,'CLIN REV'!D$13:D$201) -> 0 | E17: =SUMIF('CLIN REV'!$A$13:$A$201,$A17,'CLIN REV'!E$13:E$201) -> 0 | F17: =SUMIF('CLIN REV'!$A$13:$A$201,$A17,'CLIN REV'!F$13:F$201) -> 0 | G17: =SUMIF('CLIN REV'!$A$13:$A$201,$A17,'CLIN REV'!G$13:G$201) -> 0 | H17: =SUMIF('CLIN REV'!$A$13:$A$201,$A17,'CLIN REV'!H$13:H$201) -> 0 | I17: 0 | J17: 0 | K17: 0 | L17: 0 | M17: 0 | N17: 0
A18: COMEnhanced Medicaid | B18: Enhanced Medicaid | C18: -4 | D18: =SUMIF('OTH REV'!$A$10:$A$43,$A18,'OTH REV'!I$10:I$43) -> 0 | E18: =SUMIF('OTH REV'!$A$10:$A$43,$A18,'OTH REV'!J$10:J$43) -> 0 | F18: =SUMIF('OTH REV'!$A$10:$A$43,$A18,'OTH REV'!K$10:K$43) -> 0 | G18: =SUMIF('OTH REV'!$A$10:$A$43,$A18,'OTH REV'!L$10:L$43) -> 0 | H18: =SUMIF('OTH REV'!$A$10:$A$43,$A18,'OTH REV'!M$10:M$43) -> 0 | I18: 0 | J18: 0 | K18: 0 | L18: 0 | M18: 0 | N18: 0
A19: COMBudget | B19: Budget | C19: -5 | D19: =SUMIF('OTH REV'!$A$10:$A$43,$A19,'OTH REV'!I$10:I$43) -> 0 | E19: =SUMIF('OTH REV'!$A$10:$A$43,$A19,'OTH REV'!J$10:J$43) -> 0 | F19: =SUMIF('OTH REV'!$A$10:$A$43,$A19,'OTH REV'!K$10:K$43) -> 0 | G19: =SUMIF('OTH REV'!$A$10:$A$43,$A19,'OTH REV'!L$10:L$43) -> 0 | H19: =SUMIF('OTH REV'!$A$10:$A$43,$A19,'OTH REV'!M$10:M$43) -> 0 | I19: 0 | J19: 0 | K19: 0 | L19: 0 | M19: 0 | N19: =SUM(I19:M19) -> 0
A20: ="COM"&B20 -> COMDean's Commitment | B20: Dean's Commitment | C20: -6 | D20: =SUMIF('OTH REV'!$A$10:$A$43,$A20,'OTH REV'!I$10:I$43) -> 0 | E20: =SUMIF('OTH REV'!$A$10:$A$43,$A20,'OTH REV'!J$10:J$43) -> 0 | F20: =SUMIF('OTH REV'!$A$10:$A$43,$A20,'OTH REV'!K$10:K$43) -> 0 | G20: =SUMIF('OTH REV'!$A$10:$A$43,$A20,'OTH REV'!L$10:L$43) -> 0 | H20: =SUMIF('OTH REV'!$A$10:$A$43,$A20,'OTH REV'!M$10:M$43) -> 0 | I20: 0 | J20: 0 | K20: 0 | L20: 0 | M20: 0 | N20: 0
A21: COMGrant | B21: Grant | C21: -7 | D21: =SUMIF('OTH REV'!$A$10:$A$43,$A21,'OTH REV'!I$10:I$43) -> 0 | E21: =SUMIF('OTH REV'!$A$10:$A$43,$A21,'OTH REV'!J$10:J$43) -> 0 | F21: =SUMIF('OTH REV'!$A$10:$A$43,$A21,'OTH REV'!K$10:K$43) -> 0 | G21: =SUMIF('OTH REV'!$A$10:$A$43,$A21,'OTH REV'!L$10:L$43) -> 0 | H21: =SUMIF('OTH REV'!$A$10:$A$43,$A21,'OTH REV'!M$10:M$43) -> 0 | I21: =IF(D21=0,0,1) -> 0 | J21: =IF(E21=0,0,1) -> 0 | K21: =IF(F21=0,0,1) -> 0 | L21: =IF(G21=0,0,1) -> 0 | M21: =IF(H21=0,0,1) -> 0 | N21: =SUM(I21:M21) -> 0
A22: COMContract | B22: Contract | C22: -8 | D22: =SUMIF('OTH REV'!$A$10:$A$43,$A22,'OTH REV'!I$10:I$43) -> 0 | E22: =SUMIF('OTH REV'!$A$10:$A$43,$A22,'OTH REV'!J$10:J$43) -> 0 | F22: =SUMIF('OTH REV'!$A$10:$A$43,$A22,'OTH REV'!K$10:K$43) -> 0 | G22: =SUMIF('OTH REV'!$A$10:$A$43,$A22,'OTH REV'!L$10:L$43) -> 0 | H22: =SUMIF('OTH REV'!$A$10:$A$43,$A22,'OTH REV'!M$10:M$43) -> 0 | I22: 0 | J22: 0 | K22: 0 | L22: 0 | M22: 0 | N22: 0
A23: COMGift | B23: Gift | C23: -9 | D23: =SUMIF('OTH REV'!$A$10:$A$43,$A23,'OTH REV'!I$10:I$43) -> 0 | E23: =SUMIF('OTH REV'!$A$10:$A$43,$A23,'OTH REV'!J$10:J$43) -> 0 | F23: =SUMIF('OTH REV'!$A$10:$A$43,$A23,'OTH REV'!K$10:K$43) -> 0 | G23: =SUMIF('OTH REV'!$A$10:$A$43,$A23,'OTH REV'!L$10:L$43) -> 0 | H23: =SUMIF('OTH REV'!$A$10:$A$43,$A23,'OTH REV'!M$10:M$43) -> 0 | I23: 0 | J23: 0 | K23: 0 | L23: 0 | M23: 0 | N23: 0
A24: COMFoundation | B24: Foundation | C24: -10 | D24: =SUMIF('OTH REV'!$A$10:$A$43,$A24,'OTH REV'!I$10:I$43) -> 0 | E24: =SUMIF('OTH REV'!$A$10:$A$43,$A24,'OTH REV'!J$10:J$43) -> 0 | F24: =SUMIF('OTH REV'!$A$10:$A$43,$A24,'OTH REV'!K$10:K$43) -> 0 | G24: =SUMIF('OTH REV'!$A$10:$A$43,$A24,'OTH REV'!L$10:L$43) -> 0 | H24: =SUMIF('OTH REV'!$A$10:$A$43,$A24,'OTH REV'!M$10:M$43) -> 0 | I24: 0 | J24: 0 | K24: 0 | L24: 0 | M24: 0 | N24: 0
A25: COMOther | B25: Other | C25: -11 | D25: =SUMIF('OTH REV'!$A$10:$A$43,$A25,'OTH REV'!I$10:I$43) -> 0 | E25: =SUMIF('OTH REV'!$A$10:$A$43,$A25,'OTH REV'!J$10:J$43) -> 0 | F25: =SUMIF('OTH REV'!$A$10:$A$43,$A25,'OTH REV'!K$10:K$43) -> 0 | G25: =SUMIF('OTH REV'!$A$10:$A$43,$A25,'OTH REV'!L$10:L$43) -> 0 | H25: =SUMIF('OTH REV'!$A$10:$A$43,$A25,'OTH REV'!M$10:M$43) -> 0 | I25: 0 | J25: 0 | K25: 0 | L25: 0 | M25: 0 | N25: 0
B26: Total Resources | D26: =SUM(D15:D25) -> 0 | E26: =SUM(E15:E25) -> 0 | F26: =SUM(F15:F25) -> 0 | G26: =SUM(G15:G25) -> 0 | H26: =SUM(H15:H25) -> 0 | I26: =IF(D26=0,0,1) -> 0 | J26: =IF(E26=0,0,1) -> 0 | K26: =IF(F26=0,0,1) -> 0 | L26: =IF(G26=0,0,1) -> 0 | M26: =IF(H26=0,0,1) -> 0 | N26: =SUM(I26:M26) -> 0
N27: =SUM(I26:M26) -> 0
A28: ="COM" -> COM | B28: Salary | C28: =C25-1 -> -12 | D28: =SUMIF(ASSIGN!$I$9:$I$40,$A28,ASSIGN!M$9:M$40)*COMP!I$51 -> 0 | E28: =SUMIF(ASSIGN!$I$9:$I$40,$A28,ASSIGN!N$9:N$40)*COMP!J$51 -> 0 | F28: =SUMIF(ASSIGN!$I$9:$I$40,$A28,ASSIGN!O$9:O$40)*COMP!K$51 -> 0 | G28: =SUMIF(ASSIGN!$I$9:$I$40,$A28,ASSIGN!P$9:P$40)*COMP!L$51 -> 0 | H28: =SUMIF(ASSIGN!$I$9:$I$40,$A28,ASSIGN!Q$9:Q$40)*COMP!M$51 -> 0 | I28: =IF(D28=0,0,1) -> 0 | J28: =IF(E28=0,0,1) -> 0 | K28: =IF(F28=0,0,1) -> 0 | L28: =IF(G28=0,0,1) -> 0 | M28: =IF(H28=0,0,1) -> 0 | N28: =SUM(I28:M28) -> 0
A29: ="COM" -> COM | B29: Incentive | C29: =C28-1 -> -13 | D29: =SUMIF(COMP!$F$29:$F$32,$A29,COMP!J$29:J$32) -> 0 | E29: =SUMIF(COMP!$F$29:$F$32,$A29,COMP!K$29:K$32) -> 0 | F29: =SUMIF(COMP!$F$29:$F$32,$A29,COMP!L$29:L$32) -> 0 | G29: =SUMIF(COMP!$F$29:$F$32,$A29,COMP!M$29:M$32) -> 0 | H29: =SUMIF(COMP!$F$29:$F$32,$A29,COMP!N$29:N$32) -> 0 | I29: =IF(D29=0,0,1) -> 0 | J29: =IF(E29=0,0,1) -> 0 | K29: =IF(F29=0,0,1) -> 0 | L29: =IF(G29=0,0,1) -> 0 | M29: =IF(H29=0,0,1) -> 0 | N29: =SUM(I29:M29) -> 0
A30: ="COM" -> COM | B30: Fringe | C30: =C29-1 -> -14 | D30: =SUMIF(ASSIGN!$I$9:$I$40,$A28,ASSIGN!M$9:M$40)*COMP!I$57+SUMIF(COMP!$F$29:$F$32,$A30,COMP!O$29:O$32) -> 0 | E30: =SUMIF(ASSIGN!$I$9:$I$40,$A28,ASSIGN!N$9:N$40)*COMP!J$57+SUMIF(COMP!$F$29:$F$32,$A30,COMP!P$29:P$32) -> 0 | F30: =SUMIF(ASSIGN!$I$9:$I$40,$A28,ASSIGN!O$9:O$40)*COMP!K$57+SUMIF(COMP!$F$29:$F$32,$A30,COMP!Q$29:Q$32) -> 0 | G30: =SUMIF(ASSIGN!$I$9:$I$40,$A28,ASSIGN!P$9:P$40)*COMP!L$57+SUMIF(COMP!$F$29:$F$32,$A30,COMP!R$29:R$32) -> 0 | H30: =SUMIF(ASSIGN!$I$9:$I$40,$A28,ASSIGN!Q$9:Q$40)*COMP!M$57+SUMIF(COMP!$F$29:$F$32,$A30,COMP!S$29:S$32) -> 0 | I30: 0 | J30: 0 | K30: 0 | L30: 0 | M30: 0 | N30: 0
I31: 0 | J31: 0 | K31: 0 | L31: 0 | M31: 0 | N31: 0
A32: ="COM"&B32 -> COMExtenders | B32: Extenders | C32: =C30-1 -> -15 | D32: =SUMIF('OTH EXP'!$B$10:$B$32,$A32,'OTH EXP'!G$10:G$32) -> 0 | E32: =SUMIF('OTH EXP'!$B$10:$B$32,$A32,'OTH EXP'!H$10:H$32) -> 0 | F32: =SUMIF('OTH EXP'!$B$10:$B$32,$A32,'OTH EXP'!I$10:I$32) -> 0 | G32: =SUMIF('OTH EXP'!$B$10:$B$32,$A32,'OTH EXP'!J$10:J$32) -> 0 | H32: =SUMIF('OTH EXP'!$B$10:$B$32,$A32,'OTH EXP'!K$10:K$32) -> 0 | I32: 0 | J32: 0 | K32: 0 | L32: 0 | M32: 0 | N32: 0
A33: COMStaff | B33: Staff | C33: =C32-1 -> -16 | D33: =SUMIF('OTH EXP'!$B$10:$B$32,$A33,'OTH EXP'!G$10:G$32) -> 0 | E33: =SUMIF('OTH EXP'!$B$10:$B$32,$A33,'OTH EXP'!H$10:H$32) -> 0 | F33: =SUMIF('OTH EXP'!$B$10:$B$32,$A33,'OTH EXP'!I$10:I$32) -> 0 | G33: =SUMIF('OTH EXP'!$B$10:$B$32,$A33,'OTH EXP'!J$10:J$32) -> 0 | H33: =SUMIF('OTH EXP'!$B$10:$B$32,$A33,'OTH EXP'!K$10:K$32) -> 0 | I33: 0 | J33: 0 | K33: 0 | L33: 0 | M33: 0 | N33: 0
A34: COMComputer | B34: Computer | C34: =C33-1 -> -17 | D34: =SUMIF('OTH EXP'!$B$10:$B$32,$A34,'OTH EXP'!G$10:G$32) -> 0 | E34: =SUMIF('OTH EXP'!$B$10:$B$32,$A34,'OTH EXP'!H$10:H$32) -> 0 | F34: =SUMIF('OTH EXP'!$B$10:$B$32,$A34,'OTH EXP'!I$10:I$32) -> 0 | G34: =SUMIF('OTH EXP'!$B$10:$B$32,$A34,'OTH EXP'!J$10:J$32) -> 0 | H34: =SUMIF('OTH EXP'!$B$10:$B$32,$A34,'OTH EXP'!K$10:K$32) -> 0 | I34: 0 | J34: 0 | K34: 0 | L34: 0 | M34: 0 | N34: 0
A35: COMEducational Funds | B35: Educational Funds | C35: =C34-1 -> -18 | D35: =SUMIF('OTH EXP'!$B$10:$B$32,$A35,'OTH EXP'!G$10:G$32) -> 0 | E35: =SUMIF('OTH EXP'!$B$10:$B$32,$A35,'OTH EXP'!H$10:H$32) -> 0 | F35: =SUMIF('OTH EXP'!$B$10:$B$32,$A35,'OTH EXP'!I$10:I$32) -> 0 | G35: =SUMIF('OTH EXP'!$B$10:$B$32,$A35,'OTH EXP'!J$10:J$32) -> 0 | H35: =SUMIF('OTH EXP'!$B$10:$B$32,$A35,'OTH EXP'!K$10:K$32) -> 0 | I35: 0 | J35: 0 | K35: 0 | L35: 0 | M35: 0 | N35: 0
A36: COMEquipment | B36: Equipment | C36: =C35-1 -> -19 | D36: =SUMIF('OTH EXP'!$B$10:$B$32,$A36,'OTH EXP'!G$10:G$32) -> 0 | E36: =SUMIF('OTH EXP'!$B$10:$B$32,$A36,'OTH EXP'!H$10:H$32) -> 0 | F36: =SUMIF('OTH EXP'!$B$10:$B$32,$A36,'OTH EXP'!I$10:I$32) -> 0 | G36: =SUMIF('OTH EXP'!$B$10:$B$32,$A36,'OTH EXP'!J$10:J$32) -> 0 | H36: =SUMIF('OTH EXP'!$B$10:$B$32,$A36,'OTH EXP'!K$10:K$32) -> 0 | I36: 0 | J36: 0 | K36: 0 | L36: 0 | M36: 0 | N36: 0
A37: COMConstruction | B37: Construction | C37: -20 | D37: =SUMIF('OTH EXP'!$B$10:$B$32,$A37,'OTH EXP'!G$10:G$32) -> 0 | E37: =SUMIF('OTH EXP'!$B$10:$B$32,$A37,'OTH EXP'!H$10:H$32) -> 0 | F37: =SUMIF('OTH EXP'!$B$10:$B$32,$A37,'OTH EXP'!I$10:I$32) -> 0 | G37: =SUMIF('OTH EXP'!$B$10:$B$32,$A37,'OTH EXP'!J$10:J$32) -> 0 | H37: =SUMIF('OTH EXP'!$B$10:$B$32,$A37,'OTH EXP'!K$10:K$32) -> 0 | I37: 0 | J37: 0 | K37: 0 | L37: 0 | M37: 0 | N37: 0
A38: COMFurniture | B38: Furniture | C38: -21 | D38: =SUMIF('OTH EXP'!$B$10:$B$32,$A38,'OTH EXP'!G$10:G$32) -> 0 | E38: =SUMIF('OTH EXP'!$B$10:$B$32,$A38,'OTH EXP'!H$10:H$32) -> 0 | F38: =SUMIF('OTH EXP'!$B$10:$B$32,$A38,'OTH EXP'!I$10:I$32) -> 0 | G38: =SUMIF('OTH EXP'!$B$10:$B$32,$A38,'OTH EXP'!J$10:J$32) -> 0 | H38: =SUMIF('OTH EXP'!$B$10:$B$32,$A38,'OTH EXP'!K$10:K$32) -> 0 | I38: 0 | J38: 0 | K38: 0 | L38: 0 | M38: 0 | N38: 0
A39: COMGeneral M&O | B39: General M&O | C39: -22 | D39: =SUMIF('OTH EXP'!$B$10:$B$32,$A39,'OTH EXP'!G$10:G$32) -> 0 | E39: =SUMIF('OTH EXP'!$B$10:$B$32,$A39,'OTH EXP'!H$10:H$32) -> 0 | F39: =SUMIF('OTH EXP'!$B$10:$B$32,$A39,'OTH EXP'!I$10:I$32) -> 0 | G39: =SUMIF('OTH EXP'!$B$10:$B$32,$A39,'OTH EXP'!J$10:J$32) -> 0 | H39: =SUMIF('OTH EXP'!$B$10:$B$32,$A39,'OTH EXP'!K$10:K$32) -> 0 | I39: 0 | J39: 0 | K39: 0 | L39: 0 | M39: 0 | N39: 0
A40: COMMalpractice | B40: Malpractice | C40: -23 | D40: =SUMIF('OTH EXP'!$B$10:$B$32,$A40,'OTH EXP'!G$10:G$32) -> 0 | E40: =SUMIF('OTH EXP'!$B$10:$B$32,$A40,'OTH EXP'!H$10:H$32) -> 0 | F40: =SUMIF('OTH EXP'!$B$10:$B$32,$A40,'OTH EXP'!I$10:I$32) -> 0 | G40: =SUMIF('OTH EXP'!$B$10:$B$32,$A40,'OTH EXP'!J$10:J$32) -> 0 | H40: =SUMIF('OTH EXP'!$B$10:$B$32,$A40,'OTH EXP'!K$10:K$32) -> 0 | I40: 0 | J40: 0 | K40: 0 | L40: 0 | M40: 0 | N40: 0
A41: COMMoving/Relocation | B41: Moving/Relocation | C41: -24 | D41: =SUMIF('OTH EXP'!$B$10:$B$32,$A41,'OTH EXP'!G$10:G$32) -> 0 | E41: =SUMIF('OTH EXP'!$B$10:$B$32,$A41,'OTH EXP'!H$10:H$32) -> 0 | F41: =SUMIF('OTH EXP'!$B$10:$B$32,$A41,'OTH EXP'!I$10:I$32) -> 0 | G41: =SUMIF('OTH EXP'!$B$10:$B$32,$A41,'OTH EXP'!J$10:J$32) -> 0 | H41: =SUMIF('OTH EXP'!$B$10:$B$32,$A41,'OTH EXP'!K$10:K$32) -> 0 | I41: 0 | J41: 0 | K41: 0 | L41: 0 | M41: 0 | N41: 0
A42: COMOther | B42: Other | C42: -25 | D42: =SUMIF('OTH EXP'!$B$10:$B$32,$A42,'OTH EXP'!G$10:G$32) -> 0 | E42: =SUMIF('OTH EXP'!$B$10:$B$32,$A42,'OTH EXP'!H$10:H$32) -> 0 | F42: =SUMIF('OTH EXP'!$B$10:$B$32,$A42,'OTH EXP'!I$10:I$32) -> 0 | G42: =SUMIF('OTH EXP'!$B$10:$B$32,$A42,'OTH EXP'!J$10:J$32) -> 0 | H42: =SUMIF('OTH EXP'!$B$10:$B$32,$A42,'OTH EXP'!K$10:K$32) -> 0 | I42: 0 | J42: 0 | K42: 0 | L42: 0 | M42: 0 | N42: 0
B43: Total Costs | D43: =SUM(D27:D42) -> 0 | E43: =SUM(E27:E42) -> 0 | F43: =SUM(F27:F42) -> 0 | G43: =SUM(G27:G42) -> 0 | H43: =SUM(H27:H42) -> 0 | I43: =IF(D43=0,0,1) -> 0 | J43: =IF(E43=0,0,1) -> 0 | K43: =IF(F43=0,0,1) -> 0 | L43: =IF(G43=0,0,1) -> 0 | M43: =IF(H43=0,0,1) -> 0 | N43: =SUM(I43:M43) -> 0
N44: =N26+N43 -> 0
B45: Impact | D45: =D26-D43 -> 0 | E45: =E26-E43 -> 0 | F45: =F26-F43 -> 0 | G45: =G26-G43 -> 0 | H45: =H26-H43 -> 0 | N45: =N26+N43 -> 0
N46: =N26+N43 -> 0
B47: ICE | N47: =N61+N78 -> 0
B48: Incremental Budget Impact | N48: =N61+N78 -> 0
D49: Year 1 | E49: Year 2 | F49: Year 3 | G49: Year 4 | H49: Year 5 | N49: =N61+N78 -> 0
A50: ="ICE"&B50 -> ICEClinical Pro Fees | B50: Clinical Pro Fees | C50: =C42-1 -> -26 | D50: =SUMIF('CLIN REV'!$A$13:$A$201,$A50,'CLIN REV'!D$13:D$201) -> 0 | E50: =SUMIF('CLIN REV'!$A$13:$A$201,$A50,'CLIN REV'!E$13:E$201) -> 0 | F50: =SUMIF('CLIN REV'!$A$13:$A$201,$A50,'CLIN REV'!F$13:F$201) -> 0 | G50: =SUMIF('CLIN REV'!$A$13:$A$201,$A50,'CLIN REV'!G$13:G$201) -> 0 | H50: =SUMIF('CLIN REV'!$A$13:$A$201,$A50,'CLIN REV'!H$13:H$201) -> 0 | I50: =IF(D50=0,0,1) -> 0 | J50: =IF(E50=0,0,1) -> 0 | K50: =IF(F50=0,0,1) -> 0 | L50: =IF(G50=0,0,1) -> 0 | M50: =IF(H50=0,0,1) -> 0 | N50: =SUM(I50:M50) -> 0
A51: ="ICE"&B51 -> ICEClinical Tech Fees | B51: Clinical Tech Fees | C51: =C50-1 -> -27 | D51: =SUMIF('CLIN REV'!$A$13:$A$201,$A51,'CLIN REV'!D$13:D$201) -> 0 | E51: =SUMIF('CLIN REV'!$A$13:$A$201,$A51,'CLIN REV'!E$13:E$201) -> 0 | F51: =SUMIF('CLIN REV'!$A$13:$A$201,$A51,'CLIN REV'!F$13:F$201) -> 0 | G51: =SUMIF('CLIN REV'!$A$13:$A$201,$A51,'CLIN REV'!G$13:G$201) -> 0 | H51: =SUMIF('CLIN REV'!$A$13:$A$201,$A51,'CLIN REV'!H$13:H$201) -> 0 | I51: =IF(D51=0,0,1) -> 0 | J51: =IF(E51=0,0,1) -> 0 | K51: =IF(F51=0,0,1) -> 0 | L51: =IF(G51=0,0,1) -> 0 | M51: =IF(H51=0,0,1) -> 0 | N51: =SUM(I51:M51) -> 0
A52: ="COM"&B52 -> COMClinical Down Stream | B52: Clinical Down Stream | C52: -28 | D52: =SUMIF('CLIN REV'!$A$13:$A$201,$A52,'CLIN REV'!D$13:D$201) -> 0 | E52: =SUMIF('CLIN REV'!$A$13:$A$201,$A52,'CLIN REV'!E$13:E$201) -> 0 | F52: =SUMIF('CLIN REV'!$A$13:$A$201,$A52,'CLIN REV'!F$13:F$201) -> 0 | G52: =SUMIF('CLIN REV'!$A$13:$A$201,$A52,'CLIN REV'!G$13:G$201) -> 0 | H52: =SUMIF('CLIN REV'!$A$13:$A$201,$A52,'CLIN REV'!H$13:H$201) -> 0 | I52: =IF(D52=0,0,1) -> 0 | J52: =IF(E52=0,0,1) -> 0 | K52: =IF(F52=0,0,1) -> 0 | L52: =IF(G52=0,0,1) -> 0 | M52: =IF(H52=0,0,1) -> 0 | N52: =SUM(I52:M52) -> 0
A53: ICEEnhanced Medicaid | B53: Enhanced Medicaid | C53: -29 | D53: =SUMIF('OTH REV'!$A$10:$A$43,$A53,'OTH REV'!I$10:I$43) -> 0 | E53: =SUMIF('OTH REV'!$A$10:$A$43,$A53,'OTH REV'!J$10:J$43) -> 0 | F53: =SUMIF('OTH REV'!$A$10:$A$43,$A53,'OTH REV'!K$10:K$43) -> 0 | G53: =SUMIF('OTH REV'!$A$10:$A$43,$A53,'OTH REV'!L$10:L$43) -> 0 | H53: =SUMIF('OTH REV'!$A$10:$A$43,$A53,'OTH REV'!M$10:M$43) -> 0 | I53: 0 | J53: 0 | K53: 0 | L53: 0 | M53: 0 | N53: 0
A54: ICEBudget | B54: Budget | C54: =C53-1 -> -30 | D54: =SUMIF('OTH REV'!$A$10:$A$43,$A54,'OTH REV'!I$10:I$43) -> 0 | E54: =SUMIF('OTH REV'!$A$10:$A$43,$A54,'OTH REV'!J$10:J$43) -> 0 | F54: =SUMIF('OTH REV'!$A$10:$A$43,$A54,'OTH REV'!K$10:K$43) -> 0 | G54: =SUMIF('OTH REV'!$A$10:$A$43,$A54,'OTH REV'!L$10:L$43) -> 0 | H54: =SUMIF('OTH REV'!$A$10:$A$43,$A54,'OTH REV'!M$10:M$43) -> 0 | I54: 0 | J54: 0 | K54: 0 | L54: 0 | M54: 0 | N54: 0
A55: ICEDean's Commitment | B55: Dean's Commitment | C55: -31 | D55: =SUMIF('OTH REV'!$A$10:$A$43,$A55,'OTH REV'!I$10:I$43) -> 0 | E55: =SUMIF('OTH REV'!$A$10:$A$43,$A55,'OTH REV'!J$10:J$43) -> 0 | F55: =SUMIF('OTH REV'!$A$10:$A$43,$A55,'OTH REV'!K$10:K$43) -> 0 | G55: =SUMIF('OTH REV'!$A$10:$A$43,$A55,'OTH REV'!L$10:L$43) -> 0 | H55: =SUMIF('OTH REV'!$A$10:$A$43,$A55,'OTH REV'!M$10:M$43) -> 0 | I55: 0 | J55: 0 | K55: 0 | L55: 0 | M55: 0 | N55: 0
A56: ICEGrant | B56: Grant | C56: -32 | D56: =SUMIF('OTH REV'!$A$10:$A$43,$A56,'OTH REV'!I$10:I$43) -> 0 | E56: =SUMIF('OTH REV'!$A$10:$A$43,$A56,'OTH REV'!J$10:J$43) -> 0 | F56: =SUMIF('OTH REV'!$A$10:$A$43,$A56,'OTH REV'!K$10:K$43) -> 0 | G56: =SUMIF('OTH REV'!$A$10:$A$43,$A56,'OTH REV'!L$10:L$43) -> 0 | H56: =SUMIF('OTH REV'!$A$10:$A$43,$A56,'OTH REV'!M$10:M$43) -> 0 | I56: 0 | J56: 0 | K56: 0 | L56: 0 | M56: 0 | N56: 0
A57: ICEContract | B57: Contract | C57: -33 | D57: =SUMIF('OTH REV'!$A$10:$A$43,$A57,'OTH REV'!I$10:I$43) -> 0 | E57: =SUMIF('OTH REV'!$A$10:$A$43,$A57,'OTH REV'!J$10:J$43) -> 0 | F57: =SUMIF('OTH REV'!$A$10:$A$43,$A57,'OTH REV'!K$10:K$43) -> 0 | G57: =SUMIF('OTH REV'!$A$10:$A$43,$A57,'OTH REV'!L$10:L$43) -> 0 | H57: =SUMIF('OTH REV'!$A$10:$A$43,$A57,'OTH REV'!M$10:M$43) -> 0 | I57: 0 | J57: 0 | K57: 0 | L57: 0 | M57: 0 | N57: 0
A58: ICEGift | B58: Gift | C58: -34 | D58: =SUMIF('OTH REV'!$A$10:$A$43,$A58,'OTH REV'!I$10:I$43) -> 0 | E58: =SUMIF('OTH REV'!$A$10:$A$43,$A58,'OTH REV'!J$10:J$43) -> 0 | F58: =SUMIF('OTH REV'!$A$10:$A$43,$A58,'OTH REV'!K$10:K$43) -> 0 | G58: =SUMIF('OTH REV'!$A$10:$A$43,$A58,'OTH REV'!L$10:L$43) -> 0 | H58: =SUMIF('OTH REV'!$A$10:$A$43,$A58,'OTH REV'!M$10:M$43) -> 0 | I58: 0 | J58: 0 | K58: 0 | L58: 0 | M58: 0 | N58: 0
A59: ICEFoundation | B59: Foundation | C59: -35 | D59: =SUMIF('OTH REV'!$A$10:$A$43,$A59,'OTH REV'!I$10:I$43) -> 0 | E59: =SUMIF('OTH REV'!$A$10:$A$43,$A59,'OTH REV'!J$10:J$43) -> 0 | F59: =SUMIF('OTH REV'!$A$10:$A$43,$A59,'OTH REV'!K$10:K$43) -> 0 | G59: =SUMIF('OTH REV'!$A$10:$A$43,$A59,'OTH REV'!L$10:L$43) -> 0 | H59: =SUMIF('OTH REV'!$A$10:$A$43,$A59,'OTH REV'!M$10:M$43) -> 0 | I59: 0 | J59: 0 | K59: 0 | L59: 0 | M59: 0 | N59: 0
A60: ICEOther | B60: Other | C60: -36 | D60: =SUMIF('OTH REV'!$A$10:$A$43,$A60,'OTH REV'!I$10:I$43) -> 0 | E60: =SUMIF('OTH REV'!$A$10:$A$43,$A60,'OTH REV'!J$10:J$43) -> 0 | F60: =SUMIF('OTH REV'!$A$10:$A$43,$A60,'OTH REV'!K$10:K$43) -> 0 | G60: =SUMIF('OTH REV'!$A$10:$A$43,$A60,'OTH REV'!L$10:L$43) -> 0 | H60: =SUMIF('OTH REV'!$A$10:$A$43,$A60,'OTH REV'!M$10:M$43) -> 0 | I60: 0 | J60: 0 | K60: 0 | L60: 0 | M60: 0 | N60: 0
B61: Total Resources | D61: =SUM(D50:D60) -> 0 | E61: =SUM(E50:E60) -> 0 | F61: =SUM(F50:F60) -> 0 | G61: =SUM(G50:G60) -> 0 | H61: =SUM(H50:H60) -> 0 | I61: 0 | J61: 0 | K61: 0 | L61: 0 | M61: 0 | N61: 0
N62: =SUM(I61:M61) -> 0
A63: ICE | B63: Salary | C63: =C60-1 -> -37 | D63: =SUMIF(ASSIGN!$I$9:$I$40,$A63,ASSIGN!M$9:M$40)*COMP!I$51 -> 0 | E63: =SUMIF(ASSIGN!$I$9:$I$40,$A63,ASSIGN!N$9:N$40)*COMP!J$51 -> 0 | F63: =SUMIF(ASSIGN!$I$9:$I$40,$A63,ASSIGN!O$9:O$40)*COMP!K$51 -> 0 | G63: =SUMIF(ASSIGN!$I$9:$I$40,$A63,ASSIGN!P$9:P$40)*COMP!L$51 -> 0 | H63: =SUMIF(ASSIGN!$I$9:$I$40,$A63,ASSIGN!Q$9:Q$40)*COMP!M$51 -> 0 | I63: =IF(D63=0,0,1) -> 0 | J63: =IF(E63=0,0,1) -> 0 | K63: =IF(F63=0,0,1) -> 0 | L63: =IF(G63=0,0,1) -> 0 | M63: =IF(H63=0,0,1) -> 0 | N63: =SUM(I63:M63) -> 0
A64: ICE | B64: Incentive | C64: =C63-1 -> -38 | D64: =SUMIF(COMP!$F$29:$F$32,$A64,COMP!J$29:J$32) -> 0 | E64: =SUMIF(COMP!$F$29:$F$32,$A64,COMP!K$29:K$32) -> 0 | F64: =SUMIF(COMP!$F$29:$F$32,$A64,COMP!L$29:L$32) -> 0 | G64: =SUMIF(COMP!$F$29:$F$32,$A64,COMP!M$29:M$32) -> 0 | H64: =SUMIF(COMP!$F$29:$F$32,$A64,COMP!N$29:N$32) -> 0 | I64: =IF(D64=0,0,1) -> 0 | J64: =IF(E64=0,0,1) -> 0 | K64: =IF(F64=0,0,1) -> 0 | L64: =IF(G64=0,0,1) -> 0 | M64: =IF(H64=0,0,1) -> 0 | N64: =SUM(I64:M64) -> 0
A65: ICE | B65: Fringe | C65: =C64-1 -> -39 | D65: =SUMIF(ASSIGN!$I$9:$I$40,$A65,ASSIGN!M$9:M$40)*COMP!I$57+SUMIF(COMP!$F$29:$F$32,$A65,COMP!O$29:O$32) -> 0 | E65: =SUMIF(ASSIGN!$I$9:$I$40,$A65,ASSIGN!N$9:N$40)*COMP!J$57+SUMIF(COMP!$F$29:$F$32,$A65,COMP!P$29:P$32) -> 0 | F65: =SUMIF(ASSIGN!$I$9:$I$40,$A65,ASSIGN!O$9:O$40)*COMP!K$57+SUMIF(COMP!$F$29:$F$32,$A65,COMP!Q$29:Q$32) -> 0 | G65: =SUMIF(ASSIGN!$I$9:$I$40,$A65,ASSIGN!P$9:P$40)*COMP!L$57+SUMIF(COMP!$F$29:$F$32,$A65,COMP!R$29:R$32) -> 0 | H65: =SUMIF(ASSIGN!$I$9:$I$40,$A65,ASSIGN!Q$9:Q$40)*COMP!M$57+SUMIF(COMP!$F$29:$F$32,$A65,COMP!S$29:S$32) -> 0 | I65: 0 | J65: 0 | K65: 0 | L65: 0 | M65: 0 | N65: 0
I66: 0 | J66: 0 | K66: 0 | L66: 0 | M66: 0 | N66: 0
A67: ="ICE"&B67 -> ICEExtenders | B67: Extenders | C67: =C65-1 -> -40 | D67: =SUMIF('OTH EXP'!$B$10:$B$32,$A67,'OTH EXP'!G$10:G$32) -> 0 | E67: =SUMIF('OTH EXP'!$B$10:$B$32,$A67,'OTH EXP'!H$10:H$32) -> 0 | F67: =SUMIF('OTH EXP'!$B$10:$B$32,$A67,'OTH EXP'!I$10:I$32) -> 0 | G67: =SUMIF('OTH EXP'!$B$10:$B$32,$A67,'OTH EXP'!J$10:J$32) -> 0 | H67: =SUMIF('OTH EXP'!$B$10:$B$32,$A67,'OTH EXP'!K$10:K$32) -> 0 | I67: =IF(D67=0,0,1) -> 0 | J67: =IF(E67=0,0,1) -> 0 | K67: =IF(F67=0,0,1) -> 0 | L67: =IF(G67=0,0,1) -> 0 | M67: =IF(H67=0,0,1) -> 0 | N67: =SUM(I67:M67) -> 0
A68: ="ICE"&B68 -> ICEStaff | B68: Staff | C68: =C67-1 -> -41 | D68: =SUMIF('OTH EXP'!$B$10:$B$32,$A68,'OTH EXP'!G$10:G$32) -> 0 | E68: =SUMIF('OTH EXP'!$B$10:$B$32,$A68,'OTH EXP'!H$10:H$32) -> 0 | F68: =SUMIF('OTH EXP'!$B$10:$B$32,$A68,'OTH EXP'!I$10:I$32) -> 0 | G68: =SUMIF('OTH EXP'!$B$10:$B$32,$A68,'OTH EXP'!J$10:J$32) -> 0 | H68: =SUMIF('OTH EXP'!$B$10:$B$32,$A68,'OTH EXP'!K$10:K$32) -> 0 | I68: 0 | J68: 0 | K68: 0 | L68: 0 | M68: 0 | N68: 0
A69: ICEComputer | B69: Computer | C69: =C68-1 -> -42 | D69: =SUMIF('OTH EXP'!$B$10:$B$32,$A69,'OTH EXP'!G$10:G$32) -> 0 | E69: =SUMIF('OTH EXP'!$B$10:$B$32,$A69,'OTH EXP'!H$10:H$32) -> 0 | F69: =SUMIF('OTH EXP'!$B$10:$B$32,$A69,'OTH EXP'!I$10:I$32) -> 0 | G69: =SUMIF('OTH EXP'!$B$10:$B$32,$A69,'OTH EXP'!J$10:J$32) -> 0 | H69: =SUMIF('OTH EXP'!$B$10:$B$32,$A69,'OTH EXP'!K$10:K$32) -> 0 | I69: 0 | J69: 0 | K69: 0 | L69: 0 | M69: 0 | N69: 0
A70: ICEEducational Funds | B70: Educational Funds | C70: =C69-1 -> -43 | D70: =SUMIF('OTH EXP'!$B$10:$B$32,$A70,'OTH EXP'!G$10:G$32) -> 0 | E70: =SUMIF('OTH EXP'!$B$10:$B$32,$A70,'OTH EXP'!H$10:H$32) -> 0 | F70: =SUMIF('OTH EXP'!$B$10:$B$32,$A70,'OTH EXP'!I$10:I$32) -> 0 | G70: =SUMIF('OTH EXP'!$B$10:$B$32,$A70,'OTH EXP'!J$10:J$32) -> 0 | H70: =SUMIF('OTH EXP'!$B$10:$B$32,$A70,'OTH EXP'!K$10:K$32) -> 0 | I70: 0 | J70: 0 | K70: 0 | L70: 0 | M70: 0 | N70: 0
A71: ICEEquipment | B71: Equipment | C71: =C70-1 -> -44 | D71: =SUMIF('OTH EXP'!$B$10:$B$32,$A71,'OTH EXP'!G$10:G$32) -> 0 | E71: =SUMIF('OTH EXP'!$B$10:$B$32,$A71,'OTH EXP'!H$10:H$32) -> 0 | F71: =SUMIF('OTH EXP'!$B$10:$B$32,$A71,'OTH EXP'!I$10:I$32) -> 0 | G71: =SUMIF('OTH EXP'!$B$10:$B$32,$A71,'OTH EXP'!J$10:J$32) -> 0 | H71: =SUMIF('OTH EXP'!$B$10:$B$32,$A71,'OTH EXP'!K$10:K$32) -> 0 | I71: 0 | J71: 0 | K71: 0 | L71: 0 | M71: 0 | N71: 0
A72: ICEConstruction | B72: Construction | C72: -45 | D72: =SUMIF('OTH EXP'!$B$10:$B$32,$A72,'OTH EXP'!G$10:G$32) -> 0 | E72: =SUMIF('OTH EXP'!$B$10:$B$32,$A72,'OTH EXP'!H$10:H$32) -> 0 | F72: =SUMIF('OTH EXP'!$B$10:$B$32,$A72,'OTH EXP'!I$10:I$32) -> 0 | G72: =SUMIF('OTH EXP'!$B$10:$B$32,$A72,'OTH EXP'!J$10:J$32) -> 0 | H72: =SUMIF('OTH EXP'!$B$10:$B$32,$A72,'OTH EXP'!K$10:K$32) -> 0 | I72: 0 | J72: 0 | K72: 0 | L72: 0 | M72: 0 | N72: 0
A73: ICEFurniture | B73: Furniture | C73: -46 | D73: =SUMIF('OTH EXP'!$B$10:$B$32,$A73,'OTH EXP'!G$10:G$32) -> 0 | E73: =SUMIF('OTH EXP'!$B$10:$B$32,$A73,'OTH EXP'!H$10:H$32) -> 0 | F73: =SUMIF('OTH EXP'!$B$10:$B$32,$A73,'OTH EXP'!I$10:I$32) -> 0 | G73: =SUMIF('OTH EXP'!$B$10:$B$32,$A73,'OTH EXP'!J$10:J$32) -> 0 | H73: =SUMIF('OTH EXP'!$B$10:$B$32,$A73,'OTH EXP'!K$10:K$32) -> 0 | I73: 0 | J73: 0 | K73: 0 | L73: 0 | M73: 0 | N73: 0
A74: ICEGeneral M&O | B74: General M&O | C74: -47 | D74: =SUMIF('OTH EXP'!$B$10:$B$32,$A74,'OTH EXP'!G$10:G$32) -> 0 | E74: =SUMIF('OTH EXP'!$B$10:$B$32,$A74,'OTH EXP'!H$10:H$32) -> 0 | F74: =SUMIF('OTH EXP'!$B$10:$B$32,$A74,'OTH EXP'!I$10:I$32) -> 0 | G74: =SUMIF('OTH EXP'!$B$10:$B$32,$A74,'OTH EXP'!J$10:J$32) -> 0 | H74: =SUMIF('OTH EXP'!$B$10:$B$32,$A74,'OTH EXP'!K$10:K$32) -> 0 | I74: 0 | J74: 0 | K74: 0 | L74: 0 | M74: 0 | N74: 0
A75: ICEMalpractice | B75: Malpractice | C75: -48 | D75: =SUMIF('OTH EXP'!$B$10:$B$32,$A75,'OTH EXP'!G$10:G$32) -> 0 | E75: =SUMIF('OTH EXP'!$B$10:$B$32,$A75,'OTH EXP'!H$10:H$32) -> 0 | F75: =SUMIF('OTH EXP'!$B$10:$B$32,$A75,'OTH EXP'!I$10:I$32) -> 0 | G75: =SUMIF('OTH EXP'!$B$10:$B$32,$A75,'OTH EXP'!J$10:J$32) -> 0 | H75: =SUMIF('OTH EXP'!$B$10:$B$32,$A75,'OTH EXP'!K$10:K$32) -> 0 | I75: 0 | J75: 0 | K75: 0 | L75: 0 | M75: 0 | N75: 0
A76: ICEMoving/Relocation | B76: Moving/Relocation | C76: -49 | D76: =SUMIF('OTH EXP'!$B$10:$B$32,$A76,'OTH EXP'!G$10:G$32) -> 0 | E76: =SUMIF('OTH EXP'!$B$10:$B$32,$A76,'OTH EXP'!H$10:H$32) -> 0 | F76: =SUMIF('OTH EXP'!$B$10:$B$32,$A76,'OTH EXP'!I$10:I$32) -> 0 | G76: =SUMIF('OTH EXP'!$B$10:$B$32,$A76,'OTH EXP'!J$10:J$32) -> 0 | H76: =SUMIF('OTH EXP'!$B$10:$B$32,$A76,'OTH EXP'!K$10:K$32) -> 0 | I76: 0 | J76: 0 | K76: 0 | L76: 0 | M76: 0 | N76: 0
A77: ICEOther | B77: Other | C77: -50 | D77: =SUMIF('OTH EXP'!$B$10:$B$32,$A77,'OTH EXP'!G$10:G$32) -> 0 | E77: =SUMIF('OTH EXP'!$B$10:$B$32,$A77,'OTH EXP'!H$10:H$32) -> 0 | F77: =SUMIF('OTH EXP'!$B$10:$B$32,$A77,'OTH EXP'!I$10:I$32) -> 0 | G77: =SUMIF('OTH EXP'!$B$10:$B$32,$A77,'OTH EXP'!J$10:J$32) -> 0 | H77: =SUMIF('OTH EXP'!$B$10:$B$32,$A77,'OTH EXP'!K$10:K$32) -> 0 | I77: 0 | J77: 0 | K77: 0 | L77: 0 | M77: 0 | N77: 0
B78: Total Costs | D78: =SUM(D62:D77) -> 0 | E78: =SUM(E62:E77) -> 0 | F78: =SUM(F62:F77) -> 0 | G78: =SUM(G62:G77) -> 0 | H78: =SUM(H62:H77) -> 0 | I78: 0 | J78: 0 | K78: 0 | L78: 0 | M78: 0 | N78: 0
N79: =N61+N78 -> 0
B80: Impact | D80: =D61-D78 -> 0 | E80: =E61-E78 -> 0 | F80: =F61-F78 -> 0 | G80: =G61-G78 -> 0 | H80: =H61-H78 -> 0 | N80: =N61+N78 -> 0
N81: =N61+N78 -> 0
B82: ACH | N82: =N96+N113 -> 0
B83: Incremental Budget Impact | N83: =N96+N113 -> 0
D84: Year 1 | E84: Year 2 | F84: Year 3 | G84: Year 4 | H84: Year 5 | N84: =N96+N113 -> 0
A85: ="ACH"&B85 -> ACHClinical Pro Fees | B85: Clinical Pro Fees | C85: =C77-1 -> -51 | D85: =SUMIF('CLIN REV'!$A$13:$A$201,$A85,'CLIN REV'!D$13:D$201) -> 0 | E85: =SUMIF('CLIN REV'!$A$13:$A$201,$A85,'CLIN REV'!E$13:E$201) -> 0 | F85: =SUMIF('CLIN REV'!$A$13:$A$201,$A85,'CLIN REV'!F$13:F$201) -> 0 | G85: =SUMIF('CLIN REV'!$A$13:$A$201,$A85,'CLIN REV'!G$13:G$201) -> 0 | H85: =SUMIF('CLIN REV'!$A$13:$A$201,$A85,'CLIN REV'!H$13:H$201) -> 0 | I85: =IF(D85=0,0,1) -> 0 | J85: =IF(E85=0,0,1) -> 0 | K85: =IF(F85=0,0,1) -> 0 | L85: =IF(G85=0,0,1) -> 0 | M85: =IF(H85=0,0,1) -> 0 | N85: =SUM(I85:M85) -> 0
A86: ="ACH"&B86 -> ACHClinical Tech Fees | B86: Clinical Tech Fees | C86: =C85-1 -> -52 | D86: =SUMIF('CLIN REV'!$A$13:$A$201,$A86,'CLIN REV'!D$13:D$201) -> 0 | E86: =SUMIF('CLIN REV'!$A$13:$A$201,$A86,'CLIN REV'!E$13:E$201) -> 0 | F86: =SUMIF('CLIN REV'!$A$13:$A$201,$A86,'CLIN REV'!F$13:F$201) -> 0 | G86: =SUMIF('CLIN REV'!$A$13:$A$201,$A86,'CLIN REV'!G$13:G$201) -> 0 | H86: =SUMIF('CLIN REV'!$A$13:$A$201,$A86,'CLIN REV'!H$13:H$201) -> 0 | I86: =IF(D86=0,0,1) -> 0 | J86: =IF(E86=0,0,1) -> 0 | K86: =IF(F86=0,0,1) -> 0 | L86: =IF(G86=0,0,1) -> 0 | M86: =IF(H86=0,0,1) -> 0 | N86: =SUM(I86:M86) -> 0
A87: ="COM"&B87 -> COMClinical Down Stream | B87: Clinical Down Stream | C87: -53 | D87: =SUMIF('CLIN REV'!$A$13:$A$201,$A87,'CLIN REV'!D$13:D$201) -> 0 | E87: =SUMIF('CLIN REV'!$A$13:$A$201,$A87,'CLIN REV'!E$13:E$201) -> 0 | F87: =SUMIF('CLIN REV'!$A$13:$A$201,$A87,'CLIN REV'!F$13:F$201) -> 0 | G87: =SUMIF('CLIN REV'!$A$13:$A$201,$A87,'CLIN REV'!G$13:G$201) -> 0 | H87: =SUMIF('CLIN REV'!$A$13:$A$201,$A87,'CLIN REV'!H$13:H$201) -> 0 | I87: =IF(D87=0,0,1) -> 0 | J87: =IF(E87=0,0,1) -> 0 | K87: =IF(F87=0,0,1) -> 0 | L87: =IF(G87=0,0,1) -> 0 | M87: =IF(H87=0,0,1) -> 0 | N87: =SUM(I87:M87) -> 0
A88: ACHEnhanced Medicaid | B88: Enhanced Medicaid | C88: -54 | D88: =SUMIF('OTH REV'!$A$10:$A$43,$A88,'OTH REV'!I$10:I$43) -> 0 | E88: =SUMIF('OTH REV'!$A$10:$A$43,$A88,'OTH REV'!J$10:J$43) -> 0 | F88: =SUMIF('OTH REV'!$A$10:$A$43,$A88,'OTH REV'!K$10:K$43) -> 0 | G88: =SUMIF('OTH REV'!$A$10:$A$43,$A88,'OTH REV'!L$10:L$43) -> 0 | H88: =SUMIF('OTH REV'!$A$10:$A$43,$A88,'OTH REV'!M$10:M$43) -> 0 | I88: 0 | J88: 0 | K88: 0 | L88: 0 | M88: 0 | N88: 0
A89: ACHBudget | B89: Budget | C89: -55 | D89: =SUMIF('OTH REV'!$A$10:$A$43,$A89,'OTH REV'!I$10:I$43) -> 0 | E89: =SUMIF('OTH REV'!$A$10:$A$43,$A89,'OTH REV'!J$10:J$43) -> 0 | F89: =SUMIF('OTH REV'!$A$10:$A$43,$A89,'OTH REV'!K$10:K$43) -> 0 | G89: =SUMIF('OTH REV'!$A$10:$A$43,$A89,'OTH REV'!L$10:L$43) -> 0 | H89: =SUMIF('OTH REV'!$A$10:$A$43,$A89,'OTH REV'!M$10:M$43) -> 0 | I89: 0 | J89: 0 | K89: 0 | L89: 0 | M89: 0 | N89: 0
A90: ACHDean's Commitment | B90: Dean's Commitment | C90: -56 | D90: =SUMIF('OTH REV'!$A$10:$A$43,$A90,'OTH REV'!I$10:I$43) -> 0 | E90: =SUMIF('OTH REV'!$A$10:$A$43,$A90,'OTH REV'!J$10:J$43) -> 0 | F90: =SUMIF('OTH REV'!$A$10:$A$43,$A90,'OTH REV'!K$10:K$43) -> 0 | G90: =SUMIF('OTH REV'!$A$10:$A$43,$A90,'OTH REV'!L$10:L$43) -> 0 | H90: =SUMIF('OTH REV'!$A$10:$A$43,$A90,'OTH REV'!M$10:M$43) -> 0 | I90: 0 | J90: 0 | K90: 0 | L90: 0 | M90: 0 | N90: 0
A91: ACHGrant | B91: Grant | C91: -57 | D91: =SUMIF('OTH REV'!$A$10:$A$43,$A91,'OTH REV'!I$10:I$43) -> 0 | E91: =SUMIF('OTH REV'!$A$10:$A$43,$A91,'OTH REV'!J$10:J$43) -> 0 | F91: =SUMIF('OTH REV'!$A$10:$A$43,$A91,'OTH REV'!K$10:K$43) -> 0 | G91: =SUMIF('OTH REV'!$A$10:$A$43,$A91,'OTH REV'!L$10:L$43) -> 0 | H91: =SUMIF('OTH REV'!$A$10:$A$43,$A91,'OTH REV'!M$10:M$43) -> 0 | I91: 0 | J91: 0 | K91: 0 | L91: 0 | M91: 0 | N91: 0
A92: ACHContract | B92: Contract | C92: -58 | D92: =SUMIF('OTH REV'!$A$10:$A$43,$A92,'OTH REV'!I$10:I$43) -> 0 | E92: =SUMIF('OTH REV'!$A$10:$A$43,$A92,'OTH REV'!J$10:J$43) -> 0 | F92: =SUMIF('OTH REV'!$A$10:$A$43,$A92,'OTH REV'!K$10:K$43) -> 0 | G92: =SUMIF('OTH REV'!$A$10:$A$43,$A92,'OTH REV'!L$10:L$43) -> 0 | H92: =SUMIF('OTH REV'!$A$10:$A$43,$A92,'OTH REV'!M$10:M$43) -> 0 | I92: 0 | J92: 0 | K92: 0 | L92: 0 | M92: 0 | N92: 0
A93: ACHGift | B93: Gift | C93: -59 | D93: =SUMIF('OTH REV'!$A$10:$A$43,$A93,'OTH REV'!I$10:I$43) -> 0 | E93: =SUMIF('OTH REV'!$A$10:$A$43,$A93,'OTH REV'!J$10:J$43) -> 0 | F93: =SUMIF('OTH REV'!$A$10:$A$43,$A93,'OTH REV'!K$10:K$43) -> 0 | G93: =SUMIF('OTH REV'!$A$10:$A$43,$A93,'OTH REV'!L$10:L$43) -> 0 | H93: =SUMIF('OTH REV'!$A$10:$A$43,$A93,'OTH REV'!M$10:M$43) -> 0 | I93: 0 | J93: 0 | K93: 0 | L93: 0 | M93: 0 | N93: 0
A94: ACHFoundation | B94: Foundation | C94: -60 | D94: =SUMIF('OTH REV'!$A$10:$A$43,$A94,'OTH REV'!I$10:I$43) -> 0 | E94: =SUMIF('OTH REV'!$A$10:$A$43,$A94,'OTH REV'!J$10:J$43) -> 0 | F94: =SUMIF('OTH REV'!$A$10:$A$43,$A94,'OTH REV'!K$10:K$43) -> 0 | G94: =SUMIF('OTH REV'!$A$10:$A$43,$A94,'OTH REV'!L$10:L$43) -> 0 | H94: =SUMIF('OTH REV'!$A$10:$A$43,$A94,'OTH REV'!M$10:M$43) -> 0 | I94: 0 | J94: 0 | K94: 0 | L94: 0 | M94: 0 | N94: 0
A95: ACHOther | B95: Other | C95: -61 | D95: =SUMIF('OTH REV'!$A$10:$A$43,$A95,'OTH REV'!I$10:I$43) -> 0 | E95: =SUMIF('OTH REV'!$A$10:$A$43,$A95,'OTH REV'!J$10:J$43) -> 0 | F95: =SUMIF('OTH REV'!$A$10:$A$43,$A95,'OTH REV'!K$10:K$43) -> 0 | G95: =SUMIF('OTH REV'!$A$10:$A$43,$A95,'OTH REV'!L$10:L$43) -> 0 | H95: =SUMIF('OTH REV'!$A$10:$A$43,$A95,'OTH REV'!M$10:M$43) -> 0 | I95: 0 | J95: 0 | K95: 0 | L95: 0 | M95: 0 | N95: 0
B96: Total Resources | D96: =SUM(D85:D95) -> 0 | E96: =SUM(E85:E95) -> 0 | F96: =SUM(F85:F95) -> 0 | G96: =SUM(G85:G95) -> 0 | H96: =SUM(H85:H95) -> 0 | I96: 0 | J96: 0 | K96: 0 | L96: 0 | M96: 0 | N96: 0
N97: =SUM(I96:M96) -> 0
A98: ACH | B98: Salary | C98: =C95-1 -> -62 | D98: =SUMIF(ASSIGN!$I$9:$I$40,$A98,ASSIGN!M$9:M$40)*COMP!I$51 -> 0 | E98: =SUMIF(ASSIGN!$I$9:$I$40,$A98,ASSIGN!N$9:N$40)*COMP!J$51 -> 0 | F98: =SUMIF(ASSIGN!$I$9:$I$40,$A98,ASSIGN!O$9:O$40)*COMP!K$51 -> 0 | G98: =SUMIF(ASSIGN!$I$9:$I$40,$A98,ASSIGN!P$9:P$40)*COMP!L$51 -> 0 | H98: =SUMIF(ASSIGN!$I$9:$I$40,$A98,ASSIGN!Q$9:Q$40)*COMP!M$51 -> 0 | I98: =IF(D98=0,0,1) -> 0 | J98: =IF(E98=0,0,1) -> 0 | K98: =IF(F98=0,0,1) -> 0 | L98: =IF(G98=0,0,1) -> 0 | M98: =IF(H98=0,0,1) -> 0 | N98: =SUM(I98:M98) -> 0
A99: ACH | B99: Incentive | C99: =C98-1 -> -63 | D99: =SUMIF(COMP!$F$29:$F$32,$A99,COMP!J$29:J$32) -> 0 | E99: =SUMIF(COMP!$F$29:$F$32,$A99,COMP!K$29:K$32) -> 0 | F99: =SUMIF(COMP!$F$29:$F$32,$A99,COMP!L$29:L$32) -> 0 | G99: =SUMIF(COMP!$F$29:$F$32,$A99,COMP!M$29:M$32) -> 0 | H99: =SUMIF(COMP!$F$29:$F$32,$A99,COMP!N$29:N$32) -> 0 | I99: =IF(D99=0,0,1) -> 0 | J99: =IF(E99=0,0,1) -> 0 | K99: =IF(F99=0,0,1) -> 0 | L99: =IF(G99=0,0,1) -> 0 | M99: =IF(H99=0,0,1) -> 0 | N99: =SUM(I99:M99) -> 0
A100: ACH | B100: Fringe | C100: =C99-1 -> -64 | D100: =SUMIF(ASSIGN!$I$9:$I$40,$A98,ASSIGN!M$9:M$40)*COMP!I$57+SUMIF(COMP!$F$29:$F$32,$A100,COMP!O$29:O$32) -> 0 | E100: =SUMIF(ASSIGN!$I$9:$I$40,$A98,ASSIGN!N$9:N$40)*COMP!J$57+SUMIF(COMP!$F$29:$F$32,$A100,COMP!P$29:P$32) -> 0 | F100: =SUMIF(ASSIGN!$I$9:$I$40,$A98,ASSIGN!O$9:O$40)*COMP!K$57+SUMIF(COMP!$F$29:$F$32,$A100,COMP!Q$29:Q$32) -> 0 | G100: =SUMIF(ASSIGN!$I$9:$I$40,$A98,ASSIGN!P$9:P$40)*COMP!L$57+SUMIF(COMP!$F$29:$F$32,$A100,COMP!R$29:R$32) -> 0 | H100: =SUMIF(ASSIGN!$I$9:$I$40,$A98,ASSIGN!Q$9:Q$40)*COMP!M$57+SUMIF(COMP!$F$29:$F$32,$A100,COMP!S$29:S$32) -> 0 | I100: 0 | J100: 0 | K100: 0 | L100: 0 | M100: 0 | N100: 0
I101: 0 | J101: 0 | K101: 0 | L101: 0 | M101: 0 | N101: 0
A102: ="ACH"&B102 -> ACHExtenders | B102: Extenders | C102: =C100-1 -> -65 | D102: =SUMIF('OTH EXP'!$B$10:$B$32,$A102,'OTH EXP'!G$10:G$32) -> 0 | E102: =SUMIF('OTH EXP'!$B$10:$B$32,$A102,'OTH EXP'!H$10:H$32) -> 0 | F102: =SUMIF('OTH EXP'!$B$10:$B$32,$A102,'OTH EXP'!I$10:I$32) -> 0 | G102: =SUMIF('OTH EXP'!$B$10:$B$32,$A102,'OTH EXP'!J$10:J$32) -> 0 | H102: =SUMIF('OTH EXP'!$B$10:$B$32,$A102,'OTH EXP'!K$10:K$32) -> 0 | I102: =IF(D102=0,0,1) -> 0 | J102: =IF(E102=0,0,1) -> 0 | K102: =IF(F102=0,0,1) -> 0 | L102: =IF(G102=0,0,1) -> 0 | M102: =IF(H102=0,0,1) -> 0 | N102: =SUM(I102:M102) -> 0
A103: ="ACH"&B103 -> ACHStaff | B103: Staff | C103: =C102-1 -> -66 | D103: =SUMIF('OTH EXP'!$B$10:$B$32,$A103,'OTH EXP'!G$10:G$32) -> 0 | E103: =SUMIF('OTH EXP'!$B$10:$B$32,$A103,'OTH EXP'!H$10:H$32) -> 0 | F103: =SUMIF('OTH EXP'!$B$10:$B$32,$A103,'OTH EXP'!I$10:I$32) -> 0 | G103: =SUMIF('OTH EXP'!$B$10:$B$32,$A103,'OTH EXP'!J$10:J$32) -> 0 | H103: =SUMIF('OTH EXP'!$B$10:$B$32,$A103,'OTH EXP'!K$10:K$32) -> 0 | I103: 0 | J103: 0 | K103: 0 | L103: 0 | M103: 0 | N103: 0
A104: ACHComputer | B104: Computer | C104: =C103-1 -> -67 | D104: =SUMIF('OTH EXP'!$B$10:$B$32,$A104,'OTH EXP'!G$10:G$32) -> 0 | E104: =SUMIF('OTH EXP'!$B$10:$B$32,$A104,'OTH EXP'!H$10:H$32) -> 0 | F104: =SUMIF('OTH EXP'!$B$10:$B$32,$A104,'OTH EXP'!I$10:I$32) -> 0 | G104: =SUMIF('OTH EXP'!$B$10:$B$32,$A104,'OTH EXP'!J$10:J$32) -> 0 | H104: =SUMIF('OTH EXP'!$B$10:$B$32,$A104,'OTH EXP'!K$10:K$32) -> 0 | I104: 0 | J104: 0 | K104: 0 | L104: 0 | M104: 0 | N104: 0
A105: ACHEducational Funds | B105: Educational Funds | C105: =C104-1 -> -68 | D105: =SUMIF('OTH EXP'!$B$10:$B$32,$A105,'OTH EXP'!G$10:G$32) -> 0 | E105: =SUMIF('OTH EXP'!$B$10:$B$32,$A105,'OTH EXP'!H$10:H$32) -> 0 | F105: =SUMIF('OTH EXP'!$B$10:$B$32,$A105,'OTH EXP'!I$10:I$32) -> 0 | G105: =SUMIF('OTH EXP'!$B$10:$B$32,$A105,'OTH EXP'!J$10:J$32) -> 0 | H105: =SUMIF('OTH EXP'!$B$10:$B$32,$A105,'OTH EXP'!K$10:K$32) -> 0 | I105: 0 | J105: 0 | K105: 0 | L105: 0 | M105: 0 | N105: 0
A106: ACHEquipment | B106: Equipment | C106: =C105-1 -> -69 | D106: =SUMIF('OTH EXP'!$B$10:$B$32,$A106,'OTH EXP'!G$10:G$32) -> 0 | E106: =SUMIF('OTH EXP'!$B$10:$B$32,$A106,'OTH EXP'!H$10:H$32) -> 0 | F106: =SUMIF('OTH EXP'!$B$10:$B$32,$A106,'OTH EXP'!I$10:I$32) -> 0 | G106: =SUMIF('OTH EXP'!$B$10:$B$32,$A106,'OTH EXP'!J$10:J$32) -> 0 | H106: =SUMIF('OTH EXP'!$B$10:$B$32,$A106,'OTH EXP'!K$10:K$32) -> 0 | I106: 0 | J106: 0 | K106: 0 | L106: 0 | M106: 0 | N106: 0
A107: ACHConstruction | B107: Construction | C107: -70 | D107: =SUMIF('OTH EXP'!$B$10:$B$32,$A107,'OTH EXP'!G$10:G$32) -> 0 | E107: =SUMIF('OTH EXP'!$B$10:$B$32,$A107,'OTH EXP'!H$10:H$32) -> 0 | F107: =SUMIF('OTH EXP'!$B$10:$B$32,$A107,'OTH EXP'!I$10:I$32) -> 0 | G107: =SUMIF('OTH EXP'!$B$10:$B$32,$A107,'OTH EXP'!J$10:J$32) -> 0 | H107: =SUMIF('OTH EXP'!$B$10:$B$32,$A107,'OTH EXP'!K$10:K$32) -> 0 | I107: 0 | J107: 0 | K107: 0 | L107: 0 | M107: 0 | N107: 0
A108: ACHFurniture | B108: Furniture | C108: -71 | D108: =SUMIF('OTH EXP'!$B$10:$B$32,$A108,'OTH EXP'!G$10:G$32) -> 0 | E108: =SUMIF('OTH EXP'!$B$10:$B$32,$A108,'OTH EXP'!H$10:H$32) -> 0 | F108: =SUMIF('OTH EXP'!$B$10:$B$32,$A108,'OTH EXP'!I$10:I$32) -> 0 | G108: =SUMIF('OTH EXP'!$B$10:$B$32,$A108,'OTH EXP'!J$10:J$32) -> 0 | H108: =SUMIF('OTH EXP'!$B$10:$B$32,$A108,'OTH EXP'!K$10:K$32) -> 0 | I108: 0 | J108: 0 | K108: 0 | L108: 0 | M108: 0 | N108: 0
A109: ACHGeneral M&O | B109: General M&O | C109: -72 | D109: =SUMIF('OTH EXP'!$B$10:$B$32,$A109,'OTH EXP'!G$10:G$32) -> 0 | E109: =SUMIF('OTH EXP'!$B$10:$B$32,$A109,'OTH EXP'!H$10:H$32) -> 0 | F109: =SUMIF('OTH EXP'!$B$10:$B$32,$A109,'OTH EXP'!I$10:I$32) -> 0 | G109: =SUMIF('OTH EXP'!$B$10:$B$32,$A109,'OTH EXP'!J$10:J$32) -> 0 | H109: =SUMIF('OTH EXP'!$B$10:$B$32,$A109,'OTH EXP'!K$10:K$32) -> 0 | I109: 0 | J109: 0 | K109: 0 | L109: 0 | M109: 0 | N109: 0
A110: ACHMalpractice | B110: Malpractice | C110: -73 | D110: =SUMIF('OTH EXP'!$B$10:$B$32,$A110,'OTH EXP'!G$10:G$32) -> 0 | E110: =SUMIF('OTH EXP'!$B$10:$B$32,$A110,'OTH EXP'!H$10:H$32) -> 0 | F110: =SUMIF('OTH EXP'!$B$10:$B$32,$A110,'OTH EXP'!I$10:I$32) -> 0 | G110: =SUMIF('OTH EXP'!$B$10:$B$32,$A110,'OTH EXP'!J$10:J$32) -> 0 | H110: =SUMIF('OTH EXP'!$B$10:$B$32,$A110,'OTH EXP'!K$10:K$32) -> 0 | I110: 0 | J110: 0 | K110: 0 | L110: 0 | M110: 0 | N110: 0
A111: ACHMoving/Relocation | B111: Moving/Relocation | C111: -74 | D111: =SUMIF('OTH EXP'!$B$10:$B$32,$A111,'OTH EXP'!G$10:G$32) -> 0 | E111: =SUMIF('OTH EXP'!$B$10:$B$32,$A111,'OTH EXP'!H$10:H$32) -> 0 | F111: =SUMIF('OTH EXP'!$B$10:$B$32,$A111,'OTH EXP'!I$10:I$32) -> 0 | G111: =SUMIF('OTH EXP'!$B$10:$B$32,$A111,'OTH EXP'!J$10:J$32) -> 0 | H111: =SUMIF('OTH EXP'!$B$10:$B$32,$A111,'OTH EXP'!K$10:K$32) -> 0 | I111: 0 | J111: 0 | K111: 0 | L111: 0 | M111: 0 | N111: 0
A112: ACHOther | B112: Other | C112: -75 | D112: =SUMIF('OTH EXP'!$B$10:$B$32,$A112,'OTH EXP'!G$10:G$32) -> 0 | E112: =SUMIF('OTH EXP'!$B$10:$B$32,$A112,'OTH EXP'!H$10:H$32) -> 0 | F112: =SUMIF('OTH EXP'!$B$10:$B$32,$A112,'OTH EXP'!I$10:I$32) -> 0 | G112: =SUMIF('OTH EXP'!$B$10:$B$32,$A112,'OTH EXP'!J$10:J$32) -> 0 | H112: =SUMIF('OTH EXP'!$B$10:$B$32,$A112,'OTH EXP'!K$10:K$32) -> 0 | I112: 0 | J112: 0 | K112: 0 | L112: 0 | M112: 0 | N112: 0
B113: Total Costs | D113: =SUM(D98:D112) -> 0 | E113: =SUM(E98:E112) -> 0 | F113: =SUM(F98:F112) -> 0 | G113: =SUM(G98:G112) -> 0 | H113: =SUM(H98:H112) -> 0 | I113: 0 | J113: 0 | K113: 0 | L113: 0 | M113: 0 | N113: 0
N114: =N96+N113 -> 0
B115: Impact | D115: =D96-D113 -> 0 | E115: =E96-E113 -> 0 | F115: =F96-F113 -> 0 | G115: =G96-G113 -> 0 | H115: =H96-H113 -> 0 | N115: =N96+N113 -> 0
N116: =N96+N113 -> 0
B117: INSTITUTE | N117: =N131+N148 -> 0
B118: Incremental Budget Impact | N118: =N131+N148 -> 0
D119: Year 1 | E119: Year 2 | F119: Year 3 | G119: Year 4 | H119: Year 5 | N119: =N131+N148 -> 0
A120: ="INST"&B120 -> INSTClinical Pro Fees | B120: Clinical Pro Fees | C120: =C112-1 -> -76 | D120: =SUMIF('CLIN REV'!$A$13:$A$201,$A120,'CLIN REV'!D$13:D$201) -> 0 | E120: =SUMIF('CLIN REV'!$A$13:$A$201,$A120,'CLIN REV'!E$13:E$201) -> 0 | F120: =SUMIF('CLIN REV'!$A$13:$A$201,$A120,'CLIN REV'!F$13:F$201) -> 0 | G120: =SUMIF('CLIN REV'!$A$13:$A$201,$A120,'CLIN REV'!G$13:G$201) -> 0 | H120: =SUMIF('CLIN REV'!$A$13:$A$201,$A120,'CLIN REV'!H$13:H$201) -> 0 | I120: =IF(D120=0,0,1) -> 0 | J120: =IF(E120=0,0,1) -> 0 | K120: =IF(F120=0,0,1) -> 0 | L120: =IF(G120=0,0,1) -> 0 | M120: =IF(H120=0,0,1) -> 0 | N120: =SUM(I120:M120) -> 0
A121: ="INST"&B121 -> INSTClinical Tech Fees | B121: Clinical Tech Fees | C121: =C120-1 -> -77 | D121: =SUMIF('CLIN REV'!$A$13:$A$201,$A121,'CLIN REV'!D$13:D$201) -> 0 | E121: =SUMIF('CLIN REV'!$A$13:$A$201,$A121,'CLIN REV'!E$13:E$201) -> 0 | F121: =SUMIF('CLIN REV'!$A$13:$A$201,$A121,'CLIN REV'!F$13:F$201) -> 0 | G121: =SUMIF('CLIN REV'!$A$13:$A$201,$A121,'CLIN REV'!G$13:G$201) -> 0 | H121: =SUMIF('CLIN REV'!$A$13:$A$201,$A121,'CLIN REV'!H$13:H$201) -> 0 | I121: =IF(D121=0,0,1) -> 0 | J121: =IF(E121=0,0,1) -> 0 | K121: =IF(F121=0,0,1) -> 0 | L121: =IF(G121=0,0,1) -> 0 | M121: =IF(H121=0,0,1) -> 0 | N121: =SUM(I121:M121) -> 0
A122: ="COM"&B122 -> COMClinical Down Stream | B122: Clinical Down Stream | C122: -78 | D122: =SUMIF('CLIN REV'!$A$13:$A$201,$A122,'CLIN REV'!D$13:D$201) -> 0 | E122: =SUMIF('CLIN REV'!$A$13:$A$201,$A122,'CLIN REV'!E$13:E$201) -> 0 | F122: =SUMIF('CLIN REV'!$A$13:$A$201,$A122,'CLIN REV'!F$13:F$201) -> 0 | G122: =SUMIF('CLIN REV'!$A$13:$A$201,$A122,'CLIN REV'!G$13:G$201) -> 0 | H122: =SUMIF('CLIN REV'!$A$13:$A$201,$A122,'CLIN REV'!H$13:H$201) -> 0 | I122: =IF(D122=0,0,1) -> 0 | J122: =IF(E122=0,0,1) -> 0 | K122: =IF(F122=0,0,1) -> 0 | L122: =IF(G122=0,0,1) -> 0 | M122: =IF(H122=0,0,1) -> 0 | N122: =SUM(I122:M122) -> 0
A123: INSTEnhanced Medicaid | B123: Enhanced Medicaid | C123: -79 | D123: =SUMIF('OTH REV'!$A$10:$A$43,$A123,'OTH REV'!I$10:I$43) -> 0 | E123: =SUMIF('OTH REV'!$A$10:$A$43,$A123,'OTH REV'!J$10:J$43) -> 0 | F123: =SUMIF('OTH REV'!$A$10:$A$43,$A123,'OTH REV'!K$10:K$43) -> 0 | G123: =SUMIF('OTH REV'!$A$10:$A$43,$A123,'OTH REV'!L$10:L$43) -> 0 | H123: =SUMIF('OTH REV'!$A$10:$A$43,$A123,'OTH REV'!M$10:M$43) -> 0 | I123: 0 | J123: 0 | K123: 0 | L123: 0 | M123: 0 | N123: 0
A124: INSTBudget | B124: Budget | C124: -80 | D124: =SUMIF('OTH REV'!$A$10:$A$43,$A124,'OTH REV'!I$10:I$43) -> 0 | E124: =SUMIF('OTH REV'!$A$10:$A$43,$A124,'OTH REV'!J$10:J$43) -> 0 | F124: =SUMIF('OTH REV'!$A$10:$A$43,$A124,'OTH REV'!K$10:K$43) -> 0 | G124: =SUMIF('OTH REV'!$A$10:$A$43,$A124,'OTH REV'!L$10:L$43) -> 0 | H124: =SUMIF('OTH REV'!$A$10:$A$43,$A124,'OTH REV'!M$10:M$43) -> 0 | I124: 0 | J124: 0 | K124: 0 | L124: 0 | M124: 0 | N124: 0
A125: INSTDean's Commitment | B125: Dean's Commitment | C125: -81 | D125: =SUMIF('OTH REV'!$A$10:$A$43,$A125,'OTH REV'!I$10:I$43) -> 0 | E125: =SUMIF('OTH REV'!$A$10:$A$43,$A125,'OTH REV'!J$10:J$43) -> 0 | F125: =SUMIF('OTH REV'!$A$10:$A$43,$A125,'OTH REV'!K$10:K$43) -> 0 | G125: =SUMIF('OTH REV'!$A$10:$A$43,$A125,'OTH REV'!L$10:L$43) -> 0 | H125: =SUMIF('OTH REV'!$A$10:$A$43,$A125,'OTH REV'!M$10:M$43) -> 0 | I125: 0 | J125: 0 | K125: 0 | L125: 0 | M125: 0 | N125: 0
A126: INSTGrant | B126: Grant | C126: -82 | D126: =SUMIF('OTH REV'!$A$10:$A$43,$A126,'OTH REV'!I$10:I$43) -> 0 | E126: =SUMIF('OTH REV'!$A$10:$A$43,$A126,'OTH REV'!J$10:J$43) -> 0 | F126: =SUMIF('OTH REV'!$A$10:$A$43,$A126,'OTH REV'!K$10:K$43) -> 0 | G126: =SUMIF('OTH REV'!$A$10:$A$43,$A126,'OTH REV'!L$10:L$43) -> 0 | H126: =SUMIF('OTH REV'!$A$10:$A$43,$A126,'OTH REV'!M$10:M$43) -> 0 | I126: 0 | J126: 0 | K126: 0 | L126: 0 | M126: 0 | N126: 0
A127: INSTContract | B127: Contract | C127: -83 | D127: =SUMIF('OTH REV'!$A$10:$A$43,$A127,'OTH REV'!I$10:I$43) -> 0 | E127: =SUMIF('OTH REV'!$A$10:$A$43,$A127,'OTH REV'!J$10:J$43) -> 0 | F127: =SUMIF('OTH REV'!$A$10:$A$43,$A127,'OTH REV'!K$10:K$43) -> 0 | G127: =SUMIF('OTH REV'!$A$10:$A$43,$A127,'OTH REV'!L$10:L$43) -> 0 | H127: =SUMIF('OTH REV'!$A$10:$A$43,$A127,'OTH REV'!M$10:M$43) -> 0 | I127: 0 | J127: 0 | K127: 0 | L127: 0 | M127: 0 | N127: 0
A128: INSTGift | B128: Gift | C128: -84 | D128: =SUMIF('OTH REV'!$A$10:$A$43,$A128,'OTH REV'!I$10:I$43) -> 0 | E128: =SUMIF('OTH REV'!$A$10:$A$43,$A128,'OTH REV'!J$10:J$43) -> 0 | F128: =SUMIF('OTH REV'!$A$10:$A$43,$A128,'OTH REV'!K$10:K$43) -> 0 | G128: =SUMIF('OTH REV'!$A$10:$A$43,$A128,'OTH REV'!L$10:L$43) -> 0 | H128: =SUMIF('OTH REV'!$A$10:$A$43,$A128,'OTH REV'!M$10:M$43) -> 0 | I128: 0 | J128: 0 | K128: 0 | L128: 0 | M128: 0 | N128: 0
A129: INSTFoundation | B129: Foundation | C129: -85 | D129: =SUMIF('OTH REV'!$A$10:$A$43,$A129,'OTH REV'!I$10:I$43) -> 0 | E129: =SUMIF('OTH REV'!$A$10:$A$43,$A129,'OTH REV'!J$10:J$43) -> 0 | F129: =SUMIF('OTH REV'!$A$10:$A$43,$A129,'OTH REV'!K$10:K$43) -> 0 | G129: =SUMIF('OTH REV'!$A$10:$A$43,$A129,'OTH REV'!L$10:L$43) -> 0 | H129: =SUMIF('OTH REV'!$A$10:$A$43,$A129,'OTH REV'!M$10:M$43) -> 0 | I129: 0 | J129: 0 | K129: 0 | L129: 0 | M129: 0 | N129: 0
A130: INSTOther | B130: Other | C130: -86 | D130: =SUMIF('OTH REV'!$A$10:$A$43,$A130,'OTH REV'!I$10:I$43) -> 0 | E130: =SUMIF('OTH REV'!$A$10:$A$43,$A130,'OTH REV'!J$10:J$43) -> 0 | F130: =SUMIF('OTH REV'!$A$10:$A$43,$A130,'OTH REV'!K$10:K$43) -> 0 | G130: =SUMIF('OTH REV'!$A$10:$A$43,$A130,'OTH REV'!L$10:L$43) -> 0 | H130: =SUMIF('OTH REV'!$A$10:$A$43,$A130,'OTH REV'!M$10:M$43) -> 0 | I130: 0 | J130: 0 | K130: 0 | L130: 0 | M130: 0 | N130: 0
B131: Total Resources | D131: =SUM(D120:D130) -> 0 | E131: =SUM(E120:E130) -> 0 | F131: =SUM(F120:F130) -> 0 | G131: =SUM(G120:G130) -> 0 | H131: =SUM(H120:H130) -> 0 | I131: 0 | J131: 0 | K131: 0 | L131: 0 | M131: 0 | N131: 0
N132: =SUM(I131:M131) -> 0
A133: INST | B133: Salary | C133: =C130-1 -> -87 | D133: =SUMIF(ASSIGN!$I$9:$I$40,$A133,ASSIGN!M$9:M$40)*COMP!I$51 -> 0 | E133: =SUMIF(ASSIGN!$I$9:$I$40,$A133,ASSIGN!N$9:N$40)*COMP!J$51 -> 0 | F133: =SUMIF(ASSIGN!$I$9:$I$40,$A133,ASSIGN!O$9:O$40)*COMP!K$51 -> 0 | G133: =SUMIF(ASSIGN!$I$9:$I$40,$A133,ASSIGN!P$9:P$40)*COMP!L$51 -> 0 | H133: =SUMIF(ASSIGN!$I$9:$I$40,$A133,ASSIGN!Q$9:Q$40)*COMP!M$51 -> 0 | I133: =IF(D133=0,0,1) -> 0 | J133: =IF(E133=0,0,1) -> 0 | K133: =IF(F133=0,0,1) -> 0 | L133: =IF(G133=0,0,1) -> 0 | M133: =IF(H133=0,0,1) -> 0 | N133: =SUM(I133:M133) -> 0
A134: INST | B134: Incentive | C134: =C133-1 -> -88 | D134: =SUMIF(COMP!$F$29:$F$32,$A134,COMP!J$29:J$32) -> 0 | E134: =SUMIF(COMP!$F$29:$F$32,$A134,COMP!K$29:K$32) -> 0 | F134: =SUMIF(COMP!$F$29:$F$32,$A134,COMP!L$29:L$32) -> 0 | G134: =SUMIF(COMP!$F$29:$F$32,$A134,COMP!M$29:M$32) -> 0 | H134: =SUMIF(COMP!$F$29:$F$32,$A134,COMP!N$29:N$32) -> 0 | I134: =IF(D134=0,0,1) -> 0 | J134: =IF(E134=0,0,1) -> 0 | K134: =IF(F134=0,0,1) -> 0 | L134: =IF(G134=0,0,1) -> 0 | M134: =IF(H134=0,0,1) -> 0 | N134: =SUM(I134:M134) -> 0
A135: INST | B135: Fringe | C135: =C134-1 -> -89 | D135: =SUMIF(ASSIGN!$I$9:$I$40,$A133,ASSIGN!M$9:M$40)*COMP!I$57+SUMIF(COMP!$F$29:$F$32,$A135,COMP!O$29:O$32) -> 0 | E135: =SUMIF(ASSIGN!$I$9:$I$40,$A133,ASSIGN!N$9:N$40)*COMP!J$57+SUMIF(COMP!$F$29:$F$32,$A135,COMP!P$29:P$32) -> 0 | F135: =SUMIF(ASSIGN!$I$9:$I$40,$A133,ASSIGN!O$9:O$40)*COMP!K$57+SUMIF(COMP!$F$29:$F$32,$A135,COMP!Q$29:Q$32) -> 0 | G135: =SUMIF(ASSIGN!$I$9:$I$40,$A133,ASSIGN!P$9:P$40)*COMP!L$57+SUMIF(COMP!$F$29:$F$32,$A135,COMP!R$29:R$32) -> 0 | H135: =SUMIF(ASSIGN!$I$9:$I$40,$A133,ASSIGN!Q$9:Q$40)*COMP!M$57+SUMIF(COMP!$F$29:$F$32,$A135,COMP!S$29:S$32) -> 0 | I135: 0 | J135: 0 | K135: 0 | L135: 0 | M135: 0 | N135: 0
I136: 0 | J136: 0 | K136: 0 | L136: 0 | M136: 0 | N136: 0
A137: ="INST"&B137 -> INSTExtenders | B137: Extenders | C137: =C135-1 -> -90 | D137: =SUMIF('OTH EXP'!$B$10:$B$32,$A137,'OTH EXP'!G$10:G$32) -> 0 | E137: =SUMIF('OTH EXP'!$B$10:$B$32,$A137,'OTH EXP'!H$10:H$32) -> 0 | F137: =SUMIF('OTH EXP'!$B$10:$B$32,$A137,'OTH EXP'!I$10:I$32) -> 0 | G137: =SUMIF('OTH EXP'!$B$10:$B$32,$A137,'OTH EXP'!J$10:J$32) -> 0 | H137: =SUMIF('OTH EXP'!$B$10:$B$32,$A137,'OTH EXP'!K$10:K$32) -> 0 | I137: =IF(D137=0,0,1) -> 0 | J137: =IF(E137=0,0,1) -> 0 | K137: =IF(F137=0,0,1) -> 0 | L137: =IF(G137=0,0,1) -> 0 | M137: =IF(H137=0,0,1) -> 0 | N137: =SUM(I137:M137) -> 0
A138: ="INST"&B138 -> INSTStaff | B138: Staff | C138: =C137-1 -> -91 | D138: =SUMIF('OTH EXP'!$B$10:$B$32,$A138,'OTH EXP'!G$10:G$32) -> 0 | E138: =SUMIF('OTH EXP'!$B$10:$B$32,$A138,'OTH EXP'!H$10:H$32) -> 0 | F138: =SUMIF('OTH EXP'!$B$10:$B$32,$A138,'OTH EXP'!I$10:I$32) -> 0 | G138: =SUMIF('OTH EXP'!$B$10:$B$32,$A138,'OTH EXP'!J$10:J$32) -> 0 | H138: =SUMIF('OTH EXP'!$B$10:$B$32,$A138,'OTH EXP'!K$10:K$32) -> 0 | I138: 0 | J138: 0 | K138: 0 | L138: 0 | M138: 0 | N138: 0
A139: INSTComputer | B139: Computer | C139: =C138-1 -> -92 | D139: =SUMIF('OTH EXP'!$B$10:$B$32,$A139,'OTH EXP'!G$10:G$32) -> 0 | E139: =SUMIF('OTH EXP'!$B$10:$B$32,$A139,'OTH EXP'!H$10:H$32) -> 0 | F139: =SUMIF('OTH EXP'!$B$10:$B$32,$A139,'OTH EXP'!I$10:I$32) -> 0 | G139: =SUMIF('OTH EXP'!$B$10:$B$32,$A139,'OTH EXP'!J$10:J$32) -> 0 | H139: =SUMIF('OTH EXP'!$B$10:$B$32,$A139,'OTH EXP'!K$10:K$32) -> 0 | I139: 0 | J139: 0 | K139: 0 | L139: 0 | M139: 0 | N139: 0
A140: INSTEducational Funds | B140: Educational Funds | C140: =C139-1 -> -93 | D140: =SUMIF('OTH EXP'!$B$10:$B$32,$A140,'OTH EXP'!G$10:G$32) -> 0 | E140: =SUMIF('OTH EXP'!$B$10:$B$32,$A140,'OTH EXP'!H$10:H$32) -> 0 | F140: =SUMIF('OTH EXP'!$B$10:$B$32,$A140,'OTH EXP'!I$10:I$32) -> 0 | G140: =SUMIF('OTH EXP'!$B$10:$B$32,$A140,'OTH EXP'!J$10:J$32) -> 0 | H140: =SUMIF('OTH EXP'!$B$10:$B$32,$A140,'OTH EXP'!K$10:K$32) -> 0 | I140: 0 | J140: 0 | K140: 0 | L140: 0 | M140: 0 | N140: 0
A141: INSTEquipment | B141: Equipment | C141: =C140-1 -> -94 | D141: =SUMIF('OTH EXP'!$B$10:$B$32,$A141,'OTH EXP'!G$10:G$32) -> 0 | E141: =SUMIF('OTH EXP'!$B$10:$B$32,$A141,'OTH EXP'!H$10:H$32) -> 0 | F141: =SUMIF('OTH EXP'!$B$10:$B$32,$A141,'OTH EXP'!I$10:I$32) -> 0 | G141: =SUMIF('OTH EXP'!$B$10:$B$32,$A141,'OTH EXP'!J$10:J$32) -> 0 | H141: =SUMIF('OTH EXP'!$B$10:$B$32,$A141,'OTH EXP'!K$10:K$32) -> 0 | I141: 0 | J141: 0 | K141: 0 | L141: 0 | M141: 0 | N141: 0
A142: INSTConstruction | B142: Construction | C142: -95 | D142: =SUMIF('OTH EXP'!$B$10:$B$32,$A142,'OTH EXP'!G$10:G$32) -> 0 | E142: =SUMIF('OTH EXP'!$B$10:$B$32,$A142,'OTH EXP'!H$10:H$32) -> 0 | F142: =SUMIF('OTH EXP'!$B$10:$B$32,$A142,'OTH EXP'!I$10:I$32) -> 0 | G142: =SUMIF('OTH EXP'!$B$10:$B$32,$A142,'OTH EXP'!J$10:J$32) -> 0 | H142: =SUMIF('OTH EXP'!$B$10:$B$32,$A142,'OTH EXP'!K$10:K$32) -> 0 | I142: 0 | J142: 0 | K142: 0 | L142: 0 | M142: 0 | N142: 0
A143: INSTFurniture | B143: Furniture | C143: -96 | D143: =SUMIF('OTH EXP'!$B$10:$B$32,$A143,'OTH EXP'!G$10:G$32) -> 0 | E143: =SUMIF('OTH EXP'!$B$10:$B$32,$A143,'OTH EXP'!H$10:H$32) -> 0 | F143: =SUMIF('OTH EXP'!$B$10:$B$32,$A143,'OTH EXP'!I$10:I$32) -> 0 | G143: =SUMIF('OTH EXP'!$B$10:$B$32,$A143,'OTH EXP'!J$10:J$32) -> 0 | H143: =SUMIF('OTH EXP'!$B$10:$B$32,$A143,'OTH EXP'!K$10:K$32) -> 0 | I143: 0 | J143: 0 | K143: 0 | L143: 0 | M143: 0 | N143: 0
A144: INSTGeneral M&O | B144: General M&O | C144: -97 | D144: =SUMIF('OTH EXP'!$B$10:$B$32,$A144,'OTH EXP'!G$10:G$32) -> 0 | E144: =SUMIF('OTH EXP'!$B$10:$B$32,$A144,'OTH EXP'!H$10:H$32) -> 0 | F144: =SUMIF('OTH EXP'!$B$10:$B$32,$A144,'OTH EXP'!I$10:I$32) -> 0 | G144: =SUMIF('OTH EXP'!$B$10:$B$32,$A144,'OTH EXP'!J$10:J$32) -> 0 | H144: =SUMIF('OTH EXP'!$B$10:$B$32,$A144,'OTH EXP'!K$10:K$32) -> 0 | I144: 0 | J144: 0 | K144: 0 | L144: 0 | M144: 0 | N144: 0
A145: INSTMalpractice | B145: Malpractice | C145: -98 | D145: =SUMIF('OTH EXP'!$B$10:$B$32,$A145,'OTH EXP'!G$10:G$32) -> 0 | E145: =SUMIF('OTH EXP'!$B$10:$B$32,$A145,'OTH EXP'!H$10:H$32) -> 0 | F145: =SUMIF('OTH EXP'!$B$10:$B$32,$A145,'OTH EXP'!I$10:I$32) -> 0 | G145: =SUMIF('OTH EXP'!$B$10:$B$32,$A145,'OTH EXP'!J$10:J$32) -> 0 | H145: =SUMIF('OTH EXP'!$B$10:$B$32,$A145,'OTH EXP'!K$10:K$32) -> 0 | I145: 0 | J145: 0 | K145: 0 | L145: 0 | M145: 0 | N145: 0
A146: INSTMoving/Relocation | B146: Moving/Relocation | C146: -99 | D146: =SUMIF('OTH EXP'!$B$10:$B$32,$A146,'OTH EXP'!G$10:G$32) -> 0 | E146: =SUMIF('OTH EXP'!$B$10:$B$32,$A146,'OTH EXP'!H$10:H$32) -> 0 | F146: =SUMIF('OTH EXP'!$B$10:$B$32,$A146,'OTH EXP'!I$10:I$32) -> 0 | G146: =SUMIF('OTH EXP'!$B$10:$B$32,$A146,'OTH EXP'!J$10:J$32) -> 0 | H146: =SUMIF('OTH EXP'!$B$10:$B$32,$A146,'OTH EXP'!K$10:K$32) -> 0 | I146: 0 | J146: 0 | K146: 0 | L146: 0 | M146: 0 | N146: 0
A147: INSTOther | B147: Other | C147: -100 | D147: =SUMIF('OTH EXP'!$B$10:$B$32,$A147,'OTH EXP'!G$10:G$32) -> 0 | E147: =SUMIF('OTH EXP'!$B$10:$B$32,$A147,'OTH EXP'!H$10:H$32) -> 0 | F147: =SUMIF('OTH EXP'!$B$10:$B$32,$A147,'OTH EXP'!I$10:I$32) -> 0 | G147: =SUMIF('OTH EXP'!$B$10:$B$32,$A147,'OTH EXP'!J$10:J$32) -> 0 | H147: =SUMIF('OTH EXP'!$B$10:$B$32,$A147,'OTH EXP'!K$10:K$32) -> 0 | I147: 0 | J147: 0 | K147: 0 | L147: 0 | M147: 0 | N147: 0
B148: Total Costs | D148: =SUM(D133:D147) -> 0 | E148: =SUM(E133:E147) -> 0 | F148: =SUM(F133:F147) -> 0 | G148: =SUM(G133:G147) -> 0 | H148: =SUM(H133:H147) -> 0 | I148: 0 | J148: 0 | K148: 0 | L148: 0 | M148: 0 | N148: 0
N149: =N131+N148 -> 0
B150: Impact | D150: =D131-D148 -> 0 | E150: =E131-E148 -> 0 | F150: =F131-F148 -> 0 | G150: =G131-G148 -> 0 | H150: =H131-H148 -> 0 | N150: =N131+N148 -> 0
N151: =N131+N148 -> 0
B152: OTHER (Other College's and UAMS Units) | N152: =N166+N183 -> 0
B153: Incremental Budget Impact | N153: =N166+N183 -> 0
D154: Year 1 | E154: Year 2 | F154: Year 3 | G154: Year 4 | H154: Year 5 | N154: =N166+N183 -> 0
A155: ="OTHER"&B155 -> OTHERClinical Pro Fees | B155: Clinical Pro Fees | C155: =C147-1 -> -101 | D155: =SUMIF('CLIN REV'!$A$13:$A$201,$A155,'CLIN REV'!D$13:D$201) -> 0 | E155: =SUMIF('CLIN REV'!$A$13:$A$201,$A155,'CLIN REV'!E$13:E$201) -> 0 | F155: =SUMIF('CLIN REV'!$A$13:$A$201,$A155,'CLIN REV'!F$13:F$201) -> 0 | G155: =SUMIF('CLIN REV'!$A$13:$A$201,$A155,'CLIN REV'!G$13:G$201) -> 0 | H155: =SUMIF('CLIN REV'!$A$13:$A$201,$A155,'CLIN REV'!H$13:H$201) -> 0 | I155: =IF(D155=0,0,1) -> 0 | J155: =IF(E155=0,0,1) -> 0 | K155: =IF(F155=0,0,1) -> 0 | L155: =IF(G155=0,0,1) -> 0 | M155: =IF(H155=0,0,1) -> 0 | N155: =SUM(I155:M155) -> 0
A156: ="OTHER"&B156 -> OTHERClinical Tech Fees | B156: Clinical Tech Fees | C156: =C155-1 -> -102 | D156: =SUMIF('CLIN REV'!$A$13:$A$201,$A156,'CLIN REV'!D$13:D$201) -> 0 | E156: =SUMIF('CLIN REV'!$A$13:$A$201,$A156,'CLIN REV'!E$13:E$201) -> 0 | F156: =SUMIF('CLIN REV'!$A$13:$A$201,$A156,'CLIN REV'!F$13:F$201) -> 0 | G156: =SUMIF('CLIN REV'!$A$13:$A$201,$A156,'CLIN REV'!G$13:G$201) -> 0 | H156: =SUMIF('CLIN REV'!$A$13:$A$201,$A156,'CLIN REV'!H$13:H$201) -> 0 | I156: =IF(D156=0,0,1) -> 0 | J156: =IF(E156=0,0,1) -> 0 | K156: =IF(F156=0,0,1) -> 0 | L156: =IF(G156=0,0,1) -> 0 | M156: =IF(H156=0,0,1) -> 0 | N156: =SUM(I156:M156) -> 0
A157: ="COM"&B157 -> COMClinical Down Stream | B157: Clinical Down Stream | C157: -103 | D157: =SUMIF('CLIN REV'!$A$13:$A$201,$A157,'CLIN REV'!D$13:D$201) -> 0 | E157: =SUMIF('CLIN REV'!$A$13:$A$201,$A157,'CLIN REV'!E$13:E$201) -> 0 | F157: =SUMIF('CLIN REV'!$A$13:$A$201,$A157,'CLIN REV'!F$13:F$201) -> 0 | G157: =SUMIF('CLIN REV'!$A$13:$A$201,$A157,'CLIN REV'!G$13:G$201) -> 0 | H157: =SUMIF('CLIN REV'!$A$13:$A$201,$A157,'CLIN REV'!H$13:H$201) -> 0 | I157: =IF(D157=0,0,1) -> 0 | J157: =IF(E157=0,0,1) -> 0 | K157: =IF(F157=0,0,1) -> 0 | L157: =IF(G157=0,0,1) -> 0 | M157: =IF(H157=0,0,1) -> 0 | N157: =SUM(I157:M157) -> 0
A158: OTHEREnhanced Medicaid | B158: Enhanced Medicaid | C158: -104 | D158: =SUMIF('OTH REV'!$A$10:$A$43,$A158,'OTH REV'!I$10:I$43) -> 0 | E158: =SUMIF('OTH REV'!$A$10:$A$43,$A158,'OTH REV'!J$10:J$43) -> 0 | F158: =SUMIF('OTH REV'!$A$10:$A$43,$A158,'OTH REV'!K$10:K$43) -> 0 | G158: =SUMIF('OTH REV'!$A$10:$A$43,$A158,'OTH REV'!L$10:L$43) -> 0 | H158: =SUMIF('OTH REV'!$A$10:$A$43,$A158,'OTH REV'!M$10:M$43) -> 0 | I158: 0 | J158: 0 | K158: 0 | L158: 0 | M158: 0 | N158: 0
A159: OTHERBudget | B159: Budget | C159: -105 | D159: =SUMIF('OTH REV'!$A$10:$A$43,$A159,'OTH REV'!I$10:I$43) -> 0 | E159: =SUMIF('OTH REV'!$A$10:$A$43,$A159,'OTH REV'!J$10:J$43) -> 0 | F159: =SUMIF('OTH REV'!$A$10:$A$43,$A159,'OTH REV'!K$10:K$43) -> 0 | G159: =SUMIF('OTH REV'!$A$10:$A$43,$A159,'OTH REV'!L$10:L$43) -> 0 | H159: =SUMIF('OTH REV'!$A$10:$A$43,$A159,'OTH REV'!M$10:M$43) -> 0 | I159: 0 | J159: 0 | K159: 0 | L159: 0 | M159: 0 | N159: 0
A160: OTHERDean's Commitment | B160: Dean's Commitment | C160: -106 | D160: =SUMIF('OTH REV'!$A$10:$A$43,$A160,'OTH REV'!I$10:I$43) -> 0 | E160: =SUMIF('OTH REV'!$A$10:$A$43,$A160,'OTH REV'!J$10:J$43) -> 0 | F160: =SUMIF('OTH REV'!$A$10:$A$43,$A160,'OTH REV'!K$10:K$43) -> 0 | G160: =SUMIF('OTH REV'!$A$10:$A$43,$A160,'OTH REV'!L$10:L$43) -> 0 | H160: =SUMIF('OTH REV'!$A$10:$A$43,$A160,'OTH REV'!M$10:M$43) -> 0 | I160: 0 | J160: 0 | K160: 0 | L160: 0 | M160: 0 | N160: 0
A161: OTHERGrant | B161: Grant | C161: -107 | D161: =SUMIF('OTH REV'!$A$10:$A$43,$A161,'OTH REV'!I$10:I$43) -> 0 | E161: =SUMIF('OTH REV'!$A$10:$A$43,$A161,'OTH REV'!J$10:J$43) -> 0 | F161: =SUMIF('OTH REV'!$A$10:$A$43,$A161,'OTH REV'!K$10:K$43) -> 0 | G161: =SUMIF('OTH REV'!$A$10:$A$43,$A161,'OTH REV'!L$10:L$43) -> 0 | H161: =SUMIF('OTH REV'!$A$10:$A$43,$A161,'OTH REV'!M$10:M$43) -> 0 | I161: 0 | J161: 0 | K161: 0 | L161: 0 | M161: 0 | N161: 0
A162: OTHERContract | B162: Contract | C162: -108 | D162: =SUMIF('OTH REV'!$A$10:$A$43,$A162,'OTH REV'!I$10:I$43) -> 0 | E162: =SUMIF('OTH REV'!$A$10:$A$43,$A162,'OTH REV'!J$10:J$43) -> 0 | F162: =SUMIF('OTH REV'!$A$10:$A$43,$A162,'OTH REV'!K$10:K$43) -> 0 | G162: =SUMIF('OTH REV'!$A$10:$A$43,$A162,'OTH REV'!L$10:L$43) -> 0 | H162: =SUMIF('OTH REV'!$A$10:$A$43,$A162,'OTH REV'!M$10:M$43) -> 0 | I162: 0 | J162: 0 | K162: 0 | L162: 0 | M162: 0 | N162: 0
A163: OTHERGift | B163: Gift | C163: -109 | D163: =SUMIF('OTH REV'!$A$10:$A$43,$A163,'OTH REV'!I$10:I$43) -> 0 | E163: =SUMIF('OTH REV'!$A$10:$A$43,$A163,'OTH REV'!J$10:J$43) -> 0 | F163: =SUMIF('OTH REV'!$A$10:$A$43,$A163,'OTH REV'!K$10:K$43) -> 0 | G163: =SUMIF('OTH REV'!$A$10:$A$43,$A163,'OTH REV'!L$10:L$43) -> 0 | H163: =SUMIF('OTH REV'!$A$10:$A$43,$A163,'OTH REV'!M$10:M$43) -> 0 | I163: 0 | J163: 0 | K163: 0 | L163: 0 | M163: 0 | N163: 0
A164: OTHERFoundation | B164: Foundation | C164: -110 | D164: =SUMIF('OTH REV'!$A$10:$A$43,$A164,'OTH REV'!I$10:I$43) -> 0 | E164: =SUMIF('OTH REV'!$A$10:$A$43,$A164,'OTH REV'!J$10:J$43) -> 0 | F164: =SUMIF('OTH REV'!$A$10:$A$43,$A164,'OTH REV'!K$10:K$43) -> 0 | G164: =SUMIF('OTH REV'!$A$10:$A$43,$A164,'OTH REV'!L$10:L$43) -> 0 | H164: =SUMIF('OTH REV'!$A$10:$A$43,$A164,'OTH REV'!M$10:M$43) -> 0 | I164: 0 | J164: 0 | K164: 0 | L164: 0 | M164: 0 | N164: 0
A165: OTHEROther | B165: Other | C165: -111 | D165: =SUMIF('OTH REV'!$A$10:$A$43,$A165,'OTH REV'!I$10:I$43) -> 0 | E165: =SUMIF('OTH REV'!$A$10:$A$43,$A165,'OTH REV'!J$10:J$43) -> 0 | F165: =SUMIF('OTH REV'!$A$10:$A$43,$A165,'OTH REV'!K$10:K$43) -> 0 | G165: =SUMIF('OTH REV'!$A$10:$A$43,$A165,'OTH REV'!L$10:L$43) -> 0 | H165: =SUMIF('OTH REV'!$A$10:$A$43,$A165,'OTH REV'!M$10:M$43) -> 0 | I165: 0 | J165: 0 | K165: 0 | L165: 0 | M165: 0 | N165: 0
B166: Total Resources | D166: =SUM(D155:D165) -> 0 | E166: =SUM(E155:E165) -> 0 | F166: =SUM(F155:F165) -> 0 | G166: =SUM(G155:G165) -> 0 | H166: =SUM(H155:H165) -> 0 | I166: 0 | J166: 0 | K166: 0 | L166: 0 | M166: 0 | N166: 0
N167: =SUM(I166:M166) -> 0
A168: OTHER | B168: Salary | C168: =C165-1 -> -112 | D168: =SUMIF(ASSIGN!$I$9:$I$40,$A168,ASSIGN!M$9:M$40)*COMP!I$51 -> 0 | E168: =SUMIF(ASSIGN!$I$9:$I$40,$A168,ASSIGN!N$9:N$40)*COMP!J$51 -> 0 | F168: =SUMIF(ASSIGN!$I$9:$I$40,$A168,ASSIGN!O$9:O$40)*COMP!K$51 -> 0 | G168: =SUMIF(ASSIGN!$I$9:$I$40,$A168,ASSIGN!P$9:P$40)*COMP!L$51 -> 0 | H168: =SUMIF(ASSIGN!$I$9:$I$40,$A168,ASSIGN!Q$9:Q$40)*COMP!M$51 -> 0 | I168: =IF(D168=0,0,1) -> 0 | J168: =IF(E168=0,0,1) -> 0 | K168: =IF(F168=0,0,1) -> 0 | L168: =IF(G168=0,0,1) -> 0 | M168: =IF(H168=0,0,1) -> 0 | N168: =SUM(I168:M168) -> 0
A169: OTHER | B169: Incentive | C169: =C168-1 -> -113 | D169: =SUMIF(COMP!$F$29:$F$32,$A169,COMP!J$29:J$32) -> 0 | E169: =SUMIF(COMP!$F$29:$F$32,$A169,COMP!K$29:K$32) -> 0 | F169: =SUMIF(COMP!$F$29:$F$32,$A169,COMP!L$29:L$32) -> 0 | G169: =SUMIF(COMP!$F$29:$F$32,$A169,COMP!M$29:M$32) -> 0 | H169: =SUMIF(COMP!$F$29:$F$32,$A169,COMP!N$29:N$32) -> 0 | I169: =IF(D169=0,0,1) -> 0 | J169: =IF(E169=0,0,1) -> 0 | K169: =IF(F169=0,0,1) -> 0 | L169: =IF(G169=0,0,1) -> 0 | M169: =IF(H169=0,0,1) -> 0 | N169: =SUM(I169:M169) -> 0
A170: OTHER | B170: Fringe | C170: =C169-1 -> -114 | D170: =SUMIF(ASSIGN!$I$9:$I$40,$A168,ASSIGN!M$9:M$40)*COMP!I$57+SUMIF(COMP!$F$29:$F$32,$A170,COMP!O$29:O$32) -> 0 | E170: =SUMIF(ASSIGN!$I$9:$I$40,$A168,ASSIGN!N$9:N$40)*COMP!J$57+SUMIF(COMP!$F$29:$F$32,$A170,COMP!P$29:P$32) -> 0 | F170: =SUMIF(ASSIGN!$I$9:$I$40,$A168,ASSIGN!O$9:O$40)*COMP!K$57+SUMIF(COMP!$F$29:$F$32,$A170,COMP!Q$29:Q$32) -> 0 | G170: =SUMIF(ASSIGN!$I$9:$I$40,$A168,ASSIGN!P$9:P$40)*COMP!L$57+SUMIF(COMP!$F$29:$F$32,$A170,COMP!R$29:R$32) -> 0 | H170: =SUMIF(ASSIGN!$I$9:$I$40,$A168,ASSIGN!Q$9:Q$40)*COMP!M$57+SUMIF(COMP!$F$29:$F$32,$A170,COMP!S$29:S$32) -> 0 | I170: 0 | J170: 0 | K170: 0 | L170: 0 | M170: 0 | N170: 0
I171: 0 | J171: 0 | K171: 0 | L171: 0 | M171: 0 | N171: 0
A172: ="OTHER"&B172 -> OTHERExtenders | B172: Extenders | C172: =C170-1 -> -115 | D172: =SUMIF('OTH EXP'!$B$10:$B$32,$A172,'OTH EXP'!G$10:G$32) -> 0 | E172: =SUMIF('OTH EXP'!$B$10:$B$32,$A172,'OTH EXP'!H$10:H$32) -> 0 | F172: =SUMIF('OTH EXP'!$B$10:$B$32,$A172,'OTH EXP'!I$10:I$32) -> 0 | G172: =SUMIF('OTH EXP'!$B$10:$B$32,$A172,'OTH EXP'!J$10:J$32) -> 0 | H172: =SUMIF('OTH EXP'!$B$10:$B$32,$A172,'OTH EXP'!K$10:K$32) -> 0 | I172: =IF(D172=0,0,1) -> 0 | J172: =IF(E172=0,0,1) -> 0 | K172: =IF(F172=0,0,1) -> 0 | L172: =IF(G172=0,0,1) -> 0 | M172: =IF(H172=0,0,1) -> 0 | N172: =SUM(I172:M172) -> 0
A173: ="OTHER"&B173 -> OTHERStaff | B173: Staff | C173: =C172-1 -> -116 | D173: =SUMIF('OTH EXP'!$B$10:$B$32,$A173,'OTH EXP'!G$10:G$32) -> 0 | E173: =SUMIF('OTH EXP'!$B$10:$B$32,$A173,'OTH EXP'!H$10:H$32) -> 0 | F173: =SUMIF('OTH EXP'!$B$10:$B$32,$A173,'OTH EXP'!I$10:I$32) -> 0 | G173: =SUMIF('OTH EXP'!$B$10:$B$32,$A173,'OTH EXP'!J$10:J$32) -> 0 | H173: =SUMIF('OTH EXP'!$B$10:$B$32,$A173,'OTH EXP'!K$10:K$32) -> 0 | I173: 0 | J173: 0 | K173: 0 | L173: 0 | M173: 0 | N173: 0
A174: OTHERComputer | B174: Computer | C174: =C173-1 -> -117 | D174: =SUMIF('OTH EXP'!$B$10:$B$32,$A174,'OTH EXP'!G$10:G$32) -> 0 | E174: =SUMIF('OTH EXP'!$B$10:$B$32,$A174,'OTH EXP'!H$10:H$32) -> 0 | F174: =SUMIF('OTH EXP'!$B$10:$B$32,$A174,'OTH EXP'!I$10:I$32) -> 0 | G174: =SUMIF('OTH EXP'!$B$10:$B$32,$A174,'OTH EXP'!J$10:J$32) -> 0 | H174: =SUMIF('OTH EXP'!$B$10:$B$32,$A174,'OTH EXP'!K$10:K$32) -> 0 | I174: 0 | J174: 0 | K174: 0 | L174: 0 | M174: 0 | N174: 0
A175: OTHEREducational Funds | B175: Educational Funds | C175: =C174-1 -> -118 | D175: =SUMIF('OTH EXP'!$B$10:$B$32,$A175,'OTH EXP'!G$10:G$32) -> 0 | E175: =SUMIF('OTH EXP'!$B$10:$B$32,$A175,'OTH EXP'!H$10:H$32) -> 0 | F175: =SUMIF('OTH EXP'!$B$10:$B$32,$A175,'OTH EXP'!I$10:I$32) -> 0 | G175: =SUMIF('OTH EXP'!$B$10:$B$32,$A175,'OTH EXP'!J$10:J$32) -> 0 | H175: =SUMIF('OTH EXP'!$B$10:$B$32,$A175,'OTH EXP'!K$10:K$32) -> 0 | I175: 0 | J175: 0 | K175: 0 | L175: 0 | M175: 0 | N175: 0
A176: OTHEREquipment | B176: Equipment | C176: =C175-1 -> -119 | D176: =SUMIF('OTH EXP'!$B$10:$B$32,$A176,'OTH EXP'!G$10:G$32) -> 0 | E176: =SUMIF('OTH EXP'!$B$10:$B$32,$A176,'OTH EXP'!H$10:H$32) -> 0 | F176: =SUMIF('OTH EXP'!$B$10:$B$32,$A176,'OTH EXP'!I$10:I$32) -> 0 | G176: =SUMIF('OTH EXP'!$B$10:$B$32,$A176,'OTH EXP'!J$10:J$32) -> 0 | H176: =SUMIF('OTH EXP'!$B$10:$B$32,$A176,'OTH EXP'!K$10:K$32) -> 0 | I176: 0 | J176: 0 | K176: 0 | L176: 0 | M176: 0 | N176: 0
A177: OTHERConstruction | B177: Construction | C177: -120 | D177: =SUMIF('OTH EXP'!$B$10:$B$32,$A177,'OTH EXP'!G$10:G$32) -> 0 | E177: =SUMIF('OTH EXP'!$B$10:$B$32,$A177,'OTH EXP'!H$10:H$32) -> 0 | F177: =SUMIF('OTH EXP'!$B$10:$B$32,$A177,'OTH EXP'!I$10:I$32) -> 0 | G177: =SUMIF('OTH EXP'!$B$10:$B$32,$A177,'OTH EXP'!J$10:J$32) -> 0 | H177: =SUMIF('OTH EXP'!$B$10:$B$32,$A177,'OTH EXP'!K$10:K$32) -> 0 | I177: 0 | J177: 0 | K177: 0 | L177: 0 | M177: 0 | N177: 0
A178: OTHERFurniture | B178: Furniture | C178: -121 | D178: =SUMIF('OTH EXP'!$B$10:$B$32,$A178,'OTH EXP'!G$10:G$32) -> 0 | E178: =SUMIF('OTH EXP'!$B$10:$B$32,$A178,'OTH EXP'!H$10:H$32) -> 0 | F178: =SUMIF('OTH EXP'!$B$10:$B$32,$A178,'OTH EXP'!I$10:I$32) -> 0 | G178: =SUMIF('OTH EXP'!$B$10:$B$32,$A178,'OTH EXP'!J$10:J$32) -> 0 | H178: =SUMIF('OTH EXP'!$B$10:$B$32,$A178,'OTH EXP'!K$10:K$32) -> 0 | I178: 0 | J178: 0 | K178: 0 | L178: 0 | M178: 0 | N178: 0
A179: OTHERGeneral M&O | B179: General M&O | C179: -122 | D179: =SUMIF('OTH EXP'!$B$10:$B$32,$A179,'OTH EXP'!G$10:G$32) -> 0 | E179: =SUMIF('OTH EXP'!$B$10:$B$32,$A179,'OTH EXP'!H$10:H$32) -> 0 | F179: =SUMIF('OTH EXP'!$B$10:$B$32,$A179,'OTH EXP'!I$10:I$32) -> 0 | G179: =SUMIF('OTH EXP'!$B$10:$B$32,$A179,'OTH EXP'!J$10:J$32) -> 0 | H179: =SUMIF('OTH EXP'!$B$10:$B$32,$A179,'OTH EXP'!K$10:K$32) -> 0 | I179: 0 | J179: 0 | K179: 0 | L179: 0 | M179: 0 | N179: 0
A180: OTHERMalpractice | B180: Malpractice | C180: -123 | D180: =SUMIF('OTH EXP'!$B$10:$B$32,$A180,'OTH EXP'!G$10:G$32) -> 0 | E180: =SUMIF('OTH EXP'!$B$10:$B$32,$A180,'OTH EXP'!H$10:H$32) -> 0 | F180: =SUMIF('OTH EXP'!$B$10:$B$32,$A180,'OTH EXP'!I$10:I$32) -> 0 | G180: =SUMIF('OTH EXP'!$B$10:$B$32,$A180,'OTH EXP'!J$10:J$32) -> 0 | H180: =SUMIF('OTH EXP'!$B$10:$B$32,$A180,'OTH EXP'!K$10:K$32) -> 0 | I180: 0 | J180: 0 | K180: 0 | L180: 0 | M180: 0 | N180: 0
A181: OTHERMoving/Relocation | B181: Moving/Relocation | C181: -124 | D181: =SUMIF('OTH EXP'!$B$10:$B$32,$A181,'OTH EXP'!G$10:G$32) -> 0 | E181: =SUMIF('OTH EXP'!$B$10:$B$32,$A181,'OTH EXP'!H$10:H$32) -> 0 | F181: =SUMIF('OTH EXP'!$B$10:$B$32,$A181,'OTH EXP'!I$10:I$32) -> 0 | G181: =SUMIF('OTH EXP'!$B$10:$B$32,$A181,'OTH EXP'!J$10:J$32) -> 0 | H181: =SUMIF('OTH EXP'!$B$10:$B$32,$A181,'OTH EXP'!K$10:K$32) -> 0 | I181: 0 | J181: 0 | K181: 0 | L181: 0 | M181: 0 | N181: 0
A182: OTHEROther | B182: Other | C182: -125 | D182: =SUMIF('OTH EXP'!$B$10:$B$32,$A182,'OTH EXP'!G$10:G$32) -> 0 | E182: =SUMIF('OTH EXP'!$B$10:$B$32,$A182,'OTH EXP'!H$10:H$32) -> 0 | F182: =SUMIF('OTH EXP'!$B$10:$B$32,$A182,'OTH EXP'!I$10:I$32) -> 0 | G182: =SUMIF('OTH EXP'!$B$10:$B$32,$A182,'OTH EXP'!J$10:J$32) -> 0 | H182: =SUMIF('OTH EXP'!$B$10:$B$32,$A182,'OTH EXP'!K$10:K$32) -> 0 | I182: 0 | J182: 0 | K182: 0 | L182: 0 | M182: 0 | N182: 0
B183: Total Costs | D183: =SUM(D168:D182) -> 0 | E183: =SUM(E168:E182) -> 0 | F183: =SUM(F168:F182) -> 0 | G183: =SUM(G168:G182) -> 0 | H183: =SUM(H168:H182) -> 0 | I183: 0 | J183: 0 | K183: 0 | L183: 0 | M183: 0 | N183: 0
N184: =N166+N183 -> 0
B185: Impact | D185: =D166-D183 -> 0 | E185: =E166-E183 -> 0 | F185: =F166-F183 -> 0 | G185: =G166-G183 -> 0 | H185: =H166-H183 -> 0 | N185: =N166+N183 -> 0
N186: =N166+N183 -> 0

Sheet FTE SHEET
A1: HIDE | B1: COLLEGE OF MEDICINE | F1: FACULTY FTE SHEET | N1: =COMP!D15 -> 0
B2: FACULTY RECRUITMENT BUSINESS PLAN | N2: =COMP!J9 -> [select]
N3: =COMP!J10&" "&COMP!J11 -> 
B4: FTE Assignment Summary
B5: Year 1 Effort | C5: College of Medicine | E5: Integrated Clinical Enterpirise | G5: Arkansas Childrens Hospital | I5: Institutes | K5: Other Units | M5: Total
